Workbook

Sheet Call Model
D1: CISCO BROADWORKS SYSTEM CAPACITY PLANNER CALL MODEL INPUT
T2: Yes | U2: No
A3: Note: The Capacity Planning tool provides an estimation of capacity when live system data is not available. It is not intended as a substitute for monitoring a live system based on defined system indicators that should be used to ensure proper performance and to calculate growth expectations. For more information, see the Cisco BroadWorks System Engineering Guide. | P3: Version 6.10 | T3: No
S4: Cisco Document Number 02-BD5004-00
A6: PACKAGED CONFIGURATION INPUT(S) | H6: Select a packaged configuration or set of configurations. Note: Macros need to be enabled in Excel for these buttons to work. | U6: DB per User | V6: Profile Weighting (Memory)
O7: # Users | P7: User Erlang | Q7: Hold Time (Seconds) | R7: # Simultaneous Calls | T7: CPS
C8: Packaged Configuration Selection 1 | G8: Standard Residential/SOHO User Package with Unified Messaging | O8: 1000000 | P8: 0.1 | Q8: 180 | R8: =Users1*UserErlang1 -> 100000 | T8: =IF(UserHoldTime1=0,0,UserErlang1/UserHoldTime1*Users1) -> 555.5555556 | U8: =IF(T8=0,0,T8/CPS) -> 1 | V8: =IF(Users=0,1,Users1/Users) -> 1
C9: Packaged Configuration Selection 2 | G9: None | O9: 0 | P9: 0.1 | Q9: 180 | R9: =Users2*UserErlang2 -> 0 | T9: =UserErlang2/UserHoldTime2*Users2 -> 0 | U9: 0 | V9: =IF(Users=0,0,Users2/Users) -> 0
C10: Packaged Configuration Selection 3 | G10: None | O10: 0 | P10: 0.1 | Q10: 180 | R10: =Users3*UserErlang3 -> 0 | T10: =UserErlang3/UserHoldTime3*Users3 -> 0 | U10: 0 | V10: =IF(Users=0,0,Users3/Users) -> 0
C11: Packaged Configuration Selection 4 | G11: None | O11: 0 | P11: 0.1 | Q11: 180 | R11: =Users4*UserErlang4 -> 0 | T11: =UserErlang4/UserHoldTime4*Users4 -> 0 | U11: 0 | V11: =IF(Users=0,0,Users4/Users) -> 0
C12: Packaged Configuration Selection 5 | G12: None | O12: 0 | P12: 0.1 | Q12: 180 | R12: =Users5*UserErlang5 -> 0 | T12: =UserErlang4/UserHoldTime4*Users4 -> 0 | U12: 0 | V12: =IF(Users=0,0,Users4/Users) -> 0
G13: Call Center | O13: =NumAgents -> 0 | P13: =S59*CCPercentLoggedIn -> 0.2805 | Q13: =CCAgentHoldTime -> 180 | R13: =UsersCC*CCErlang -> 0 | T13: =CCErlang/CCHoldTime*UsersCC -> 0 | U13: 0 | V13: =IF(U13=0,0,U13/CPS) -> 0
G14: Route Point | O14: =rpNumAgents -> 0 | P14: =rpAgentErlang -> 1 | Q14: =rpHoldTime -> 180 | R14: =UsersRp*RPerlang -> 0 | T14: =RPerlang/Q14*UsersRp -> 0 | U14: 0 | V14: =IF(U14=0,0,U14/CPS) -> 0
C15: TOTAL | O15: =SUM(O8:O14) -> 1000000 | P15: =IF(Users=0,P8,SimCalls/Users) -> 0.1 | Q15: =UserHoldTime1*weight1+UserHoldTime2*weight2+UserHoldTime3*weight3+UserHoldTime4*weight4+UserHoldTime5*weight5+CCHoldTime*weightCC+Q14*weightRP -> 180 | R15: =SUM(R8:R14) -> 100000 | T15: =SUM(T8:T14) -> 555.5555556 | U15: =SUM(U8:U12) -> 1 | V15: =SUM(V8:V12) -> 1
A22: SYSTEM INPUT
B23: System Mode | I23: AS-Mode
B24: CPU Hyper-Threading (non-Media/Video Servers) | I24: True
B25: CPU Hyper-Threading (Media/Video Servers) | I25: False
B26: Hypervisor | I26: VMware
B27: Cisco BroadWorks Media Server Configuration | I27: Virtualized
B28: Cisco BroadWorks Video Server Configuration | I28: Virtualized
B29: psPsLine | I29: Virtualized
A32: MANUAL CONFIGURATION INPUT | K32: The manual configuration inputs can be used to override the packaged configuration(s). Note: These manual configuration modifications apply to and override ALL packaged configurations.
B33: SYSTEM | L33: SERVICES
C34: SIP Device Percentage | I34: 1 | L34: AUTHENTICATION
C35: SIP Phone Registration Interval (Minutes) | I35: 30 | L35: Penetration | S35: 1
C36: SIP Minimum Phone Registration Interval (Minutes) | I36: 20 | L36: Invite Authentication Ratio | S36: 1
C37: Subscriptions Per Phone Per User Per Hour | I37: 3 | T37: =IF(InviteAuthRatio>1,"ERROR: must be less than 1","") -> 
C38: Average Number of Users Per Group | I38: 1 | L38: AUTO ATTENDANT
C39: Average Number of Groups Per Enterprise/Service Provider | I39: 15000000 | L39: Incoming Calls | S39: 0
C40: Distributed Group Calling (Internal Calls Route Via Network) | I40: No | L40: Average Duration (Seconds) | S40: 20
C41: SIP Session Completion Timer (Seconds) | I41: 40 | L41: Video Penetration | S41: 0
C42: Number of Busy Hours Per Day | I42: 8 | L42: Video File Caching Percentage | S42: 0.1
C43: Administrative Provisioning Transactions Per Second | I43: 10
C44: Using SurgeMail | I44: No | L44: BROADWORKS ANYWHERE
C45: Network Function Manager (NFM) Mode | I45: Full Functionality | L45: Calls | S45: 0
C46: Messaging Server (UMS) Mode | I46: Co-Located | L46: Average Number of Entries Per User | S46: 1
L47: Average Dial Tone/Digit Collection Duration (Seconds) | S47: 30
B48: BASIC CALLS | L48: Average Ringback Duration | S48: 18
C49: Internal Calls | I49: 0
C50: External Calls - Outgoing | I50: 0.5 | K50: =IF(I52=1,"","Must total 100%") ->  | L50: BUSY LAMP FIELD
C51: External Calls - Incoming | I51: 0.5 | L51: Penetration | S51: 0
C52: TOTAL | I52: =SUM(I49:I51) -> 1 | L52: Average Users Monitored | S52: 15
C54: INTERNAL CALLS | L54: CALL CENTER
C55: Answered | I55: 0.5 | L55: Automated Call Distribution
C56: Unanswered | I56: 0.45 | M56: Number of Provisioned Agents | S56: 0
C57: Busy | I57: 0.03 | K57: =IF(I59=1,"","Must total 100%") ->  | M57: Percent of Agents Logged In | S57: 0.33
C58: Failure | I58: 0.02 | M58: Number of Call Centers | S58: 122.324159
C59: TOTAL | I59: =SUM(I55:I58) -> 1 | M59: Agent Erlang | S59: 0.85
M60: Agent Hold Time | S60: 180
C61: EXTERNAL CALLS - OUTGOING | M61: Incoming Calls | S61: =IF(CPS=0,0,T13/CPS) -> 0
C62: Answered | I62: 0.5 | M62: Average Wait Time (Seconds) | S62: 60
C63: Unanswered | I63: 0.45 | M63: Percentage of External Enhanced Call Center Reporting | S63: 0
C64: Busy | I64: 0.03 | K64: =IF(I66=1,"","Must total 100%") ->  | M64: Percentage of Statistics Generation on Application Server | S64: 1
C65: Failure | I65: 0.02 | L65: Announcements
C66: TOTAL | I66: =SUM(I62:I65) -> 1 | M66: Music On Hold Source | S66: Internal
M67: Time Between Comfort Messages | S67: 30
C68: EXTERNAL CALLS - INCOMING | M68: Average Comfort Message Duration | S68: 10
C69: Answered | I69: 0.5 | M69: Comfort Bypass Penetration | S69: 0
C70: Unanswered | I70: 0.45 | K70: =IF(I72=1,"","Must total 100%") ->  | M70: Average Comfort Bypass Message Duration | S70: 5
C71: Busy/Failure | I71: 0.05 | M71: Average Entrance Announcement Duration (Seconds) | S71: 5
C72: TOTAL | I72: =SUM(I69:I71) -> 1 | M72: Average Whisper Announcement Duration (Seconds) | S72: 5
M73: Alternate Call Routing Penetration | S73: 0
B74: Network Server | M74: Alternate Call Routing Announcement Duration (Seconds) | S74: 0
C75: Network Server Mode | H75: Redirect | M75: Video Penetration | S75: 0
C76: Network Server Used for Access-side | I76: Yes | M76: Video File Caching Percentage | S76: 0.9
C77: Application Server Line/Port Synchronization Enabled | I77: No | L77: Enhanced Call Center Reporting Database
C78: Average Number of Devices Per User | I78: 1 | M78: Quarterly Interval Retention (in Days) | S78: 90
C79: Average Number of Directory Numbers Per User | I79: 1 | M79: Half Hourly Interval Retention (in Days) | S79: 90
M80: Hourly Interval Retention (in Days) | S80: 397
B81: Accounting | M81: Detail Retention (in Days) | S81: 90
M82: Sign In/Out Retention (in Days) | S82: 90
C83: Radius Real-time Accounting Interface Enabled | I83: No | M83: Event Archive Duration (in Days) | S83: 90
C84: Diameter Rf Interface Enabled | I84: No | L84: Enhanced Call Center Report Generation
C85: Diameter Ro Interface Enabled | I85: No | M85: Supervisor Percentage | S85: 0
C86: Prepaid Penetration | I86: 0 | M86: Real-time Report Refresh Rate (in Seconds) | S86: 60
C87: Billing Hold Line (in Days) | I87: 1 | J87: 0.14 | M87: Supervisor
N88: Average Number of Configured Real-time Reports | S88: 0
B89: Media Server (MS) | N89: Reports Per Hour | S89: 4
C90: Average Treatment Duration | I90: 15 | M90: Agent | N90: =CONCATENATE(100*(1-ccPercentSuper),"% of Users are Regular Agents") -> 100% of Users are Regular Agents
C91: Audio Codecs | N91: Average Number of Configured Real-time Reports | S91: 0.01
C92: G.711 Codec Penetration | I92: 0 | K92: =IF(I101=1,"","Must total 100%") ->  | N92: Reports Per Hour | S92: 0.5
C93: G.726 Codec Penetration | I93: 0
C94: AMR-NB Codec Penetration | I94: 0 | L94: CALL RECORDING
C95: AMR-WB Codec Penetration | I95: 0 | L95: Penetration | S95: 0
C96: G.729 Codec Penetration | I96: 1 | L96: Average Recorded Call Duration (Seconds) | S96: 180
C97: G.722 Codec Penetration | I97: 0
C98: EVRC-A Codec Penetration | I98: 0 | L98: CALLING NAME RETRIEVAL
C99: EVRC-NW Codec Penetration | I99: 0 | L99: Penetration | S99: 0
C100: Opus Codec Penetration | I100: 0
C101: TOTAL | I101: =SUM(I92:J100) -> 1 | L101: CLIENT APPLICATIONS
C102: Video Transcoding | L102: WebEx Desktop | S102: 0
C103: H.264 CIF Percentage | I103: 0.25 | M103: Logins Per User Per Hour | S103: 0.1
C104: H.264 QCIF Percentage | I104: 0.25 | K104: =IF(I107=1,"","Must total 100%") ->  | M104: Service Management Changes Per User Per Hour | S104: 0.01
C105: H.263 CIF Percentage | I105: 0.25 | L105: WebEx Mobile | S105: 0
C106: H.263 QCIF Percentage | I106: 0.25 | M106: Logins Per User Per Hour | S106: 0.1
C107: TOTAL | I107: =SUM(I103:J106) -> 1 | M107: Service Management Changes Per User Per Hour | S107: 0.01
C108: Video Conferencing | M108: Foreground Actions Per User Per Hour | S108: 0.1
C109: CIF | I109: 1 | K109: =IF(I112=1,"","Must total 100%") ->  | M109: Percentage of Time Application in Foreground | S109: 0.1
C110: 4CIF | I110: 0 | L110: Cisco BroadWorks Receptionist Penetration | S110: 0
C111: 720p HD | I111: 0 | M111: Logins Per User Per Hour | S111: 1
C112: TOTAL | I112: =SUM(I109:J111) -> 1 | M112: Average Number of Monitored Users | S112: 15
C113: Maximum RTP Ports | I113: 4000 | L113: Cisco BroadWorks Call Center Penetration | S113: 0
C114: Dedicated Configurations for IVR/Conferencing | I114: No | M114: Logins Per User Per Hour | S114: 0.1
C115: Media Server Configuration 1 (General or IVR-centric) | M115: Administrative Actions Per User Per Hour | S115: 2
C116: IVR Resource Ratio | I116: 0.75 | M116: Average Number of Call Centers Per Supervisor | S116: 1
C117: Video Transcoding Resource Ratio | I117: 1 | M117: Average Number of Active Dashboards | S117: 1
C118: Number of Video Processes (blank = default) | M118: Average Number of Monitored Agents | S118: 15
C119: Number of Audio Processes (blank = default) | L119: UC-One Communicator Desktop | S119: 0
C120: Media Server Configuration 2 (Conference-centric) | M120: Logins Per User Per Hour | S120: 0.1
C121: IVR Resource Ratio | I121: 0.05 | M121: Service Management Changes Per User Per Hour | S121: 0.01
C122: Video Transcoding Resource Ratio | I122: 0 | M122: Release 21.sp9 (or later) Xsp | S122: Yes
C123: Number of Video Processes (blank = default) | L123: UC-One Communicator Mobile/Tablet | S123: 0
C124: Number of Audio Processes (blank = default) | M124: Logins Per User Per Hour | S124: 0.1
M125: Service Management Changes Per User Per Hour | S125: 0.01
B126: Video Server (UVS) | L126: UC-One Connect | S126: 0
C127: Number of Video Processes (blank = default) | M127: Logins Per User Per Hour | S127: 0.1
C128: Audio Codecs | L128: Meet-Me Moderator | S128: 0
C129: G.711 Codec Penetration | I129: 1 | K129: =IF(I133=1,"","Must total 100%") ->  | M129: Usage Per User Per Hour | S129: 1
C130: G.722 Codec Penetration | I130: 0 | L130: Other OCI-P Clients - Penetration | S130: 0
C131: G.729 Codec Penetration | I131: 0 | M131: Logins Per User Per Hour | S131: 1
C132: Opus Codec Penetration | I132: 0 | M132: Provisioning Transactions Per User Per Hour | S132: 1
C133: TOTAL | I133: =SUM(I129:J132) -> 1 | M133: Percentage of Traffic Using OCI over SOAP Interface | S133: 0
C134: Video Resolution | L134: Load Balancer | S134: 0
C135: CIF | I135: 1 | K135: =IF(I138=1,"","Must total 100%") ->  | M135: Transactions Per User Per Hour | S135: 10
C136: VGA | I136: 0 | M136: Active Session Percentage | S136: 1
C137: 720p HD | I137: 0 | L137: Push Notification iOS Percentage | S137: 0.5
C138: TOTAL | I138: =SUM(I135:J137) -> 1 | L138: Apple Push Notification Service HTTP/2 Enabled | S138: Yes
L139: Push Notification Network Latency (milliseconds) | S139: 50
B140: XS MODE | L140: Push Notification Application IDs | S140: 8
C141: Third-Party Registration Enabled | I141: False | L141: Connections per Application ID | S141: 10
C142: Support Sh SCSCF Name | I142: False
C143: Execution Server Hot Standby Nodes (Minimum of one) | I143: 1 | L143: COLLABORATE (legacy/requires UC-One Communicator)
C144: Note: Some features are not supported in XS mode. Check product documentation for details. | L144: Messaging Penetration | S144: 0
L145: Messages Per User Per Hour | S145: 30 | T145: =IF(AND(collabMsgPen>0,SUM(btbcPen,ucOneMobilePen,ucConnectPen)=0),"ERROR: No UC-One usage s configured. Messaging requires UC-One.","") -> 
L146: Message Archiving Enabled | S146: No
L147: Desktop Shares Per User Per Hour | S147: 0.01 | T147: =IF(AND(S144>0,btbcPen=0),"ERROR: No UC-One Desktop usage is configured. Desktop sharing requires UC-One.","") -> 
L148: Desktop Share Duration (Minutes) | S148: 30
L149: Average Desktop Share Participant Count | S149: 2
L150: Room Usage Per User Per Hour | S150: 0.01
L151: Room Duration (Minutes) | S151: 30
L152: Average Room Participant Count | S152: 2
L153: Audio-Only Room Percentage | S153: 0.05
L155: CPE MONITORING
L156: Penetration | S156: 0
L157: Monitoring Interval | S157: 60
L158: Average Number of Ports Per Device | S158: 5
L160: CUSTOM RINGBACK
L161: Penetration | S161: 0
L162: Percentage of Ringback Files Stored on Application Server | S162: 0
L163: Ringback Duration (Seconds) | S163: 18
L164: Video Penetration | S164: 0
L165: Video File Caching Percentage | S165: 0.9
L167: DEVICE MANAGEMENT
L168: Penetration | S168: 0
L169: Supported Reboot Rate (Phones Per Second) | S169: 0
L170: Background Phone Configuration Rebuilds Per User Per Hour | S170: 0.01
L171: Background Phone Resets Per User Per Hour | S171: 0.1
L172: Background PUT Requests Per User Per Hour | S172: 0.2
L173: Average Number of GET Requests Per Device Reboot | S173: 23
L174: Average Number of PUT Requests Per Device Reboot | S174: 2
L175: Average GET Size from Xtended Services Platform Node (KB) | S175: 100
L176: Average PUT Size (KB) | S176: 10
L177: Average GET Time from Xtended Services Platform Node (Seconds) | S177: 1
L178: Bandwidth Per Xtended Services Platform Node (Mbps) | S178: 600
L179: Caching Percentage | S179: 0.8
L180: Average GET Size from Profile Server Node (KB) | S180: 3
L181: Average GET Time from Profile Server Node (Seconds) | S181: 0.5
L182: Bandwidth Per Profile Server Node (Mbps) | S182: 600
L183: Controlled Rebuild (Number of Devices) | S183: 0
L184: Calculated Controlled Rebuild Time (Minutes) | S184: =dmsCalcRebuildTime -> 0
L186: ENHANCED CALL LOGS (NDS)
L187: Penetration | S187: 0
L188: Read Requests Per User Per Hour | S188: 0.01
L189: Administrative Requests Per Hour | S189: 200
L190: Retention Period in Months | S190: 3
L191: Reporting Worker Threads (Profile Server) | S191: 4
L192: Reports Per Hour | S192: 0
L193: Event Archive Duration (in Days) | S193: 90
L195: FAX MESSAGING | P195: `
L196: Penetration | S196: 0
L197: Average Duration (Seconds) | S197: 120
L199: IN-CALL SERVICE ACTIVATION
L200: Penetration | S200: 0
L202: INSTANT GROUP CALL
L203: Penetration | S203: 0
L204: Call Duration (Minutes) | S204: 10
L205: Confirmation Tone Duration (Seconds) | S205: 10
L206: Average Number of Members Per Call | S206: 5
L207: Average Time for Last Member to Answer (Seconds) | S207: 45
L209: INTERCEPT GROUP/USER
L210: Penetration | S210: 0
L211: Announcement Duration (Seconds) | S211: 18
L212: Video Penetration | S212: 0
L213: Video File Caching Percentage | S213: 0.95
L215: LAWFUL INTERCEPT
L216: Average Monitored Call Duration (Seconds) | S216: 180
L217: Event Monitoring Penetration | S217: 0
L218: Media Monitoring Penetration | S218: 0
L219: Video Penetration | S219: 0
... 110 more rows

Sheet Capacity Planner
D1: CISCO BROADWORKS SERVER-BASED SYSTEM CAPACITY PLANNER OUTPUT
T2: Yes | U2: No
U3: Yes | V3: =NOT(AND(EXACT(NEBS,"Yes"),#REF!,V8,#REF!,#REF!,#REF!,#REF!)) -> 
C4: CISCO BROADWORKS SERVER TYPES | G4: SERVER TYPE SELECTION | M4: SERVER TRAFFIC/CAPACITY (PER NODE) | S4: NODES
G5: Hardware Type | I5: CPU Units | K5: Memory (GB) | M5: CPS | N5: BHCA | O5: RPS | P5: PTPS | Q5: USERS
C6: Application Server | G6: Intel Xeon | I6: 24 | K6: 48 | M6: =ASrealCPS -> 114 | N6: =M6*3600 -> 410400 | O6: =IF(RegistrationInterval=0,0,ROUNDUP(ASrealUsers*SIP/RegistrationInterval/60*2,0)) -> 227 | P6: =ociAdmin+(provPerUserPerHour*ASrealUsers/3600) -> 17.63888204 | Q6: =ROUND(ASfinalUsers/1000,0)*1000 -> 204000 | S6: =IF(systemMode="AS-Mode",MAX(2,IF(Q6=0,0,ROUNDUP(Users/Q6,0)*2)),0) -> 10 | T6: =ASlimiter -> (Limited by Memory)
C7: Execution Server | G7: Intel Xeon | I7: 16 | K7: 48 | M7: ='Server Capacity'!C33 -> 139 | N7: =M7*3600 -> 500400 | O7: =IF(systemSupportsRegisters,Q7*SIP/RegistrationInterval/60*2,0) -> 0 | Q7: ='Server Capacity'!C34 -> 248569.1803 | S7: =IF(systemMode="AS-Mode",0,MAX(2,IF(Q7=0,0,ROUNDUP(Users/Q7,0)+xsModeStandbyNodes))) -> 0 | T7: =ASlimiter -> (Limited by Memory) | V7: =IF(Q8>NsMemSelection,CONCATENATE("ERROR: Not enough memory ",Q8," required"),"") -> ERROR: Not enough memory 740639.144150322 required
C8: Network Server | G8: Intel Xeon | I8: 8 | K8: 12 | M8: =NSrealCPS -> 1500 | N8: =M8*3600 -> 5400000 | Q8: =NSrealUsers -> 740639.1442 | S8: =IF(Q8=0,0,ROUNDUP(Users/Q8,0)+1) -> 3 | T8: =IF(S8>20,"ERROR: More that 20 servers in cluster",IF(NS_Summary!M7>24*1024,"ERROR: System too large. Can not fit users in NS DB.",IF(NS_Ram_Gb>NsMemSelection,CONCATENATE("ERROR: Not enough memory ",NS_Ram_Gb," GB required"),""))) -> 
C9: Service Control Function | G9: Intel Xeon | I9: 8 | K9: 16 | M9: =SCRrealTPS -> 0 | N9: =M9*3600 -> 0 | Q9: =ROUND(SCFfinalUsers/1000,0)*1000 -> 0 | S9: ='Server Capacity'!B378 -> 0
L10: CPU Speed (GHz) | N10: Release 20+ | Q10: USERS
C11: Media Server | E11: =IF(msDedicated="No","General","IVR") -> General | G11: Linux Intel Xeon | I11: 12 | K11: 16 | M11: 2.26 | N11: True | Q11: =IF(usingMS="Bare Metal",'Server Capacity'!B78,0) -> 0 | S11: =IF(usingMS="Bare Metal",'Server Capacity'!B86,0) -> 0 | T11: =IF(S11=0,"",'Server Capacity'!B80) -> 
C12: ='Server Capacity'!B84 ->  | M12: ='Server Capacity'!B87 -> Audio Ports = 4551, Video Conf Ports = 0, IVR Streams = 2056, Audio Conf Streams = 142, Video Conf Streams = 0, Video Transcoding Processes = 1
C13: Media Server | E13: Conference | G13: Linux Intel Xeon | I13: 16 | K13: 8 | M13: 2.26 | N13: True | Q13: =IF(usingMS="Bare Metal",'Server Capacity'!B121,0) -> 0 | S13: =IF(usingMS="Bare Metal",'Server Capacity'!B129,0) -> 0 | T13: =IF(S13=0,"",'Server Capacity'!B123) -> 
C14: ='Server Capacity'!B127 ->  | M14: ='Server Capacity'!B131 -> 
C15: WebRTC Server | G15: Linux Intel Xeon | I15: =IF(hyperThreaded,40,20) -> 40 | K15: 32 | Q15: =IF(wrsMode="Bare Metal",'Server Capacity'!B452,0) -> 0 | S15: =IF(wrsMode="Bare Metal",IF('Server Capacity'!B451=0,0,'Server Capacity'!B451+1),0) -> 0
C16: Access Mediation Server | G16: Intel Xeon | I16: 12 | K16: 12 | P16: =AMSports -> 3900 | Q16: =ROUND(AMSfinalUsers/1000,0)*1000 -> 25000 | S16: =IF(SCCP=0,0,ROUNDUP(Users*SCCP/Q16,0)*2) -> 0
C17: Xtended Services Platform/Application Delivery Platform | N17: Bandwidth (Mbps) | O17: RPS | P17: TPS | Q17: Node Util %
C18: General User Service/Call Control | G18: Intel Xeon | I18: 8 | K18: 16 | P18: ='Server Capacity'!B201 -> 52 | Q18: ='Server Capacity'!B206 -> 1 | S18: =IF('Server Capacity'!B202=0,0,'Server Capacity'!B202+1) -> 2 | T18: =IF(S18=0,"",'Server Capacity'!B200) -> (Limited by Maximum Users)
C19: Business Client | G19: Intel Xeon | I19: 12 | K19: 16 | P19: ='Server Capacity'!B285 -> 0 | Q19: ='Server Capacity'!B287 -> 0 | S19: =IF('Server Capacity'!B286=0,0,'Server Capacity'!B286+1) -> 0 | T19: =IF(S19=0,"",'Server Capacity'!B284) -> 
C20: Device Management Access | G20: Intel Xeon | I20: 8 | K20: 16 | N20: ='Server Capacity'!B233 -> 0 | O20: =dmsRebootRate+Users*dmsUserReboots/36000 -> 0 | P20: ='Server Capacity'!B235 -> 0 | Q20: ='Server Capacity'!B237 -> 0 | S20: =IF('Server Capacity'!B231=0,0,'Server Capacity'!B231+1) -> 0 | T20: =IF(S20=0,"",'Server Capacity'!B232) -> 
C21: UC-Connect | G21: Intel Xeon | I21: 8 | K21: 16 | P21: ='Server Capacity'!B235 -> 0 | Q21: ='Server Capacity'!B158 -> 0 | S21: =IF('Server Capacity'!B157=0,0,'Server Capacity'!B157+1) -> 0 | T21: =IF(Q21=0,"",'Server Capacity'!B155) -> 
C22: Webex | G22: Intel Xeon | I22: 16 | K22: 32 | P22: ='Server Capacity'!B588 -> 0 | Q22: ='Server Capacity'!B590 -> 0 | S22: =IF('Server Capacity'!B589=0,0,'Server Capacity'!B589+1) -> 0 | T22: ='Server Capacity'!B587 -> (Limited by CPU)
C23: UC-One Communicator | G23: Intel Xeon | I23: 16 | K23: 32 | P23: ='Server Capacity'!B391 -> 0 | Q23: ='Server Capacity'!B393 -> 0 | S23: =IF('Server Capacity'!B392=0,0,'Server Capacity'!B392+1) -> 0 | T23: =IF(S23=0,"",'Server Capacity'!B390) -> 
C24: CTI-Connect | G24: Intel Xeon | I24: 8 | K24: 16 | P24: ='Server Capacity'!B326 -> 0 | Q24: ='Server Capacity'!B329 -> 0 | S24: =IF('Server Capacity'!B327=0,0,'Server Capacity'!B327+1) -> 0 | T24: =IF(S24=0,"",'Server Capacity'!B330) -> 
C25: Notification Push Server | G25: Intel Xeon | I25: 4 | K25: =I25+4 -> 8 | P25: ='Server Capacity'!B510 -> 0 | Q25: ='Server Capacity'!B515 -> 0 | S25: ='Server Capacity'!B516 -> 0
C26: Load Balancer | G26: Intel Xeon | I26: 4 | K26: 4 | P26: ='Server Capacity'!B524 -> 2800 | S26: ='Server Capacity'!B529 -> 0
C27: Profile Server/Application Delivery Platform | L27: Total Storage (GB) | N27: Bandwidth (Mbps) | O27: IOPS (Read/Write) | P27: TPS | Q27: USERS
C28: Device Management Repository | G28: Intel Xeon | I28: 8 | K28: 16 | M28: =ROUNDUP('Server Capacity'!B248,0) -> 0 | N28: ='Server Capacity'!B264 -> 0 | O28: ='Server Capacity'!B270 -> 0 / 0 | P28: ='Server Capacity'!B272 -> 0 | S28: =IF('Server Capacity'!B261=0,0,'Server Capacity'!B261+1) -> 0 | T28: =IF(S28=0,"",'Server Capacity'!B262) -> 
C29: Call Center/Enhanced Call Log Reporting | G29: Intel Xeon | I29: 24 | K29: 32 | P29: ='Server Capacity'!B314 -> 0 | S29: =IF(ccPsfinalUsers=0,0,ROUNDUP(Users/ccPsfinalUsers,0)+1) -> 0
C30: Provisioning Application | G30: Intel Xeon | I30: 24 | K30: 48 | P30: ='Server Capacity'!B459 -> 715.7894737 | Q30: ='Server Capacity'!B467 -> 0 | S30: ='Server Capacity'!B467 -> 0
C31: Database Server | O31: Total IOPS | P31: CPS | Q31: RPS | S31: Nodes Per Instance | T31: Instances
C32: Enhanced Call Center Reporting | G32: Linux Intel Xeon | I32: ='Server Capacity'!B298 -> 0 | K32: ='Server Capacity'!B300 -> 0 | M32: ='Server Capacity'!B304 -> 0 / 0 | N32: =ROUNDUP(ccDbsDataMbps+ccDbsFraMbps,0) -> 0 | O32: =ROUNDUP(ccDbsDataIops+ccDbsFraIops,0) -> 0 | P32: =eccrCps -> 0 | Q32: =ROUNDUP(eccrRps,0) -> 0 | S32: =IF(P32=0,0,IF(dbsRedundancy="None",1,IF(dbsRedundancy="Both",4,2))) -> 0 | T32: =IF(Q32=0,0,'Call Data'!B318) -> 0 | U32: ='Call Data'!B339 -> 2.220446049e-16
C33: Directory Server | G33: Linux Intel Xeon | I33: 24 | K33: 48 | M33: ='Call Data'!B452 ->  | N33: ='Call Data'!B455 -> 0 | O33: ='Call Data'!B446 -> 0 | S33: =IF(O33=0,0,IF(dbsRedundancy="None",1,IF(dbsRedundancy="Both",4,2))) -> 0 | T33: ='Call Data'!B465 -> 0 | U33: ='Call Data'!B456 -> 0
C34: Network Database Server
C35: Enhanced Call Logging | I35: ='Server Capacity'!B560 -> 0 | K35: ='Server Capacity'!B561 -> 0 | M35: ='Server Capacity'!B573 -> 0 | N35: ='Server Capacity'!B574/1024 -> 0 | O35: ='Server Capacity'!B575 -> 0 | P35: =ROUNDUP('Server Capacity'!B573,0) -> 0 | Q35: =ROUNDUP('Server Capacity'!B576,0) -> 0 | S35: ='Server Capacity'!B570 -> 0
C36: Messaging Server | I36: =IF(umsMode=UMSnds,'Server Capacity'!B535,0) -> 0 | K36: =IF(umsMode=UMSnds,'Server Capacity'!B536,0) -> 0 | M36: =IF(umsMode=UMSnds,'Server Capacity'!B540,0) -> 0 | N36: =IF(umsMode=UMSnds,'Server Capacity'!B542/1024,0) -> 0 | O36: =IF(umsMode=UMSnds,'Server Capacity'!B541,0) -> 0 | S36: =IF(umsMode=UMSnds,'Server Capacity'!B538,0) -> 0
L37: CPU Speed (GHz) | Q37: USERS
C38: Messaging Server | G38: Linux Intel Xeon | I38: ='Server Capacity'!B403 -> 12 | K38: 60 | Q38: =IF(umsMode=UMSnds,'Server Capacity'!B419,'Server Capacity'!B406) -> 0 | S38: =IF(umsMode=UMSnds,'Server Capacity'!B426,'Server Capacity'!B413) -> 0
C39: Sharing Server | G39: Linux Intel Xeon | I39: ='Server Capacity'!B429 -> 4 | K39: 12 | Q39: ='Server Capacity'!B432 -> 0 | S39: ='Server Capacity'!B434 -> 0
C40: Video Server | F40: Ω | G40: Linux Intel Xeon | I40: 20 | K40: 32 | M40: 3 | Q40: =IF(uvsMode="Bare Metal",'Server Capacity'!B497,0) -> 0 | S40: =IF(uvsMode="Bare Metal",'Server Capacity'!B495,0) -> 0 | T40: =IF(S40=0,"",'Server Capacity'!B496) -> 
C41: Network Function Manager | G41: Intel Xeon | I41: ='Server Capacity'!E477 -> 16 | K41: ='Server Capacity'!E476 -> 12 | S41: =IF(usingNFM="Yes",3,0) -> 0
L42: Total Storage (GB) | N42: Bandwidth (MBps) | P42: TPS | Q42: USERS
C43: SurgeMail Server | G43: Intel Xeon | I43: =IF(surgeMail="No",0,'Server Capacity'!B360) -> 0 | K43: =IF(surgeMail="No",0,'Server Capacity'!B358) -> 0 | M43: =IF(surgeMail="No",0,ROUNDUP('Call Data'!B344,0)) -> 0 | N43: =IF(surgeMail="No",0,ROUNDUP('Call Data'!B349,0)) -> 0 | P43: =IF(surgeMail="No",0,'Server Capacity'!B354) -> 0 | Q43: =IF(surgeMail="No",0,'Server Capacity'!B362) -> 0 | S43: =IF(Q43=0,0,2*ROUNDUP(Users/Q43,0)) -> 0

Sheet Virtualized Planner
D1: CISCO BROADWORKS VIRTUALIZATION-BASED SYSTEM CAPACITY PLANNER OUTPUT
V2: Yes | W2: No
A3: Yes
C5: CISCO BROADWORKS SERVER TYPES | F5: Server Size Overrides | Q5: Calculated Per Node Requirements
F6: vCPUs Blank = Automatic | H6: Memory (GB) Blank= Automatic | J6: Calls Per Second | K6: BHCA | L6: Registrations Per Second | M6: Subscriptions Per Second | N6: Provisioning Transactions Per Second | O6: USERS | Q6: Nodes | S6: vCPUs | T6: Memory (GB) | U6: IOPS | V6: Storage Reqts (GB) | W6: Disk Throughput (KBps) | X6: Network Bandwidth (Mbps) | Y6: Replication Bandwidth (Mbps) | AC6: count | AD6: cpu | AE6: mem | AF6: iops | AG6: storage | AH6: thruput | AI6: bw | AJ6: rep bw
C7: Application Server | J7: ='Server Capacity'!L30 -> 139 | K7: =J7*3600 -> 500400 | L7: ='Server Capacity'!L35 -> 486.1111111 | M7: ='Server Capacity'!L32 -> 305.5555556 | N7: ='Server Capacity'!L33 -> 10 | O7: ='Server Capacity'!L29 -> 250000 | Q7: =IF(systemMode="AS-Mode",'Server Capacity'!L23,0) -> 8 | S7: ='Server Capacity'!L25 -> 9 | T7: ='Server Capacity'!L27 -> 59 | U7: ='Server Capacity'!P27 -> 86 / 267 | V7: ='Server Capacity'!P26 -> 306 / 73 | W7: ='Server Capacity'!P29 -> 11205 / 4351 | X7: ='Server Capacity'!P34 -> 100 | Y7: =ROUNDUP('Server Capacity'!X27,0) -> 4 | Z7: ='Server Capacity'!L21 -> (Limited by Memory) | AC7: =Q7 -> 8 | AD7: =Q7*S7 -> 72 | AE7: =Q7*T7 -> 472 | AF7: =Q7*('Server Capacity'!P12+'Server Capacity'!P21) -> 2824 | AG7: =Q7*('Server Capacity'!P13+'Server Capacity'!P22) -> 3032 | AH7: =Q7+('Server Capacity'!Q12+'Server Capacity'!Q21) -> 15564 | AI7: =Q7*X7 -> 800 | AJ7: =Q7*Y7/2 -> 16
C8: Execution Server | J8: ='Server Capacity'!M30 -> 186 | K8: =J7*3600 -> 500400 | L8: ='Server Capacity'!L35 -> 486.1111111 | N8: ='Server Capacity'!L33 -> 10 | O8: ='Server Capacity'!M29 -> 333333.3333 | Q8: =IF(systemMode="AS-Mode",0,'Server Capacity'!M23) -> 0 | S8: ='Server Capacity'!L26 -> 9 | T8: ='Server Capacity'!L28 -> 61 | U8: ='Server Capacity'!Q27 -> 100 | V8: ='Server Capacity'!Q26 -> 309 | W8: ='Server Capacity'!Q29 -> 5603 | X8: ='Server Capacity'!P34 -> 100 | AC8: =Q8 -> 0 | AD8: =Q8*S8 -> 0 | AE8: =Q8*T8 -> 0 | AF8: =Q8*U8 -> 0 | AG8: =Q8*V8 -> 0 | AH8: =Q8+W8 -> 5603 | AI8: =Q8*X8 -> 0 | AJ8: =R8*Y8 -> 0
K9: BHCA | L9: USERS | Q9: =IF('Server Capacity'!L39>48,"ERROR: System too large. Can not fit users in NS DB",IF(Q10>20,"ERROR: More that 20 servers in cluster.","")) -> 
C10: Network Server | J10: ='Server Capacity'!L48 -> 2062.5 | K10: =J10*3600 -> 7425000 | L10: =IF(('Server Capacity'!L47*(Q10-1))>Users,'Server Capacity'!L47,"ERROR") -> 1018378.823 | Q10: ='Server Capacity'!L43+1 -> 2 | S10: ='Server Capacity'!L45 -> 11 | T10: =MIN(48,'Server Capacity'!L44) -> 4 | U10: ='Server Capacity'!P44 -> 50 | V10: ='Server Capacity'!P43 -> 300 | W10: ='Server Capacity'!P45 -> 500 | X10: ='Server Capacity'!Y47 -> 150 | Y10: ='Server Capacity'!Z47 -> 1 | AC10: =Q10 -> 2 | AD10: =Q10*S10 -> 22 | AE10: =Q10*T10 -> 8 | AF10: =Q10*U10 -> 100 | AG10: =Q10*V10 -> 600 | AH10: =Q10*W10 -> 1000 | AI10: =Q10*X10 -> 300 | AJ10: =Q10*Y10 -> 2
C11: Service Control Function | J11: ='Server Capacity'!I378 -> 0 | K11: =J11*3600 -> 0 | L11: ='Server Capacity'!I377 -> 0 | Q11: =IF('Server Capacity'!I375=0,0,'Server Capacity'!I375+1) -> 0 | S11: ='Server Capacity'!I371 -> 0 | T11: ='Server Capacity'!I372 -> 0 | U11: ='Server Capacity'!L373 -> 0 | V11: ='Server Capacity'!L372 -> 0 | W11: ='Server Capacity'!L374 -> 0 | X11: ='Server Capacity'!L371 -> 0 | Y11: ='Server Capacity'!L370 -> 0 | AC11: =Q11 -> 0 | AD11: =Q11*S11 -> 0 | AE11: =Q11*T11 -> 0 | AF11: =Q11*U11 -> 0 | AG11: =Q11*V11 -> 0 | AH11: =Q11*W11 -> 0 | AI11: =Q11*X11 -> 0 | AJ11: =Q11*Y11 -> 0
J12: CPU Speed (GHz) | K12: Release 20+ | N12: PORTS | O12: USERS
C13: Media Server | E13: =IF(msDedicated="No","General","IVR") -> General | J13: 2.26 | K13: True | N13: =IF(usingMS="Virtualized",'Server Capacity'!L69,0) -> 4551 | O13: =IF(usingMS="Virtualized",'Server Capacity'!L84,0) -> 182278 | Q13: =IF(usingMS="Virtualized",'Server Capacity'!L89,0) -> 7 | S13: =IF(usingMS="Virtualized",'Server Capacity'!L59,0)*IF(hyperThreadedMS,2,1) -> 12 | T13: =IF(usingMS="Virtualized",'Server Capacity'!L58,0) -> 16 | U13: =IF(usingMS="Virtualized",'Server Capacity'!P59,0) -> 120 | V13: =IF(usingMS="Virtualized",'Server Capacity'!P58,0) -> 300 | W13: =IF(usingMS="Virtualized",'Server Capacity'!P60,0) -> 2600 | X13: =IF(usingMS="Virtualized",'Server Capacity'!P57,0) -> 50 | AC13: =Q13 -> 7 | AD13: =Q13*S13 -> 84 | AE13: =Q13*T13 -> 112 | AF13: =Q13*U13 -> 840 | AG13: =Q13*V13 -> 2100 | AH13: =Q13*W13 -> 18200 | AI13: =Q13*X13 -> 350 | AJ13: =Q13*Y13 -> 0
C14: ='Server Capacity'!L86 ->  | L14: ='Server Capacity'!L90 -> Audio Ports = 4551, Video Conferencing Ports = 0, IVR Streams = 750, Audio Conference Streams = 142.21875,Video Conf Streams = 0, Video Transcoding Processes = 1
C15: Media Server | E15: Conference | J15: 2.26 | K15: True | N15: =IF(usingMS="Virtualized",'Server Capacity'!L113,0) -> 9500 | O15: =IF(usingMS="Virtualized",'Server Capacity'!L128,0) -> 9999999 | Q15: =IF(AND(usingMS="Virtualized",msDedicated="Yes"),'Server Capacity'!L132,0) -> 0 | S15: =IF(usingMS="Virtualized",'Server Capacity'!L103,0)*IF(hyperThreadedMS,2,1) -> 24 | T15: =IF(usingMS="Virtualized",'Server Capacity'!L102,0) -> 8 | U15: =IF(usingMS="Virtualized",'Server Capacity'!P103,0) -> 80 | V15: =IF(usingMS="Virtualized",'Server Capacity'!P102,0) -> 300 | W15: =IF(usingMS="Virtualized",'Server Capacity'!P104,0) -> 1400 | X15: =IF(usingMS="Virtualized",'Server Capacity'!P101,0) -> 0 | AC15: =Q15 -> 0 | AD15: =Q15*S15 -> 0 | AE15: =Q15*T15 -> 0 | AF15: =Q15*U15 -> 0 | AG15: =Q15*V15 -> 0 | AH15: =Q15*W15 -> 0 | AI15: =Q15*X15 -> 0 | AJ15: =R15*Y15 -> 0
C16: ='Server Capacity'!L129 ->  | L16: ='Server Capacity'!L133 -> Audio Ports = 9500, Video Conferencing Ports = 385, IVR Streams = 0, Audio Conferencing Streams = 0, Video Conf Streams = 5, Video Transcoding Processes = 0
C17: WebRTC Server | O17: =IF(wrsMode="Virtualized",'Server Capacity'!I450,0) -> 0 | Q17: =IF(wrsMode="Virtualized",'Server Capacity'!I451,0) -> 0 | S17: =IF(wrsMode="Virtualized",'Server Capacity'!I441,0) -> 0 | T17: =IF(wrsMode="Virtualized",'Server Capacity'!I442,0) -> 0 | U17: =IF(wrsMode="Virtualized",'Server Capacity'!L443,0) -> 0 | V17: =IF(wrsMode="Virtualized",'Server Capacity'!L442,0) -> 0 | W17: =IF(wrsMode="Virtualized",'Server Capacity'!L444,0) -> 0 | X17: =IF(wrsMode="Virtualized",'Server Capacity'!L441,0) -> 127 | AC17: =Q17 -> 0 | AD17: =Q17*S17 -> 0 | AE17: =Q17*T17 -> 0 | AF17: =Q17*U17 -> 0 | AG17: =Q17*V17 -> 0 | AH17: =Q17*W17 -> 0 | AI17: =Q17*X17 -> 0 | AJ17: =Q17*Y17 -> 0
C18: Access Mediation Server | N18: ='Server Capacity'!I185 -> 0 | O18: ='Server Capacity'!I184 -> 0 | Q18: =IF('Server Capacity'!I178=0,0,'Server Capacity'!I178) -> 0 | S18: ='Server Capacity'!I182 -> 0 | T18: ='Server Capacity'!I181 -> 0 | U18: ='Server Capacity'!L178 -> 0 | V18: ='Server Capacity'!L177 -> 0 | W18: ='Server Capacity'!L179 -> 0 | X18: ='Server Capacity'!L176 -> 0 | AC18: =Q18 -> 0 | AD18: =Q18*S18 -> 0 | AE18: =Q18*T18 -> 0 | AF18: =Q18*U18 -> 0 | AG18: =Q18*V18 -> 0 | AH18: =Q18*W18 -> 0 | AI18: =Q18*X18 -> 0 | AJ18: =Q18*Y18 -> 0
C19: Xtended Services Platform/Application Delivery Platform | M19: RPS | N19: TPS | O19: Node Util % | Q19: =IF(AL29,"The Xsp Nodes below can be combined into a single node per type. Use the sum of the memory and CPU per node.","") ->  | AL19: Min
C20: General User Service/Call Control | N20: ='Server Capacity'!I209 -> 278 | O20: ='Server Capacity'!I207 -> 1 | Q20: =IF('Server Capacity'!I202=0,0,'Server Capacity'!I202+1) -> 2 | S20: ='Server Capacity'!I203 -> 4 | T20: ='Server Capacity'!I204 -> 4 | U20: ='Server Capacity'!L198 -> 75 | V20: ='Server Capacity'!L197 -> 300 | W20: ='Server Capacity'!L202 -> 500 | X20: ='Server Capacity'!L196 -> 10.85069444 | Z20: =IF(Q20=0,0,'Server Capacity'!I208) -> (Limited by Maximum Users) | AC20: =Q20 -> 2 | AD20: =Q20*S20 -> 8 | AE20: =Q20*T20 -> 8 | AF20: =Q20*U20 -> 150 | AG20: =Q20*V20 -> 600 | AH20: =Q20*W20 -> 1000 | AI20: =Q20*X20 -> 21.70138889 | AJ20: =Q20*Y20 -> 0 | AL20: =AND(Q20<=2,S20<=2,T20<=2) -> FALSE
C21: Business Client | N21: ='Server Capacity'!I291 -> 0 | O21: ='Server Capacity'!I293 -> 0 | Q21: =IF('Server Capacity'!I287=0,0,'Server Capacity'!I287+1) -> 0 | S21: ='Server Capacity'!I288 -> 0 | T21: ='Server Capacity'!I289 -> 0 | U21: ='Server Capacity'!L286 -> 0 | V21: ='Server Capacity'!L285 -> 0 | W21: ='Server Capacity'!L287 -> 0 | X21: ='Server Capacity'!L284 -> 0 | Z21: =IF(Q21=0,"",'Server Capacity'!I294) ->  | AC21: 0 | AD21: 0 | AE21: 0 | AF21: 0 | AG21: 0 | AH21: 0 | AI21: 0 | AJ21: 0 | AL21: TRUE
C22: Device Management Access | M22: =dmsRebootRate+Users*dmsUserReboots/36000 -> 0 | N22: ='Server Capacity'!L228 -> 0 | O22: ='Server Capacity'!L226 -> 0 | Q22: =IF('Server Capacity'!L223=0,0,'Server Capacity'!L223+1) -> 0 | S22: ='Server Capacity'!L224 -> 0 | T22: ='Server Capacity'!L225 -> 0 | U22: ='Server Capacity'!L236 -> 0 | V22: ='Server Capacity'!L235 -> 0 | W22: ='Server Capacity'!L237 -> 0 | X22: ='Server Capacity'!L229 -> 0 | Z22: =IF(Q22=0,"",'Server Capacity'!L227) ->  | AC22: 0 | AD22: 0 | AE22: 0 | AF22: 0 | AG22: 0 | AH22: 0 | AI22: 0 | AJ22: 0 | AL22: TRUE
C23: UC-Connect | N23: ='Server Capacity'!I165 -> 0 | O23: ='Server Capacity'!I163 -> 0 | Q23: =IF('Server Capacity'!I159=0,0,'Server Capacity'!I159+1) -> 0 | S23: ='Server Capacity'!I160 -> 0 | T23: ='Server Capacity'!I161 -> 0 | U23: ='Server Capacity'!L158 -> 0 | V23: ='Server Capacity'!L157 -> 0 | W23: ='Server Capacity'!L159 -> 0 | X23: ='Server Capacity'!L156 -> 0 | Z23: =IF(Q23=0,"",'Server Capacity'!I164) ->  | AC23: 0 | AD23: 0 | AE23: 0 | AF23: 0 | AG23: 0 | AH23: 0 | AI23: 0 | AJ23: 0 | AL23: TRUE
C24: Webex | N24: ='Server Capacity'!I594 -> 0 | O24: ='Server Capacity'!I595 -> 0 | Q24: =IF('Server Capacity'!I589=0,0,'Server Capacity'!I589+1) -> 0 | S24: ='Server Capacity'!I592 -> 0 | T24: ='Server Capacity'!I593 -> 0 | U24: ='Server Capacity'!L588 -> 0 | V24: ='Server Capacity'!L587 -> 0 | W24: ='Server Capacity'!L589 -> 0 | X24: ='Server Capacity'!L586 -> 0 | Z24: ='Server Capacity'!I596 ->  | AC24: =Q24 -> 0 | AD24: =Q24*S24 -> 0 | AE24: =Q24*T24 -> 0 | AF24: =Q24*U24 -> 0 | AG24: =Q24*V24 -> 0 | AH24: =Q24*W24 -> 0 | AI24: =Q24*X24 -> 0 | AJ24: =Q24*Y24 -> 0 | AL24: =AND(Q24<=2,S24<=2,T24<=2) -> TRUE
C25: UC-One Communicator | N25: ='Server Capacity'!I397 -> 0 | O25: ='Server Capacity'!I398 -> 0 | Q25: =IF('Server Capacity'!I392=0,0,'Server Capacity'!I392+1) -> 0 | S25: ='Server Capacity'!I395 -> 0 | T25: ='Server Capacity'!I396 -> 0 | U25: ='Server Capacity'!L391 -> 0 | V25: ='Server Capacity'!L390 -> 0 | W25: ='Server Capacity'!L392 -> 0 | X25: ='Server Capacity'!L389 -> 0 | Z25: =IF(Q25=0,"",'Server Capacity'!I399) ->  | AC25: 0 | AD25: 0 | AE25: 0 | AF25: 0 | AG25: 0 | AH25: 0 | AI25: 0 | AJ25: 0 | AL25: TRUE
C26: CTI-Connect | N26: ='Server Capacity'!I332 -> 0 | O26: ='Server Capacity'!I334 -> 0 | Q26: =IF('Server Capacity'!I329=0,0,'Server Capacity'!I329+1) -> 0 | S26: ='Server Capacity'!I330 -> 0 | T26: ='Server Capacity'!I331 -> 0 | U26: ='Server Capacity'!L328 -> 0 | V26: ='Server Capacity'!L327 -> 0 | W26: ='Server Capacity'!L329 -> 0 | X26: ='Server Capacity'!L326 -> 0 | Z26: =IF(Q26=0,"",'Server Capacity'!I335) ->  | AC26: 0 | AD26: 0 | AE26: 0 | AF26: 0 | AG26: 0 | AH26: 0 | AI26: 0 | AJ26: 0 | AL26: TRUE
C27: Notification Push Server | N27: ='Server Capacity'!I508 -> 0 | O27: ='Server Capacity'!I514 -> 0 | Q27: ='Server Capacity'!I515 -> 0 | S27: ='Server Capacity'!I506 -> 0 | T27: ='Server Capacity'!I507 -> 4 | U27: ='Server Capacity'!L512 -> 0 | V27: ='Server Capacity'!L511 -> 0 | W27: ='Server Capacity'!L513 -> 0 | X27: ='Server Capacity'!L510 -> 0 | AC27: =Q27 -> 0 | AD27: =Q27*S27 -> 0 | AE27: =Q27*T27 -> 0 | AF27: =Q27*U27 -> 0 | AG27: =Q27*V27 -> 0 | AH27: =Q27*W27 -> 0 | AI27: =Q27*X27 -> 0 | AJ27: =Q27*Y27 -> 0 | AL27: =AND(Q27<=2,S27<=2,T27<=2) -> FALSE
C28: Load Balancer | N28: ='Server Capacity'!I523 -> 0 | Q28: ='Server Capacity'!I528 -> 0 | S28: ='Server Capacity'!I521 -> 0 | T28: ='Server Capacity'!I522 -> 0 | U28: ='Server Capacity'!L525 -> 0 | V28: ='Server Capacity'!L524 -> 0 | W28: ='Server Capacity'!L526 -> 0 | X28: ='Server Capacity'!L523 -> 0 | AC28: =Q28 -> 0 | AD28: =Q28*S28 -> 0 | AE28: =Q28*T28 -> 0 | AF28: =Q28*U28 -> 0 | AG28: =Q28*V28 -> 0 | AH28: =Q28*W28 -> 0 | AI28: =Q28*X28 -> 0 | AJ28: =Q28*Y28 -> 0 | AL28: =AND(Q28<=2,S28<=2,T28<=2) -> TRUE
C29: Profile Server/Application Delivery Platform | N29: TPS | AL29: =AND(AL20:AL27) -> FALSE
C30: Device Management Repository | N30: ='Server Capacity'!L256 -> 0 | Q30: =IF('Server Capacity'!L252=0,0,'Server Capacity'!L252+1) -> 0 | S30: ='Server Capacity'!L253 -> 0 | T30: ='Server Capacity'!L254 -> 0 | U30: ='Server Capacity'!L264 -> 0 | V30: ='Server Capacity'!L263 -> 0 | W30: ='Server Capacity'!L265 -> 0 | X30: ='Server Capacity'!L266 -> 0 | Y30: =ROUNDUP('Server Capacity'!L268,0) -> 0 | AC30: =Q30 -> 0 | AD30: =Q30*S30 -> 0 | AE30: 0 | AF30: =Q30*('Server Capacity'!L257+'Server Capacity'!L258) -> 0 | AG30: =Q30*V30 -> 0 | AH30: =Q30*W30 -> 0 | AI30: 0 | AJ30: =(Q30-1)*Y30 -> 0
C31: Call Center/Enhanced Call Log Reporting | N31: ='Server Capacity'!B314 -> 0 | Q31: =IF('Server Capacity'!I312=0,0,'Server Capacity'!I312+1) -> 0 | S31: ='Server Capacity'!I314 -> 0 | T31: ='Server Capacity'!I315 -> 0 | U31: =ROUNDUP('Server Capacity'!L313,0) -> 0 | V31: =ROUNDUP('Server Capacity'!L312,0) -> 0 | W31: =ROUNDUP('Server Capacity'!L314,0) -> 0 | X31: =ROUNDUP('Server Capacity'!L311,0) -> 0 | AC31: =Q31 -> 0 | AD31: =Q31*S31 -> 0 | AE31: =Q31*T31 -> 0 | AF31: =Q31*U31 -> 0 | AG31: =Q31*V31 -> 0 | AH31: =Q31*W31 -> 0 | AI31: =Q31*X31 -> 0 | AJ31: =Q31*Y31 -> 0
C32: Provisioning Application | N32: ='Server Capacity'!I456 -> 0 | Q32: =IF('Server Capacity'!I464=0,0,'Server Capacity'!I464+1) -> 0 | S32: ='Server Capacity'!I465 -> 0 | T32: ='Server Capacity'!I466 -> 0 | U32: ='Server Capacity'!L462 -> 0 | V32: ='Server Capacity'!L461 -> 0 | W32: ='Server Capacity'!L463 -> 0 | X32: ='Server Capacity'!L460 -> 0 | AC32: =Q32 -> 0 | AD32: =Q32*S32 -> 0 | AE32: =Q32*T32 -> 0 | AF32: =Q32*U32 -> 0 | AG32: =Q32*V32 -> 0 | AH32: =Q32*W32 -> 0 | AI32: =Q32*X32 -> 0 | AJ32: =R32*Y32 -> 0
C33: Database Server | N33: CPS | O33: RPS | Z33: Instances
C34: Enhanced Call Center Reporting | N34: =ROUNDUP(eccrCps,0) -> 0 | O34: =ROUNDUP(eccrRps,0) -> 0 | Q34: =IF(N34=0,0,IF(dbsRedundancy="None",1,IF(dbsRedundancy="Both",4,2))) -> 0 | S34: ='Server Capacity'!I298 -> 0 | T34: ='Server Capacity'!I297 -> 0 | U34: =ROUNDUP(ccDbsDataIops+ccDbsFraIops,0) -> 0 | V34: ='Server Capacity'!I302 -> 0 / 0 / 0 | W34: =ROUNDUP(ccDbsDataMbps+ccDbsFraMbps,0)*1024 -> 0 | X34: ='Server Capacity'!L301 -> 0 | Y34: ='Call Data'!B339 -> 2.220446049e-16 | Z34: =IF(O34=0,0,'Call Data'!B318) -> 0 | AC34: =Q34*Z34 -> 0 | AD34: =Q34*S34*Z34 -> 0 | AE34: =Q34*T34*Z34 -> 0 | AF34: =Q34*U34*Z34 -> 0 | AG34: =Q34*(ccDbDATA+ccDbFRA+'Server Capacity'!I301)*Z34 -> 0 | AH34: =Q34*W34*Z34 -> 0 | AI34: =Q34*X34*Z34 -> 0 | AJ34: =Y34*Z34 -> 0
C35: Directory Server | Q35: =IF(U35=0,0,IF(dbsRedundancy="None",1,IF(dbsRedundancy="Both",4,2))) -> 0 | S35: =IF(U35=0,0,24) -> 0 | T35: =IF(U35=0,0,48) -> 0 | U35: ='Call Data'!B446 -> 0 | V35: =IF(systemMode="AS-Mode","",CONCATENATE(100," / ",'Call Data'!B452)) ->  | W35: ='Call Data'!B455*1024 -> 0 | X35: =ROUNDUP('Call Data'!B455,0) -> 0 | Y35: =ROUNDUP('Call Data'!B456,0) -> 0 | Z35: ='Call Data'!B465 -> 0 | AC35: =Q35*Z35 -> 0 | AD35: =Q35*S35*Z35 -> 0 | AE35: =Q35*T35*Z35 -> 0 | AF35: =Q35*U35*Z35 -> 0 | AG35: =Q35*(SUM(100,'Call Data'!B450:B451))*Z35 -> 0 | AH35: =Q35*W35*Z35 -> 0 | AI35: =Q35*X35*Z35 -> 0 | AJ35: =Q35*Y35*Z35 -> 0
C36: Network Database Server
C37: Enhanced Call Logging | N37: =ROUNDUP('Server Capacity'!B573,0) -> 0 | O37: =ROUNDUP('Server Capacity'!B576,0) -> 0 | Q37: ='Server Capacity'!B570 -> 0 | S37: ='Server Capacity'!B560 -> 0 | T37: ='Server Capacity'!B561 -> 0 | U37: ='Server Capacity'!B575 -> 0 | V37: ='Server Capacity'!B572 -> 0 | W37: ='Server Capacity'!B574 -> 0 | X37: ='Server Capacity'!L561 -> 0 | Y37: ='Server Capacity'!L563 -> 0 | AC37: =Q37 -> 0 | AD37: =Q37*S37 -> 0 | AE37: =Q37*T37 -> 0 | AF37: =Q37*U37 -> 0 | AG37: =Q37*V37 -> 0 | AH37: =Q37*W37 -> 0 | AI37: =X37*Q37/3 -> 0 | AJ37: =Y37*Q37/3 -> 0
C38: Messaging Server | Q38: =IF(umsMode=UMSnds,'Server Capacity'!I539,0) -> 0 | S38: =IF(umsMode=UMSnds,ROUNDUP('Server Capacity'!I535,0),0) -> 0 | T38: =IF(umsMode=UMSnds,ROUNDUP('Server Capacity'!I536,0),0) -> 0 | U38: =IF(umsMode=UMSnds,'Server Capacity'!L540,0) -> 0 | V38: =IF(umsMode=UMSnds,'Server Capacity'!L539,0) -> 0 | W38: =IF(umsMode=UMSnds,'Server Capacity'!L541,0) -> 0 | X38: =IF(umsMode=UMSnds,'Server Capacity'!L538,0) -> 0 | Y38: =X38*'Server Capacity'!L543 -> 0 | AC38: =Q38 -> 0 | AD38: =Q38*S38 -> 0 | AE38: =Q38*T38 -> 0 | AF38: =Q38*U38 -> 0 | AG38: =Q38*V38 -> 0 | AH38: =Q38*W38 -> 0 | AI38: =X38*Q38/3 -> 0 | AJ38: =Y38*Q38/3 -> 0
J39: CPU Speed (GHz) | N39: Participants | O39: USERS
C40: Messaging Server | O40: =IF(umsMode=UMSnds,'Server Capacity'!I421,'Server Capacity'!I408) -> 0 | Q40: =IF(umsMode=UMSnds,'Server Capacity'!I422,'Server Capacity'!I409) -> 0 | S40: =IF(umsMode=UMSnds,'Server Capacity'!I419,'Server Capacity'!I406) -> 0 | T40: =IF(umsMode=UMSnds,'Server Capacity'!I420,'Server Capacity'!I407) -> 0 | U40: =IF(umsMode=UMSnds,'Server Capacity'!L419,'Server Capacity'!L408) -> 0 | V40: =IF(umsMode=UMSnds,'Server Capacity'!L420,'Server Capacity'!L407) -> 0 | W40: =IF(umsMode=UMSnds,'Server Capacity'!L422,'Server Capacity'!L409) -> 0 | X40: =IF(umsMode=UMSnds,'Server Capacity'!L419,'Server Capacity'!L406) -> 0 | AC40: =Q40 -> 0 | AD40: =Q40*S40 -> 0 | AE40: =Q40*T40 -> 0 | AF40: =Q40*U40 -> 0 | AG40: =Q40*V40 -> 0 | AH40: =Q40*W40 -> 0 | AI40: =Q40*X40 -> 0 | AJ40: =Q40*Y40 -> 0
C41: Unified Sharing Server | F41: 4 | H41: 12 | J41: =CDSfinalCPS ->  | K41: =J41*3600 ->  | L41: =ROUND(CDSfinalUsers/1000,0)*1000 ->  | AD41: =Q41*S41 -> 0 | AE41: =Q41*T41 -> 0
C42: Sharing Server | N42: ='Server Capacity'!I433 -> 0 | Q42: ='Server Capacity'!I436 -> 0 | S42: ='Server Capacity'!I431 -> 4 | T42: ='Server Capacity'!I432 -> 0 | U42: ='Server Capacity'!L434 -> 0 | V42: ='Server Capacity'!L433 -> 0 | W42: ='Server Capacity'!L435 -> 0 | X42: ='Server Capacity'!L432 -> 0 | AC42: =Q42 -> 0 | AD42: =Q42*S42 -> 0 | AE42: =Q42*T42 -> 0 | AF42: =Q42*U42 -> 0 | AG42: =Q42*V42 -> 0 | AH42: =Q42*W42 -> 0 | AI42: =Q42*X42 -> 0 | AJ42: =Q42*Y42 -> 0
C43: Video Server | J43: 3 | O43: ='Server Capacity'!I497 -> 0 | Q43: ='Server Capacity'!I496 -> 0 | S43: ='Server Capacity'!I481*IF(hyperThreadedMS,2,1) -> 0 | T43: ='Server Capacity'!I482 -> 0 | U43: ='Server Capacity'!L483 -> 0 | V43: ='Server Capacity'!L482 -> 0 | W43: ='Server Capacity'!L484 -> 0 | X43: ='Server Capacity'!L481 -> 0 | AC43: =Q43 -> 0 | AD43: =Q43*S43 -> 0 | AE43: =Q43*T43 -> 0 | AF43: =Q43*U43 -> 0 | AG43: =Q43*V43 -> 0 | AH43: =Q43*W43 -> 0 | AI43: =Q43*X43 -> 0 | AJ43: 0
C45: Network Function Manager | Q45: ='Server Capacity'!I475 -> 3 | S45: ='Server Capacity'!J472 -> 12 | T45: ='Server Capacity'!J473 -> 16 | U45: ='Server Capacity'!L472 -> 100 | V45: ='Server Capacity'!L471 -> 300 | W45: ='Server Capacity'!L473 -> 500 | X45: ='Server Capacity'!L470 -> 100 | Y45: =X45/3 -> 33.33333333 | AC45: =Q45 -> 3 | AD45: =Q45*S45 -> 36 | AE45: =Q45*T45 -> 48 | AF45: =Q45*U45 -> 300 | AG45: =Q45*V45 -> 900 | AH45: =Q45*W45 -> 1500 | AI45: =Q45*X45 -> 300 | AJ45: =(Q45-1)*Y45 -> 66.66666667
N46: TPS | O46: USERS
C47: SurgeMail Server | N47: =IF(surgeMail="No",0,ROUNDUP('Server Capacity'!I361,0)) -> 0 | O47: =IF(surgeMail="No",0,'Server Capacity'!I359) -> 0 | Q47: =IF(surgeMail="No",0,IF('Server Capacity'!I360=0,0,'Server Capacity'!I360*2)) -> 0 | S47: =IF(O47=0,0,'Server Capacity'!I355) -> 0 | T47: =IF(O47=0,0,'Server Capacity'!I356) -> 0 | U47: =IF(surgeMail="No",0,ROUNDUP('Server Capacity'!L360,0)) -> 0 | V47: =IF(surgeMail="No",0,ROUNDUP('Server Capacity'!I362,0)) -> 0 | W47: =IF(surgeMail="No",0,'Server Capacity'!L361) -> 0 | X47: =IF(surgeMail="No",0,'Server Capacity'!L359) -> 0 | Y47: =X47 -> 0 | AC47: =Q47 -> 0 | AD47: =Q47*S47 -> 0 | AE47: =Q47*T47 -> 0 | AF47: =Q47*U47 -> 0 | AG47: =Q47*V47 -> 0 | AH47: =Q47*W47 -> 0 | AI47: =Q47*X47 -> 0 | AJ47: =IF(Q47>0,((Q47-1)*Y47),0) -> 0
C51: TOTAL RESOURCE REQUIREMENTS | Q51: =AC51 -> 22 | S51: =AD51 -> 222 | T51: 648 | U51: 4214 | V51: 7232 | W51: 37264 | X51: 1771.701389 | Y51: 84.66666667 | AC51: =IF(systemMode="XS-Mode",SUM(AC7:AC47)-AC7,SUM(AC7:AC47)-AC8-AC32-AC35) -> 22 | AD51: 222 | AE51: 648 | AF51: 4214 | AG51: 7232 | AH51: 37264 | AI51: 1771.701389 | AJ51: 84.66666667
Q52: Note: Make sure to add bare metal server requirements for the Media, Video, and WebRTC Servers, if applicable.

Sheet Growth Estimate
D1: GROWTH ESTIMATE
R2: Yes | S2: No
A3: APPLICATION SERVER LIVE DATA INPUT | J3: APPLICATION SERVER GROWTH ESTIMATE
A4: Application Server Memory (GB) | G4: 32
A5: # Users | G5: 133680 | K5: Expected Maximum Number of Users per Application Server cluster | O5: =MIN(O6:O12) -> 290587.0839
A6: Database Permanent Size (KB) | G6: 3969258 | K6: Based on CPU | O6: =OrigUsersCpu -> 891200
A7: Execution Server Post Full Collection Heap Size (KB) | G7: 2315428 | K7: Based on Database Size | O7: =OrigUsersDB -> 381400.0774
A8: Busy CPU % (User + System) | G8: 9 | K8: Based on Execution Server Heap Size | O8: =OrigUsersHeap -> 290587.0839
A9: Packaged Configuration | G9: Premium Residential/SOHO User Package with Unified Messaging
A10: # Simultaneous Calls | G10: 0
A11: Calls Per Second | G11: 0
A12: Checkpoint Load | G12: 25 | K12: Based on Database Checkpoint Load | O12: =95/G12*liveUsers -> 507984
A15: DEVICE MANAGEMENT SYSTEM LIVE DATA INPUT | J15: DEVICE MANAGEMENT GROWTH ESTIMATE
A16: # Devices | G16: 1000
K17: Expected Maximum Number of Devices Per Xsp Node | O17: =MIN(O18:O21) -> 3794.466403 | R17: DM Growth Estimate Internal Calculations
A18: Xsp Server Information | K18: Based on Apache/Tomcat Threads | O18: ='Growth Estimate'!S18/'Growth Estimate'!S19 -> 14492.75362 | R18: num threads | S18: ='Growth Estimate'!G19/12*5000 -> 6666.666667
A19: Xsp Memory (GB) | G19: 16 | K19: Based on Bandwidth | O19: =G20/'Growth Estimate'!S20*1024/8 -> 3794.466403 | R19: thread usage per device | S19: ='Growth Estimate'!G21*'Growth Estimate'!G22/'Growth Estimate'!G16 -> 0.46
A20: Usable Network Bandwidth Xsp to Device (Mbps) | G20: 600 | K20: Based on Heap Size | O20: =S21*1024*1024/S22 -> 13154.22832 | R20: bandwidth per device | S20: ='Growth Estimate'!G23*'Growth Estimate'!G22/'Growth Estimate'!G16 -> 20.24
A21: Measured Average Response Time (seconds) | G21: 1 | K21: Based on CPU | O21: =60/S23 -> 12000 | R21: useable heap | S21: =G19*0.7 *0.6 -> 6.72
A22: Measured Requests Per Second | G22: 460 | R22: heap per device | S22: =G24/G16 -> 535.678
A23: Measured Average Request Size (KB) | G23: 44 | R23: cpu per device | S23: =G25/G16 -> 0.005
A24: Post Collection Heap Size (KB) | G24: 535678 | K24: Expected Maximum Number of Devices Per Profile Server Node | O24: =MIN(O25:O29) -> 1125
A25: Busy CPU % (User + System) | G25: 5 | K25: Based on Apache/Tomcat Threads | O25: ='Growth Estimate'!S26/'Growth Estimate'!S27 -> 57971.01449
A26: Profile Server Information | K26: Based on Bandwidth | O26: =G28/'Growth Estimate'!S28*1024/8 -> 22260.86957 | R26: num threads | S26: ='Growth Estimate'!G27/12*5000 -> 6666.666667
A27: Profile Server Memory (GB) | G27: 16 | K27: Based on I/O | O27: =G29/'Growth Estimate'!S29 -> 1125 | R27: thread usage per device | S27: ='Growth Estimate'!G31*'Growth Estimate'!G30/'Growth Estimate'!G16 -> 0.115
A28: Usable Network Bandwidth Profile Server to Xsp (Mbps) | G28: 600 | K28: Based on Heap Size | O28: =S30*1024*1024/S31 -> 51934.95423 | R28: bandwidth per device | S28: =G31*G32/G16 -> 3.45
A29: Disk Rated IOPS | G29: 450 | K29: Based on CPU | O29: =60/S32 -> 12000 | R29: I/O per second per device | S29: =G33/G16 -> 0.4
A30: Measured Average Response Time (seconds) | G30: 1 | R30: useable heap | S30: =G27*0.7 *0.6 -> 6.72
A31: Measured Requests Per Second | G31: 115 | R31: heap per device | S31: =G34/G16 -> 135.678
A32: Measured Average Request Size (KB) | G32: 30 | R32: cpu per device | S32: =G35/G16 -> 0.005
A33: Measured IOPS (Read + Write) | G33: 400
A34: Post Collection Heap Size (KB) | G34: 135678
A35: Busy CPU % (User + System) | G35: 5
A38: DEVICE MANAGEMENT SYSTEM LIVE DATA INPUT (Outage Planning) | J38: DEVICE MANAGEMENT OUTAGE GROWTH ESTIMATE
A39: Phone Reset Rate | G39: 20
K40: Expected Maximum Number of Devices Per Xsp | O40: =MIN(O41:O42) ->  | R40: thread usage per device | S40: =(dmsFiles+dmsPutFiles)/3600*dmsXferTimeXSP -> 
K41: based on Apache/Tomcat threads | O41: =S18/S40 ->  | R41: bandwidth per device | S41: =(dmsFiles+dmsPutFiles)/3600*dmXspSize -> 
K42: based on Bandwidth | O42: =G20/S41*1024/8 -> 
K45: Expected Maximum Number of Devices Per PS | O45: =MIN(O46:O50) -> 
K46: based on Apache/Tomcat threads | O46: ='Growth Estimate'!S47/'Growth Estimate'!S48 -> 
K47: based on Bandwidth | O47: =G49/'Growth Estimate'!S49*1024/8 -> 
K48: based on I/O | O48: =G50/'Growth Estimate'!S50 -> 

Sheet Server Capacity (hidden)
A2: AS Calculations | E2: Modeled Computations | H2: Live Data Computations | K2: VIRTUALIZED CALCULTIONS | O2: Min Disk | P2: =IF(Users<=50000,146,300) -> 300
A3: Calls per Cpu | B3: =18*hyperMult -> 18 | C3: 20
A4: Hardware Name Selection | B4: =CONCATENATE(AsHwSelection," ",AsCpuUnitSelection) -> Intel Xeon 24 | L4: AS | M4: XS | T4: hyper threading CPU multiplier | W4: =IF(hyperThreaded,1,1.5) -> 1
A5: Base CPS | B5: =AsCpuUnitSelection*'Server Selection Data'!F4 -> 450 | C5: =XsCpuUnitSelection*'Server Selection Data'!F4 -> 300 | E5: Call CPU Weighting | F5: =AvgCallWeight -> 2.172433442 | K5: DB Size | L5: =Users*F13/0.9/1024/1024 -> 59.32278103 | M5: 0 | O5: Root Partition
A6: Base TPS | B6: =baseCPS -> 450 | E6: Prov per Hour per User | F6: =provPerUserPerHour -> 0.135 | H6: # Users | I6: =liveUsers -> 133680 | K6: Heap Size | L6: =Users*F19/0.6/1024/1024 -> 58.90914372 | M6: =Users*G19/0.5/1024/1024 -> 120.2610561 | P6: IOPS | Q6: Thrupt | T6: Billing baseline (GB) | V6: 0 | W6: 0
A7: Max CPS | B7: =AsCpuUnitSelection*C3 -> 480 | C7: =C5*1.5 -> 450 | E7: Calls per Hour per User | F7: =CallsUsers -> 2 | H7: Database Permanent Size (KB) | I7: =liveDbSize -> 3969258 | K7: Mem on DB | L7: =L5/0.38 -> 156.1125817 | M7: =M5/0.38 -> 0 | O7: CPS | P7: =L30/100*40 -> 55.6 | Q7: =L30/100*5000 -> 6950 | T7: Calls per Day | V7: =L30*busyHoursPerDay*3600 -> 4003200 | W7: =M30*busyHoursPerDay*3600 -> 5356800
A8: Memory | B8: =AsMemSelection -> 48 | H8: XS Heap Size (KB) | I8: =liveXsHeap -> 2315428 | K8: Mem on Heap | L8: =L6/0.25 -> 235.6365749 | M8: =M6/0.667 -> 180.3014334 | O8: RPS | P8: =L31/100*5 -> 10.41666667 | Q8: =L31/100*750 -> 1562.5 | T8: KB per call | V8: 2.5 | W8: 2.5
E9: Database Per User | H9: Busy CPU % (User + System) | I9: =liveBusyCpu -> 9 | O9: Subs | P9: =L32/100*5 -> 15.27777778 | Q9: =L32/100*750 -> 2291.666667 | T9: Billing archive (GB) | V9: =V8*V7*billingHoldTime/1024/1024*5/7 -> 6.81740897 | W9: =W8*W7*billingHoldTime/1024/1024*5/7 -> 9.122576032
A10: Weighted CPS | B10: =B5/AvgCallWeight -> 207.1409836 | C10: =C5/AvgCallWeight -> 138.0939891 | E10: Per Enterprise | F10: 16 | K10: Memory | L10: =ROUNDUP(MAX(L7:L9),0) -> 236 | M10: =ROUNDUP(MAX(M7:M9),0) -> 181 | O10: PTPS | P10: =L33/100*40 -> 4 | Q10: =L33/100*4000 -> 400 | T10: Billing over norm | V10: =MAX(0,ROUNDDOWN(V9-V6,0)) -> 6 | W10: =MAX(0,ROUNDDOWN(W9-W6,0)) -> 9
A11: CallP Users | B11: =IF(CallsUsers=0,0,B10*3600/CallsUsers) -> 372853.7705 | C11: =IF(CallsUsers=0,0,C10*3600/CallsUsers) -> 248569.1803 | E11: Per Group | F11: 16 | K11: Memory Per User | L11: =L10/Users -> 0.000236 | M11: =M10/Users -> 0.000181
A12: OCI Trans per sec | B12: =ociAdmin+(B11*provPerUserPerHour/3600) -> 23.98201639 | E12: Per User | F12: =(1-dnRangePercent)*40+dnRangePercent*40/dnsPerRouteList+(ucOneMobilePen+ucConnectPen)*1 -> 40 | K12: Weighted CPS | L12: =CPS*computedWeighting*IF(systemMode="XS-Mode",1,computedProv) -> 635.6138168 | O12: TOTAL | P12: =ROUNDUP(SUM(P7:P10),0) -> 86 | Q12: =ROUNDUP(SUM(Q7:Q10),0) -> 11205 | T12: Bandwidth Calculations
A13: Prov Weighting Factor | B13: =0.5+0.5*B12/B6 -> 0.5266466849 | E13: Total | F13: =F12+IF(usersPerGroup<1000,F11*(1-usersPerGroup/1000),0)+IF(groupsPerEnt<1000,F10*(1-groupsPerEnt/1000),0) -> 55.984 | K13: Calls per Cpu | L13: =B3*hyperMult -> 18 | O13: Disk Size | P13: =minDisk+V10+V32+V34 -> 306 | Q13: =minDisk+W10 -> 309 | R13: old | S13: =IF(ASrealCPS<20,72,IF(ASrealCPS<100,146,300)) -> 300 | T13: Bytes per SIP message | W13: =1500*(Authentication*(1+InviteAuthRatio)) -> 3000 | X13: account for auth
A14: Prov Weighted Users | B14: =B11/B13 -> 707977.0579 | E14: Cache Per User | F14: AS mode | G14: XS mode | H14: Orig Memory | I14: =liveMem -> 32 | K14: CPUs | L14: =ROUNDUP(MAX(minAS,L12/L13),0) -> 36 | T14: Replication Bytes Per Call | W14: 1332
A15: Final CPS | B15: =B14*CallsUsers/3600 -> 393.3205877 | E15: Per Enterprise | F15: 9 | G15: 5 | O15: Persistence | T15: Replication Bytes Per Registration | W15: 1246
E16: Per Group | F16: 9 | G16: 20 | K16: CPUs per node | L16: =IF(ISBLANK(VirtAsCpuUnitSelection),IF(L14<=minAS,minAS,IF(L14<=defaultVirtAsCPU,defaultVirtAsCPU,maxAS)),VirtAsCpuUnitSelection) -> 24 | M16: =IF(ISBLANK(VirtXsCpuUnitSelection),IF(L14<=minAS,minAS,IF(L14<=defaultVirtAsCPU,defaultVirtAsCPU,maxAS)),VirtXsCpuUnitSelection) -> 24 | O16: Root Partition | P16: IOPS | Q16: Thrupt | T16: Average OCIP size | W16: =IF(systemMode="XS-Mode",0,1024) -> 1024
A17: DB percentage | B17: =IF(ASmem<=2,0.25,3/8) -> 0.375 | E17: Per User | F17: =(1-dnRangePercent)*10+dnRangePercent*10/dnsPerRouteList -> 10 | G17: 25 | H17: Avail Heap | I17: =MIN(32,0.25*origMem)*1024*0.6 -> 4915.2 | K17: Memory per node | L17: =IF(ISBLANK(VirtAsMemSelection),IF(L10<=minASMem,minASMem,IF(L10<=defaultVirtAsMem,defaultVirtAsMem,maxASMemVirt)),VirtAsMemSelection) -> 64 | M17: =MIN(maxASMemVirt,IF(ISBLANK(VirtXsMemSelection),IF(M10<=minASMem,minASMem,IF(M10<=defaultVirtAsMem,defaultVirtAsMem,maxASMemVirt)),VirtXsMemSelection)) -> 64 | O17: CPS | P17: =L30/100*40 -> 55.6 | Q17: =L30/100*400 -> 556 | T17: Average OCIP size | W17: 512
A18: max DB size in use (MB) | B18: =MIN(24,B17*ASmem)*1024*0.9 -> 16588.8 | E18: Total | F18: =ASmemWeight*(F17+IF(usersPerGroup<1000,F16*(1-usersPerGroup/1000),0)+IF(groupsPerEnt<1000,F15*(1-groupsPerEnt/1000),0)) -> 18.991 | G18: =ASmemWeight*(G17+IF(usersPerGroup<1000,G16*(1-usersPerGroup/1000),0)+IF(groupsPerEnt<1000,G15*(1-groupsPerEnt/1000),0)) -> 44.98 | H18: Avail DB | I18: =MIN(24,B17*origMem)*1024*0.9 -> 11059.2 | K18: Nodes based on CPU | L18: =ROUNDUP(L14/L16,0) -> 2 | M18: =ROUNDUP(L14/M16,0) -> 2 | O18: RPS | P18: =L31/100*40 -> 83.33333333 | Q18: =L31/100*600 -> 1250
A19: DB per user (KB) | B19: =F13 -> 55.984 | E19: Memory Per User | F19: =xsCache+callFootprint*CallsUsers*(UserHoldTime+SIPSessionCompletionTimer)/3600 -> 37.06242857 | G19: =C23+C22*CallsUsers*(UserHoldTime+SIPSessionCompletionTimer)/3600 -> 63.05142857 | K19: Nodes based on Memory | L19: =ROUNDUP(L10/L17,0) -> 4 | M19: =ROUNDUP(M10/M17,0) -> 3 | O19: Subs | P19: =L32/100*40 -> 122.2222222 | Q19: =L32/100*800 -> 2444.444444 | W19: reg | X19: rep
A20: max users DB | B20: =IF(B19=0,0,B18*1024/B19) -> 303424.7499 | K20: Nodes based on max heap/db | L20: =ROUNDUP(MAX(L5/maxDB,L6/maxHeap),0) -> 3 | M20: =ROUNDUP(MAX(M6/maxHeap),0) -> 4 | O20: PTPS | P20: =L33/100*100*L36 -> 5 | Q20: =L33/100*1000 -> 100 | T20: Stready state | W20: =L22*120 -> 480 | X20: =L22*50 -> 200 | Y20: Kbps
B21: AS | C21: XS | K21: Capacity Limiter | L21: =CONCATENATE("(Limited by ",IF(L22=L19,"Memory)","CPU)")) -> (Limited by Memory) | O21: TOTAL | P21: =ROUNDUP(SUM(P17:P20),0) -> 267 | Q21: =ROUNDUP(SUM(Q17:Q20),0) -> 4351 | T21: Prov BW | W21: =W16/1024*8*L33 -> 80 | X21: =W16/1024*8*L33 -> 80 | Y21: Kbps
A22: Active Call Footprint (KB) | B22: =90*F22 -> 147.8571429 | C22: =90*F22 -> 147.8571429 | E22: Call Memory Weighting | F22: =IF(AvgCallWeightMem<1,1,AvgCallWeightMem) -> 1.642857143 | K22: Clusters | L22: =MAX(L18:L20) -> 4 | M22: =MAX(M18,M19) -> 3 | O22: Disk Size | P22: 73 | T22: Call BW | W22: =(W13*14)/1024*8*L12 -> 208560.7836 | X22: =W14/1024*8*L12 -> 6614.356281
A23: XS Cache Memory per Sub (KB) | B23: =F18 -> 18.991 | C23: =G18 -> 44.98 | K23: Nodes | L23: =L22*2 -> 8 | M23: =M22+xsModeStandbyNodes -> 4 | T23: Reg BW | W23: =(W13*5)/1024*8*L35 -> 56966.14583 | X23: =W15/1024*8*L31 -> 2027.994792
A24: max xs available for calls and cache (MB) | B24: =MIN(32,0.25*ASmem)*1024*0.6 -> 7372.8 | C24: =MIN(32,0.667*ASmem)*1024*0.5 -> 16384 | E24: Max DB | F24: 24 | M24: cps | O24: Partition Required | P24: =IF((P12+P21)>100,TRUE,FALSE) -> TRUE | T24: OCI-C | W24: =(W17*5)/1024*8*L34 -> 256.9444444
A25: Memory per user (KB) | B25: =F19 -> 37.06242857 | C25: =IF(currLiveUsers=0,G19,currLiveXsHeap/currLiveUsers) -> 17.32067624 | E25: Max Heap | F25: 32 | K25: CPUs per node AS | L25: =IF(ISBLANK(VirtAsCpuUnitSelection),MAX(minAS,ROUNDUP(L14/L22,0)),VirtAsCpuUnitSelection) -> 9 | M25: =L25*L13 -> 162 | P25: AS | Q25: XS | T25: Total | W25: =SUM(W20:W24)/1024 -> 260.1014394 | X25: =SUM(X20:X23)/1024 -> 8.71323347 | Y25: Mbps
A26: max users XS | B26: =IF(B25=0,0,1024*B24/B25) -> 203703.5211 | C26: =IF(C25=0,0,1024*C24/C25) -> 968623.6129 | K26: CPUs per node XS | L26: =IF(ISBLANK(VirtXsCpuUnitSelection),MAX(minAS,ROUNDUP(L14/L22,0)),VirtXsCpuUnitSelection) -> 9 | M26: =L26*L13 -> 162 | O26: Final Storage | P26: =IF(P24,CONCATENATE(P13," / ",P22),MAX(minDisk,P13)) -> 306 / 73 | Q26: =Q13 -> 309 | T26: Total per node | W26: =W25/L22 -> 65.02535984 | X26: =X25/L22 -> 2.178308367
K27: Memory per node AS | L27: =IF(ISBLANK(VirtAsMemSelection),MAX(minASMem,ROUNDUP(L10/L22,0)),VirtAsMemSelection) -> 59 | O27: Final IOPS | P27: =IF(P24,CONCATENATE(P12," / ",P21),MAX(minAsIops,P12+P21)) -> 86 / 267 | Q27: =MAX(100,P12) -> 100 | T27: Total per node with overhead | W27: =W26*1.5 -> 97.53803977 | X27: =X26*1.5 -> 3.267462551
A28: Users | B28: =MIN(B14,B20,B26) -> 203703.5211 | C28: =MIN(C26,C11) -> 248569.1803 | H28: Growth Estimate | K28: Memory per node XS | L28: =IF(ISBLANK(VirtXsMemSelection),MAX(minASMem,ROUNDUP(M10/M22,0)),VirtXsMemSelection) -> 61 | T28: Rounded | W28: =CEILING(W27,50) -> 100
A29: CPS | B29: =MIN(B28*CallsUsers/3600,B7) -> 113.1686228 | C29: =MIN(C28*CallsUsers/3600,B7) -> 138.0939891 | H29: CPU | I29: =IF(OR(currLiveUsers=0,currLiveBusyCPU=0),0,60/currLiveBusyCPU*currLiveUsers) -> 891200 | K29: Users | L29: =Users/L22 -> 250000 | M29: =Users/M22 -> 333333.3333 | O29: Final Thruput | P29: =IF(P24,CONCATENATE(Q12," / ",Q21),MAX(minAsDiskThruput,Q12+Q21)) -> 11205 / 4351 | Q29: =ROUNDUP(Q12/2,0) -> 5603
A30: Computed # users (min CPU, db, heap) | B30: =IF(CallsUsers=0,0,B29*3600/CallsUsers) -> 203703.5211 | C30: =IF(CallsUsers=0,0,C29*3600/CallsUsers) -> 248569.1803 | H30: DB | I30: =IF(currLiveDbSize=0,0,1024*I18*currLiveUsers/currLiveDbSize) -> 381400.0774 | K30: CPS | L30: =ROUNDUP(L29*CallsUsers/3600,0) -> 139 | M30: =ROUNDUP(M29*CallsUsers/3600,0) -> 186
A31: Capacity Limiter | B31: =CONCATENATE("(Limited by ",IF(ASfinalUsers=B14,"CPU)",IF(ASfinalUsers=B20,"DB Size)",IF(ASfinalUsers=B26,"Memory)","Max CPS)")))) -> (Limited by Memory) | C31: =CONCATENATE("(Limited by ",IF(C30=C11,"CPU)",IF(C30=C26,"Memory)","Max CPS)"))) -> (Limited by CPU) | H31: Heap Size | I31: =IF(currLiveXsHeap=0,0,1024*I17*currLiveUsers/currLiveXsHeap) -> 290587.0839 | K31: RPS (accounts for min) | L31: =IF(MinReg=0,L35,MIN(L35,SIP*L29*devicesPerUser/(MinReg*60))) -> 208.3333333 | T31: ECCR Archive | V31: =eccrCps*busyHoursPerDay*60*60*13*192*0.15/1024/1024/L22 -> 0 | W31: MB/day
K32: Subs per Second | L32: =IF(SubscribeRate=0,0,SIP*L29*SubscribeRate/3600)+btbcSubs*L29+'Call Data'!H391*L29 -> 305.5555556 | V32: =ROUNDUP(V31*'Call Model'!S83/1024,0) -> 0 | W32: GB
A33: Actual CPS | B33: =ROUNDUP(ASrealUsers*CallsUsers/3600,0) -> 114 | C33: =ROUNDUP(C34*CallsUsers/3600,0) -> 139 | K33: PTPS | L33: =ROUNDUP(L29*F6/3600,0) -> 10 | T33: ECL archive | V33: =eclCPS*busyHoursPerDay*60*60*3*200*0.15/1024/1024/L22 -> 0 | W33: MB/day
A34: Actual Users | B34: =MIN(Users,ASfinalUsers) -> 203703.5211 | C34: =MIN(Users,C30) -> 248569.1803 | K34: OCI-C per Second | L34: =L29*((XSPperUserperHr+'Call Data'!B283)/3600+'Call Data'!B293+'Call Data'!B391/3600+'Call Data'!B428/3600) -> 12.84722222 | O34: Network BW | P34: =W28 -> 100 | V34: =ROUNDUP(V33*'Call Model'!S193/1024,0) -> 0 | W34: GB
K35: Real RPS + Sub per Sec | L35: =SIP*L29*devicesPerUser/(RegistrationInterval*60)*2+(SIP*L29*SubscribeRate/3600) -> 486.1111111
K36: Prov Read/Write Ratio | L36: 0.5
K37: NS
A38: NS Calculations | F38: =nsTpsPerCPU -> 187.5 | K38: TPS | L38: =NSTransactionsPerHourPerUser*Users/3600 -> 2025.277778 | N38: =L38/Users -> 0.002025277778 | Q38: Net BW | S38: DiskThru | T38: IOPS
A39: Hardware Name Selection | B39: =CONCATENATE(NsHwSelection," ",NsCpuUnitSelection) -> Intel Xeon 8 | K39: Min Memory per node | L39: =NS_Ram_Gb -> 4 | M39: GB | O39: mem high | P39: =maxNSMem -> 48 | Q39: 1000 | S39: 5000 | T39: 1000 | V39: Bandwidth Calculations
A40: Base TPS | B40: ='Server Capacity'!C40 -> 1500 | C40: =NsCpuUnitSelection*nsTpsPerCPU -> 1500 | E40: NS trans per hour per user | F40: =NSTransactionsPerHourPerUser -> 7.291 | K40: TPS per CPU | L40: =nsTpsPerCPU*hyperMult -> 187.5 | O40: mem low | P40: =minNSMem -> 4 | Q40: 100 | S40: 500 | T40: 50 | V40: Bytes per message | Y40: 1500
A41: NS TPS | B41: =B40 -> 1500 | K41: CPU reqts | L41: =MAX(minNS,ROUNDUP(L38/L40,0)) -> 11 | V41: Maximum User Migrations per Second | Y41: 100
A42: Users | B42: =MIN(100000000,IF(NSTransactionsPerHourPerUser=0,0,B40*3600/NSTransactionsPerHourPerUser)) -> 740639.1442 | K42: CPUs per node | L42: =IF(ISBLANK(VirtNsCpuUnitSelection),IF(L41<=minNS,minNS,IF(L41>defaultVirtNsCPU,maxNS,defaultVirtNsCPU)),VirtNsCpuUnitSelection) -> 16 | O42: Network BW | P42: =TREND(Q39:Q40,P39:P40,L44) -> 100 | V42: Bytes Per Migration | Y42: 560
A43: Actual Users | B43: =MIN(Users,NSfinalUsers) -> 740639.1442 | K43: Nodes minus redundancy | L43: =ROUNDUP(L41/L42,0) -> 1 | O43: Disk Storage | P43: =minDisk -> 300 | Y43: regular | Z43: rep
A44: Actual CPS | B44: =NSrealUsers*F40/3600 -> 1500 | K44: Final Memory per Node | L44: =IF(ISBLANK(VirtNsMemSelection),MAX(minNSMem,L39),VirtNsMemSelection) -> 4 | O44: Disk IOPS | P44: =ROUNDUP(TREND(T39:T40,P39:P40,L44),0) -> 50 | V44: Total | Y44: =(L38*Y40*3)/1024*8 -> 71201.17188 | Z44: =(Y41*Y42*L43)/1024*8 -> 437.5 | AA44: kpbs
K45: Final CPU per Node | L45: =IF(ISBLANK(VirtNsCpuUnitSelection),MAX(minNS,ROUNDUP(L41/L43,0)),VirtNsCpuUnitSelection) -> 11 | N45: =L45*L40/N38 -> 1018378.823 | O45: Disk Thruput | P45: =TREND(S39:S40,P39:P40,L44) -> 500 | V45: Total per node | Y45: =Y44/L43/1024 -> 69.53239441 | Z45: =Z44/L43/1024 -> 0.4272460938 | AA45: Mbps
V46: Total per node with overhead | Y46: =Y45*1.5 -> 104.2985916 | Z46: =Z45*L43*1.5 -> 0.6408691406
K47: Users | L47: =IF(L44<L39,Users*L44/L39,N45) -> 1018378.823 | V47: Rounded | Y47: =CEILING(Y46+Z46,50) -> 150 | Z47: =ROUNDUP(Z46,0) -> 1
K48: TPS | L48: =L47*F40/3600 -> 2062.5
K49: MS IVR
A50: MS Calculations | K50: Audio Conf ports required | L50: =Users*'Call Data'!B181 -> 500 | M50: Weighted | N50: =L50*'Call Data'!B189 -> 4000 | O50: =ROUNDUP(N50/(1-ivrResourceRatio),0) -> 16000
A51: Hardware Name Selection | B51: =CONCATENATE(TransMsHwSelection," ",TransMsCpuUnitSelection) -> Linux Intel Xeon 12 | E51: Max Generic Ports | F51: =IF(TransMsR20="True",9500,4000) -> 9500 | K51: IVR ports required | L51: =Users*'Call Data'!B177 -> 4114.583333 | N51: =L51*'Call Data'!B188 -> 6830.208333 | O51: =ROUNDUP(N51/(ivrResourceRatio),0) -> 9107 | V51: Bandwidth Calculations
A52: Hardware Type | B52: =IF(ISERR(SEARCH("Intel Xeon",TransMsHwSelection)),"SPARC","Intel Xeon") -> Intel Xeon | K52: Generic Ports Reqd | L52: =(O50+O51) -> 25107 | V52: G,711 | W52: 80 | X52: Kbps
A53: Operating System | B53: =IF(ISERR(SEARCH("Solaris",TransMsHwSelection)),"Linux","Solaris") -> Linux | E53: Max User (to use when no pen) | F53: 9999999 | K53: MB per port | L53: 2 | P53: RAM | S53: DiskThru | T53: IOPS | V53: G.729 | W53: 24
A54: # CPU Units | B54: =IF(hyperThreadedMS="False",TransMsCpuUnitSelection,TransMsCpuUnitSelection/2) -> 12 | K54: MHz CPU per port | L54: 3 | O54: mem high | P54: 12 | S54: 2000 | T54: 100 | V54: G.722 | W54: 80
A55: CPU Speed in MHz | B55: =TransMsSpeedSelection*1024 -> 2314.24 | E55: video needed | F55: =OR('Call Data'!B198>0,'Call Data'!B204>0) -> FALSE | K55: MB required | L55: =L52*L53/0.5*ivrResourceRatio/0.75 -> 100428 | O55: mem low | P55: 2 | S55: 500 | T55: 50 | V55: G.726 | W55: 48
A56: Memory in GB | B56: =TransMsMemSelection -> 16 | K56: total CPUs required | L56: =(ROUNDUP(L52/(VirtMsSpeedSelection*1024/3),0)+1) * IF(hyperThreadedMS="False",1,2) -> 34 | V56: AMR-WB | W56: 40
A57: Shared Memory Size | B57: =IF(B53="Linux",IF(B56>6,B56*2/3,B56*0.5),B56*1.5) -> 10.66666667 | C57: 0.66 of memory for linux / 1.5 for solaris | K57: min server | L57: =AND(L55/1024<=minMSMem,L56<=minMS,F55) -> FALSE | O57: Network Bandwidth | P57: =Y81 -> 50 | V57: AMR-NB | W57: 28
A58: CPU Max Ports | B58: =B54*B55/IF(B52="Intel Xeon",3,4) -> 9256.96 | K58: GB per node | L58: =IF(ISBLANK(VirtMsMemSelection),IF(L57,minMSMem,defaultVirtMsMem),VirtMsMemSelection) -> 16 | O58: Disk Storage | P58: =minDisk -> 300 | V58: EVRC-A | W58: 25
A59: ivr ratio | B59: =ivrResourceRatio -> 0.75 | K59: CPUs per node | L59: =IF(ISBLANK(VirtMsCpuUnitSelection),IF(L57,minMS,defaultVirtMsCPU),VirtMsCpuUnitSelection)/IF(hyperThreadedMS,2,1) -> 12 | O59: Disk IOPS | P59: =IF(P64=0,0,TREND(T54:T55,P54:P55,P64)) -> 120 | V59: OPUS | W59: 64
A60: Memory Max Ports | B60: =IF(B56<B57,((B56*1024-1500)/2/B59),(B57*1024*0.75/2/B59)) -> 5461.333333 | C60: IFAvailMem < ShmMem THEN MemMaxPorts = (AvailMem – 1500) /(2 * IVRResourcesRatio) ELSE (ShmMem *.75)/(2 * IVRResourcesRatio) | K60: Shared Memory Size In GB | L60: =IF(L58>6,L58*2/3,L58*0.5) -> 10.66666667 | O60: Disk Thruput | P60: =IF(P64=0,0,TREND(S54:S55,P54:P55,P64)) -> 2600 | W60: ivr | X60: conf
A61: Max Generic Ports | B61: =IF(TransMsR20="True",MIN(B58,B60),MIN(B58,B60,F51)) -> 5461.333333 | K61: CPU Max Ports | L61: =L59*VirtMsSpeedSelection*1024/3 -> 9256.96 | V61: CIF | W61: 64 | X61: 512
K62: Default Video Procs | L62: =IF(ISBLANK(SelectedTransProcs),IF(P73,1,0),MIN(SelectedTransProcs,L59)) -> 1 | V62: 4CIF | W62: 128 | X62: 768
A63: Default Video Procs | B63: =IF(ISBLANK(SelectedTransProcs),IF(msVideoSupported,1,0),MIN(SelectedTransProcs,B54-1)) -> 1 | E63: video supported | F63: =B54>=minCpuForVideo -> TRUE | K63: ivr ratio | L63: =ivrResourceRatio -> 0.75 | V63: 720p HD | W63: =1.75*1024 -> 1792 | X63: 2048
A64: # Audio procs | B64: =IF(ISBLANK(SelectedAudioProcs),MAX(3,B54-B63-1),MIN(SelectedAudioProcs,B54)) -> 10 | K64: Ports per CPU | L64: =L61/(L59-1) -> 841.5418182 | O64: Final Memory per Node | P64: =L58 -> 16
A65: # Audio ports | B65: =MIN(F51,ROUNDDOWN(B61*B64/B54,0)) -> 4551 | E65: max sessions | F65: =msMaxRTP -> 4000 | K65: Calculation if AvailMem >= SharedMem | L65: =(L60*1024*0.75/2/L63) -> 5461.333333 | O65: Final CPU per Node | P65: =L59 -> 12
K66: Memory Max Ports | L66: =L65 -> 5461.333333 | V66: IVR streams | X66: =L51 -> 4114.583333
A67: # video procs | B67: =IF(ISBLANK(SelectedTransProcs),MAX(1,B54-B64-2-1),MIN(SelectedTransProcs,B54-B64)) -> 1 | K67: Max generic ports | L67: =MIN(L61,L66) -> 5461.333333 | V67: conf streams | X67: =L50 -> 500
A68: # video transcoding procs | B68: =MAX(0,ROUNDDOWN(B67*videoTransResourceRatio,0)) -> 1 | F68: Constraints | K68: # Audio procs | L68: =IF(ISBLANK(SelectedAudioProcs),MAX(3,L59-L62-1),MIN(SelectedAudioProcs,L59)) -> 10 | O68: Max RTP streams | P68: =MIN(msMaxRTP,1000) -> 1000 | W68: ivr | X68: conf
A69: # video conf proc | B69: =MAX(0,B67-B68) -> 0 | F69: Generic | G69: Session | K69: # IVR ports | L69: =MIN(P69,ROUNDDOWN(L67*L68/L59,0)) -> 4551 | O69: Max Generic Ports | P69: =IF(virtMsR20="True",9500,4000) -> 9500 | V69: G,711 | W69: =X66-SUM(W70:W76) -> 0 | X69: =X67-SUM(X70:X76) -> 0 | Y69: =W69*W52/1024 -> 0 | Z69: =X69*W52/1024 -> 0
A70: # video conf ports | B70: =IF(msDedicated="No",ROUNDDOWN(B69/B54*B58,0),0) -> 0 | E70: Weighted IVR ports | F70: =ROUNDDOWN(B65*ivrResourceRatio,0)/'Call Data'!B188 -> 2056.024096 | G70: =ROUNDDOWN(F65*ivrResourceRatio,0) -> 3000 | K70: Max IVR sessions | L70: =ROUNDDOWN(MIN(P68,L69/'Call Data'!B188),0) -> 1000 | N70: min | V70: G.729 | W70: =X66*_msG729 -> 4114.583333 | X70: =X67*_msG729 -> 500 | Y70: 96.43554688 | Z70: 11.71875
A71: weighted video ports | B71: =IF('Call Data'!B206=0,0,MIN(ROUNDDOWN(MAX(0,B70/'Call Data'!B206),0),F65)) -> 0 | E71: Weighted audio conf ports | F71: =B65*(1-ivrResourceRatio)/'Call Data'!B189 -> 142.21875 | G71: =IF(msDedicated="Yes",0,ROUNDDOWN(F65-G70,0)) -> 1000 | K71: Weighted IVR ports | L71: =ROUNDDOWN(L69*ivrResourceRatio,0)/'Call Data'!B188 -> 2056.024096 | M71: =L70*ivrResourceRatio -> 750 | N71: =MIN(L71:M71) -> 750 | V71: G.722 | W71: =X66*_msG722 -> 0 | X71: =X67*_msG722 -> 0 | Y71: 0 | Z71: 0
A72: Users Audio | B72: =MIN(F72:F73) -> 284437 | E72: Users Audio IVR | F72: =ROUNDDOWN(MIN(G70,F70)*'Call Data'!B178,0) -> 499691 | K72: Weighted audio conf ports | L72: =L69*(1-ivrResourceRatio)/'Call Data'!B189 -> 142.21875 | M72: =IF(msDedicated="Yes",0,L70*(1-ivrResourceRatio)) -> 250 | N72: =MIN(L72:M72) -> 142.21875 | V72: G.726 | W72: =X66*_msG726 -> 0 | X72: =X67*_msG726 -> 0 | Y72: 0 | Z72: 0
A73: Users Video Conf | B73: =IF(msDedicated="Yes",MsUserPlaceholder,IF('Call Data'!B205=0,MsUserPlaceholder,B71*'Call Data'!B205)) -> 9999999 | E73: Users Audio conf | F73: =IF(msDedicated="Yes",MsUserPlaceholder,IF('Call Data'!B182=0,MsUserPlaceholder,ROUNDDOWN(MIN(G71,F71)*'Call Data'!B182,0))) -> 284437 | O73: video supported | P73: =L59>=minCpuForVideo -> TRUE | V73: AMR-WB | W73: =X66*msAMRWB -> 0 | X73: =X67*msAMRWB -> 0 | Y73: 0 | Z73: 0
A74: Users Transcoding | B74: =ROUNDDOWN(IF(TransMRUsers=0,MsUserPlaceholder,B68*TransMRUsers),0) -> 9999999 | C74: Video Transcoding | K74: # video procs | L74: =IF(ISBLANK(SelectedTransProcs),MAX(1,L59-L68-2-1),MIN(SelectedTransProcs,L59-L68)) -> 1 | V74: AMR-NB | W74: =X66*msAMR -> 0 | X74: =X67*msAMR -> 0 | Y74: 0 | Z74: 0
H75: Ports | I75: Users | K75: # video transcoding procs | L75: =MAX(0,ROUNDDOWN(L74*videoTransResourceRatio,0)) -> 1 | V75: EVRC-A | W75: =X66*msEVRC -> 0 | X75: =X67*msEVRC -> 0 | Y75: 0 | Z75: 0
E76: Audio IVR | F76: =MIN(G70,F70) -> 2056.024096 | G76: =F72 -> 499691 | H76: =ROUNDDOWN(F76-F80*G76/G79,0) -> 2056 | I76: =ROUNDDOWN(H76*'Call Data'!B178,0) -> 499686 | K76: # video conf proc | L76: =MAX(0,L74-L75) -> 0 | V76: OPUS | W76: =X66*msOpus -> 0 | X76: =X67*msOpus -> 0 | Y76: 0 | Z76: 0
E77: Audio Conferencing | F77: =MIN(G71,F71) -> 142.21875 | G77: =F73 -> 284437 | H77: =ROUNDDOWN(F77-F80*G77/G79,0) -> 142 | I77: =IF(msDedicated="Yes",MsUserPlaceholder,IF('Call Data'!B182=0,MsUserPlaceholder,ROUNDDOWN(H77*'Call Data'!B182,0))) -> 284000 | K77: # video conf ports | L77: =IF(msDedicated="No",ROUNDDOWN(L76/L59*L61*(1-msDeRate),0),0) -> 0
A78: Users | B78: =MIN(I76:I78,B74) -> 284000 | E78: Video Conferencing | F78: =B71 -> 0 | G78: =B73 -> 9999999 | H78: =ROUNDDOWN(F78-F80*G78/G79,0) -> 0 | I78: =IF(msDedicated="Yes",MsUserPlaceholder,IF('Call Data'!B205=0,MsUserPlaceholder,H78*'Call Data'!B205)) -> 9999999 | K78: weighted video ports | L78: =IF('Call Data'!B206=0,0,MIN(ROUNDDOWN(MAX(0,L77/'Call Data'!B206),0),P68)) -> 0 | V78: Total | X78: =IF(msDedicated="Yes",SUM(Y69:Y76),SUM(Y69:Z76)) -> 108.1542969 | Y78: Mbps
A79: Limiter | B79: =IF(B78=I76,E76,IF(B78=I77,E77,IF(B78=I78,E78,C74))) -> Audio Conferencing | E79: SUM | F79: =SUM(F76:F78) -> 2198.242846 | G79: =SUM(G76:G78) -> 10784127 | H79: =SUM(H76:H78) -> 2198 | V79: Total per node | X79: =X78/L88 -> 18.02571615
A80: Message | B80: =CONCATENATE("(Limited by ",B79," Resources)") -> (Limited by Audio Conferencing Resources) | E80: Extra | F80: =MAX(0,F79-F65) -> 0 | K80: Users IVR | L80: ='Call Data'!B178*MIN(ivrResourceRatio*L70,L71) -> 182278.481 | V80: Total per node with overhead | Y80: =X79*1.5 -> 27.03857422
A81: Error 1 | B81: =IF(AND(F55,NOT(msVideoSupported)),"ERROR: Video conferencing and transcoding are not supported on boxes with less than 8 CPUs","") ->  | K81: UsersConf | L81: =IF(msDedicated="Yes",MsUserPlaceholder,'Call Data'!B182*MIN((1-ivrResourceRatio)*L70,L72)) -> 284437.5 | V81: Rounded | Y81: =CEILING(Y80,50) -> 50
A82: Error 2 | B82: =IF(AND(B73=0,videoConfPen>0),"ERROR: The Media Server is not configured with any video conferencing processes","") ->  | K82: Users Video Conf | L82: =IF(msDedicated="Yes",MsUserPlaceholder,IF('Call Data'!B205=0,MsUserPlaceholder,L78*'Call Data'!B205)) -> 9999999
A83: Error 3 | B83: =IF(AND(B74=0,msVideo>0),"ERROR: The Media Server is not configured with any video transcoding processes","") ->  | K83: Users Transcoding | L83: =ROUNDDOWN(IF(TransMRUsers=0,MsUserPlaceholder,L75*TransMRUsers),0) -> 9999999
A84: Error | B84: =IF(LEN(B81)>0,B81,IF(LEN(B82)>0,B82,B83)) ->  | K84: Users | L84: =ROUNDDOWN(MIN(L80:L83),0) -> 182278 | N84: Error 1 | O84: =IF(AND(needVideo,NOT(P73)),"ERROR: Video conferencing and transcoding are not supported on boxes with less than 8 CPUs","") -> 
A85: Nodes | B85: =IF(LEN(B84)=0,Users/B78,"ERROR") -> 3.521126761 | N85: Error 2 | O85: =IF(AND(L82=0,videoConfPen>0),"ERROR: The Media Server is not configured with any video conferencing processes","") -> 
A86: Nodes with Redundancy | B86: =IF(B85="ERROR","ERROR",ROUNDUP(B85,0)+1) -> 5 | K86: Error | L86: =IF(usingMS="Virtualized",O87,"") ->  | N86: Error 3 | O86: =IF(AND(L83=0,msVideo>0),"ERROR: The Media Server is not configured with any video transcoding processes","") -> 
A87: Text | B87: =CONCATENATE("Audio Ports = ",B65,", Video Conf Ports = ",B70,", IVR Streams = ",H76,", Audio Conf Streams = ",H77,", Video Conf Streams = ",H78,", Video Transcoding Processes = ",B68) -> Audio Ports = 4551, Video Conf Ports = 0, IVR Streams = 2056, Audio Conf Streams = 142, Video Conf Streams = 0, Video Transcoding Processes = 1 | N87: Error | O87: =IF(LEN(O84)>0,O84,IF(LEN(O85)>0,O85,O86)) -> 
K88: Nodes | L88: =IF(LEN(L86)=0,ROUNDUP(Users/L84,0),"ERROR") -> 6
K89: Nodes with Redundancy | L89: =IF(L88="ERROR","ERROR",ROUNDUP(L88,0)+1) -> 7
K90: Text | L90: =CONCATENATE("Audio Ports = ",L69,", Video Conferencing Ports = ",L77,", IVR Streams = ",N71,", Audio Conference Streams = ",N72,",Video Conf Streams = ",H78,", Video Transcoding Processes = ",L75) -> Audio Ports = 4551, Video Conferencing Ports = 0, IVR Streams = 750, Audio Conference Streams = 142.21875,Video Conf Streams = 0, Video Transcoding Processes = 1
K93: MS Conf
A94: MS Calculations 2 | K94: Audio Conf ports required | L94: =Users*'Call Data'!B181 -> 500 | M94: Weighted | N94: =L94*'Call Data'!B189 -> 4000 | O94: =ROUNDUP(N50/(1-ivrResourceRatio2),0) -> 4211
A95: Hardware Name Selection | B95: =CONCATENATE(MsHwSelection2," ",MsCpuUnitSelection2) -> Linux Intel Xeon 16 | E95: Max Generic Ports | F95: =IF(MsR20_2="True",9500,4000) -> 9500 | K95: IVR ports required
A96: Hardware Type | B96: =IF(ISERR(SEARCH("Intel Xeon",MsHwSelection2)),"SPARC","Intel Xeon") -> Intel Xeon | K96: Generic Ports Reqd | L96: =(O94+O95) -> 4211 | W96: Total | Y96: =IF(msDedicated="Yes",SUM(Z69:Z76),0) -> 0
A97: Operating System | B97: =IF(ISERR(SEARCH("Solaris",MsHwSelection2)),"Linux","Solaris") -> Linux | K97: MB per port | L97: 2 | P97: RAM | R97: Disk | S97: DiskThru | T97: IOPS | W97: Total per node | Y97: =Y96/L131 -> 0
A98: # CPU Units | B98: =IF(hyperThreadedMS="False",MsCpuUnitSelection2,MsCpuUnitSelection2/2) -> 16 | K98: MHz CPU per port | L98: 3 | O98: mem high | P98: 12 | S98: 2000 | T98: 100 | W98: Total per node with overhead | Z98: =Y97*1.5 -> 0
A99: CPU Speed in MHz | B99: ='Capacity Planner'!M13*1024 -> 2314.24 | K99: MB required | L99: =L96*L97/0.5*ivrResourceRatio2/0.75 -> 1122.933333 | O99: mem low | P99: 2 | S99: 500 | T99: 50 | W99: Rounded | Z99: =CEILING(Z98,50) -> 0
A100: Memory in GB | B100: =MsMemSelection2 -> 8 | K100: total CPUs required | L100: =(ROUNDUP(L96/(VirtMsSpeedSelection2*1024/3),0)+1)* IF(hyperThreadedMS="False",1,2) -> 7
A101: Shared Memory Size | B101: =IF(B97="Linux",IF(B100>6,B100*2/3,B100*0.5),B100*1.5) -> 5.333333333 | C101: 0.66 of memory for linux / 1.5 for solaris | K101: min server | L101: =AND(L99/1024<=minMSMem,L100<=minMS,F55) -> FALSE | O101: Network Bandwidth | P101: =Z99 -> 0
A102: CPU Max Ports | B102: =B98*B99/IF(B96="Intel Xeon",3,4) -> 12342.61333 | K102: GB per node | L102: =IF(ISBLANK(VirtMsMemSelection2),IF(L101,minMSMem,defaultVirtMsConfMem),VirtMsMemSelection2) -> 8 | O102: Disk Storage | P102: =minDisk -> 300
A103: ivr ratio | B103: =ivrResourceRatio2 -> 0.05 | K103: CPUs per node | L103: =IF(ISBLANK(VirtMsCpuUnitSelection2),IF(L101,minMS,defaultVirtMsConfCPU),VirtMsCpuUnitSelection2)/IF(hyperThreadedMS,2,1) -> 24 | O103: Disk IOPS | P103: =IF(P108=0,0,TREND(T98:T99,P98:P99,P108)) -> 80
A104: Memory Max Ports | B104: =IF(B100<B101,((B100*1024-1500)/2/B103),(B101*1024*0.75/2/B103)) -> 40960 | C104: IFAvailMem < ShmMem THEN MemMaxPorts = (AvailMem – 1500) /(2 * IVRResourcesRatio) ELSE (ShmMem *.75)/(2 * IVRResourcesRatio) | K104: Shared Memory Size In GB | L104: =IF(L102>6,L102*2/3,L102*0.5) -> 5.333333333 | O104: Disk Thruput | P104: =IF(P108=0,0,TREND(S98:S99,P98:P99,P108)) -> 1400
A105: Max Generic Ports | B105: =IF(TransMsR20="True",MIN(B102,B104),MIN(B102,B104,F95)) -> 12342.61333 | K105: CPU Max Ports | L105: =L103*VirtMsSpeedSelection2*1024/3 -> 18513.92
A107: Default Video Procs | B107: =IF(ISBLANK(SelectedTransProcs2),IF(msVideoSupported2,1,0),MIN(SelectedTransProcs2,B98)) -> 1 | E107: video supported | F107: =B100>=minCpuForVideo -> TRUE | K107: ivr ratio | L107: =ivrResourceRatio2 -> 0.05
A108: # Audio procs | B108: =IF(ISBLANK(SelectedAudioProcs2),MAX(3,B98-B107-1),MIN(SelectedAudioProcs2,B98)) -> 14 | K108: Ports per CPU | L108: =L105/(L103-1) -> 804.9530435 | O108: Final Memory per Node | P108: =L102 -> 8
A109: # Audio ports | B109: =MIN(F95,ROUNDDOWN(B105*B108/B98,0)) -> 9500 | E109: max sessions | F109: =msMaxRTP -> 4000 | K109: Calculation if AvailMem >= SharedMem | L109: =(L104*1024*0.75/2/L107) -> 40960 | O109: Final CPU per Node | P109: =L103 -> 24
K110: Memory Max Ports | L110: =L109 -> 40960
A111: # video procs | B111: =IF(ISBLANK(SelectedTransProcs2),MAX(1,B98-B108-2-1),MIN(SelectedTransProcs2,B98-B108)) -> 1 | K111: Max generic ports | L111: =MIN(L105,L110) -> 18513.92
A112: # video transcoding procs | B112: =MAX(0,ROUNDDOWN(B111*videoTransResourceRatio2,0)) -> 0 | F112: Constraints | K112: # Audio procs | L112: =IF(ISBLANK(SelectedAudioProcs2),MAX(3,L103-B107-1),MIN(SelectedAudioProcs2,L103)) -> 22 | O112: Max RTP streams | P112: =MIN(msMaxRTP,1000) -> 1000
A113: # video conf proc | B113: =MAX(0,B111-B112) -> 1 | F113: Generic | G113: Session | K113: # IVR ports | L113: =MIN(P113,ROUNDDOWN(L111*L112/L103,0)) -> 9500 | O113: Max Generic Ports | P113: =IF(virtMsR20_2="True",9500,4000) -> 9500
A114: # video conf ports | B114: =ROUNDDOWN(B113/B98*B102,0) -> 771 | E114: Weighted IVR ports | G114: =ROUNDDOWN(F109*ivrResourceRatio2,0) -> 200 | K114: Max Weighted # IVR ports | L114: =ROUNDDOWN(MIN(P112,L113/'Call Data'!B189),0) -> 1000 | N114: min
A115: weighted video ports | B115: =MIN(F109,ROUNDDOWN(MAX(0,B114/'Call Data'!B206),0)) -> 10 | C115: Audio IVR/Conferencing | E115: Weighted audio conf ports | F115: =ROUNDDOWN(B109*(1-ivrResourceRatio2)/'Call Data'!B189,0) -> 1128 | G115: =MIN(F109,ROUNDDOWN(F109-G114,0)) -> 3800 | H115: =MIN(F115:G115) -> 1128 | K115: Weighted IVR ports | M115: 0 | N115: =MIN(L115:M115) -> 0 | O115: derate | P115: =msDeRate -> 0.5
A116: Users Audio | B116: =F117 -> 2256000 | K116: Weighted audio conf ports | L116: =L113*(1-ivrResourceRatio2)/'Call Data'!B189 -> 1128.125 | M116: =ROUNDDOWN(IF(msDedicated="No",0,L114*(1-ivrResourceRatio2)),0) -> 0 | N116: =MIN(L116:M116) -> 0
A117: Users Video Conf | B117: =ROUNDDOWN(IF('Call Data'!B205=0,MsUserPlaceholder,B115*'Call Data'!B205),0) -> 9999999 | C117: Video Conferencing | E117: Users Audio conf | F117: =ROUNDDOWN(MIN(F115,G115)*'Call Data'!B182,0) -> 2256000 | G117: Audio Conferencing | O117: video supported | P117: =L103>=minCpuForVideo -> TRUE
A118: New Ports | B118: =IF(B115+G115<=F109,B115,IF(F117>B117,B115,F109-G115)) -> 10 | E118: New Ports | F118: =IF(B115+H115<=F109,H115,IF(F117>B117,F109-B115,H115)) -> 1128 | K118: # video procs | L118: =IF(ISBLANK(SelectedTransProcs2),MAX(1,L103-L112-2-1),MIN(SelectedTransProcs2,L103-L112)) -> 1
A119: Adjusted for max sessions | B119: =ROUNDDOWN(IF('Call Data'!B205=0,MsUserPlaceholder,B118*'Call Data'!B205),0) -> 9999999 | E119: Adjusted for max sessions | F119: =ROUNDDOWN(F118*'Call Data'!B182,0) -> 2256000 | K119: # video transcoding procs | L119: =MAX(0,ROUNDDOWN(L118*videoTransResourceRatio2,0)) -> 0
A120: Users Transcoding | B120: =Users -> 1000000 | K120: # video conf proc | L120: =MAX(0,L118-L119) -> 1
A121: Users | B121: =IF(msDedicated="Yes",MIN(B119,F119),0) -> 0 | K121: # video conf ports | L121: =MIN(P113,ROUNDDOWN(L120/L103*L105*(1-msDeRate),0)) -> 385
A122: Limiter | B122: =IF(B121=B116,IF(B116=F117,G117,G116),IF(B121=B117,C117,C120)) -> 0 | K122: weighted video ports | L122: =IF('Call Data'!B206=0,0,MIN(ROUNDDOWN(MAX(0,L121/'Call Data'!B206),0),P112)) -> 5
A123: Message | B123: =IF(B121=MsUserPlaceholder,"",CONCATENATE("(Limited by ",B122," Resources)")) -> (Limited by 0 Resources)
A124: Error 1 | B124: =IF(AND(F55,NOT(msVideoSupported2)),"ERROR: Video conferencing and transcoding are not supported on boxes with less than 8 CPUs","") ->  | K124: Users IVR | L124: =MsUserPlaceholder -> 9999999
A125: Error 2 | B125: =IF(AND(B117=0,videoConfPen>0),"ERROR: The Media Server is not configured with any video conferencing processes","") ->  | K125: UsersConf | L125: =IF(msDedicated="No",MsUserPlaceholder,'Call Data'!B182*MIN(L116,M116)) -> 9999999
A126: Error 3 | B126: =IF(AND(B120=0,msVideo>0),"ERROR: The Media Server is not configured with any video transcoding processes","") ->  | K126: Users Video Conf | L126: =IF('Call Data'!B205=0,MsUserPlaceholder,L122*'Call Data'!B205) -> 9999999 | N126: Error 1 | O126: =IF(AND(needVideo,NOT(P117)),"ERROR: Video conferencing and transcoding are not supported on boxes with less than 8 CPUs","") -> 
A127: Error | B127: =IF(LEN(B124)>0,B124,IF(LEN(B125)>0,B125,B126)) ->  | K127: Users Transcoding | L127: =ROUNDDOWN(IF(TransMRUsers=0,MsUserPlaceholder,L119*TransMRUsers),0) -> 9999999 | N127: Error 2 | O127: =IF(AND(L126=0,videoConfPen>0),"ERROR: The Media Server is not configured with any video conferencing processes","") -> 
A128: Nodes | B128: =IF(msDedicated="Yes",IF(LEN(B127)=0,Users/B121,"ERROR"),0) -> 0 | K128: Users | L128: =ROUNDDOWN(MIN(L124:L127),0) -> 9999999 | N128: Error 3 | O128: =IF(AND(L127=0,msVideo>0),"ERROR: The Media Server is not configured with any video transcoding processes","") -> 
A129: Nodes with Redundancy | B129: =IF(msDedicated="Yes",IF(B128="ERROR","ERROR",ROUNDUP(B128,0)+1),0) -> 0 | K129: Error | L129: =IF(usingMS="Virtualized",O129,"") ->  | N129: Error | O129: =IF(LEN(O126)>0,O126,IF(LEN(O127)>0,O127,O128)) -> 
A131: Text | B131: =IF(msDedicated="No","",CONCATENATE("Audio Ports = ",B109,", Video Conf Ports = ",B114,", Audio Conf Streams = ",F118,", Video Conf Streams = ",B118,", Video Transcoding Processes = ",B112)) ->  | K131: Nodes | L131: =IF(LEN(L129)=0,ROUNDUP(Users/L128,0),"ERROR") -> 1
K132: Nodes with Redundancy | L132: =IF(L131="ERROR","ERROR",ROUNDUP(L131,0)+1) -> 2
K133: Text | L133: =CONCATENATE("Audio Ports = ",L113,", Video Conferencing Ports = ",L121,", IVR Streams = ",N115,", Audio Conferencing Streams = ",N116,", Video Conf Streams = ",L122,", Video Transcoding Processes = ",L119) -> Audio Ports = 9500, Video Conferencing Ports = 385, IVR Streams = 0, Audio Conferencing Streams = 0, Video Conf Streams = 5, Video Transcoding Processes = 0
H136: EMS
A137: EMS Calculations | H137: Virtualized | K137: Users | L137: CPU | M137: Mem
A138: Hardware Name Selection | B138: =CONCATENATE(EmsHwSelection," ",EmsCpuUnitSelection) ->  | H138: Users | I138: =Users -> 1000000 | K138: 1000000 | L138: 6 | M138: 8
A139: EMS MO | B139: =INDEX(EMStable,MATCH(EMSselection,EMSchoices,0),2) ->  | H139: CPU | I139: =MIN(emsMax,MAX(emsMin,I138/K138*L138/hyperMult)) -> 6 | M139: Network bw | O139: DiskThru | P139: IOPS | Q139: Nodes
H140: Memory | I140: =MIN(emsMaxMem,MAX(emsMinMem,I138/K138*M138)) -> 8 | K140: hi | L140: =emsMaxMem -> 8 | M140: 100 | O140: 5000 | P140: 100 | Q140: 250
K141: low | L141: =emsMinMem -> 2 | M141: 100 | O141: 500 | P141: 50 | Q141: 1
H142: Nodes | I142: =SUM('Virtualized Planner'!Q7:Q42) -> 19 | S142: ='Call Model'!S140*(1-npsIOSPercentage) -> 4
K143: Network Bandwidth | L143: =ROUNDUP(IF(I142=0,0,TREND(M140:M141,Q140:Q141,I142)),0) -> 100 | O143: rep bandwidth | P143: 5
K144: Disk Storage | L144: =IF(I140=0,0,minDisk) -> 300 | S144: \
K145: Disk IOPS | L145: =ROUNDUP(IF(I142=0,0,TREND(P140:P141,Q140:Q141,I142)),0) -> 54
K146: Disk Thruput | L146: =ROUNDUP(IF(I142=0,0,TREND(O140:O141,Q140:Q141,I142)),0) -> 826
H147: UCC
A148: UC-Connect Calculations | H148: Virtualized
A149: Hardware Name Selection | B149: =CONCATENATE(UccHwSelection," ",UccCpuUnitSelection) -> Intel Xeon 8 | H149: TPS required | I149: =Users*UCCperUserperHr/3600 -> 0
A150: Base TPS | B150: =IF(UccHwSelection=CpuType3,INDEX(UCCtable,MATCH(UCCselection,UCCchoices,0),2),uccTpsPerCPU*UccCpuUnitSelection) ->  | E150: Memory per session | F150: 36 | H150: Connections Required | I150: =Users*UCCsimConnectionPercent -> 0
A151: Number of sessions | B151: =UccMemSelection*0.8*0.6*1024*1024/F150 -> 223696.2133 | H151: TPS per CPU | I151: =uccTpsPerCPU*hyperMult -> 62.5
A152: Users (based on TPS) | B152: =IF(UCCperUserperHr=0,0,B150*3600/UCCperUserperHr) -> 0 | H152: Connections per RAM | I152: 833 | M152: Network bw | O152: DiskThru | P152: IOPS
A153: Users (based on connections) | B153: =IF(UCCsimConnectionPercent=0,0,B151/UCCsimConnectionPercent) -> 0 | H153: CPU required | I153: =I149/I151 -> 0 | K153: Network Bandwidth Hi | L153: =xspMaxMem -> 32 | M153: 1000 | O153: 5000 | P153: 100
A154: Users | B154: =MIN(B152,B153) -> 0 | H154: Memory required | I154: =I150/(0.8*0.6*1024*1024/F150) -> 0 | K154: Network Bandwidth Low | L154: =xspMinMem -> 4 | M154: 100 | O154: 500 | P154: 50
A155: Capacity Limiter | B155: =CONCATENATE("(Limited by ",IF(B154=B152,"CPU","Memory"),")") -> (Limited by CPU) | H155: CPUs per node | I155: =IF(ISBLANK(VirtXspUccCpuUnitSelection),IF(I153<=xspMin,xspMin,defaultVirtXspCPU),VirtXspUccCpuUnitSelection) -> 4
A156: TPS | B156: =ROUNDUP(MIN(Users,B154)*UCCperUserperHr/3600,0) -> 0 | H156: Memory per node | I156: =IF(ISBLANK(VirtXspUccMemSelection),IF(I154<=xspMinMem,xspMinMem,IF(I154<=defaultVirtXspMem,defaultVirtXspMem,xspMaxMem)),VirtXspUccMemSelection) -> 4 | K156: Network Bandwidth | L156: =IF(I161=0,0,TREND(M153:M154,L153:L154,I161)) -> 0
A157: Nodes (does not account for redundancy) | B157: =IF(B154=0,0,ROUNDUP(Users/B154,0)) -> 0 | H157: Nodes based on CPU | I157: =ROUNDUP(I153/I155,0) -> 0 | K157: Disk Storage | L157: =IF(I149=0,0,minDisk) -> 0
A158: Percent Utilized | B158: =IF(B154=0,0,Users/(B154*B157)) -> 0 | H158: Nodes based on memory | I158: =ROUNDUP(I154/I156,0) -> 0 | K158: Disk IOPS | L158: =IF(I161=0,0,TREND(P153:P154,L153:L154,I161)) -> 0
H159: Nodes | I159: =MAX(I157:I158) -> 0 | K159: Disk Thruput | L159: =IF(I161=0,0,TREND(O153:O154,L153:L154,I161)) -> 0
H160: CPUs per node | I160: =IF(ISBLANK(VirtXspUccCpuUnitSelection),IF(I159=0,0,MAX(xspMin,ROUNDUP(I153/I159,0))),VirtXspUccCpuUnitSelection) -> 0 | J160: =IF(I159=0,0,I153/(I159*I160)) -> 0
H161: Memory per node | I161: =IF(ISBLANK(VirtXspUccMemSelection),IF(I159=0,0,MAX(xspMinMem,ROUNDUP(I154/I159,0))),VirtXspUccMemSelection) -> 0 | J161: =IF(I159=0,0,I154/(I161*I159)) -> 0
H163: Percent Utilized | I163: =MAX(J160,J161) -> 0
H164: Limiter | I164: =CONCATENATE("(Limited by ",IF(I163=J161,"Memory","CPU"),")") -> (Limited by Memory)
H165: TPS | I165: =IF(I159=0,0,I149/I159) -> 0
H167: AMS
A168: AMS Calculations | H168: Virtualized
A169: Hardware Name Selection | B169: =CONCATENATE(AmsHwSelection," ",AmsCpuUnitSelection) -> Intel Xeon 12 | E169: Memory per registration | F169: 29 | H169: Memory required | I169: =B171*Users*SCCP/1024/1024 -> 0
A170: Base Ports | B170: =AmsCpuUnitSelection*amsPortsPerCPU -> 3900 | E170: Memory per call | F170: 11 | H170: Ports required | I170: =SCCP*Users*AvgErlang -> 0
A171: Memory per user | B171: =F169+F170*CallsUsers*UserHoldTime/3600 -> 30.1 | H171: Ports per CPU | I171: =amsPortsPerCPU -> 325
A172: Users (based on memory) | B172: =AmsMemSelection*0.5*0.6*1024*1024/B171 -> 125411.0831 | E172: Max users per node | F172: 25000 | H172: CPU Required | I172: =I170/I171 -> 0 | M172: Network bw | O172: DiskThru | P172: IOPS
A173: Users (based on ports) | B173: =B170/AvgErlang -> 39000 | H173: CPUs per node | I173: =IF(ISBLANK(VirtAmsCpuUnitSelection),IF(I172<=amsMin,amsMin,IF(I172>defaultVirtAmsCPU,amsMax,defaultVirtAmsCPU)),VirtAmsCpuUnitSelection) -> 3 | K173: hi | L173: =emsMaxMem -> 8 | M173: 1000 | O173: 2000 | P173: 100
A174: Users | B174: =MIN(F172,MIN(B173,B172)) -> 25000 | H174: Memory per node | I174: =IF(ISBLANK(VirtAmsMemSelection),IF(I169<=amsMinMem,amsMinMem,IF(I169>defaultVirtAmsMem,amsMaxMem,defaultVirtAmsMem)),VirtAmsMemSelection) -> 3 | K174: low | L174: =emsMinMem -> 2 | M174: 100 | O174: 500 | P174: 50
H175: Nodes based on CPU | I175: =ROUNDUP(I172/I173,0) -> 0
H176: Nodes based on Memory | I176: =ROUNDUP(I169/I174,0) -> 0 | K176: Network Bandwidth | L176: =IF(I181=0,0,TREND(M173:M174,L173:L174,I181)) -> 0
K177: Disk Storage | L177: =IF(I178=0,0,minDisk) -> 0
H178: Nodes | I178: =MAX(I175:I177) -> 0 | K178: Disk IOPS | L178: =IF(I181=0,0,TREND(P173:P174,L173:L174,I181)) -> 0
H179: CPUs per node | I179: =IF(I178=0,0,MAX(amsMin,ROUNDUP(I172/I178,0))) -> 0 | K179: Disk Thruput | L179: =IF(I181=0,0,TREND(O173:O174,L173:L174,I181)) -> 0
H180: Memory per node | I180: =IF(I178=0,0,MAX(amsMinMem,ROUNDUP(I169/I178,0))) -> 0
H181: Final Memory per Node | I181: =IF(ISBLANK(VirtAmsMemSelection),I179,VirtAmsMemSelection) -> 0
H182: Final CPU per Node | I182: =IF(ISBLANK(VirtAmsCpuUnitSelection),I180,VirtAmsCpuUnitSelection) -> 0
H184: Users | I184: =IF(I178=0,0,Users/I178) -> 0
H185: Ports | I185: =I182*I171 -> 0
H187: XSP
A188: XSP General Calculations | E188: mem | F188: cpu | H188: Virtualized | O188: mem | P188: cpu
A189: Hardware Name Selection | B189: =CONCATENATE(XspGenHwSelection," ",XspGenCpuUnitSelection) -> Intel Xeon 8 | D189: Max Users | E189: =FLOOR(MIN(btbcMaxClient,btbcMaxClient*B191/32),500) -> 12500 | F189: =FLOOR(MIN(btbcMaxClient,btbcMaxClient*XspGenCpuUnitSelection/16),500) -> 12500 | H189: TPS required | I189: =Users*B193/3600 -> 277.7777778 | K189: average transaction size (KB) | L189: 5 | N189: Max Users | O189: =FLOOR(MIN(btbcMaxClient,btbcMaxClient*I196/32),500) -> 3000 | P189: =FLOOR(MIN(btbcMaxClient,btbcMaxClient*I195/16),500) -> 6000
A190: Base TPS | B190: =XspGenCpuUnitSelection*xspTpsPerCPU -> 1200 | D190: Clients | E190: =IF(xspR21sp9="Yes",MIN(E189:F189),btbcMaxClient) -> 12500 | H190: Connections Required | I190: =Users*B194 -> 0 | N190: Clients | O190: =IF(xspR21sp9="Yes",MIN(O189:P189),btbcMaxClient) -> 3000
A191: Memory | B191: =XspGenMemSelection -> 16 | E191: Max users | F191: =IF(systemMode="XS-Mode",4000000,1000000) -> 1000000 | H191: TPS per CPU | I191: =150*hyperMult -> 150
A192: Max Sessions | B192: =ROUNDDOWN(B191/12*10000,0) -> 13333 | H192: Connections per RAM | I192: 833 | M192: Network bw | O192: DiskThru | P192: IOPS
A193: Required Trans Per User per Hour | B193: =ROUNDUP(XSPperUserperHr,0) -> 1 | H193: CPU required | I193: =I189/I191 -> 1.851851852 | K193: hi | L193: =xspMaxMem -> 32 | M193: 1000 | O193: 1000 | P193: 150
A194: Required connections per user per hour | B194: =SUM('Call Data'!B255:B256) -> 0 | H194: Memory required | I194: =I190/I192 -> 0 | K194: low | L194: =xspMinMem -> 4 | M194: 100 | O194: 500 | P194: 75
D195: =XspsimConnectionPercent -> 0 | H195: CPUs per node | I195: =IF(ISBLANK(VirtXspGenCpuUnitSelection),IF(I193<=xspMin,xspMin,IF(I193>defaultVirtXspCPU,xspMax,defaultVirtXspCPU)),VirtXspGenCpuUnitSelection) -> 4
A196: Users (based on event channels) | B196: =IF('Call Data'!B256=0,F191,E190/'Call Data'!B256) -> 1000000 | H196: Memory per node | I196: =IF(ISBLANK(VirtXspGenMemUnitSelection),IF(I194<=xspMinMem,xspMinMem,IF(I194>defaultVirtXspMem,xspMaxMem,defaultVirtXspMem)),VirtXspGenMemUnitSelection) -> 4 | K196: Network Bandwidth | L196: =I189*L189*8/1024/I202 -> 10.85069444 | O196: old | P196: =IF(I204=0,0,TREND(M193:M194,L193:L194,I204)) -> 100
A197: Users (based on TPS) | B197: =IF(XSPperUserperHr=0,0,B190*3600/XSPperUserperHr) -> 23351351.35 | K197: Disk Storage | L197: =IF(I204=0,0,minDisk) -> 300
A198: Users (based on connections) | B198: =IF(B194=0,B197,B192/B194) -> 23351351.35 | H198: Nodes based on CPU | I198: =ROUNDUP(I193/I195,0) -> 1 | K198: Disk IOPS | L198: =IF(I204=0,0,TREND(P193:P194,L193:L194,I204)) -> 75
A199: Users | B199: =MIN(B197,B198,F191,B196) -> 1000000 | H199: Nodes based on memory | I199: =ROUNDUP(I194/I196,0) -> 0
A200: Capacity Limiter | B200: =CONCATENATE("(Limited by ",IF(B199=F191,"Maximum Users",IF(B199=B197,"CPU","Memory")),")") -> (Limited by Maximum Users) | H200: Nodes based on max users | I200: =ROUNDUP(Users/F191,0) -> 1
A201: TPS | B201: =ROUNDUP(MIN(Users,B199)*XSPperUserperHr/3600,0) -> 52 | H201: Nodes basd on event channels | I201: =ROUNDUP(Users*'Call Data'!B256/O190,0) -> 0
A202: Nodes (does not account for redundancy) | B202: =IF(B199=0,0,ROUNDUP(Users/B199,0)) -> 1 | H202: Nodes | I202: =MAX(I198:I201) -> 1 | K202: Disk Thruput | L202: =IF(I204=0,0,TREND(O193:O194,L193:L194,I204)) -> 500
H203: CPUs per node | I203: =IF(I202=0,0,IF(ISBLANK(VirtXspGenCpuUnitSelection),MAX(xspMin,IF(I201>I198,I195,ROUNDUP(I193/I202,0))),VirtXspGenCpuUnitSelection)) -> 4 | J203: =I193/(I202*I203) -> 0.462962963
H204: Memory per node | I204: =IF(I202=0,0,IF(ISBLANK(VirtXspGenMemSelection),MAX(xspMinMem,IF(I201>I196,I196,ROUNDUP(I194/I202,0))),VirtXspGenMemSelection)) -> 4 | J204: =I194/(I204*I202) -> 0
H205: channels | J205: =Users*XspPen*'Call Model'!S343/I202/O190 -> 0
A206: Percent Utilized | B206: =IF(B199=0,0,Users/(B199*B202)) -> 1 | H206: Users | I206: =IF(I202=0,0,Users/I202) -> 1000000
H207: Percent Utilized | I207: =MAX(J203,J204,I206/F191,J205) -> 1
H208: Limiter | I208: =CONCATENATE("(Limited by ",IF(I202=I200,"Maximum Users",IF(I202=I199,"Memory",IF(I202=I201,"Event Channels","CPU"))),")") -> (Limited by Maximum Users)
H209: TPS | I209: =ROUNDUP(I189/I202,0) -> 278
K210: XSP DMS
A211: XSP DMS Calculations | K211: Virtualized
... 347 more rows

Sheet Change History
A1: Version 2.5
A2: Added Unified Message Store Requirement Calculations.
A3: Added Additional Voice Messaging Parameters.
A4: Renamed Voice Messaging (Internal) → Voice Messaging (BroadWorks).
A5: Renamed Voice Messaging (External) → Voice Messaging (Third-party).
A6: Added Input for Number of Users per Group.
A7: Added Input for Number of Groups per Enterprise.
A8: Added Answer Confirmation for Simultaneous Ringing service.
A9: Added BroadWorks Anywhere service.
A11: Version 2.6
A12: Added Xtended Services Platform.
A13: Rounded down user's calculations to nearest one thousand users
A14: Updated Weightings for Voice Mail (use 3.0 for all calls to BroadWorks Voice Mail).
A16: Version 2.7
A17: Added Configuration SIP Session Completion Timer.
A18: Updated Residential per user Database footprint to 56K (from 52K).
A19: Removed IBM Large Media Server
A20: Added display of AS RPS and PTPS on front screen.
A21: Updated Weightings for External Voicemail (revert to pre-Version 2.6 values).
A22: Added Device Management Impacts (Profile Server, and so on).
A23: Added Xsp enhancements.
A25: Version 2.8
A26: Removed release reference.
A27: Added new Media Server hardware (available with Release 15).
A28: Fixed EMS calculation (error in Version 2.7).
A30: Version 2.9 - October 15, 2008
A31: Changed std and premium RES package default web usage to 1% based on field feedback.
A32: Changed std and premium ENT package default web usage to 10% based on field feedback.
A33: Moved from SUN and IBM choices to process based choices to support Sun x86 Intel processor which have same performance as IBM Intel processors.
A34: Changed IBM standard to Intel Medium for consistency.
A35: Changed Sun Large - High Performance to UltraSPARC Large.
A36: Added Intel Small hardware type.
A38: Version 2.10 - November 3, 2008
A39: Added AMR codec for MS planner support.
A40: Added Effective Number of Trunking User calculation [Number_Trunks * (Trunk_Erlangs/User_Erlangs)] that appears on Planner page when Trunk number set.
A41: Changed AS DB and cache sizing to take into account "Average Number of Groups Per Enterprise/Service Provider" parameter.
A43: Version 2.11 - November 6, 2008
A44: Incorporated NS Memory Planner to calculate per NS minimum memory requirement based on required cluster DB size and XS cache.
A46: Version 2.12 - December 1, 2008
A47: Set NS memory requirement to be based on 50% DSN sizing.
A49: Version 2.13 - January 12, 2009
A50: Added Xsi Service Management and Xsi Event penetration parameters.
A51: Changed AS OCI formula to include Xsi Events and penetration parameters.
A52: Fixed AS DMS OCI impact to include DMS penetration.
A54: Version 2.14 - February 12, 2009
A55: Added Sequential Ringing Service.
A57: Version 3.0 - February 17, 2009
A58: Added support for multiple pre-packaged configurations.
A59: Allowed for easier input of trunking configurations.
A61: Version 3.1 - August 18, 2009
A62: Added CPS cap on AS.
A63: Added feedback mechanism.
A64: Added indication on main page on what is limiting AS capacity.
A65: Removed option to do capacity planning for co-hosted WS/AS.
A66: Updated Xsi parameters.
A67: Corrected VM storage calculation.
A68: Added UC-Connect server.
A69: Added additional Network/Location server configuration options for IMS deployments.
A71: Version 3.2 - December 2, 2009
A72: Updated server selections.
A73: Added Call Notification Events Per Call parameter.
A74: Added control to specify number of OCS requests passed through Xsp node (versus WS).
A75: Updated formatting.
A76: Feedback mechanism enhancement for reduction in service profile.
A77: Corrected UC-Connect medium server memory (should be 4 not 1).
A78: Moved input of hardware/package to live data area.
A80: Version 3.3 - March 1, 2010
A81: Added Receptionist client.
A82: Updated Media Server port calculations and added video transcoding.
A83: Added Access Mediation Server (AMS).
A84: Added Ro/Rf Interface.
A85: Added external Music-On-Hold option to call center.
A86: Added input for SIP subscription rate.
A87: Corrected CS computations when number CS-AS nodes sufficient for capacity.
A88: Changed MS/CS ports shown to be unweighted G.711 port calculation.
A90: Version 3.4 - May 17, 2010
A91: Added additional Call Center announcements.
A93: Version 3.5 - September 16, 2010
A94: Updated Call Center Weightings.
A95: Added higher capacity Xsp server.
A96: Added Intel Xeon 5600 choice.
A98: Version 3.6 - February 7, 2011
A99: Added Meet-Me Conferencing service.
A100: Added 6 core 5600 series CPUs.
A102: Version 3.7 - April 1, 2011
A103: Fixed Application Server Memory drop-down list.
A104: Lowered default Meet-Me Conferencing service penetration.
A105: Made Device Management updates.
A107: Version 4.0 - April 27, 2011
A108: Added Xsp and PS configurations.
A109: Updated Xsp and PS capacity figures.
A110: Added Enhanced Call Center Reporting Impacts.
A111: Updated Media Server codec weightings to account for call durations.
A113: Version 4.1 - May 16, 2011
A114: Added G722 codec.
A115: Fixed error if used zero real-time reporting rate set to zero.
A117: Version 4.2 - August 10, 2011
A118: Corrected Xsp general calculation for Assistant-Enterprise only, third-party client-only solutions.
A120: Version 4.3 - November 19, 2011
A121: Added CTI interface.
A122: Added Enhanced Call Log impacts.
A123: Updated Media Server port weightings. Created separate G722 weightings.
A124: Added calculation for OCI over SOAP impacts.
A125: Added Call Recording impacts.
A126: Edited and published document.
A128: Version 4.4 - May 10, 2012
A129: Added inter-site Database Server (DBS) bandwidth requirements.
A130: Updated input parameters for Xtended Services.
A131: Changed Invite Authentication Ratio to default to 1.
A132: Added Route Point service.
A133: Corrected issue with MS Ultra SPARC drop-down lists.
A134: Corrected Media Server port weightings for Call Recording.
A135: Corrected G722 codec calculations.
A136: Added administrative provisioning input.
A137: Allowed registration interval to be zero.
A138: Added SurgeMail calculations.
A139: Edited and published document.
A141: Version 4.5 - June 25, 2012
A142: Added Service Control Function (SCF).
A143: Added SurgeMail redundancy.
A144: Increased maximum number of users for Xsp Device Management deployments.
A145: Edited and published document.
A147: Version 4.6 - July 16, 2012
A148: Added Intel Xeon E5-2600 CPU support.
A149: Removed Conference Server.
A150: Removed non-T1/T2 UltraSPARC hardware.
A151: Edited and published document.
A153: Version 4.7 - October 1, 2012
A154: Updated options for Service Control Function.
A155: Increased Service Control Function transactions per seconds (TPS).
A156: Added Business Communicator (BC) and Mobile Link.
A157: Corrected calculation for small SurgeMail systems.
A158: Updated calculation for Call Center client simultaneous connections.
A159: Updated disk space calculations for G722 codec.
A160: Edited and published document.
A162: Version 4.8 - April 1, 2013
A163: Incorporated Business Communicator Device Management load into Profile Server calculations.
A164: Corrected OCI impact when no Business Communicator is enabled.
A165: Updated Device Management parameters.
A166: Separated DBS storage to DATA and FRA. Increased DBS FRA sizing to twice DATA partition size.
A167: Weighted SurgeMail calculations by BroadWorks Voice Mail usage.
A168: Updated AS/NS/Xsp CPS/TPS to indicate actual versus maximum values. Removed simultaneous connections value.
A169: Added additional memory options for Device Management Profile Server.
A170: Moved Growth Estimate to new sheet.
A171: Edited and published document.
A173: Version 5.0 - January 6, 2014
A174: Added Virtualized Planner worksheet and moved call model to standalone worksheet.
A175: Replaced # Users for Xsp nodes with percentage utilized.
A176: Fixed error message when inputting growth estimate for Business Trunking.
A177: Corrected call footprint for enhanced services.
A178: Corrected CTI Connect Xsp TPS.
A179: Updated ECL DBS calculations.
A180: Corrected issue with SCF affecting MS usage.
A181: Corrected Intel E5-2600 processor counts for EV 198327.
A182: Added video conferencing.
A183: Updated MS calculations to show details on port calculations.
A184: Added additional Intel Xeon CPU numbers to allow for support of E5-2600 v2 processors.
A185: Consolidated video transcoding MS with regular MS. Warning will be displayed if hardware does not meet video requirements.
A186: Edited and published document.
A188: Version 5.1 - February 18, 2014
A189: Added Business Communicator background traffic.
A190: Added Meet-Me call recording impacts.
A191: Added specialized Media Server configuration for IVR and conferencing.
A192: Added Messaging Server (UMS), Sharing Server (USS), and WebRTC Server (WRS).
A193: Edited and published document.
A195: Version 5.2 - March 27, 2014
A196: Renamed Messaging and Sharing Servers.
A197: Corrected calculation of Media Server - Conferencing ports.
A198: Incorporated Business Communicator penetration into USS usage.
A199: Added Enhanced Call Log Reporting.
A200: Edited and published document.
A202: Version 5.3 - April 11, 2014
A203: Updated WebRTC inputs and calculations.
A204: Added AMR-WB.
A205: Added more inputs for Enhanced Call Log Reporting.
A206: Edited and published document.
A208: Version 5.4 - June 3, 2014
A209: Deprecated BW-XSMode-SystemCapacityPlanner. Added XS mode support.
A210: Corrected calculations for virtualized Messaging Server (UMS) nodes.
A211: Reduced minimum virtualized OS/FRA/DATA partition size to 100/50/50 GB.
A212: Corrected virtualized SCF to reflect correct redundancy model.
A213: Edited and published document.
A215: Version 5.5 - September 5, 2014
A216: Updated network bandwidth estimates.
A217: Lowered client usage assumptions for Premium Enterprise call model.
A218: Corrected Network Server (NS) TPS for Virtualized configuration for AS mode.
A219: Incorporated administrative transactions into Provisioning Server - Provisioning Application.
A220: Corrected IOPS for Third-Party Registrations in XS mode.
A221: Added input for billing hold time.
A222: Added replication bandwidth requirements.
A223: Increased maximum allowed CPUs for Application Server (AS) Growth Estimate.
A224: Incorporated Execution Server (XS) CPU count into capacity calculations.
A225: Edited and published document.
A227: Version 5.6 - September 14, 2014
A228: Renamed to xslm file.
A229: Corrected calculation of Provisioning Application resources related to XS mode administrative transactions.
A230: Edited and published document.
A232: Version 5.7 - September 16, 2014
A233: Added Network Function Manager (NFM) Server.
A234: Added support for DN ranges for Trunking.
... 98 more rows

Sheet Call Data (hidden)
A1: CALL WEIGHTING
A3: INTERNAL CALLS
E4: MEM WEIGHT | F4: AVG MEM WEIGHT
A5: USER CALLS | B5: OCCURRENCE | C5: WEIGHT | D5: AVG WEIGHT | H5: Msgs in | I5: Msgs Out | J5: Total | K5: Weighting | L5: Old Weighting
A6: Answered Calls | B6: =IntAns -> 0.5 | C6: 1 | D6: =C6*B6 -> 0.5 | E6: 1 | F6: =E6*B6 -> 0.5 | H6: 13 | I6: 13 | J6: =H6+I6 -> 26 | L6: 1
A7: Busy Calls | B7: =IntBusy-B10-B12 -> 0.0285 | C7: =K7 -> 1.076923077 | D7: 0.03069230769 | E7: 1 | F7: =E7*B7 -> 0.0285 | H7: 14 | I7: 14 | J7: 28 | K7: =J7/J6 -> 1.076923077 | L7: 0.59
A8: Unanswered Calls | B8: =IntUnans-B11-B13 -> 0.2475 | C8: =K8 -> 0.6923076923 | D8: 0.1713461538 | E8: 1 | F8: 0.2475 | H8: 9 | I8: 9 | J8: 18 | K8: =J8/J6 -> 0.6923076923 | L8: 0.89
A9: Failure Calls | B9: =IntFail -> 0.02 | C9: =K9 -> 1.115384615 | D9: 0.02230769231 | E9: 1 | F9: 0.02 | H9: 16 | I9: 13 | J9: 29 | K9: =J9/J6 -> 1.115384615 | L9: 1.11
A10: Busy to Voice Mail | B10: =IntBusy*VMint*VMICBusy -> 0.0015 | C10: =K10 -> 1.846153846 | D10: 0.002769230769 | E10: 1 | F10: 0.0015 | H10: 25 | I10: 23 | J10: 48 | K10: =J10/J6 -> 1.846153846 | L10: 1.74
A11: No Answer to Voice Mail | B11: =IntUnans*VMint*VMICNoAns -> 0.2025 | C11: 3 | D11: 0.6075 | E11: 1 | F11: 0.2025 | H11: 24 | I11: 22 | J11: 46 | K11: =J11/J6 -> 1.769230769 | L11: 1.56
A12: Busy Forwarded to Voice Mail | B12: =IntBusy*VMext*ExtVMICBusy -> 0 | C12: 1.15 | D12: 0 | E12: 1 | F12: 0 | L12: 1.15
A13: No Answer Forwarded to Voice Mail | B13: =IntUnans*VMext*ExtVMICNoAns -> 0 | C13: 1.3 | D13: 0 | E13: 1 | F13: 0 | L13: 1.3
A14: BASIC CALLS TOTAL | B14: =SUM(B6:B13) -> 1 | D14: =SUM(D6:D13) -> 1.334615385 | F14: =SUM(F6:F13) -> 1
E15: MEM WEIGHT | F15: AVG MEM WEIGHT
A16: SERVICE CALLS | B16: OCCURRENCE | C16: WEIGHT | D16: AVG WEIGHT
A17: Auto Attendant | B17: =AAIC -> 0 | C17: =K17 -> 2.307692308 | D17: =C17*B17 -> 0 | E17: 1 | F17: =E17*B17 -> 0 | H17: 31 | I17: 29 | J17: =H17+I17 -> 60 | K17: =J17/J6 -> 2.307692308 | L17: 1.7
A18: Call Center | B18: =CCIC -> 0 | C18: =IF(OR(AvgWhisperMsgDur>0,AvgEntranceMsgDur>0,AvgComfBypassMsgDur>0),5,3)*IF(statsOnASPercent,1.1,1) -> 5.5 | D18: 0 | E18: =2.4*IF(statsOnASPercent,1.1, 1) -> 2.64 | F18: =E18*B18 -> 0 | N18: =29/14 -> 2.071428571
A19: Sequential Ring | B19: =SeqRingPen -> 0 | C19: =31/14+0.5*(SeqRingLoc-1)+(SeqRingAnswerConf*15/14) -> 3.214285714 | D19: 0 | E19: 1 | F19: 0
A20: Simultaneous Ring | B20: =SimRingPen -> 0 | C20: =1+0.5*AvgSimRingEntries+(answerConfirmation*15/14) -> 2.035714286 | D20: 0 | E20: 1 | F20: 0 | L20: =1+0.5*AvgSimRingEntries -> 1.5
A21: Shared Call Appearance | B21: =SCA -> 0 | C21: =1+0.5*SCANumLines -> 2.5 | D21: 0 | E21: =C21 -> 2.5 | F21: 0 | L21: =1+0.5*SCANumLines -> 2.5
A22: Call Recording | B22: =callRecordingPen -> 0 | C22: 3 | D22: =C22*B22 -> 0 | E22: 1 | F22: =E22*B22 -> 0
A23: Three Way Conferencing | B23: =TWCCalls -> 0.0005 | C23: =K23 -> 4.269230769 | D23: 0.002134615385 | E23: 1 | F23: 0.0005 | H23: 59 | I23: 52 | J23: =H23+I23 -> 111 | K23: =J23/J6 -> 4.269230769 | L23: 2.3
A24: N-Way Conferencing | B24: =MSNWCcalls -> 0 | C24: =C23*MSNWCavgParties/3 -> 8.538461538 | D24: 0 | E24: 1 | F24: 0
A25: Meet-me Conferencing | B25: =MeetMePen -> 0 | C25: =C23/3 -> 1.423076923 | D25: =C25*B25 -> 0 | E25: 1 | F25: =E25*B25 -> 0
A26: Voice Portal | B26: =VPIC -> 0.025 | C26: =K26 -> 1.923076923 | D26: 0.04807692308 | E26: 1 | F26: 0.025 | H26: 26 | I26: 24 | J26: =H26+I26 -> 50 | K26: =J26/J6 -> 1.923076923 | L26: 1.63
A27: Custom Ringback | B27: =customRingback -> 0 | C27: =31/14+2*ringbackURLPercent -> 2.214285714 | D27: 0 | E27: 1 | F27: 0
A28: Instant Group Call | B28: =IGC -> 0 | C28: =1+0.5*igcMembers -> 3.5 | D28: =B28*C28 -> 0 | E28: 1 | F28: 0
A29: Voice Portal Outcalling | B29: =VPdialOut*VPIC -> 0 | C29: 4.74 | D29: =C29*B29 -> 0 | E29: 1 | F29: 0
A30: Push To Talk | B30: =ptt -> 0 | C30: =86/14 -> 6.142857143 | D30: 0 | E30: 1 | F30: 0
A31: Two-Stage Dialing | B31: =tsd -> 0 | C31: =38/14 -> 2.714285714 | D31: 0 | E31: 1 | F31: 0
A32: BroadWorks Anywhere Incoming | B32: =BA -> 0 | C32: =1+0.5*baNumEntries -> 1.5 | D32: 0 | E32: 1 | F32: 0
A33: BroadWorks Anywhere Outgoing | B33: =BA -> 0 | C33: =40/14 -> 2.857142857 | D33: 0 | E33: 1 | F33: 0
A34: In-Call Service Activation | B34: =icsaPen*IntAns -> 0 | C34: =32/14 -> 2.285714286 | D34: 0 | E34: 1 | F34: 0
A35: Intercept | B35: =interceptPen -> 0 | C35: =C9 -> 1.115384615 | D35: 0 | E35: 1 | F35: 0
A36: SERVICE CALLS TOTAL | B36: =MIN(1,SUM(B17:B35)) -> 0.0255 | D36: =IF(B36=0,0,SUM(D17:D35)/B36) -> 1.96907994 | F36: =IF(B36=0,0,SUM(F17:F35)/B36) -> 1
E37: MEM WEIGHT | F37: AVG MEM WEIGHT
B38: OCCURRENCE | C38: WEIGHT | D38: AVG WEIGHT
A39: Basic Calls | B39: =B14-B36 -> 0.9745 | C39: =D14 -> 1.334615385 | D39: =C39*B39 -> 1.300582692 | E39: =F14 -> 1 | F39: =E39*B39 -> 0.9745
A40: Service Calls | B40: =B36 -> 0.0255 | C40: =D36 -> 1.96907994 | D40: =C40*B40 -> 0.05021153846 | E40: =F36 -> 1 | F40: =E40*B40 -> 0.0255
A41: INTERNAL CALLS TOTAL | B41: =SUM(B39:B40) -> 1 | D41: =SUM(D39:D40) -> 1.350794231 | F41: =SUM(F39:F40) -> 1
A43: EXTERNAL CALLS
E44: MEM WEIGHT | F44: AVG MEM WEIGHT
A45: OUTGOING CALLS | B45: OCCURRENCE | C45: WEIGHT | D45: AVG WEIGHT
A46: Answered Calls | B46: =ExtOGAns -> 0.5 | C46: 1 | D46: =C46*B46 -> 0.5 | E46: 1 | F46: =E46*B46 -> 0.5 | H46: 14 | I46: 14 | J46: =H46+I46 -> 28 | L46: 1.11
A47: Unanswered Calls | B47: =ExtOGUnans -> 0.45 | C47: =K47 -> 0.9285714286 | D47: =C47*B47 -> 0.4178571429 | E47: 1 | F47: =E47*B47 -> 0.45 | H47: 13 | I47: 13 | J47: =H47+I47 -> 26 | K47: =J47/J46 -> 0.9285714286 | L47: 1
A48: Busy Calls | B48: =ExtOGBusy -> 0.03 | C48: =K48 -> 1.071428571 | D48: =C48*B48 -> 0.03214285714 | E48: 1 | F48: =E48*B48 -> 0.03 | H48: 15 | I48: 15 | J48: =H48+I48 -> 30 | K48: =J48/J46 -> 1.071428571 | L48: 0.7
A49: Failure Calls | B49: =ExtOGFail -> 0.02 | C49: =K49 -> 0.8928571429 | D49: =C49*B49 -> 0.01785714286 | E49: 1 | F49: =E49*B49 -> 0.02 | H49: 14 | I49: 11 | J49: =H49+I49 -> 25 | K49: =J49/J46 -> 0.8928571429 | L49: 1.22
A50: EXTERNAL OUTGOING CALLS TOTAL | B50: =SUM(B46:B49) -> 1 | D50: =SUM(D46:D49) -> 0.9678571429 | F50: =SUM(F46:F49) -> 1
A52: INCOMING CALLS
E53: MEM WEIGHT | F53: AVG MEM WEIGHT
A54: BASIC CALLS | B54: OCCURRENCE | C54: WEIGHT | D54: AVG WEIGHT
A55: Answered Calls | B55: =ExtICAns -> 0.5 | C55: 1 | D55: =C55*B55 -> 0.5 | E55: 1 | F55: =E55*B55 -> 0.5 | H55: 10 | I55: 9 | J55: =H55+I55 -> 19 | L55: 1
A56: Busy / Failure Calls | B56: =ExtICBusyFail-B58-B60 -> 0.0475 | C56: =K56 -> 1.105263158 | D56: 0.0525 | E56: 1 | F56: 0.0475 | H56: 11 | I56: 10 | J56: =H56+I56 -> 21 | K56: =J56/J55 -> 1.105263158 | L56: 0.59
A57: Unanswered Calls | B57: =ExtICUnans-B59-B61 -> 0.2475 | C57: =K57 -> 0.6842105263 | D57: 0.1693421053 | E57: 1 | F57: 0.2475 | H57: 7 | I57: 6 | J57: =H57+I57 -> 13 | K57: =J57/J55 -> 0.6842105263 | L57: 0.89
A58: Busy to Voice Mail | B58: =ExtICBusyFail*VMint*VMICBusy -> 0.0025 | C58: =K58 -> 2.052631579 | D58: 0.005131578947 | E58: 1 | F58: 0.0025 | H58: 21 | I58: 18 | J58: =H58+I58 -> 39 | K58: =J58/J55 -> 2.052631579 | L58: 1.74
A59: No Answer to Voice Mail | B59: =ExtICUnans*VMint*VMICNoAns -> 0.2025 | C59: 3 | D59: 0.6075 | E59: 1 | F59: 0.2025 | H59: 20 | I59: 17 | J59: =H59+I59 -> 37 | K59: =J59/J55 -> 1.947368421 | L59: 1.56
A60: Busy Forwarded to Voice Mail | B60: =ExtICBusyFail*VMext*ExtVMICBusy -> 0 | C60: 1.15 | D60: 0 | E60: 1 | F60: 0 | L60: 1.15
A61: No Answer Forwarded to Voice Mail | B61: =ExtICUnans*VMext*ExtVMICNoAns -> 0 | C61: 1.3 | D61: 0 | E61: 1 | F61: 0 | L61: 1.3
A62: EXTERNAL INCOMING BASIC CALLS TOTAL | B62: =SUM(B55:B61) -> 1 | D62: =SUM(D55:D61) -> 1.334473684 | F62: =SUM(F55:F61) -> 1
E63: MEM WEIGHT | F63: AVG MEM WEIGHT
A64: SERVICE CALLS | B64: OCCURRENCE | C64: WEIGHT | D64: AVG WEIGHT
A65: Auto Attendant | B65: =AAIC -> 0 | C65: =K65 -> 2.32 | D65: =C65*B65 -> 0 | E65: 1 | F65: =E65*B65 -> 0 | K65: 2.32 | L65: 1.7
A66: Call Center | B66: =CCIC -> 0 | C66: =C18 -> 5.5 | D66: 0 | E66: 2.4 | F66: 0
A67: Sequential Ring | B67: =SeqRingPen -> 0 | C67: =31/14+0.5*(SeqRingLoc-1)+(SeqRingAnswerConf*15/14) -> 3.214285714 | D67: 0 | E67: 1 | F67: 0
A68: Simultaneous Ring | B68: =SimRingPen -> 0 | C68: =MAX(1+0.5*AvgSimRingEntries+(answerConfirmation*15/14),1) -> 2.035714286 | D68: 0 | E68: 1 | F68: 0 | L68: =1+0.5*AvgSimRingEntries -> 1.5
A69: Shared Call Appearance | B69: =SCA -> 0 | C69: =1+0.5*SCANumLines -> 2.5 | D69: 0 | E69: =C69 -> 2.5 | F69: 0 | L69: =1+0.5*SCANumLines -> 2.5
A70: Call Recording | B70: =callRecordingPen -> 0 | C70: 3 | D70: =C70*B70 -> 0 | E70: 1 | F70: =E70*B70 -> 0 | L70: 2.3
A71: Three Way Conferencing | B71: =TWCCalls -> 0.0005 | C71: =4.27 -> 4.27 | D71: 0.002135 | E71: 1 | F71: 0.0005 | L71: 2.3
A72: N-Way Conferencing | B72: =MSNWCcalls -> 0 | C72: =C71*MSNWCavgParties/3 -> 8.54 | D72: 0 | E72: 1 | F72: 0
A73: Meet-me Conferencing | B73: =MeetMePen -> 0 | C73: =C71/3 -> 1.423333333 | D73: 0 | E73: 1 | F73: 0
A74: Voice Portal | B74: =VPIC*ExtICAns -> 0.0125 | C74: 1.95 | D74: 0.024375 | E74: 1 | F74: 0.0125 | L74: 1.63
A75: Custom Ringback | B75: =customRingback -> 0 | C75: =C27 -> 2.214285714 | D75: 0 | E75: 1 | F75: 0
A76: Voice Portal Outcalling | B76: =VPdialOut*VPIC -> 0 | C76: 4.74 | D76: 0 | E76: 1 | F76: 0
A77: Push To Talk | B77: =ptt -> 0 | C77: =C30 -> 6.142857143 | D77: 0 | E77: 1 | F77: 0
A78: Two-Stage Dialing | B78: =tsd -> 0 | C78: =C31 -> 2.714285714 | D78: 0 | E78: 1 | F78: 0
A79: BroadWorks Anywhere Incoming | B79: =BA*ExtCallsIC -> 0 | C79: =1+0.5*baNumEntries -> 1.5 | D79: 0 | E79: 1 | F79: 0
A80: BroadWorks Anywhere Outgoing | B80: =BA*ExtCallsOG -> 0 | C80: =40/14 -> 2.857142857 | D80: 0 | E80: 1 | F80: 0
A81: In-Call Service Activation | B81: =icsaPen*(ExtCallsOG*ExtICAns+ExtCallsIC*ExtICAns)/((ExtCallsOG+ExtCallsIC)) -> 0 | C81: =C34 -> 2.285714286 | D81: 0 | E81: 1 | F81: 0
A82: SCF Incoming | B82: ='Call Model'!S275*ExtCallsIC -> 0 | C82: =D62+17/14-1 -> 1.548759398 | D82: 0 | E82: 1 | F82: 0
A83: SCF Outgoing | B83: ='Call Model'!S276*ExtCallsOG -> 0 | C83: =D62+17/14-1 -> 1.548759398 | D83: =C83*B83 -> 0 | E83: 1 | F83: =E83*B83 -> 0
A84: SCF terms requiring Least cost routing, location svcs, mobile state check) | B84: =ExtCallsOG*SUM('Call Model'!S278:S279) -> 0 | C84: =D62+17/14-1 -> 1.548759398 | D84: =C84*B84 -> 0 | E84: 1 | F84: =E84*B84 -> 0
A85: Intercept | B85: =interceptPen -> 0 | C85: =C56 -> 1.105263158 | D85: 0 | E85: 1 | F85: 0
A86: ` | B86: =MIN(1,SUM(B65:B85)) -> 0.013 | D86: =IF(B86=0,1,SUM(D65:D85)/B86) -> 2.039230769 | F86: =IF(B86=0,1,SUM(F65:F85)/B86) -> 1
E87: MEM WEIGHT | F87: AVG MEM WEIGHT
B88: OCCURRENCE | C88: WEIGHT | D88: AVG WEIGHT
A89: Basic Calls | B89: =B62-B86 -> 0.987 | C89: =D62 -> 1.334473684 | D89: =C89*B89 -> 1.317125526 | E89: =F62 -> 1 | F89: =E89*B89 -> 0.987
A90: Service Calls | B90: =B86 -> 0.013 | C90: =D86 -> 2.039230769 | D90: =C90*B90 -> 0.02651 | E90: =F86 -> 1 | F90: =E90*B90 -> 0.013
A91: EXTERNAL INCOMING CALLS TOTAL | B91: =SUM(B89:B90) -> 1 | D91: =SUM(D89:D90) -> 1.343635526 | F91: =SUM(F89:F90) -> 1
A93: STANDARD CALLS
E94: MEM WEIGHT | F94: AVG MEM WEIGHT
A95: CALLS | B95: OCCURRENCE | C95: WEIGHT | D95: AVG WEIGHT
A96: Internal Calls | B96: =InternalCalls -> 0 | C96: =D41*IF(EXACT("YES",UPPER(DGC)),2,1) -> 1.350794231 | D96: =C96*B96 -> 0 | E96: =F41 -> 1 | F96: =E96*B96 -> 0
A97: External Outgoing Calls | B97: =ExtCallsOG -> 0.5 | C97: =D50 -> 0.9678571429 | D97: =C97*B97 -> 0.4839285714 | E97: =F50 -> 1 | F97: =E97*B97 -> 0.5
A98: External Incoming Calls | B98: =ExtCallsIC -> 0.5 | C98: =D91*((1-CNAM)+1.29*CNAM) -> 1.343635526 | D98: =C98*B98 -> 0.6718177632 | E98: =F91 -> 1 | F98: =E98*B98 -> 0.5
A99: TOTAL | B99: =SUM(B96:B98) -> 1 | D99: =SUM(D96:D98) -> 1.155746335 | F99: =SUM(F96:F98) -> 1
A101: ALL CALLS
E102: MEM WEIGHT | F102: AVG MEM WEIGHT
A103: ENHANCED FUNCTIONS | B103: OCCURRENCE | C103: WEIGHT | D103: AVG WEIGHT | M103: Call Center Calculations
A104: Calls | B104: =100% -B105 -> 1 | C104: =D99 -> 1.155746335 | D104: =B104*C104 -> 1.155746335 | E104: =F99 -> 1 | F104: =E104*B104 -> 1 | I104: # comfort msg plays | K104: =IF(OR(TimeBetComMsg=0,AvgComfMsgDur=0),0,ROUNDUP(CCAvgWaitTime/TimeBetComMsg,0)) -> 2
A105: Shared Call Appearance - Call Info/Line Seize | B105: =SCACallInfo*SCA -> 0 | C105: =(8+10*SCANumLines)/14 -> 2.714285714 | D105: =B105*C105 -> 0 | E105: =F99 -> 1 | F105: =E105*B105 -> 0 | I105: # music plays | K105: =IF(MusicOnHold="None",0,MAX(1,K104)) -> 2
A106: Invite Authentication | B106: =SIP*Authentication*InviteAuthRatio*(B97+B96/2) -> 0.5 | C106: =C104*3/14 -> 0.2476599288 | D106: =B106*C106 -> 0.1238299644 | E106: 0 | F106: 0 | J106: Duration | K106: Messaging (not used)
A107: CAP Usage (CPCM, CCC2, BW Assistant, OCI-C) | B107: =CMPen*WebPortal+CCC2Pen+clientPen+btbcPen+mobileLinkPen -> 0 | C107: 0.33 | D107: =C107*B107 -> 0 | E107: 0 | F107: 0 | I107: MOH | J107: =IF(MusicOnHold="Internal",CCAvgWaitTime-J108,0) -> 40 | K107: =IF(MusicOnHold="None",0,IF(MusicOnHold="Internal",5+K105*2,5*K105)) -> 9
A108: Attendant Console | B108: =ACPen*WebPortal -> 0 | C108: =(0.08*ACUsersMon) -> 0 | D108: 0 | E108: 0 | F108: 0 | I108: Comfort | J108: =AvgComfMsgDur*K104 -> 20 | K108: =IF(MusicOnHold="Internal",2*K104,7*K104) -> 4
A109: Receptionist | B109: =receptPen -> 0 | C109: =IF(CallsUsers=0,0,(5/14*receptMonUsers)+(8+5*receptMonUsers)*receptLoginsPerHour/CallsUsers/14) -> 8.321428571 | D109: 0 | E109: 0 | F109: 0 | I109: Comfort Bypass | J109: =comfortBypassPen*AvgComfBypassMsgDur -> 0 | K109: =comfortBypassPen*7 -> 0
A110: Call Center Client | B110: =IF(Users=0,0,ccClientPen*NumAgents*CCPercentLoggedIn/Users) -> 0 | C110: =H289/14 -> 0 | D110: =C110*B110 -> 0 | E110: 0 | F110: =E110*B110 -> 0
A111: SIP Phone Registrations | B111: =SIP -> 1 | C111: =IF(OR(RegistrationInterval=0,CallsUsers=0),0,(5/14+2/14*Authentication)*MAX((60-RegistrationInterval)/(RegistrationInterval*CallsUsers),0)) -> 0.25 | D111: 0.25 | E111: 0 | F111: 0 | I111: Entrance | J111: =AvgEntranceMsgDur -> 5 | K111: =IF(AvgEntranceMsgDur=0,0,IF(MusicOnHold="Internal",2*K104,7*K104)) -> 4
A112: SIP Subscriptions | B112: =SIP -> 1 | C112: =IF(CallsUsers=0,0,(4/14+2/14*Authentication)*MAX((SubscribeRate/CallsUsers),0)) -> 0.6428571429 | D112: 0.6428571429 | E112: =C112 -> 0.6428571429 | F112: 0.6428571429 | I112: Whisper | J112: =AvgWhisperMsgDur -> 5 | K112: =IF(AvgWhisperMsgDur=0,0,IF(MusicOnHold="Internal",2*K104,7*K104)) -> 4
A113: CPE Monitoring | B113: =CPEMon -> 0 | C113: =IF(CallsUsers=0,0,2*(60/(CPEMonitoringInterval*CPEAvgPortsPerDevice*CallsUsers))) -> 0.2 | D113: 0 | E113: 0 | F113: 0 | I113: Queued Calls | J113: =((J107+J108)*(1-comfortBypassPen)+J109*comfortBypassPen+J111+J112)*(1-CCExtraAnnPen) -> 70 | K113: =((K107+K108)*(1-comfortBypassPen)+K109*comfortBypassPen+K111+K112)*(1-CCExtraAnnPen) -> 21
A114: Lawful Intercept Event Monitoring | B114: =LIEventMonPenetration -> 0 | C114: =5/26*D104 -> 0.2222589105 | D114: =B114*C114 -> 0 | E114: =C114 -> 0.2222589105 | F114: 0 | I114: Alt Calls | J114: =CCExtraAnnPen*AvgExtraMsgDur -> 0 | K114: =CCExtraAnnPen*7 -> 0
A115: Lawful Intercept Media Monitoring | B115: =LIMediaMonPenetration -> 0 | C115: =2*D104 -> 2.311492669 | D115: =B115*C115 -> 0 | E115: =C115 -> 2.311492669 | F115: 0 | I115: Total | J115: =ROUNDUP(J113+J114,0) -> 70 | K115: =ROUNDUP(K113+K114,0) -> 21
A116: Radius Real-time Accounting | B116: =IF(realtimeAccounting="Yes",1,0) -> 0 | C116: =((14+B116*3)/14)-1 -> 0 | D116: =B116*C116 -> 0 | E116: 0 | F116: 0
A117: Rf Interface | B117: =IF(RfEnabled="Yes",1,0) -> 0 | C117: 0.02 | D117: =B117*C117 -> 0 | E117: 0.06 | F117: 0
A118: Ro Interface | B118: =IF(RoEnabled="Yes",1,0) -> 0 | C118: =0.04*prePaidPen -> 0 | D118: =B118*C118 -> 0 | E118: =0.12*prePaidPen -> 0 | F118: 0
A119: Busy Lamp Field | B119: =busyLampField -> 0 | C119: =(3/7*blfMonitoredUsers)*C104 -> 7.429797865 | D119: =C119*B119 -> 0 | E119: 0 | F119: 0
A120: Music on Hold | B120: =MOH*HeldCallsPercentage -> 0 | C120: =38/14 -> 2.714285714 | D120: 0 | E120: 0 | F120: 0
A121: Xsi Subscriptions (clients are below) | B121: 1 | C121: =IF(CallsUsers=0,0,B250/14/CallsUsers)*2 -> 0 | D121: 0 | E121: =C121 -> 0 | F121: 0
A122: Xsi Events | B122: 1 | C122: =IF(CallsUsers=0,0,(B251+B391+B428)/14/CallsUsers) -> 0 | D122: 0 | E122: =C122 -> 0 | F122: 0
A123: Route Point | B123: =rpNumAgents/Users -> 0 | C123: =IF(CallsUsers=0,0,G299*3600/CallsUsers/14) -> 0 | D123: =C123*B123 -> 0 | E123: =C123 -> 0 | F123: =E123*B123 -> 0
A124: Device Management | B124: ='Call Model'!S168 -> 0 | C124: =MAX((dmsResets*0.25),0) -> 0.025 | D124: 0 | E124: 0 | F124: 0
A125: TOTAL | D125: =SUM(D104:D124) -> 2.172433442 | F125: =SUM(F104:F124) -> 1.642857143
A127: TRAFFIC MEASUREMENTS
E128: VIDEO OCC | F128: VIDEO DUR | G128: NOT CACHED
A129: MEDIA SERVER RESOURCES | B129: OCCURRENCE | C129: DURATION | D129: AVG DUR | E129: VIDEO OCC | G129: NOT CACHED | H129: AVG DUR
A130: Calls Going to Treatment Announcement | B130: =(B9*B96)+(B49*B97)+(B56*B98) -> 0.03375 | C130: =AvgTreatDur -> 15 | D130: =(B130/$B$161)*C130 -> 3.54020979
A131: Calls Going to Internal Voice Mail | B131: =((B10+B11)*B96)+((B58+B59)*B98) -> 0.1025 | C131: =VMIAvgMsgDur -> 60 | D131: =(B131/B161)*C131 -> 43.00699301 | E131: =B131*vmVideo -> 0 | F131: =C131*vmVideo -> 0 | G131: =F131*(1-vmCached) -> 0 | H131: =IF(totVideoOcc=0,0,(E131/totVideoOcc)*G131) -> 0
A132: Calls Going to Call Center | B132: =(B18*B96)+(B66*B98) -> 0 | C132: =J115 -> 70 | D132: =(B132/B161)*C132 -> 0 | E132: =B132*ccVideo -> 0 | F132: =C132*ccVideo -> 0 | G132: =F132*(1-ccCache) -> 0 | H132: =IF(totVideoOcc=0,0,(E132/totVideoOcc)*G132) -> 0
A133: Calls Going to Auto Attendant | B133: =(B17*B96)+(B65*B98) -> 0 | C133: =AADur -> 20 | D133: =(B133/B161)*C133 -> 0 | E133: =B133*aaVideo -> 0 | F133: =C133*aaVideo -> 0 | G133: =F133*(1-aaCache) -> 0 | H133: =IF(totVideoOcc=0,0,(E133/totVideoOcc)*G133) -> 0
A134: Calls Going to Voice Portal | B134: =(B26*B96)+(B74*B98) -> 0.00625 | C134: =VPAvgDur -> 120 | D134: =(B134/B161)*C134 -> 5.244755245 | E134: =B134*vpVideo -> 0 | F134: =C134*vpVideo -> 0 | G134: =F134*(1-vpCache) -> 0 | H134: =IF(totVideoOcc=0,0,(E134/totVideoOcc)*G134) -> 0
A135: Calls Using Three Way Conferencing | B135: =TWCCalls -> 0.0005 | C135: =TWCDur -> 600 | D135: =3*(B135/B161)*C135 -> 6.293706294
A136: Calls Using N-Way Audio Conferencing | B136: =MSNWCcalls -> 0 | C136: =NWCduration -> 600 | D136: =MSNWCavgParties*(B136/B161)*C136 -> 0
A137: Calls Using N-Way Video Conferencing | B137: =videoConfPen -> 0 | C137: =videoConfDuration -> 600 | D137: =videoConfParties*(B137/B161)*C137 -> 0
A138: Calls Using Meet-me Conferencing | B138: =MeetMePen -> 0 | C138: =MeetMeDuration -> 1800 | D138: =(B138/B161)*C138 -> 0
A139: Calls Using Meet-me Conferencing Recording | B139: =MeetMePen*MeetMeCallRecordingPercent -> 0 | C139: =MeetMeDuration -> 1800 | D139: =(B139/B161)*C139 -> 0
A140: Calls Requiring Call Manager Ringback | B140: =SIP*(InternalCalls+ExtCallsOG)*(clickToDial*CMPen*WebPortal+clickToDial2*CCC2Pen) -> 0 | C140: =CMAvgRing -> 18 | D140: =(B140/B161)*C140 -> 0
A141: Calls Using Lawful Intercept Media Monitoring | B141: =LIMediaMonPenetration -> 0 | C141: =LIDuration -> 180 | D141: =(B141/$B$161)*C141*2 -> 0 | K141: NEED to add xtra hit for LI, combined mode
A142: Calls Using Push To Talk (digit collection portion) | B142: =ptt -> 0 | C142: =pttDigitCollection -> 20 | D142: =(B142/B161)*C142 -> 0
A143: Calls Using Push To Talk (confirmation tone portion) | B143: =ptt -> 0 | C143: =pttConfirmationTone -> 1 | D143: =4*(B143/B161)*C143 -> 0
A144: Calls Using Push To Talk (call portion) | B144: =ptt -> 0 | C144: =pttDuration -> 180 | D144: =4*(B144/B161)*C144 -> 0
A145: Calls Using Custom Ringback | B145: =customRingback*(1-ExtCallsOG) -> 0 | C145: =customRingbackDuration -> 18 | D145: =(B145/B161)*C145 -> 0 | E145: =B145*cuistomRingbackVideo -> 0 | F145: =C145*cuistomRingbackVideo -> 0 | G145: =F145*(1-customRingbackCache) -> 0 | H145: =IF(totVideoOcc=0,0,(E145/totVideoOcc)*G145) -> 0
A146: Calls Using Instant Group Call (conference portion) | B146: =IGC -> 0 | C146: =igcDuration*60 -> 600 | D146: =(igcMembers+2)*(B146/B161)*C146 -> 0
A147: Calls Using Instant Group Call (IVR confirmation tone portion) | B147: =IGC -> 0 | C147: =confirmationToneDuration+igcLastAnswerTime -> 55 | D147: =(igcMembers)*(B147/B161)*C147 -> 0
A148: Calls Using Voice Portal Outcalling | B148: =(B29*B96)+(B76*B98) -> 0 | C148: =UserHoldTime -> 180 | D148: =4*B148*C148/B161 -> 0
A149: Calls Using FAX | B149: =FAX -> 0 | C149: =FAXDuration -> 120 | D149: =B149*C149/B161 -> 0
A150: Calls Using Music on Hold | B150: =MOH*HeldCallsPercentage -> 0 | C150: =HeldCallsTime -> 120 | D150: =B150*C150/B161 -> 0 | E150: =B150*mohVideo -> 0 | F150: =C150*mohVideo -> 0 | G150: =F150*(1-mohCache) -> 0 | H150: =IF(totVideoOcc=0,0,(E150/totVideoOcc)*G150) -> 0
A151: Calls Using Two-Stage Dialing | B151: =B31*InternalCalls+B78*ExtCallsOG -> 0 | C151: =tsdDigitCollDuration+tsdRingbackDuration -> 48 | D151: =B151*C151/B161 -> 0
A152: Calls Using In-Call Service Activation | B152: =B34*InternalCalls+B81*(1-InternalCalls) -> 0 | C152: =UserHoldTime -> 180 | D152: =3*B152*C152/B161 -> 0
A153: Calls Using SimRing Answer Confirmation | B153: =SimRingPen*answerConfirmation*(InternalCalls*IntAns+ExtCallsIC*ExtICAns) -> 0 | C153: =answerConfirmationDuration -> 20 | D153: =B153*C153/B161 -> 0
A154: Calls Using SeqRing Answer Confirmation | B154: =SeqRingPen*SeqRingAnswerConf*(InternalCalls*IntAns+ExtCallsIC*ExtICAns) -> 0 | C154: =SeqRingAnswerConfDuration -> 20 | D154: =B154*C154/B161 -> 0
A155: Calls Using SeqRing | B155: =SeqRingPen*(1-ExtCallsOG) -> 0 | C155: =SeqRingLoc*SeqRingLocRingingSec -> 36 | D155: =B155*C155/B161 -> 0
A156: Calls Using Broadworks Anywhere (Outgoing) | B156: =B33*InternalCalls+B80 -> 0 | C156: =baDigitCollDuration+baRingbackDuration -> 48 | D156: =B156*C156/B161 -> 0
A157: Calls Using Call Recording | B157: =callRecordingPen -> 0 | C157: =callRecordingDuration -> 180 | D157: =B157*C157/B161*3 -> 0
A158: Calls Using Intercept | B158: =B35*InternalCalls+B85 -> 0 | C158: =interceptDuration -> 18 | D158: =B158*C158/B161 -> 0 | E158: =B158*interceptVideo -> 0 | F158: =C158*interceptVideo -> 0 | G158: =F158*(1-interceptCache) -> 0 | H158: =IF(totVideoOcc=0,0,(E158/totVideoOcc)*G158) -> 0
A159: Calls Usring Media via Xsi | B159: =B290/CPS -> 0 | C159: =rpQueuePlaybackDuration -> 15 | D159: =B159*C159/B161 -> 0
A160: LAST ROW | B160: 0 | C160: 0 | D160: 0
A161: TOTAL | B161: =SUM(msOccurrence) -> 0.143 | D161: =SUM(msDuration) -> 58.08566434 | E161: =SUM(E130:E160) -> 0 | F161: =SUM(F130:F160) -> 0 | G161: =SUM(G130:G160) -> 0 | H161: =SUM(H131:H160) -> 0
A164: TRAFFIC MEASUREMENTS
A165: Average Call Weight (CPU) | B165: =D125 -> 2.172433442
A166: Average Call Weight (Memory) | B166: =F125 -> 1.642857143
A167: Average Busy Hour Erlang per Line | B167: =AvgErlang -> 0.1
A168: Average Call Hold Time (Seconds) | B168: ='Call Model'!Q15 -> 180
A169: AverageNumber of Calls/Busy Hour per Line | B169: =IF(B168=0,0,(B167*3600)/B168) -> 2
A170: External Calls | B170: =1-InternalCalls -> 1
D171: IVR port weightings
A172: MEDIA SERVER INTERMEDIATE CALCULATIONS | E172: Linux | F172: Solaris x86 | G172: Solaris SPARC | H172: To Use | I172: Pen
A173: % of Time User Requires Media Server Resource | B173: =B161 -> 0.143 | D173: G.711 | E173: 1 | F173: 1 | G173: 1 | H173: =IF(ISERR(SEARCH("Solaris",MsHwSelection)),E173,IF(ISERR(SEARCH("SPARC",MsHwSelection)),G173,F173)) -> 1 | I173: =1-SUM(I174:I181) -> 0
A174: Average Media Resource Hold Time | B174: =D161 -> 58.08566434 | D174: G.729 | E174: 1.66 | F174: 1.9 | G174: 1.9 | H174: =IF(ISERR(SEARCH("Solaris",MsHwSelection)),E174,IF(ISERR(SEARCH("SPARC",MsHwSelection)),F174,G174)) -> 1.66 | I174: =_msG729 -> 1
A175: IVR Resources | D175: G.726 | E175: 1.25 | F175: 1.25 | G175: 1.25 | H175: 1.25 | I175: =_msG726 -> 0
A176: Ivr usage | B176: =D161*B161-B180 -> 7.40625 | D176: G.722 | E176: 1.5 | F176: 1.3 | G176: 2.4 | H176: 1.5 | I176: =_msG722 -> 0
A177: Average Erlang of Media Server IVR Resources in Busy Hour | B177: =CallsUsers*B176/3600 -> 0.004114583333 | D177: AMR-NB | E177: 2.5 | F177: 2.7 | G177: 2.7 | H177: 2.5 | I177: =msAMR -> 0
A178: Users per Media Server IVR Resource | B178: =IF(B177=0,0,1/B177) -> 243.0379747 | D178: AMR-WB | E178: 4 | F178: 6 | G178: 9999 | H178: 4 | I178: =msAMRWB -> 0
A179: Audio Conf Resources | D179: EVRC-A | E179: 3 | F179: 9999 | G179: 9999 | H179: 3 | I179: =msEVRC -> 0
A180: Conf Usage | B180: =SUM(D135,D136,D138,D146,D157/3+D137)*B161 -> 0.9 | D180: EVRC-NW | E180: 12 | F180: 9999 | G180: 9999 | H180: 12 | I180: =msEVRCNW -> 0
A181: Average Erlang of Media Server Conf Resources in Busy Hour | B181: =CallsUsers*B180/3600 -> 0.0005 | D181: Opus | E181: 3 | F181: 9999 | G181: 9999 | H181: 3 | I181: =msOpus -> 0
A182: Users per Media Server Conf Resource | B182: =IF(B181=0,0,1/B181) -> 2000 | D182: Video | E182: 2 | F182: 2 | G182: 2 | H182: 2 | I182: =msVideo -> 0
I183: =H173*I173+H174*I174+H175*I175+H177*I177+H182*I182+H176*I176+H179*I179+H178*I178+H180*I180+H181*I181 -> 1.66
A184: MS Video percentage | B184: =F161/D161 -> 0
A185: MS IVR percentage | B185: =1-B186-B187 -> 0.8916478555
A186: MS Conference percentage | B186: =(D135+D146+D136+D138+D157/3+D137)/D161 -> 0.1083521445 | D186: Conference port weightings
A187: MS Fax percentage | B187: =D149/D161 -> 0 | E187: Linux | F187: Solaris x86 | G187: Solaris SPARC | H187: To Use | I187: Pen
A188: IVR port weighting | B188: =I183 -> 1.66 | D188: G.711 | E188: 1 | F188: 1 | G188: 1 | H188: =IF(ISERR(SEARCH("Solaris",MsHwSelection)),E188,IF(ISERR(SEARCH("SPARC",MsHwSelection)),F188,G188)) -> 1 | I188: =1-SUM(I189:I196) -> 0
A189: Conference port weighting | B189: =I197 -> 8 | D189: G.729 | E189: 8 | F189: 10 | G189: 10 | H189: 8 | I189: =_msG729 -> 1
A190: Fax port weighting | B190: =2 -> 2 | D190: G.726 | E190: 2 | F190: 2 | G190: 2 | H190: 2 | I190: =_msG726 -> 0
D191: G.722 | E191: 6 | F191: 4 | G191: 15 | H191: 6 | I191: =_msG722 -> 0
A192: Final Weighting | B192: =B188*msIVR+B189*B186+B190*B187 -> 2.346952596 | D192: Opus | E192: 19 | F192: 9999 | G192: 9999 | H192: =IF(ISERR(SEARCH("Solaris",MsHwSelection)),E192,IF(ISERR(SEARCH("SPARC",MsHwSelection)),F192,G192)) -> 19 | I192: =msOpus -> 0
D193: EVRC-A | E193: 14 | F193: 9999 | G193: 9999 | H193: 14 | I193: =msEVRC -> 0
A194: Transcoding Resources | D194: EVRC-NW | E194: 56 | F194: 9999 | G194: 9999 | H194: =IF(ISERR(SEARCH("Solaris",MsHwSelection)),E194,IF(ISERR(SEARCH("SPARC",MsHwSelection)),F194,G194)) -> 56 | I194: =msEVRCNW -> 0
A195: Average Media Resource Transcoding File Time | B195: =H161 -> 0 | D195: AMR-WB | E195: 23 | F195: 35 | G195: 9999 | H195: 23 | I195: =msAMRWB -> 0
A196: Transcoding Duration (using table to the right) | B196: =SUM(G199:G202) -> 0 | D196: AMR-NB | E196: 11 | F196: 18 | G196: 18 | H196: 11 | I196: =msAMR -> 0
A197: % of Time User Requires Media Server Transcoding Resource | B197: =E161 -> 0 | I197: =H188*I188+H189*I189+H190*I190+H196*I196+H191*I191+H193*I193+H195*I195+H194*I194+H192*I192 -> 8
A198: Average Erlang of Media Server Transcoding Resources in Busy Hour | B198: =B196*CallsUsers*B197/3600 -> 0 | D198: Transcoding Rates | G198: Time
A199: Users per Media Server Transcoding Resource | B199: =IF(B198=0,0,1/B198) -> 0 | D199: H.264 CIF | E199: =1/14 -> 0.07142857143 | F199: (1/14) | G199: =AvgTranscodeTime*h264CIFTrans*E199 -> 0
D200: H.264 QCIF | E200: =1/23 -> 0.04347826087 | F200: (1/23) | G200: =AvgTranscodeTime*h264QCIFTrans*E200 -> 0
A201: Video Conf Resources | D201: H.263 CIF | E201: =1/41 -> 0.0243902439 | F201: (1/41) | G201: =AvgTranscodeTime*h263CIFTrans*E201 -> 0
A202: Average Media Resource Video Conf Hold Time | B202: =videoConfDuration -> 600 | D202: H.263 QCIF | E202: =1/55 -> 0.01818181818 | F202: (1/55) | G202: =AvgTranscodeTime*h263QCIFTrans*E202 -> 0
A203: % of Time User Requires Media Server video conf Resource | B203: =videoConfPen -> 0 | G203: =SUM(G199:G202) -> 0
A204: Average Erlang of Media Server video conf Resources in Busy Hour | B204: =B202*CallsUsers*B203/3600*(videoConfParties+videoConfRec) -> 0 | D204: Conference port weightings
A205: Users per Media Server video conf Resource | B205: =IF(B204=0,0,1/B204) -> 0 | D205: Resolultion | E205: Conf | F205: Monitoring
A206: Weighting | B206: =G209+videoConfRec*H209 -> 71.95 | D206: CIF | E206: 70 | F206: 195 | G206: =msCIF*E206 -> 70 | H206: =msCIF*F206 -> 195
D207: 4CIF | E207: 185 | F207: 430 | G207: =ms4CIF*E207 -> 0 | H207: =ms4CIF*F207 -> 0
A208: NETWORK SERVER INTERMEDIATE CALCULATIONS | D208: 720pHD | E208: 330 | F208: 850 | G208: =ms720pHD*E208 -> 0 | H208: =ms720pHD*F208 -> 0
... 273 more rows

Sheet Server Selection Choices (hidden)
A1: Video Transcoding MS Types | C1: DB Redundancy | G1: Hypervisor | O1: UMS
A2: Linux Intel Xeon | C2: None | D2: 1 | G2: KVM | K2: min for video | L2: 8 | O2: Co-Located
A3: None | C3: Local | D3: 2 | G3: VMware | O3: NDS
C4: Geographic | D4: 2 | G4: Xen
C5: Both | D5: 4
A7: Min CPU | B7: Max CPU | C7: Min Mem | D7: Max Mem | E7: Default CPU | F7: Default Mem | H7: virt max | I7: min iops | J7: min thruput
A8: AS
A9: 4 | B9: 24 | C9: 4 | D9: 128 | E9: 16 | F9: 48 | H9: 64 | I9: 100 | J9: 1000
A11: NS Choice
A12: 3 | B12: 24 | C12: 4 | D12: 48 | E12: 16 | F12: 16
A14: CDS Choice
B15: Memory by CPU Units | K15: List Population
A16: =CpuType1 ->  | B16: 4 | C16: 6 | D16: 8 | E16: 12 | K16: CPU type index | L16: =MATCH(CdsHwSelection,AncNewChoices,0) -> 
B17: 6 | C17: 6 | D17: 6 | E17: 6 | K17: CPU unit choices | L17: =INDEX(AncNewTable,L16,2) ->  | M17: =INDEX(AncNewTable,L16,3) ->  | N17: =INDEX(AncNewTable,L16,4) ->  | O17: =INDEX(AncNewTable,L16,5) -> 
K18: Final CPU unit choices | L18: =IF(L17=0,"",L17) ->  | M18: =IF(M17=0,"",M17) ->  | N18: =IF(N17=0,"",N17) ->  | O18: =IF(O17=0,"",O17) -> 
K19: #CPU units index | L19: =MATCH(CdsCpuUnitSelection,AncCpuChoices,0) -> 
K20: Memory choices | L20: =INDEX(AncNewTable,L16+1,L19+1) ->  | M20: =INDEX(AncNewTable,L16+2,L19+1) ->  | N20: =INDEX(AncNewTable,L16+3,L19+1) ->  | O20: =INDEX(AncNewTable,L16+4,L19+1) -> 
K21: Final Memory choices | L21: =IF(L20=0,"",L20) ->  | M21: =IF(M20=0,"",M20) ->  | N21: =IF(N20=0,"",N20) ->  | O21: =IF(O20=0,"",O20) -> 
A22: =CpuType2 ->  | B22: 4 | C22: 8
B23: 4 | C23: 8
A27: =CpuType3 ->  | B27: T1/T2
B28: 4
A33: MS Choice (IVR/Gen)
A34: =IF(hyperThreadedMS,6,3) -> 3 | B34: =IF(hyperThreadedMS,48,24) -> 24 | C34: 4 | D34: 64 | E34: =IF(hyperThreadedMS,24,12) -> 12 | F34: 16
A36: MS Choice (conf)
E37: =IF(hyperThreadedMS,48,24) -> 24 | F37: 8
A39: XSP Choice / PS DM Choice
A40: 4 | B40: 24 | C40: 4 | D40: 32 | E40: 8 | F40: 12
A42: PS CC Choice
A43: 3 | B43: 24 | C43: 4 | D43: 48 | E43: 16 | F43: 24
A45: EMS Choice
A46: 2 | B46: 8 | C46: 2 | D46: 8 | E46: 6 | F46: 8
A48: AMS Choice
A49: 3 | B49: 12 | C49: 3 | D49: 16 | E49: 8 | F49: 12
A51: SCF Choice
A52: 8 | B52: 8 | C52: 16 | D52: 16 | E52: 8 | F52: 16
A54: UMS Choice
A55: 3 | B55: 8 | C55: 8 | D55: 60 | E55: 6 | F55: 32
A57: USS Choice
A58: 3 | B58: 4 | C58: 4 | D58: 12 | E58: 4 | F58: 12
A60: WRS Choice
A61: 3 | B61: 20 | C61: 4 | D61: 32 | E61: 20 | F61: 12
A63: PS PS Choice
A64: 8 | B64: 24 | C64: 8 | D64: 48 | E64: 16 | F64: 16
A66: UVS Choice
A67: =IF(hyperThreadedMS,8,4) -> 4 | B67: =IF(hyperThreadedMS,72,36) -> 36 | C67: 4 | D67: 32 | E67: =IF(hyperThreadedMS,16,8) -> 8 | F67: 4
A69: XSP NPS Choice
A70: 4 | B70: 8 | C70: 4 | D70: 12 | E70: 8 | F70: 12
A71: XSP Load Balancer Choice
A72: 4 | B72: 16 | C72: 4 | D72: 16 | E72: 8 | F72: 8
A73: NDS
A74: 4 | B74: 8 | C74: 8 | D74: 16 | E74: 8 | F74: 16

Sheet Server Selection Data (hidden)
A1: SERVER SELECTIONS
A2: Note: TABLES NOT USED ANY MORE
A3: Application Server | B3: Base CPS | C3: Base TPS | D3: MAX CPS
A4: Intel Xeon 24 | B4: =B5*24/20 -> 450 | C4: =C5*24/20 -> 450 | D4: =D5*24/20 -> 675 | F4: =B4/24 -> 18.75 | G4: =D4/24 -> 28.125
A5: Intel Xeon 20 | B5: =B6*20/16 -> 375 | C5: =C6*20/16 -> 375 | D5: =D6*20/16 -> 562.5 | G5: =D5/20 -> 28.125
A6: Intel Xeon 16 | B6: 300 | C6: 300 | D6: 450 | G6: =D6/16 -> 28.125
A7: Intel Xeon 12 | B7: =150*12/8 -> 225 | C7: =150*12/8 -> 225 | D7: =C7*1.5 -> 337.5 | G7: =D7/12 -> 28.125
A8: Intel Xeon 10 | B8: =B9*8/6 -> 200 | C8: =B8 -> 200 | D8: =D9*10/8 -> 250 | G8: =D8/10 -> 25
A9: Intel Xeon 8 | B9: 150 | C9: =B9 -> 150 | D9: 200 | G9: =D9/8 -> 25
A10: Intel Xeon 6 | B10: 100 | C10: 100 | D10: 150 | G10: =D10/6 -> 25
A11: Intel Xeon 4 | B11: 72 | C11: =B11 -> 72 | D11: 100 | G11: =D11/4 -> 25
A12: UltraSPARC T1/T2 | B12: 100 | C12: =B12 -> 100 | D12: 200
A13: UltraSPARC 4 | B13: 55 | C13: =B13 -> 55 | D13: 100
A14: UltraSPARC 2 | B14: 33 | C14: =B14 -> 33 | D14: 55
A16: Call Detail Server | B16: Base M Calls per Day | C16: Base CPS
A17: Intel Xeon 5500/5600 12 | B17: 3 | C17: =C20*2 -> 208.3333333
A18: Intel Xeon 5500/5600 8 | B18: 3 | C18: =C22*2 -> 208.3333333
A19: Intel Xeon 5500/5600 6 | B19: 3 | C19: =B19*1000000/8/3600 -> 104.1666667
A20: Intel Xeon 5500/5600 4 | B20: 3 | C20: =B20*1000000/8/3600 -> 104.1666667
A21: Intel Xeon E5-2600 8 | B21: 3 | C21: =C18 -> 208.3333333
A22: Intel Xeon E5-2600 4 | B22: 3 | C22: =B22*1000000/8/3600 -> 104.1666667
A23: UltraSPARC T1/T2 | B23: 2.5 | C23: =B23*1000000/8/3600 -> 86.80555556
A24: UltraSPARC 2 | B24: 2.5 | C24: =B24*1000000/8/3600 -> 86.80555556
A26: Network Server | B26: Base TPS | D26: Base TPS AS MODE | F26: Base TPS XS MODE
A27: Intel Xeon 24 | B27: =IF(systemMode="AS-Mode",D27,F27) -> 4500 | C27: =IF(NSmode='Call Data'!M215,G27,E27) -> 187.5 | D27: 4500 | E27: =4500/24 -> 187.5 | F27: 1500 | G27: =F27/24 -> 62.5
A28: Intel Xeon 20 | B28: =IF(systemMode="AS-Mode",D28,F28) -> 3750 | D28: =D29*20/16 -> 3750 | F28: =G27*20 -> 1250
A29: Intel Xeon 16 | B29: 3000 | D29: =D30*16/12 -> 3000 | F29: =G27*16 -> 1000
A30: Intel Xeon 12 | B30: 2250 | D30: 2250 | F30: =G27*12 -> 750
A31: Intel Xeon 10 | B31: 2000 | D31: =D32*8/6 -> 2000 | F31: =G27*10 -> 625
A32: Intel Xeon 8 | B32: 1500 | D32: 1500 | F32: =G27*8 -> 500
A33: Intel Xeon 6 | B33: 1125 | D33: =D32*6/8 -> 1125 | F33: =G27*6 -> 375
A34: Intel Xeon 4 | B34: 600 | D34: 600 | F34: =G27*4 -> 250
A35: UltraSPARC T1/T2 | B35: 1000 | D35: 1000 | F35: 1000
A36: UltraSPARC 4 | B36: 600 | D36: 600 | F36: 600
A37: UltraSPARC 2 | B37: 300 | D37: 300 | F37: 300
A39: Conference Server | B39: PORTS (G711) | C39: PORTS (G729)
A40: Intel Xeon 5500/5600 6 | B40: 600 | C40: 320
A41: Intel Xeon 5500/5600 4 | B41: 600 | C41: 320
A42: Intel Xeon 5400 4 | B42: 600 | C42: 320
A44: EMS | B44: Managed Objects
A45: Intel Xeon 12 | B45: 250
A46: Intel Xeon 10 | B46: 250
A47: Intel Xeon 8 | B47: 250
A48: Intel Xeon 6 | B48: 250
A49: Intel Xeon 4 | B49: 250
A50: UltraSPARC T1/T2 | B50: 250
A51: UltraSPARC 2 | B51: 200
A52: None | B52: 0
A54: XSP | B54: MAX TPS | D54: 150
A55: Intel Xeon 5500/5600 12 | B55: 2000 | C55: NOT USED FOR DM | E55: =B55/12 -> 166.6666667
A56: Intel Xeon 5500/5600 8 | B56: 1500 | E56: =B56/8 -> 187.5
A57: Intel Xeon 5500/5600 6 | B57: =B58*6/4 -> 750 | E57: =B57/6 -> 125
A58: Intel Xeon 5500/5600 4 | B58: 500 | E58: =B58/4 -> 125
A59: Intel Xeon E5-2600 12 | B59: 2000
A60: Intel Xeon E5-2600 8 | B60: 1500
A61: Intel Xeon E5-2600 4 | B61: 500
A62: UltraSPARC T1/T2 | B62: 300
A63: UltraSPARC 2 | B63: 50
A65: Profile Server | B65: MAX TPS
A66: Intel Xeon 5500/5600 12 | B66: 750 | C66: NOT USED FOR DM
A67: Intel Xeon 5500/5600 8 | B67: 500
A68: Intel Xeon 5500/5600 6 | B68: =750/2 -> 375
A69: Intel Xeon 5500/5600 4 | B69: 250
A70: Intel Xeon E5-2600 24 | B70: 1000
A71: Intel Xeon E5-2600 12 | B71: 750
A72: Intel Xeon E5-2600 8 | B72: 500
A73: Intel Xeon E5-2600 4 | B73: 250
A74: UltraSPARC T1/T2 | B74: 75
A75: UltraSPARC 2 | B75: 50
A77: UC-Connect | B77: MAX TPS
A78: Intel Xeon 5500/5600 12 | B78: 300
A79: Intel Xeon 5500/5600 8 | B79: 300
A80: Intel Xeon 5500/5600 6 | B80: 250
A81: Intel Xeon 5500/5600 4 | B81: 250
A82: Intel Xeon E5-2600 8 | B82: 300
A83: Intel Xeon E5-2600 4 | B83: 250 | D83: =B83/4 -> 62.5
A85: AMS | B85: Ports
A86: Intel Xeon 12 | B86: =B87*12/8 -> 3900 | C86: << not used | D86: 325
A87: Intel Xeon 8 | B87: 2600
A88: Intel Xeon 6 | B88: =B89*6/4 -> 1950
A89: Intel Xeon 4 | B89: 1300
A90: Intel Xeon 12 | B90: =B86 -> 3900
A91: Intel Xeon 4 | B91: 1300
A93: SCF | B93: MAX TPS | D93: TPS per G | E93: TPS per core | F93: =100 -> 100
A94: Intel Xeon 5500/5600 12 24 | B94: 3000
A95: Intel Xeon 5500/5600 12 12 | B95: 1500
A96: Intel Xeon 5500/5600 6 6 | B96: 750
A97: Intel Xeon E5-2600 24 32 | B97: 3000 | D97: =B97/32 -> 93.75 | E97: =B97/24 -> 125
A98: Intel Xeon E5-2600 12 16 | B98: 1500 | D98: =B98/16 -> 93.75 | E98: =B98/12 -> 125
A99: Intel Xeon E5-2600 8 8 | B99: 750 | D99: =B99/8 -> 93.75 | E99: =B99/8 -> 93.75

Sheet Configurations (hidden)
B1: Erlang | C1: # users per group | D1: Real-time Accounting | E1: Attendant Console | F1: Auto Attendant | G1: BW Anywhere | H1: BLF | I1: Call Center | J1: Call Manager | K1: Client Apps | L1: Custom Ringback | M1: Enhanced Call Logs | N1: FAX | O1: Instant GroupCall | P1: Music on Hold | Q1: N-way Conf CS | R1: N-way Conf MS | S1: PTT | T1: SCA | U1: Seq Ring | V1: Sim Ring | W1: 3WC | X1: Voice Portal | Y1: VM No Answer | Z1: VM Busy | AA1: Web Portal | AB1: Web Portal Usage | AC1: Meet-me Conf | AD1: BTBC | AE1: Dedicated MS
A2: Standard Residential/SOHO User Package with Unified Messaging | B2: 0.1 | C2: 1 | D2: FALSE | E2: 0 | F2: 0 | G2: 0 | H2: 0 | I2: 0 | J2: 0 | K2: 0 | L2: 0 | M2: 0 | N2: 0 | O2: 0 | P2: 0 | Q2: 0 | R2: 0 | S2: 0 | T2: 0 | U2: 0 | V2: 0 | W2: 0.0005 | X2: 0.025 | Y2: 0.45 | Z2: 0.05 | AA2: 0.01 | AB2: 5 | AC2: 0 | AD2: 0 | AE2: FALSE
A3: Premium Residential/SOHO User Package with Unified Messaging | B3: 0.1 | C3: 1 | D3: TRUE | E3: 0 | F3: 0 | G3: 0 | H3: 0 | I3: 0 | J3: 0 | K3: 0 | L3: 0 | M3: 1 | N3: 0.005 | O3: 0 | P3: 0 | Q3: 0 | R3: 0.0025 | S3: 0 | T3: 0 | U3: 0 | V3: 0.2 | W3: 0.1 | X3: 0.025 | Y3: 0.45 | Z3: 0.05 | AA3: 0.01 | AB3: 5 | AC3: 0 | AD3: 0 | AE3: FALSE
A4: Business Line | B4: 0.2 | C4: 1000 | D4: TRUE | E4: 0 | F4: 0 | G4: 0 | H4: 0 | I4: 0 | J4: 0 | K4: 0 | L4: 0 | M4: 0 | N4: 0 | O4: 0 | P4: 0 | Q4: 0 | R4: 0 | S4: 0 | T4: 0 | U4: 0 | V4: 0 | W4: 0.001 | X4: 0 | Y4: 0 | Z4: 0 | AA4: 0.02 | AB4: 10 | AC4: 0 | AD4: 0 | AE4: FALSE
A5: Business Trunk | B5: 0.2 | C5: 1000 | D5: TRUE | E5: 0 | F5: 0 | G5: 0 | H5: 0 | I5: 0 | J5: 0 | K5: 0 | L5: 0 | M5: 0 | N5: 0 | O5: 0 | P5: 0 | Q5: 0 | R5: 0 | S5: 0 | T5: 0 | U5: 0 | V5: 0 | W5: 0 | X5: 0 | Y5: 0 | Z5: 0 | AA5: 0.02 | AB5: 10 | AC5: 0 | AD5: 0 | AE5: FALSE
A6: Standard Enterprise User Package with Unified Messaging | B6: 0.2 | C6: 1000 | D6: FALSE | E6: 0.03 | F6: 0.03 | G6: 0 | H6: 0.015 | I6: 0 | J6: 0 | K6: 0 | L6: 0 | M6: 0 | N6: 0 | O6: 0 | P6: 0 | Q6: 0 | R6: 0 | S6: 0 | T6: 0.05 | U6: 0 | V6: 0 | W6: 0.005 | X6: 0.03 | Y6: 0.4 | Z6: 0.4 | AA6: 0.02 | AB6: 10 | AC6: 0 | AD6: 0 | AE6: FALSE
A7: Premium Enterprise User Package with Unified Messaging | B7: 0.2 | C7: 1000 | D7: TRUE | E7: 0.03 | F7: 0.03 | G7: 0 | H7: 0.015 | I7: 0.05 | J7: 0 | K7: 0 | L7: 0 | M7: 1 | N7: 0.005 | O7: 0 | P7: 0.5 | Q7: 0 | R7: 0.005 | S7: 0.005 | T7: 0.05 | U7: 0 | V7: 0.2 | W7: 0.005 | X7: 0.03 | Y7: 0.4 | Z7: 0.4 | AA7: 0.02 | AB7: 10 | AC7: 0.005 | AD7: 0 | AE7: TRUE
A8: UC Complete | B8: 0.2 | C8: 1000 | D8: TRUE | E8: 0.03 | F8: 0.03 | G8: 0 | H8: 0.015 | I8: 0.05 | J8: 0 | K8: 0 | L8: 0 | M8: 1 | N8: 0.005 | O8: 0 | P8: 0.5 | Q8: 0 | R8: 0.005 | S8: 0.005 | T8: 0.05 | U8: 0 | V8: 0.2 | W8: 0.005 | X8: 0.03 | Y8: 0.4 | Z8: 0.4 | AA8: 0.02 | AB8: 10 | AC8: 0.005 | AD8: 1 | AE8: TRUE
A9: None | B9: 0.1 | C9: 1000 | D9: FALSE | E9: 0 | F9: 0 | G9: 0 | H9: 0 | I9: 0 | J9: 0 | K9: 0 | L9: 0 | M9: 0 | N9: 0 | O9: 0 | P9: 0 | Q9: 0 | R9: 0 | S9: 0 | T9: 0 | U9: 0 | V9: 0 | W9: 0 | X9: 0 | Y9: 0 | Z9: 0 | AA9: 0 | AB9: 0 | AC9: 0 | AD9: 0 | AE9: FALSE
A10: Call Center | B10: 0.2 | C10: 1000 | D10: TRUE | E10: 0.03 | F10: 0.03 | G10: 0 | H10: 0.015 | I10: 0.05 | J10: 0 | K10: 0.1 | L10: 0 | M10: 1 | N10: 0.005 | O10: 0 | P10: 0.5 | Q10: 0 | R10: 0.005 | S10: 0.005 | T10: 0.05 | U10: 0 | V10: 0.2 | W10: 0.005 | X10: 0.03 | Y10: 0.4 | Z10: 0.4 | AA10: =IF(systemMode="AS-Mode",10%,1%) -> 0.1 | AB10: 10 | AC10: 0.005 | AD10: =IF(ConfigSelection=Configurations!A8,1,0) -> 0 | AE10: FALSE
A11: Manual
A13: WEIGHTED VALUES | B13: =weightCC*INDEX(configTable,10,COLUMN())+weight1*INDEX(configTable,MATCH(ConfigSelection1,Configs,0)+1,COLUMN())+weight2*INDEX(configTable,MATCH(ConfigSelection2,Configs,0)+1,COLUMN())+weight3*INDEX(configTable,MATCH(ConfigSelection3,Configs,0)+1,COLUMN())+weight4*INDEX(configTable,MATCH(ConfigSelection4,Configs,0)+1,COLUMN())+weight5*INDEX(configTable,MATCH(ConfigSelection5,Configs,0)+1,COLUMN()) -> 0.1 | C13: =storeWeightCC*INDEX(configTable,10,COLUMN())+storeWeight1*INDEX(configTable,MATCH(ConfigSelection1,Configs,0)+1,COLUMN())+storeWeight2*INDEX(configTable,MATCH(ConfigSelection2,Configs,0)+1,COLUMN())+storeWeight3*INDEX(configTable,MATCH(ConfigSelection3,Configs,0)+1,COLUMN())+storeWeight4*INDEX(configTable,MATCH(ConfigSelection4,Configs,0)+1,COLUMN())+storeWeight5*INDEX(configTable,MATCH(ConfigSelection5,Configs,0)+1,COLUMN()) -> 1 | D13: =IF(OR(Users1*INDEX(configTable,MATCH(ConfigSelection1,Configs,0)+1,COLUMN()),Users2*INDEX(configTable,MATCH(ConfigSelection2,Configs,0)+1,COLUMN()),Users3*INDEX(configTable,MATCH(ConfigSelection3,Configs,0)+1,COLUMN()),Users4*INDEX(configTable,MATCH(ConfigSelection4,Configs,0)+1,COLUMN()),Users5*INDEX(configTable,MATCH(ConfigSelection5,Configs,0)+1,COLUMN())),"Yes","No") -> No | E13: =weightCC*INDEX(configTable,10,COLUMN())+weight1*INDEX(configTable,MATCH(ConfigSelection1,Configs,0)+1,COLUMN())+weight2*INDEX(configTable,MATCH(ConfigSelection2,Configs,0)+1,COLUMN())+weight3*INDEX(configTable,MATCH(ConfigSelection3,Configs,0)+1,COLUMN())+weight4*INDEX(configTable,MATCH(ConfigSelection4,Configs,0)+1,COLUMN())+weight5*INDEX(configTable,MATCH(ConfigSelection5,Configs,0)+1,COLUMN()) -> 0 | F13: 0 | G13: 0 | H13: 0 | I13: 0 | J13: 0 | K13: 0 | L13: 0 | M13: 0 | N13: 0 | O13: 0 | P13: 0 | Q13: 0 | R13: 0 | S13: 0 | T13: 0 | U13: 0 | V13: 0 | W13: 0.0005 | X13: 0.025 | Y13: 0.45 | Z13: 0.05 | AA13: 0.01 | AB13: 5 | AC13: 0 | AD13: 0 | AE13: =IF(OR(Users1*INDEX(configTable,MATCH(ConfigSelection1,Configs,0)+1,COLUMN()),Users2*INDEX(configTable,MATCH(ConfigSelection2,Configs,0)+1,COLUMN()),Users3*INDEX(configTable,MATCH(ConfigSelection3,Configs,0)+1,COLUMN()),Users4*INDEX(configTable,MATCH(ConfigSelection4,Configs,0)+1,COLUMN()),Users5*INDEX(configTable,MATCH(ConfigSelection5,Configs,0)+1,COLUMN())),"Yes","No") -> No
A17: DMS Config
A18: Penetration | B18: 0 | C18: =configBTBC -> 0
A19: Supported Reboot Rate (Phones Per Second) | B19: 0 | C19: 0
A20: Background Phone Configuration Rebuilds Per User Per Hour | B20: 0.01 | C20: 0.01
A21: Background Phone Resets Per User Per Hour | B21: 0.1 | C21: 0
A22: Background PUT Requests Per User Per Hour | B22: 0.2 | C22: 0
A23: Average Number of GET Requests Per Device Reboot | B23: 23 | C23: 2
A24: Average Number of PUT Requests Per Device Reboot | B24: 2 | C24: 0
A25: Average GET Size from Xtended Services Platform Node (KB) | B25: 100 | C25: 15
A26: Average PUT Size (KB) | B26: 10 | C26: 10
A27: Average GET Time from Xtended Services Platform Node (Seconds) | B27: 1 | C27: 0.5
A28: Bandwidth Per Xtended Services Platform Node (Mbps) | B28: 600 | C28: 600
A29: Caching Percentage | B29: 0.8 | C29: 0.5
A30: Average GET Size from Profile Server Node (KB) | B30: 3 | C30: 30
A31: Average GET Time from Profile Server Node (Seconds) | B31: 0.5 | C31: 0.5
A32: Bandwidth Per Profile Server Node (Mbps) | B32: 600 | C32: 600

Sheet NS_Summary (hidden)
C1: Network Server Memory Estimator
M2: Version 3.0
K3: BroadSoft Document Number 02-BD5006-00
A4: This Memory Estimator tool is intended to provide a estimate of per Network Server memory requirements and heap size, as well as estimate cluster DB size.
A5: Please see the BroadWorks System Engineering Guide for more information.
C7: Minimum RAM required | G7: =NS_Ram_Gb -> 4 | H7: GB | J7: DB DSN Size | M7: =NS_Details!D2 -> 1022.289344 | N7: MB
C8: Number of subscribers | G8: =G12*G14*G16 -> 1000000 | J8: XS Heap Size | M8: =NS_Details!E2+NS_Details!G122 -> 388.3824003 | N8: MB
C9: (One subscriber can have DNs, exts, aliases and/or loginIds.)
C11: Subscribers | I11: Devices
C12: Enterprises | G12: =IF(TotalEnterprises>=1,TotalEnterprises,1) -> 1 | I12: HostingNEs | M12: 2000
C13: Sites/Enterprise | G13: 1 | I13: Nodes/HostingNE | M13: 1
C14: Group/Enterprise | G14: =TotalGroups/IF(TotalEnterprises>=1,TotalEnterprises,1) -> 1000000 | I14: Addresses/HostingNE | M14: 1
C15: DN Range/Enterprise | G15: 1 | I15: ResourceNEs | M15: 2000
C16: Users/GROUP | G16: =IF(TotalGroups=0,0,TotalUsers/TotalGroups) -> 1 | I16: MS Select/ResourceNE | M16: 1
C17: DNs/User | G17: ='Call Model'!I79 -> 1 | I17: Addresses/ResourceNE | M17: 1
C18: Extensions/User | G18: 0 | I18: RoutingNEs | M18: 100
C19: Alias/User | G19: =IF('Call Model'!I77="Yes",'Call Model'!I78,0) -> 0 | I19: Routing/RoutingNE | M19: 1
C20: LoginId/User | G20: 1 | I20: Addresses/RoutingNE | M20: 1
I21: WSFs | M21: 1000
C22: Policies | I22: Nodes/WSF | M22: 1
C23: Policies profiles | G23: 2000 | I23: Addresses/WSF | M23: 1
C24: Policies subscriptions/profile | G24: 1
C25: Policies instances | G25: 2000
I26: Misc
C27: Private policies/enterprise | I27: Dial Plans | M27: 2000
C28: EntMediaSrvSel:SiteList | G28: 1 | I28: Rows/Dial Plan | M28: 1
C29: EntNGWRouting:AuthHost | G29: 1 | I29: Non-North American translation
C30: EntNGWRouting:RoutingList | G30: 1 | I30: NDC | M30: 2000
C31: EntSIMPLE:Gateway | G31: 1 | I31: NDC LCA | M31: 2000
C32: FarEndHopOff:AuthHost | G32: 1 | I32: NDC Zones | M32: 2000
C33: FarEndHopOff:RoutingList | G33: 1 | I33: North American translation
C34: voiceVPN:DialPlan | G34: 1 | I34: NNACL
I35: LCA | M35: 0
C36: Public policies | I36: DMI | M36: 2000
C37: DstSvcRtg:RoutingList | G37: 2000 | I37: Carriers | M37: 2000
C38: EASvcCallRtg:CicEntries | G38: 2000 | I38: Pref NE/Carrier | M38: 1
C39: MediaSrvSel:RouteList | G39: 2000
C40: NumberPortability:PortedInNumbers | G40: 2000
C41: NumberPortability:PortedOutNumbers | G41: 2000
C42: PreCallTyping:DialPlan | G42: 2000
C43: RCBasedRtg:LataRoutingList | G43: 2000
C44: RCBasedRtg:ZoneRoutingList | G44: 2000
C45: SIMPLE:Gateway | G45: 2000
C46: SvcCtrRtg:GWController | G46: 2000
C47: SvcCtrRtg:SCRL | G47: 2000
C48: SvcCtrRtg:TrunkGroup | G48: 2000

Sheet NS_Details (hidden)
C1: DSN Temp | D1: DSN Perm | E1: NSXS Cache | F1: NSPS Cache | G1: Tomcat
A2: Total | C2: =G120 -> 340.7290383 | D2: =SUM(D30,D35:D41,D44:D45,D48:D49,D96:D119,D52:D66,D69:D88)/(1024*1024)/0.9 -> 1022.289344 | E2: =(SUM(E9,E35:E41,E44:E45,E48:E49,E92:E119,E52:E66,E69:E88)/(1024*1024)+E121) -> 388.3824003 | F2: =SUM(F9,F35:F41,F44:F45,F48:F49,F92:F119,F52:F66,F69:F88)/(1024*1024) -> 107.1196471 | G2: ='Call Data'!B214*Users/3600/2 -> 0.6944444444
D3: =(D2/0.5/0.9)*1.024 -> 2326.276196 | E3: =E2/0.15 -> 2589.216002 | F3: =F2/0.1 -> 1071.196471 | G3: =G2/0.1 -> 6.944444444
F4: RAM | H4: =MAX(D3:G3) -> 2589.216002
F5: Total Ram Gb | H5: =ROUNDUP(IF(H4/1000>4,H4/1000,4),0) -> 4
A6: Basic data overhead
B7: Number of entries/per item | C7: Total Numbers of entries | D7: DSN | E7: NSXS Cache | F7: NSPS Cache | G7: Total RAM (Mbytes)
A9: Application loaded, no data | C9: 1 | E9: 5589344 | F9: 4743064 | G9: =(D9+E9)/(1024*1024) -> 5.330413818
A10: CLI | C10: 1 | E10: 2928056 | G10: =(D10+E10)/(1024*1024) -> 2.792411804
A12: Details…
A13: BW.SYS_TABLES.dat | B13: N/A | C13: 92 | D13: 52926 | G13: =(D13+E13+F13)/(1024*1024) -> 0.05047416687
A14: NS.SYS_PARAMS.dat | B14: N/A | C14: 52 | D14: =LOOKUP(C14,NB_ROWS,NS.SYS_PARAMS) -> 23981 | G14: =(D14+E14+F14)/(1024*1024) -> 0.02287006378
A15: NS.SYS_PARAM_SETS.dat | B15: N/A | C15: 1 | D15: =LOOKUP(C15,NB_ROWS,NS.SYS_PARAM_SETS) -> 23813 | G15: 0.0227098465
A16: NS.SYS_SERVICE_PROVIDERS.dat | B16: N/A | C16: 2 | D16: =LOOKUP(C16,NB_ROWS,NS.SYS_SERVICE_PROVIDERS) -> 21347 | G16: 0.02035808563
A17: NS.TRANSLATION_BASIC.dat | B17: N/A | C17: 1 | D17: =LOOKUP(C17,NB_ROWS,NS.TRANSLATION_BASIC) -> 387292 | G17: 0.3693504333
A18: NS.SYS_POLICIES.dat | B18: N/A | C18: 17 | D18: =LOOKUP(C18,NB_ROWS,NS.SYS_POLICIES) -> 21905 | G18: 0.0208902359
A19: NS.SYS_PRIVATE_POLICIES.dat | B19: N/A | C19: 7 | D19: =LOOKUP(C19,NB_ROWS,NS.SYS_PRIVATE_POLICIES) -> 21905 | G19: 0.0208902359
A20: NS.SYS_SP_POLICIES.dat | B20: N/A | C20: 7 | D20: =LOOKUP(C20,NB_ROWS,NS.SYS_SP_POLICIES) -> 34047 | G20: 0.03246974945
A21: NS.SYS_PW_RULES.dat | B21: N/A | C21: 1 | D21: =LOOKUP(C21,NB_ROWS,NS.SYS_PW_RULES) -> 22304 | G21: 0.02127075195
A22: NS.POLICIES_TREATMENT.dat | B22: N/A | C22: 3 | D22: =LOOKUP(C22,NB_ROWS,NS.POLICIES_TREATMENT) -> 38377 | G22: 0.03659915924
A23: Call categories | B23: N/A | C23: 8 | D23: =LOOKUP(C23,NB_ROWS,NS.POLICIES_TRANSL_CATEGORIES) -> 25629 | G23: =(D23+E23+F23)/(1024*1024) -> 0.02444171906
A24: Call types | B24: N/A | C24: 25 | D24: =LOOKUP(C24,NB_ROWS,NS.POLICIES_TRANSL_CALLTYPE) -> 33754 | G24: 0.03219032288
A25: CountryCodes | B25: N/A | C25: 224 | D25: =LOOKUP(C25,NB_ROWS,NS.COUNTRY_CODES) -> 80671 | G25: 0.07693386078
A26: Treatment | B26: N/A | C26: 30 | D26: =LOOKUP(C26,NB_ROWS,NS.SYS_TREATMENT) -> 30516 | G26: 0.02910232544
A27: Admin users | B27: N/A | C27: 1 | D27: =LOOKUP(C27,NB_ROWS,NS.ADMIN_USERS) -> 126343 | G27: 0.1204900742
A28: Hosting NE admin | B28: N/A | C28: 1 | D28: =LOOKUP(C28,NB_ROWS,NS.NET_HOSTING_NES_ADMIN_ID) -> 1256369 | G28: 1.198166847
A30: Total | D30: =SUM(D13:D28) -> 2201179 | G30: =SUM(G13:G28) -> 2.099207878
A32: Incremental Cost | B32: Number of entries/per item | C32: Total Numbers of entries | D32: DSN (Bytes) | E32: NSXS Cache | F32: NSPS Cache | G32: Total RAM (Mbytes)
A34: Callp
A35: Dial plans | B35: N/A | C35: =NS_Summary!M27 -> 2000 | D35: =LOOKUP(C35,NB_ROWS,NS.CC_DIAL_PLANS) -> 206918 | E35: =($C35*DialPlanXS) -> 2329560 | F35: =($C35*DialPlanPS) -> 2327168 | G35: =(D35+E35+F35)/(1024*1024) -> 4.638334274
A36: entry dial plan | B36: N/A | C36: 2 | D36: =LOOKUP(C36,NB_ROWS,NS.CC_DIAL_PLANS_ENTRY)+LOOKUP(C36,NB_ROWS,NS.CC_DIAL_PLANS_ENTRY_E164) -> 44492 | E36: 0 | F36: 0 | G36: 0.04243087769
A37: rows/dial plan | B37: =NS_Summary!M28 -> 1 | C37: =B37*C35 -> 2000 | D37: =LOOKUP(C37,NB_ROWS,NS.CC_DIAL_PLAN_ROWS) -> 534039 | E37: =($C37*DialPlanEntryXS) -> 1203200 | F37: =($C37*DialPlanEntryPS) -> 1327493.333 | G37: 2.922756513
A38: NDC | B38: N/A | C38: =NS_Summary!M30 -> 2000 | D38: =LOOKUP(C38,NB_ROWS,NS.COUNTRY_CODE_NDCS) -> 634022 | E38: =($C38*NdcXS) -> 1504378.667 | F38: =($C38*NdcPS) -> 1596570.667
A39: NDC LCA | B39: N/A | C39: =NS_Summary!M31 -> 2000 | D39: =LOOKUP(C39,NB_ROWS,NS.LCA_ID)+LOOKUP(C39,NB_ROWS,NS.LCA_LCAID_ENTRY)+LOOKUP(C39,NB_ROWS,NS.LCA_NDC_ENTRY)+LOOKUP(C39,NB_ROWS,NS.LCA_ZONE_ENTRY)+LOOKUP(C39,NB_ROWS,NS.LCA_ZONE_RC_ENTRY) -> 5698404 | E39: =($C39*LcaXS) -> 2565384 | F39: =($C39*LcaPS) -> 51781.33333 | G39: 7.930344899
A40: NDC zones | B40: N/A | C40: =NS_Summary!M32 -> 2000 | D40: =LOOKUP(C40,NB_ROWS,NS.ZONE)+LOOKUP(C40,NB_ROWS,NS.ZONE_RATE_CENTER) -> 2385952 | E40: =($C40*ZonesXS) -> 44272 | F40: =($C40*ZonesPS) -> 33960 | G40: 2.350028992
A41: DMI | B41: N/A | C41: =NS_Summary!M36 -> 2000 | D41: =LOOKUP(C41,NB_ROWS,NS.POLICIES_SP_DIGMAN) -> 480266 | E41: =($C41*DmiXS) -> 974546.6667 | F41: =($C41*DmiPS) -> 13216 | G41: 1.400021235
A43: North-American Transalation
A44: LCA | B44: N/A | C44: =NS_Summary!M35 -> 0 | D44: =LOOKUP(C44,NB_ROWS,NS.LCA_NPANXX_0)+LOOKUP(C44,NB_ROWS,NS.LCA_NPANXX_1) -> 3784432 | E44: =($C44*LcaXS) -> 0 | F44: =($C44*LcaPS) -> 0 | G44: =(D44+E44+F44)/(1024*1024) -> 3.609115601
A45: NNACL | B45: N/A | C45: =NS_Summary!M34 -> 0 | D45: =LOOKUP(C45,NB_ROWS,NS.NNACL_0)+LOOKUP(C45,NB_ROWS,NS.NNACL_1) -> 3738066 | E45: =($C45*NnaclXS) -> 0 | F45: =($C45*NnaclPS) -> 0 | G45: =(D45+E45+F45)/(1024*1024) -> 3.564897537
A47: Carriers
A48: Carrier | B48: N/A | C48: =NS_Summary!M37 -> 2000 | D48: =LOOKUP(C48,NB_ROWS,NS.NET_CARRIERS) -> 232215 | E48: =($C48*CarrierXS) -> 2162789.333 | F48: =($C48*CarrierPS) -> 17442.66667 | G48: =(D48+E48+F48)/(1024*1024) -> 2.300688744
A49: Pref NE/carrier | B49: =NS_Summary!M38 -> 1 | C49: 0 | D49: =LOOKUP(C49,NB_ROWS,NS.NET_CARRIERS_NES) -> 49734 | E49: =($C49*CarrierNeXS) -> 0 | F49: =($C49*CarrierNePS) -> 0 | G49: =(D49+E49+F49)/(1024*1024) -> 0.04743003845
A51: Devices
A52: Hosting NE | B52: N/A | C52: =NS_Summary!M12 -> 2000 | D52: =LOOKUP(C52,NB_ROWS,NS.NET_HOSTING_NES) -> 828963 | E52: =($C52*HostingNeXS) -> 6867789.333 | F52: =($C52*HostingNePS) -> 51589.33333 | G52: =(D52+E52+F52)/(1024*1024) -> 7.389394442
A53: Node/hosting NE | B53: =NS_Summary!M13 -> 1 | C53: =B53*C52 -> 2000 | D53: =LOOKUP(C53,NB_ROWS,NS.NET_HOSTING_NES_NODE_ID) -> 706004 | E53: =($C53*HostingNeNodeXS) -> 19640 | F53: =($C53*HostingNeNodePS) -> 0 | G53: =(D53+E54+F54)/(1024*1024) -> 2.438587189
A54: Address/hosting NE | B54: =NS_Summary!M14 -> 1 | C54: =B54*C52 -> 2000 | D54: =LOOKUP(C54,NB_ROWS,NS.NET_HOSTING_NES_ADDR) -> 489898 | E54: =($C54*HostingNeAddrXS) -> 1829077.333 | F54: =($C54*HostingNeAddrPS) -> 21962.66667 | G54: =(D54+E55+F55)/(1024*1024) -> 0.4672031403
A56: Resource NE | B56: N/A | C56: =NS_Summary!M15 -> 2000 | D56: =LOOKUP(C56,NB_ROWS,NS.NET_MS) -> 258063 | E56: =($C56*ResourceNeXS) -> 10319832 | F56: =($C56*ResourceNePS) -> 51605.33333 | G56: =(D56+E56+F56)/(1024*1024) -> 10.13708146
A57: MSSelect/Resource NE | B57: =NS_Summary!M16 -> 1 | C57: =B57*C56 -> 2000 | D57: =LOOKUP(C57,'NS_DSN size'!$B$1:$V$1,NS_Details!NS.NET_MS_SELECTION) +LOOKUP(C57,'NS_DSN size'!$B$1:$V$1,NS_Details!NS.NET_MS_SERVICES_MAP) -> 858068 | E57: =($C57*ResourceNeMsSelectXS) -> 220426.6667 | F57: =($C57*ResourceNeMsSelectPS) -> 30205.33333 | G57: =(D57+E57+F57)/(1024*1024) -> 1.057338715
A58: Address/Resource NE | B58: =NS_Summary!M17 -> 1 | C58: =B58*C56 -> 2000 | D58: =LOOKUP(C58,NB_ROWS,NS.NET_MS_IP) -> 461792 | E58: =($C58*ResourceNeAddrXS) -> 1141482.667 | F58: =($C58*ResourceNeAddrPS) -> 80845.33333 | G58: =(D58+E58+F58)/(1024*1024) -> 1.60610199
A60: Routing NE | B60: N/A | C60: =NS_Summary!M18 -> 100 | D60: =LOOKUP(C60,NB_ROWS,NS.NET_NES) -> 54379 | E60: =($C60*RoutingNeXS) -> 387524.2667 | F60: =($C60*RoutingNePS) -> 2832.4 | G60: =(D60+E60+F60)/(1024*1024) -> 0.4241329829
A61: Routing/Routing NE | B61: =NS_Summary!M19 -> 1 | C61: =B61*C60 -> 100 | D61: =LOOKUP(C61,NB_ROWS,NS.NET_NES_ROUTING) -> 151775 | E61: =($C61*RoutingNeRoutingXS) -> 253070.1333 | F61: =($C61*RoutingNeRoutingPS) -> 2023.733333 | G61: =(D61+E61+F61)/(1024*1024) -> 0.3880203883
A62: Address/Routing NE | B62: =NS_Summary!M20 -> 1 | C62: =B62*C61 -> 100 | D62: =LOOKUP(C62,NB_ROWS,NS.NET_NES_IP) -> 75056 | E62: =($C62*RoutingNeAddrXS) -> 64088.4 | F62: =($C62*RoutingNeAddrPS) -> 355.2 | G62: =(D62+E62+F62)/(1024*1024) -> 0.1330371857
A64: Web Server Farm | B64: N/A | C64: =NS_Summary!M21 -> 1000 | D64: =LOOKUP(C64,NB_ROWS,NS.NET_WSF_NES) -> 148061 | E64: =($C64*WSFXS) -> 44849.33333 | F64: =($C64*WSFPS) -> 0 | G64: =(D64+E64+F64)/(1024*1024) -> 0.1839736303
A65: Node/Web Server Farm | B65: =NS_Summary!M22 -> 1 | C65: =B65*C64 -> 1000 | D65: =LOOKUP(C65,NB_ROWS,NS.NET_WSF_NES_NODE_ID) -> 318843 | E65: =($C65*WsfNodeXS) -> 26806.66667 | F65: =($C65*WsfNodePS) -> 762.6666667 | G65: =(D65+E65+F65)/(1024*1024) -> 0.3303645452
A66: Address/Web Server Farm | B66: =NS_Summary!M23 -> 1 | C66: =B66*C65 -> 1000 | D66: =LOOKUP(C66,NB_ROWS,NS.NET_WSF_NES_ADDR) -> 252038 | E66: =($C66*WsfAddrXS) -> 84762.66667 | F66: =($C66*WsfAddrPS) -> 11280 | G66: =(D66+E66+F66)/(1024*1024) -> 0.3319555918
A68: SubscriberMgmt
A69: Numbers | B69: N/A | C69: 0 | D69: 0 | E69: 0 | F69: 0 | G69: =(D69+E69+F69)/(1024*1024) -> 0
A70: Enterprises | B70: N/A | C70: =NS_Summary!G12 -> 1 | D70: =LOOKUP(C70,NB_ROWS,NS.NET_ENTERPRISES) -> 504079 | E70: =($C70*EnterpriseXS) -> 3429.856 | F70: =($C70*EnterprisePS) -> 10.38933333 | G70: 0.4840080694
A71: Sites/enterprise | B71: =NS_Summary!G13 -> 1 | C71: =B71*C70 -> 1 | D71: =LOOKUP(C71,NB_ROWS,NS.NET_ENTERPRISE_SITES) -> 674348 | E71: =($C71*SitesXS) -> 57.08133333 | F71: =($C71*SitesPS) -> 0 | G71: 0.6431628049
A72: Groups/enterprise | B72: =NS_Summary!G14 -> 1000000 | C72: =B72*C70 -> 1000000 | D72: =LOOKUP(C72,NB_ROWS,NS.NET_USER_GROUPS) -> 517314169 | E72: =($C72*GroupXS) -> 111661333.3 | F72: =($C72*GroupPS) -> 60664000 | G72: 657.691481
A73: DN range/enterprise | B73: =NS_Summary!G15 -> 1 | C73: =B73*C70 -> 1 | D73: =LOOKUP(C73,NB_ROWS,NS.NET_DN_RANGES) -> 12616128 | E73: 0 | F73: 0 | G73: 12.03167725
A74: Users (1 DN, 1 extension, 1 alias, 1 login)/group | B74: =NS_Summary!G16 -> 1 | C74: =B74*C72*(1-dnRangePercent)+B74*C72*dnRangePercent/dnsPerRouteList -> 1000000 | G74: 0
A75: DN/user | B75: =NS_Summary!G17 -> 1 | C75: =B75*C74 -> 1000000 | D75: =LOOKUP(C75,NB_ROWS,NS.NET_DN_ADDRESSES) -> 165692467 | E75: =($C75*DNsXS) -> 5624000 | F75: =($C75*DNsPS) -> 6508000 | G75: 169.586627
A76: Extension/user | B76: =NS_Summary!G18 -> 0 | C76: =B76*C74 -> 0 | D76: =LOOKUP(C76,NB_ROWS,NS.NET_EXT_ADDRESSES) -> 453141 | E76: =($C76*ExtsXS) -> 0 | F76: =($C76*ExtsPS) -> 0 | G76: 0.4321489334
A77: alias/user | B77: =NS_Summary!G19 -> 0 | C77: =B77*C74 -> 0 | D77: =LOOKUP(C77,NB_ROWS,NS.NET_URL_ADDRESSES) -> 12624074 | E77: =($C77*AliasUrlXS) -> 0 | F77: =($C77*AliasUrlPS) -> 0 | G77: 12.03925514
A78: loginId/user | B78: =NS_Summary!G20 -> 1 | C78: =B78*C74 -> 1000000 | D78: =LOOKUP(C78,NB_ROWS,NS.NET_URL_ADDRESSES) -> 222011458 | E78: =($C78*LoginIdUrlXS) -> 66080000 | F78: =($C78*LoginIdUrlPS) -> 34278666.67 | G78: 307.4361083
A79: Policies (entries/enterprise) | G79: 0
A80: EntMediaSrvSel:SiteList | B80: =NS_Summary!G28 -> 1 | C80: =B80*C$70 -> 1 | D80: =LOOKUP(C80,NB_ROWS,NS.POLICIES_ENT_MSS_ENTRIES) + LOOKUP(C80,NB_ROWS,NS.POLICIES_ENT_MSS_DFLT) -> 249301 | E80: =($C80*EntMediaSrvSelSiteListXS) -> 5.461333333 | F80: =($C80*EntMediaSrvSelSiteListPS) -> 40.632 | G80: 0.2377959188
A81: EntNGWRouting:AuthHost | B81: =NS_Summary!G29 -> 1 | C81: =B81*C$70 -> 1 | D81: =LOOKUP(C81,NB_ROWS,NS.POLICIES_ENT_AUTH_HOSTS) -> 63235 | E81: =($C81*EntNgwRoutingAuthHostXS) -> 17.528 | F81: =($C81*EntNgwRoutingAuthHostPS) -> 2.145333333 | G81: 0.06032435735
A82: EntNGWRouting:Routing list | B82: =NS_Summary!G30 -> 1 | C82: =B82*C$70 -> 1 | D82: =LOOKUP(C82,NB_ROWS,NS.POLICIES_ENT_NGW_DFLT) + LOOKUP(C82,NB_ROWS,NS.POLICIES_ENT_NGW_DFLT) -> 235992 | E82: =($C82*EntNgwRoutingRoutingListXS) -> 97.224 | F82: =($C82*EntNgwRoutingRoutingListPS) -> 34.08133333 | G82: 0.2251847318
A83: EntSIMPLE:Gateway | B83: =NS_Summary!G31 -> 1 | C83: 1 | D83: =LOOKUP(C83,NB_ROWS,NS.POLICIES_SIMPLE_GATEWAYS) -> 64248 | E83: =($C83*EntSimpleGatewayXS) -> 101.8133333 | F83: =($C83*EntSimpleGatewayPS) -> 6.061333333 | G83: 0.06137454478
A84: EntSubLocation | B84: NO ENTRIES | G84: 0
A85: ExtDialing | B85: NO ENTRIES | G85: 0
A86: FarEndHopOff:AuthHost | B86: =NS_Summary!G32 -> 1 | C86: 1 | D86: =LOOKUP(C86,NB_ROWS,NS.POLICIES_ENT_AUTH_HOSTS) -> 63235 | E86: =($C86*FarEndHopOffAuthHostXS) -> 55.81333333 | F86: =($C86*FarEndHopOffAuthHostPS) -> 0 | G86: 0.06035882314
A87: FarEndHopOff:RoutingList | B87: =NS_Summary!G33 -> 1 | C87: 1 | D87: =LOOKUP(C87,NB_ROWS,NS.POLICIES_PRV_RTG_LIST) -> 180384 | E87: =($C87*FarEndHopOffRoutingListXS) -> 660.3946667 | F87: =($C87*FarEndHopOffRoutingListPS) -> 0 | G87: 0.1726573893
A88: voiceVPN:DialPlan | B88: =NS_Summary!G34 -> 1 | C88: 1 | D88: =LOOKUP(C88,NB_ROWS,NS.POLICIES_PRIVATE_DIAL_PLAN) -> 208252 | E88: =($C88*VoiceVpnDialPlanXS) -> 838.8453333 | F88: =($C88*VoiceVpnDialPlanPS) -> 29.07466667 | G88: 0.1994322968
A90: Policies
A92: Policy instances | B92: N/A | C92: =NS_Summary!G25 -> 2000 | D92: =LOOKUP(C92,NB_ROWS,NS.POLICIES_INSTANCES) -> 416979 | E92: =($C92*PoliciesInstancesXS) -> 7297360 | F92: =($C92*PoliciesInstancesPS) -> 61824 | G92: =(D92+E92+F92)/(1024*1024) -> 7.415926933
A93: Policies profiles | B93: N/A | C93: =NS_Summary!G23 -> 2000 | D93: =LOOKUP(C93,NB_ROWS,NS.POLICIES_PROFILES) -> 155043 | E93: =($C93*PoliciesProfilesXS) -> 5619392 | F93: =($C93*PoliciesProfilesPS) -> 0 | G93: =(D93+E93+F93)/(1024*1024) -> 5.506930351
A94: Policies subscriptions/profile | B94: =NS_Summary!G24 -> 1 | C94: =B94*C93 -> 2000 | D94: =LOOKUP(C94,NB_ROWS,NS.POLICIES_SUBSCRIPTIONS) -> 512057 | E94: =($C94*PoliciesSubscriptionsXS) -> 1003117 | F94: =($C94*PoliciesSubscriptionsPS) -> 0 | G94: =(D94+E94+F94)/(1024*1024) -> 1.444982529
A96: CallScreening | B96: N/A | C96: NO ENTRIES | G96: =(D96+E96+F96)/(1024*1024) -> 0
A97: CallTyping | B97: N/A | C97: NO ENTRIES | G97: 0
A98: DstSvcRtg | B98: N/A | C98: NO ENTRIES
A99: DstSvcRtg:RoutingList | B99: N/A | C99: =NS_Summary!G37 -> 2000 | D99: =LOOKUP(C99,NB_ROWS,NS.POLICIES_DSR_ROUTING_LIST) -> 616943 | E99: =($C99*DstSvcRtgRoutingListXS) -> 61530.66667 | F99: =($C99*DstSvcRtgRoutingListPS) -> 33578.66667 | G99: 0.6790660222
A100: EASvcCallRtg | B100: N/A | C100: NO ENTRIES
A101: EASvcCallRtg:CicEntries | B101: N/A | C101: =NS_Summary!G38 -> 2000 | E101: =($C101*EASvcCallRtgCicEntriesXS) -> 183426.6667 | F101: =($C101*EASvcCallRtgCicEntriesPS) -> 0 | G101: 0.1749293009
A102: EqualAccess | B102: N/A | C102: NO ENTRIES | G102: 0
A103: FarEndRtg | B103: N/A | C103: NO ENTRIES | G103: 0
A104: MediaSrvSel:RouteList | B104: N/A | C104: =NS_Summary!G39 -> 2000 | D104: =LOOKUP(C104,NB_ROWS,NS.POLICIES_MSS_ROUTELIST) -> 708220 | E104: =($C104*MsSelectionRouteListXS) -> 1611061.333 | F104: =($C104*MsSelectionRouteListPS) -> 33760 | G104: 2.244035085
A105: NearEndRtg | B105: N/A | C105: NO ENTRIES | G105: 0
A106: NumberPortability:PortedInNumbers | B106: N/A | C106: =NS_Summary!G40 -> 2000 | D106: =LOOKUP(C106,NB_ROWS,NS.POLICIES_NP_IN_LIST) -> 329530 | E106: =($C106*PortedInNumbersXS) -> 425672 | F106: =($C106*PortedInNumbersPS) -> 83386.66667 | G106: 0.7997404734
A107: NumberPortability:PortedOutNumbers | B107: N/A | C107: =NS_Summary!G41 -> 2000 | D107: =LOOKUP(C107,NB_ROWS,NS.POLICIES_NP_OUT_LIST) -> 649103 | E107: =($C107*PortedOutNumbersXS) -> 1600 | F107: =($C107*PortedOutNumbersPS) -> 105869.3333 | G107: 0.7215236028
A108: NumberPortability:BulkLoad | B108: N/A | C108: 1 | D108: =LOOKUP(C108,NB_ROWS,NS.POLICIES_NP_BULK_LOAD_INFO) -> 92365 | E108: 0 | F108: 0 | G108: =(D108+E108+F108)/(1024*1024) -> 0.08808612823
A109: OrigRedirect | B109: N/A | C109: NO ENTRIES | G109: 0
A110: PreCallTyping:DialPLan | B110: N/A | C110: =NS_Summary!G42 -> 2000 | D110: =LOOKUP(C110,NB_ROWS,NS.POLICIES_PRE_DIAL_PLAN) -> 643588 | E110: =($C110*PreCallTypingDialPLanXS) -> 1396365.333 | F110: =($C110*PreCallTypingDialPLanPS) -> 2453.333333 | G110: 1.947790782
A111: RCBasedRtg:LataRoutingList | B111: N/A | C111: =NS_Summary!G43 -> 2000 | D111: =LOOKUP(C111,NB_ROWS,NS.POLICIES_RATECENTER_LATA_LIST) -> 736837 | E111: =($C111*RcBasedRtgLataRoutingListXS) -> 177093.3333 | F111: =($C111*RcBasedRtgLataRoutingListPS) -> 0 | G111: 0.8715918859
A112: RCBasedRtg:ZoneRoutingList | B112: N/A | C112: =NS_Summary!G44 -> 2000 | D112: =LOOKUP(C112,NB_ROWS,NS.POLICIES_RATECENTER_ZONE_LIST) -> 846376 | E112: =($C112*RcBasedRtgZoneRoutingListXS) -> 0 | F112: =($C112*RcBasedRtgZoneRoutingListPS) -> 0 | G112: 0.8071670532
A113: SIMPLE:Gateway | B113: N/A | C113: =NS_Summary!G45 -> 2000 | D113: =LOOKUP(C113,NB_ROWS,NS.POLICIES_SIMPLE_GATEWAYS) -> 673744 | E113: =($C113*SimpleGatewayXS) -> 115904 | F113: =($C113*SimpleGatewayPS) -> 23370.66667 | G113: 0.7753550212
A114: SubLocation | B114: N/A | C114: NO ENTRIES | G114: 0
A115: SvcCtrRtg:GWController | B115: N/A | C115: =NS_Summary!G46 -> 2000 | D115: =LOOKUP(C115,NB_ROWS,NS.POLICIES_SCR_GC_LIST) -> 373987 | E115: =($C115*SvcCtrRtgGwControllerXS) -> 350394.6667 | F115: =($C115*SvcCtrRtgGwControllerPS) -> 61741.33333 | G115: 0.7497053146
A116: SvcCtrRtg:SCRL | B116: N/A | C116: =NS_Summary!G47 -> 2000 | D116: =LOOKUP(C116,NB_ROWS,NS.POLICIES_SCR_LIST) -> 737032 | E116: =($C116*SvcCtrRtgScrlXS) -> 1253528 | F116: =($C116*SvcCtrRtgScrlPS) -> 0 | G116: 1.898345947
A117: SvcCtrRtg:TrunkGroup | B117: N/A | C117: =NS_Summary!G48 -> 2000 | D117: =LOOKUP(C117,NB_ROWS,NS.POLICIES_SCR_TG_LIST) -> 798369 | E117: =($C117*SvcCtrRtgTrunkGroupXS) -> 25013.33333 | F117: =($C117*SvcCtrRtgTrunkGroupPS) -> 102160 | G117: 0.882665952
A118: TandemOverflow | B118: N/A | C118: NO ENTRIES | G118: 0
A119: UrlDialing | B119: N/A | C119: NO ENTRIES | G119: 0
A120: DSN Temp | G120: =0.3333*D2 -> 340.7290383
A121: Call Processing XS Heap (MB) | E121: =NSfinalCPS*0.053*('Capacity Planner'!S8-1) -> 159 | G121: =E121 -> 159

Sheet NS_Cache (hidden)
A1: ITEM - 1000 | B1: XS | C1: PS | D1: 1000 | E1: 1000 | G1: XS | H1: PS | I1: 1000 | J1: 1000 | L1: XS | M1: PS | N1: 2000 | O1: 2000 | Q1: Average XS (bytes per entry) | R1: Average PS (bytes per entry)
A3: AliasUrl | B3: 1136 | C3: 137480 | D3: =B3/D$1 -> 1.136 | E3: =C3/E$1 -> 137.48 | G3: 0 | H3: 22072 | I3: =G3/I$1 -> 0 | J3: =H3/J$1 -> 22.072 | L3: 0 | M3: 0 | N3: =L3/N$1 -> 0 | O3: =M3/O$1 -> 0 | Q3: =(D3+I3+N3)/3 -> 0.3786666667 | R3: =(E3+J3+O3)/3 -> 53.184
A4: CallType | B4: 388528 | C4: 231904 | D4: =B4/D$1 -> 388.528 | E4: =C4/E$1 -> 231.904 | G4: 262128 | H4: 217880 | I4: =G4/I$1 -> 262.128 | J4: =H4/J$1 -> 217.88 | L4: 684304 | M4: 531528 | N4: =L4/N$1 -> 342.152 | O4: 265.764 | Q4: =(D4+I4+N4)/3 -> 330.936 | R4: =(E4+J4+O4)/3 -> 238.516
A5: CarrierNe | B5: 162744 | C5: 0 | D5: 162.744 | E5: 0 | G5: 0 | H5: 8608 | I5: 0 | J5: 8.608 | L5: 0 | M5: 52760 | N5: =L5/N$1 -> 0 | O5: 26.38 | Q5: =(D5+I5+N5)/3 -> 54.248 | R5: 11.66266667
A6: Carrier | B6: 1205288 | C6: 0 | D6: 1205.288 | E6: 0 | G6: 1040976 | H6: 15640 | I6: 1040.976 | J6: 15.64 | L6: 1995840 | M6: 21048 | N6: 997.92 | O6: 10.524 | Q6: 1081.394667 | R6: 8.721333333
A7: DialPlanEntry | B7: 478296 | C7: 602816 | D7: 478.296 | E7: 602.816 | G7: 609408 | H7: 707664 | I7: 609.408 | J7: 707.664 | L7: 1434192 | M7: 1361520 | N7: 717.096 | O7: 680.76 | Q7: 601.6 | R7: 663.7466667
A8: DialPlan | B8: 1064352 | C8: 1064872 | D8: =B8/D$1 -> 1064.352 | E8: =C8/E$1 -> 1064.872 | G8: 1072816 | H8: 1215104 | I8: =G8/I$1 -> 1072.816 | J8: =H8/J$1 -> 1215.104 | L8: 2714344 | M8: 2421552 | N8: 1357.172 | O8: 1210.776 | Q8: 1164.78 | R8: 1163.584
A9: Dmi | B9: 444120 | C9: 0 | D9: 444.12 | E9: 0 | G9: 447848 | H9: 19824 | I9: 447.848 | J9: 19.824 | L9: 1139704 | M9: 0 | N9: 569.852 | O9: 0 | Q9: 487.2733333 | R9: 6.608
A10: DNs | B10: 0 | C10: 336 | D10: 0 | E10: 0.336 | G10: 0 | H10: 5288 | I10: 0 | J10: 5.288 | L10: 33744 | M10: 27800 | N10: 16.872 | O10: 13.9 | Q10: 5.624 | R10: 6.508
A11: DstSvcRtgRoutingList | B11: 92296 | C11: 22872 | D11: =B11/D$1 -> 92.296 | E11: =C11/E$1 -> 22.872 | G11: 0 | H11: 27496 | I11: =G11/I$1 -> 0 | J11: =H11/J$1 -> 27.496 | L11: 0 | M11: 0 | N11: 0 | O11: 0 | Q11: 30.76533333 | R11: 16.78933333
A12: EASvcCallRtgCicEntries | B12: 0 | C12: 0 | D12: =B12/D$1 -> 0 | E12: =C12/E$1 -> 0 | G12: 166328 | H12: 0 | I12: =G12/I$1 -> 166.328 | J12: =H12/J$1 -> 0 | L12: 217624 | M12: 0 | N12: 108.812 | O12: 0 | Q12: 91.71333333 | R12: 0
A13: Enterprise | B13: 3335248 | C13: 30912 | D13: 3335.248 | E13: 30.912 | G13: 3438432 | H13: 0 | I13: 3438.432 | J13: 0 | L13: 7031776 | M13: 512 | N13: 3515.888 | O13: 0.256 | Q13: 3429.856 | R13: 10.38933333
A14: EntMediaSrvSelSiteList | B14: 1336 | C14: 65400 | D14: 1.336 | E14: 65.4 | G14: 15048 | H14: 54024 | I14: 15.048 | J14: 54.024 | L14: 0 | M14: 4944 | N14: 0 | O14: 2.472 | Q14: 5.461333333 | R14: 40.632
A15: EntNgwRoutingAuthHost | B15: 10832 | C15: 0 | D15: 10.832 | E15: 0 | G15: 17928 | H15: 0 | I15: 17.928 | J15: 0 | L15: 47648 | M15: 12872 | N15: 23.824 | O15: 6.436 | Q15: 17.528 | R15: 2.145333333
A16: EntNgwRoutingRoutingListDflt | B16: 0 | C16: 13184 | D16: 0 | E16: 13.184 | G16: 62968 | H16: 18400 | I16: 62.968 | J16: 18.4 | L16: 0 | M16: 39112 | N16: 0 | O16: 19.556 | Q16: 20.98933333 | R16: 17.04666667
A17: EntNgwRoutingRoutingList | B17: 135232 | C17: 30280 | D17: 135.232 | E17: 30.28 | G17: 137136 | H17: 56552 | I17: 137.136 | J17: 56.552 | L17: 38608 | M17: 30824 | N17: 19.304 | O17: 15.412 | Q17: 97.224 | R17: 34.08133333
A18: EntSimpleGateway | B18: 151640 | C18: 6960 | D18: 151.64 | E18: 6.96 | G18: 153800 | H18: 11224 | I18: 153.8 | J18: 11.224 | L18: 0 | M18: 0 | N18: 0 | O18: 0 | Q18: 101.8133333 | R18: 6.061333333
A19: Exts | B19: 458776 | C19: 142560 | D19: 458.776 | E19: 142.56 | G19: 0 | H19: 0 | I19: 0 | J19: 0 | L19: 298928 | M19: 0 | N19: 149.464 | O19: 0 | Q19: 202.7466667 | R19: 47.52
A20: FarEndHopOffAuthHost | B20: 166656 | C20: 0 | D20: 166.656 | E20: 0 | G20: 0 | H20: 0 | I20: 0 | J20: 0 | L20: 1568 | M20: 0 | N20: 0.784 | O20: 0 | Q20: 55.81333333 | R20: 0
A21: FarEndHopOffRoutingList | B21: 675224 | C21: 0 | D21: 675.224 | E21: 0 | G21: 727688 | H21: 0 | I21: 727.688 | J21: 0 | L21: 1156544 | M21: 0 | N21: 578.272 | O21: 0 | Q21: 660.3946667 | R21: 0
A22: Group | B22: 318536 | C22: 63464 | D22: 318.536 | E22: 63.464 | G22: 16448 | H22: 70432 | I22: 16.448 | J22: 70.432 | L22: 0 | M22: 96192 | N22: 0 | O22: 48.096 | Q22: 111.6613333 | R22: 60.664
A23: HostingNeAddr | B23: 911408 | C23: 29048 | D23: 911.408 | E23: 29.048 | G23: 913576 | H23: 0 | I23: 913.576 | J23: 0 | L23: 1837264 | M23: 7792 | N23: 918.632 | O23: 3.896 | Q23: 914.5386667 | R23: 10.98133333
A24: HostingNeNode | B24: 0 | C24: 0 | D24: 0 | E24: 0 | G24: 28968 | H24: 0 | I24: 28.968 | J24: 0 | L24: 984 | M24: 0 | N24: 0.492 | O24: 0 | Q24: 9.82 | R24: 0
A25: HostingNe | B25: 3753008 | C25: 54984 | D25: 3753.008 | E25: 54.984 | G25: 3129184 | H25: 1056 | I25: 3129.184 | J25: 1.056 | L25: 6838984 | M25: 42688 | N25: 3419.492 | O25: 21.344 | Q25: 3433.894667 | R25: 25.79466667
A26: Lca | B26: 1307016 | C26: 34328 | D26: 1307.016 | E26: 34.328 | G26: 1258648 | H26: 18496 | I26: 1258.648 | J26: 18.496 | L26: 2564824 | M26: 49696 | N26: 1282.412 | O26: 24.848 | Q26: 1282.692 | R26: 25.89066667
A27: LoginIdUrl | B27: 0 | C27: 41120 | D27: 0 | E27: 41.12 | G27: 976 | H27: 45872 | I27: 0.976 | J27: 45.872 | L27: 394528 | M27: 31688 | N27: 197.264 | O27: 15.844 | Q27: 66.08 | R27: 34.27866667
A28: MsSelectionRouteList | B28: 566784 | C28: 11664 | D28: 566.784 | E28: 11.664 | G28: 888776 | H28: 38976 | I28: 888.776 | J28: 38.976 | L28: 1922064 | M28: 0 | N28: 961.032 | O28: 0 | Q28: 805.5306667 | R28: 16.88
A29: Ndc | B29: 825824 | C29: 792776 | D29: 825.824 | E29: 792.776 | G29: 706904 | H29: 806192 | I29: 706.904 | J29: 806.192 | L29: 1447680 | M29: 1591776 | N29: 723.84 | O29: 795.888 | Q29: 752.1893333 | R29: 798.2853333
A30: Nnacl | B30: 39208 | C30: 0 | D30: 39.208 | E30: 0 | G30: 9616 | H30: 0 | I30: 9.616 | J30: 0 | L30: 0 | M30: 0 | N30: 0 | O30: 0 | Q30: 16.27466667 | R30: 0
A31: PortedInNumbers | B31: 481384 | C31: 117064 | D31: 481.384 | E31: 117.064 | G31: 0 | H31: 0 | I31: 0 | J31: 0 | L31: 314248 | M31: 16032 | N31: 157.124 | O31: 8.016 | Q31: 212.836 | R31: 41.69333333
A32: PortedOutNumbers | B32: 0 | C32: 104816 | D32: 0 | E32: 104.816 | G32: 2400 | H32: 48640 | I32: 2.4 | J32: 48.64 | L32: 0 | M32: 10696 | N32: 0 | O32: 5.348 | Q32: 0.8 | R32: 52.93466667
A33: PreCallTypingDialPlan | B33: 857288 | C33: 3680 | D33: 857.288 | E33: 3.68 | G33: 724456 | H33: 0 | I33: 724.456 | J33: 0 | L33: 1025608 | M33: 0 | N33: 512.804 | O33: 0 | Q33: 698.1826667 | R33: 1.226666667
A34: RcBasedRtgLataRoutingList | B34: 135880 | C34: 0 | D34: 135.88 | E34: 0 | G34: 129760 | H34: 0 | I34: 129.76 | J34: 0 | L34: 0 | M34: 0 | N34: 0 | O34: 0 | Q34: 88.54666667 | R34: 0
A35: RcBasedRtgZoneRoutingList | B35: 0 | C35: 0 | D35: 0 | E35: 0 | G35: 0 | H35: 0 | I35: 0 | J35: 0 | L35: 0 | M35: 0 | N35: 0 | O35: 0 | Q35: 0 | R35: 0
A36: ResourceNeAddr | B36: 520216 | C36: 38200 | D36: 520.216 | E36: 38.2 | G36: 696952 | H36: 61752 | I36: 696.952 | J36: 61.752 | L36: 990112 | M36: 42632 | N36: 495.056 | O36: 21.316 | Q36: 570.7413333 | R36: 40.42266667
A37: ResourceNeMsSelect | B37: 0 | C37: 10416 | D37: 0 | E37: 10.416 | G37: 324136 | H37: 30456 | I37: 324.136 | J37: 30.456 | L37: 13008 | M37: 8872 | N37: 6.504 | O37: 4.436 | Q37: 110.2133333 | R37: 15.10266667
A38: ResourceNeSimple | B38: 3884632 | C38: 0 | D38: 3884.632 | E38: 0 | G38: 4059352 | H38: 0 | I38: 4059.352 | J38: 0 | L38: 7960560 | M38: 31448 | N38: 3980.28 | O38: 15.724 | Q38: 3974.754667 | R38: 5.241333333
A39: ResourceNe | B39: 4899256 | C39: 37312 | D39: 4899.256 | E39: 37.312 | G39: 5544896 | H39: 40096 | I39: 5544.896 | J39: 40.096 | L39: 10071192 | M39: 0 | N39: 5035.596 | O39: 0 | Q39: 5159.916 | R39: 25.80266667
A40: RoutingNeAddr | B40: 649024 | C40: 10656 | D40: 649.024 | E40: 10.656 | G40: 648864 | H40: 0 | I40: 648.864 | J40: 0 | L40: 1249528 | M40: 0 | N40: 624.764 | O40: 0 | Q40: 640.884 | R40: 3.552
A41: RoutingNeRouting | B41: 2439472 | C41: 32480 | D41: 2439.472 | E41: 32.48 | G41: 2709688 | H41: 6160 | I41: 2709.688 | J41: 6.16 | L41: 4885888 | M41: 44144 | N41: 2442.944 | O41: 22.072 | Q41: 2530.701333 | R41: 20.23733333
A42: RoutingNe | B42: 3582080 | C42: 24136 | D42: 3582.08 | E42: 24.136 | G42: 3890232 | H42: 59240 | I42: 3890.232 | J42: 59.24 | L42: 8306832 | M42: 3192 | N42: 4153.416 | O42: 1.596 | Q42: 3875.242667 | R42: 28.324
A43: SimpleGateway | B43: 0 | C43: 6528 | D43: 0 | E43: 6.528 | G43: 164560 | H43: 0 | I43: 164.56 | J43: 0 | L43: 18592 | M43: 57056 | N43: 9.296 | O43: 28.528 | Q43: 57.952 | R43: 11.68533333
A44: Sites | B44: 0 | C44: 0 | D44: 0 | E44: 0 | G44: 162536 | H44: 0 | I44: 162.536 | J44: 0 | L44: 17416 | M44: 0 | N44: 8.708 | O44: 0 | Q44: 57.08133333 | R44: 0
A45: SvcCtrRtgGwController | B45: 166688 | C45: 29264 | D45: 166.688 | E45: 29.264 | G45: 210432 | H45: 47848 | I45: 210.432 | J45: 47.848 | L45: 296944 | M45: 31000 | N45: 148.472 | O45: 15.5 | Q45: 175.1973333 | R45: 30.87066667
A46: SvcCtrRtgScrl | B46: 772168 | C46: 0 | D46: 772.168 | E46: 0 | G46: 928336 | H46: 0 | I46: 928.336 | J46: 0 | L46: 359576 | M46: 0 | N46: 179.788 | O46: 0 | Q46: 626.764 | R46: 0
A47: SvcCtrRtgTrunkGroup | B47: 0 | C47: 74416 | D47: 0 | E47: 74.416 | G47: 0 | H47: 78824 | I47: 0 | J47: 78.824 | L47: 75040 | M47: 0 | N47: 37.52 | O47: 0 | Q47: 12.50666667 | R47: 51.08
A48: Treatment | B48: 0 | C48: 44616 | D48: 0 | E48: 44.616 | G48: 0 | H48: 22752 | I48: 0 | J48: 22.752 | L48: 72 | M48: 36352 | N48: 0.036 | O48: 18.176 | Q48: 0.012 | R48: 28.51466667
A49: UnassignedDns | B49: 59696 | C49: 0 | D49: 59.696 | E49: 0 | G49: 55848 | H49: 0 | I49: 55.848 | J49: 0 | L49: 0 | M49: 0 | N49: 0 | O49: 0 | Q49: 38.51466667 | R49: 0
A50: UnassignedRanges | B50: 143872 | C50: 0 | D50: 143.872 | E50: 0 | G50: 41984 | H50: 0 | I50: 41.984 | J50: 0 | L50: 111792 | M50: 0 | N50: 55.896 | O50: 0 | Q50: 80.584 | R50: 0
A51: VoiceVpnDialPlan | B51: 702592 | C51: 21272 | D51: 702.592 | E51: 21.272 | G51: 944464 | H51: 47200 | I51: 944.464 | J51: 47.2 | L51: 1738960 | M51: 37504 | N51: 869.48 | O51: 18.752 | Q51: 838.8453333 | R51: 29.07466667
A52: WsfAddr | B52: 16064 | C52: 29872 | D52: 16.064 | E52: 29.872 | G52: 164424 | H52: 0 | I52: 164.424 | J52: 0 | L52: 147600 | M52: 7936 | N52: 73.8 | O52: 3.968 | Q52: 84.76266667 | R52: 11.28
A53: WsfNode | B53: 0 | C53: 0 | D53: 0 | E53: 0 | G53: 7184 | H53: 0 | I53: 7.184 | J53: 0 | L53: 146472 | M53: 4576 | N53: 73.236 | O53: 2.288 | Q53: 26.80666667 | R53: 0.7626666667
A54: WSF | B54: 55784 | C54: 0 | D54: 55.784 | E54: 0 | G54: 58000 | H54: 0 | I54: 58 | J54: 0 | L54: 41528 | M54: 0 | N54: 20.764 | O54: 0 | Q54: 44.84933333 | R54: 0
A55: Zones | B55: 66408 | C55: 0 | D55: 66.408 | E55: 0 | G55: 0 | H55: 29864 | I55: 0 | J55: 29.864 | L55: 0 | M55: 42152 | N55: 0 | O55: 21.076 | Q55: 22.136 | R55: 16.98
A56: PoliciesInstances | L56: 7297360 | M56: 61824 | N56: 3648.68 | O56: 30.912 | Q56: =N56 -> 3648.68 | R56: 30.912
A57: PoliciesProfiles | L57: 5619392 | M57: 0 | N57: 2809.696 | O57: 0 | Q57: 2809.696 | R57: 0
A58: PoliciesSubscriptions | L58: 1003117 | M58: 0 | N58: 501.5585 | O58: 0 | Q58: 501.5585 | R58: 0

Sheet NS_DSN size (hidden)
B1: 0 | C1: 1 | D1: 2 | E1: 3 | F1: 4 | G1: 5 | H1: 10 | I1: 100 | J1: 200 | K1: 300 | L1: 400 | M1: 500 | N1: 600 | O1: 700 | P1: 800 | Q1: 900 | R1: 1000 | S1: 2000 | T1: 3000 | U1: 4000 | V1: 5000 | W1: 6000 | X1: 7000 | Y1: 8000 | Z1: 9000 | AA1: 10000 | AB1: 20000 | AC1: 30000 | AD1: 40000 | AE1: 50000 | AF1: 60000 | AG1: 70000 | AH1: 80000 | AI1: 90000 | AJ1: 100000 | AK1: 200000 | AL1: 300000 | AM1: 400000 | AN1: 500000 | AO1: 600000 | AP1: 700000 | AQ1: 800000 | AR1: 900000 | AS1: 1000000 | AT1: 1500000 | AU1: 2000000 | AV1: 2500000 | AW1: 3000000 | AX1: 3500000 | AY1: 4000000 | AZ1: 4500000 | BA1: 5000000 | BB1: 5500000 | BC1: 6000000 | BD1: 6500000 | BE1: 7000000 | BF1: 7500000 | BG1: 8000000 | BH1: 8500000 | BI1: 9000000 | BJ1: 9500000 | BK1: 10000000 | BL1: 11000000 | BM1: 12000000 | BN1: 13000000 | BO1: 14000000 | BP1: 15000000 | BQ1: 16000000 | BR1: 17000000 | BS1: 18000000 | BT1: 19000000 | BU1: 20000000
A2: NS.ADMIN_USERS | B2: 126343 | C2: 126343 | D2: 128903 | E2: 128903 | F2: 128903 | G2: 128903 | H2: 128903 | I2: 134103 | J2: 142343 | K2: 261335 | L2: 269575 | M2: 275015 | N2: 396807 | O2: 404807 | P2: 524039 | Q2: 532039 | R2: 537719 | S2: 1062887 | T2: 1588055 | U2: 2121559 | V2: 2646727 | W2: 3171895 | X2: 3697063 | Y2: 4219671 | Z2: 4744839 | AA2: 5270007 | AB2: 10405575 | AC2: 15541143 | AD2: 20674151 | AE2: 25809719 | AF2: 30945287 | AG2: 36089191 | AH2: 41222199 | AI2: 46357767 | AJ2: 51493335 | AK2: 102971559 | AL2: 154327895 | AM2: 205808679 | AN2: 257278567 | AO2: 308643239 | AP2: 360115687 | AQ2: 411480359 | AR2: 462950247 | AS2: 514428471 | AT2: 771572599 | AU2: 1028725063 | AV2: 1285874967 | AW2: 1543019095 | AX2: 1800168999 | AY2: 2057321463 | AZ2: 2314576583 | BA2: 2571729047 | BB2: 2828878951 | BC2: 3086023079 | BD2: 3343172983 | BE2: 3600325447 | BF2: 3857467015 | BG2: 4114619479 | BH2: 4371882935 | BI2: 4629027063 | BJ2: 4886176967 | BK2: 5143329431 | BL2: 5657623463 | BM2: 6171917495 | BN2: 6686333415 | BO2: 7200627447 | BP2: 7714921479 | BQ2: 8229223847 | BR2: 8743631431 | BS2: 9257925463 | BT2: 9772219495 | BU2: 10286521863
A3: NS.AUDIT_LOG | B3: 32932 | C3: 32932 | D3: 33348 | E3: 33764 | F3: 34180 | G3: 34596 | H3: 36676 | I3: 76756 | J3: 121476 | K3: 191444 | L3: 236164 | M3: 280644 | N3: 350852 | O3: 395332 | P3: 465540 | Q3: 510020 | R3: 554740 | S3: 1102692 | T3: 1650644 | U3: 2206932 | V3: 2754884 | W3: 3302836 | X3: 3850788 | Y3: 4398740 | Z3: 4946692 | AA3: 5494644 | AB3: 10948676 | AC3: 16402708 | AD3: 21856740 | AE3: 27310772 | AF3: 32764804 | AG3: 38227172 | AH3: 43681204 | AI3: 49135236 | AJ3: 54589268 | AK3: 109171748 | AL3: 163720404 | AM3: 218302884 | AN3: 272877028 | AO3: 327434020 | AP3: 382008164 | AQ3: 436565156 | AR3: 491139300 | AS3: 545721780 | AT3: 818558196 | AU3: 1091402948 | AV3: 1364247700 | AW3: 1637084116 | AX3: 1909928868 | AY3: 2182773620 | AZ3: 2455635524 | BA3: 2728480276 | BB3: 3001325028 | BC3: 3274161444 | BD3: 3547006196 | BE3: 3819850948 | BF3: 4092687364 | BG3: 4365532116 | BH3: 4638402356 | BI3: 4911238772 | BJ3: 5184083524 | BK3: 5456928276 | BL3: 6002609444 | BM3: 6548290612 | BN3: 7094005604 | BO3: 7639686772 | BP3: 8185367940 | BQ3: 8731057444 | BR3: 9276764100 | BS3: 9822445268 | BT3: 10368126436 | BU3: 10913815940
A4: NS.CC_DIAL_PLANS | B4: 20966 | C4: 20966 | D4: 22246 | E4: 22246 | F4: 22246 | G4: 22246 | H4: 22246 | I4: 26166 | J4: 31846 | K4: 48182 | L4: 53862 | M4: 58022 | N4: 75878 | O4: 81318 | P4: 97894 | Q4: 103334 | R4: 107734 | S4: 206918 | T4: 306102 | U4: 413622 | V4: 512806 | W4: 611990 | X4: 711174 | Y4: 809078 | Z4: 908262 | AA4: 1007446 | AB4: 1985830 | AC4: 2964214 | AD4: 3941318 | AE4: 4919702 | AF4: 5898086 | AG4: 6884806 | AH4: 7861910 | AI4: 8840294 | AJ4: 9818678 | AK4: 19627526 | AL4: 29415862 | AM4: 39225990 | AN4: 49026502 | AO4: 58823174 | AP4: 68624966 | AQ4: 78421638 | AR4: 88222150 | AS4: 98030998 | AT4: 147028438 | AU4: 196034214 | AV4: 245038710 | AW4: 294036150 | AX4: 343040646 | AY4: 392046422 | AZ4: 441054758 | BA4: 490060534 | BB4: 539065030 | BC4: 588062470 | BD4: 637066966 | BE4: 686072742 | BF4: 735068902 | BG4: 784074678 | BH4: 833091350 | BI4: 882088790 | BJ4: 931093286 | BK4: 980099062 | BL4: 1078100998 | BM4: 1176102934 | BN4: 1274125382 | BO4: 1372127318 | BP4: 1470129254 | BQ4: 1568139526 | BR4: 1666153638 | BS4: 1764155574 | BT4: 1862157510 | BU4: 1960167782
A5: NS.CC_DIAL_PLANS_ENTRY | B5: 20966 | C5: 20966 | D5: 22246 | E5: 22246 | F5: 22246 | G5: 22246 | H5: 22246 | I5: 26166 | J5: 31846 | K5: 48182 | L5: 53862 | M5: 58022 | N5: 75878 | O5: 81318 | P5: 97894 | Q5: 103334 | R5: 107734 | S5: 206918 | T5: 306102 | U5: 413622 | V5: 512806 | W5: 611990 | X5: 711174 | Y5: 809078 | Z5: 908262 | AA5: 1007446 | AB5: 1985830 | AC5: 2964214 | AD5: 3941318 | AE5: 4919702 | AF5: 5898086 | AG5: 6884806 | AH5: 7861910 | AI5: 8840294 | AJ5: 9818678 | AK5: 19627526 | AL5: 29415862 | AM5: 39225990 | AN5: 49026502 | AO5: 58823174 | AP5: 68624966 | AQ5: 78421638 | AR5: 88222150 | AS5: 98030998 | AT5: 147028438 | AU5: 196034214 | AV5: 245038710 | AW5: 294036150 | AX5: 343040646 | AY5: 392046422 | AZ5: 441054758 | BA5: 490060534 | BB5: 539065030 | BC5: 588062470 | BD5: 637066966 | BE5: 686072742 | BF5: 735068902 | BG5: 784074678 | BH5: 833091350 | BI5: 882088790 | BJ5: 931093286 | BK5: 980099062 | BL5: 1078100998 | BM5: 1176102934 | BN5: 1274125382 | BO5: 1372127318 | BP5: 1470129254 | BQ5: 1568139526 | BR5: 1666153638 | BS5: 1764155574 | BT5: 1862157510 | BU5: 1960167782
A6: NS.CC_DIAL_PLANS_ENTRY_E164 | B6: 20966 | C6: 20966 | D6: 22246 | E6: 22246 | F6: 22246 | G6: 22246 | H6: 22246 | I6: 26166 | J6: 31846 | K6: 48182 | L6: 53862 | M6: 58022 | N6: 75878 | O6: 81318 | P6: 97894 | Q6: 103334 | R6: 107734 | S6: 206918 | T6: 306102 | U6: 413622 | V6: 512806 | W6: 611990 | X6: 711174 | Y6: 809078 | Z6: 908262 | AA6: 1007446 | AB6: 1985830 | AC6: 2964214 | AD6: 3941318 | AE6: 4919702 | AF6: 5898086 | AG6: 6884806 | AH6: 7861910 | AI6: 8840294 | AJ6: 9818678 | AK6: 19627526 | AL6: 29415862 | AM6: 39225990 | AN6: 49026502 | AO6: 58823174 | AP6: 68624966 | AQ6: 78421638 | AR6: 88222150 | AS6: 98030998 | AT6: 147028438 | AU6: 196034214 | AV6: 245038710 | AW6: 294036150 | AX6: 343040646 | AY6: 392046422 | AZ6: 441054758 | BA6: 490060534 | BB6: 539065030 | BC6: 588062470 | BD6: 637066966 | BE6: 686072742 | BF6: 735068902 | BG6: 784074678 | BH6: 833091350 | BI6: 882088790 | BJ6: 931093286 | BK6: 980099062 | BL6: 1078100998 | BM6: 1176102934 | BN6: 1274125382 | BO6: 1372127318 | BP6: 1470129254 | BQ6: 1568139526 | BR6: 1666153638 | BS6: 1764155574 | BT6: 1862157510 | BU6: 1960167782
A7: NS.CC_DIAL_PLAN_ROWS | B7: 80391 | C7: 80391 | D7: 82951 | E7: 82951 | F7: 82951 | G7: 82951 | H7: 82951 | I7: 85511 | J7: 93751 | K7: 144135 | L7: 152375 | M7: 157815 | N7: 210999 | O7: 218999 | P7: 269623 | Q7: 277623 | R7: 283303 | S7: 534039 | T7: 784775 | U7: 1043847 | V7: 1294583 | W7: 1545319 | X7: 1796055 | Y7: 2044231 | Z7: 2294967 | AA7: 2545703 | AB7: 5005559 | AC7: 7465415 | AD7: 9922711 | AE7: 12382567 | AF7: 14842423 | AG7: 17310615 | AH7: 19767911 | AI7: 22227767 | AJ7: 24687623 | AK7: 49340119 | AL7: 73939335 | AM7: 98594391 | AN7: 123238551 | AO7: 147846103 | AP7: 172492823 | AQ7: 197100375 | AR7: 221744535 | AS7: 246397031 | AT7: 369549735 | AU7: 492710775 | AV7: 615869255 | AW7: 739021959 | AX7: 862180439 | AY7: 985341479 | AZ7: 1108536567 | BA7: 1231697607 | BB7: 1354856087 | BC7: 1478008791 | BD7: 1601167271 | BE7: 1724328311 | BF7: 1847478455 | BG7: 1970639495 | BH7: 2093842919 | BI7: 2216995623 | BJ7: 2340154103 | BK7: 2463315143 | BL7: 2709626327 | BM7: 2955937511 | BN7: 3202301975 | BO7: 3448613159 | BP7: 3694924343 | BQ7: 3941243863 | BR7: 4187599991 | BS7: 4433911175 | BT7: 4680222359 | BU7: 4926541879
A8: NS.COUNTRY_CODES | B8: 54911 | C8: 54911 | D8: 60031 | E8: 60031 | F8: 60031 | G8: 60031 | H8: 60031 | I8: 67551 | J8: 80671 | K8: 123615 | L8: 136735 | M8: 144975 | N8: 192799 | O8: 206159 | P8: 248863 | Q8: 262223 | R8: 270223 | S8: 520959 | T8: 771695 | U8: 1030767 | V8: 1281503 | W8: 1532239 | X8: 1782975 | Y8: 2028591 | Z8: 2279327 | AA8: 2530063 | AB8: 4997599 | AC8: 7465135 | AD8: 9927551 | AE8: 12395087 | AF8: 14862623 | AG8: 17338495 | AH8: 19800911 | AI8: 22268447 | AJ8: 24735983 | AK8: 49447359 | AL8: 74115695 | AM8: 98832191 | AN8: 123535231 | AO8: 148211903 | AP8: 172920063 | AQ8: 197596735 | AR8: 222299775 | AS8: 247011151 | AT8: 370483855 | AU8: 493964895 | AV8: 617440815 | AW8: 740913519 | AX8: 864389439 | AY8: 987870479 | AZ8: 1111372767 | BA8: 1234853807 | BB8: 1358329727 | BC8: 1481802431 | BD8: 1605278351 | BE8: 1728759391 | BF8: 1852226975 | BG8: 1975708015 | BH8: 2099218639 | BI8: 2222691343 | BJ8: 2346167263 | BK8: 2469648303 | BL8: 2716596927 | BM8: 2963545551 | BN8: 3210537215 | BO8: 3457485839 | BP8: 3704434463 | BQ8: 3951391423 | BR8: 4198374751 | BS8: 4445323375 | BT8: 4692271999 | BU8: 4939228959
A9: NS.COUNTRY_CODE_NDCS | B9: 72742 | C9: 72742 | D9: 76582 | E9: 76582 | F9: 76582 | G9: 76582 | H9: 76582 | I9: 82822 | J9: 93382 | K9: 154502 | L9: 165062 | M9: 172022 | N9: 236742 | O9: 247542 | P9: 308422 | Q9: 319222 | R9: 325942 | S9: 634022 | T9: 942102 | U9: 1258518 | V9: 1566598 | W9: 1874678 | X9: 2182758 | Y9: 2486998 | Z9: 2795078 | AA9: 3103158 | AB9: 6125958 | AC9: 9148758 | AD9: 12167718 | AE9: 15190518 | AF9: 18213318 | AG9: 21244454 | AH9: 24263414 | AI9: 27286214 | AJ9: 30309014 | AK9: 60596326 | AL9: 90821142 | AM9: 121112294 | AN9: 151391270 | AO9: 181624422 | AP9: 211907238 | AQ9: 242140390 | AR9: 272419366 | AS9: 302706678 | AT9: 454017590 | AU9: 605336838 | AV9: 756652246 | AW9: 907963158 | AX9: 1059278566 | AY9: 1210597814 | AZ9: 1361959046 | BA9: 1513278294 | BB9: 1664593702 | BC9: 1815904614 | BD9: 1967220022 | BE9: 2118539270 | BF9: 2269846342 | BG9: 2421165590 | BH9: 2572535158 | BI9: 2723846070 | BJ9: 2875161478 | BK9: 3026480726 | BL9: 3329107046 | BM9: 3631733366 | BN9: 3934422182 | BO9: 4237048502 | BP9: 4539674822 | BQ9: 4842309478 | BR9: 5144989958 | BS9: 5447616278 | BT9: 5750242598 | BU9: 6052877254
A10: NS.LCA_ID | B10: 25072 | C10: 25072 | D10: 26352 | E10: 26352 | F10: 26352 | G10: 26352 | H10: 26352 | I10: 30272 | J10: 35952 | K10: 56384 | L10: 62064 | M10: 66224 | N10: 88176 | O10: 93616 | P10: 114288 | Q10: 119728 | R10: 124128 | S10: 239696 | T10: 355264 | U10: 479168 | V10: 594736 | W10: 710304 | X10: 825872 | Y10: 940160 | Z10: 1055728 | AA10: 1171296 | AB10: 2309424 | AC10: 3447552 | AD10: 4584400 | AE10: 5722528 | AF10: 6860656 | AG10: 8007120 | AH10: 9143968 | AI10: 10282096 | AJ10: 11420224 | AK10: 22830608 | AL10: 34216384 | AM10: 45628048 | AN10: 57030096 | AO10: 68424208 | AP10: 79827536 | AQ10: 91221648 | AR10: 102623696 | AS10: 114034080 | AT10: 171031008 | AU10: 228036272 | AV10: 285040256 | AW10: 342037184 | AX10: 399041168 | AY10: 456046432 | AZ10: 513058352 | BA10: 570063616 | BB10: 627067600 | BC10: 684064528 | BD10: 741068512 | BE10: 798073776 | BF10: 855069424 | BG10: 912074688 | BH10: 969094944 | BI10: 1026091872 | BJ10: 1083095856 | BK10: 1140101120 | BL10: 1254102032 | BM10: 1368102944 | BN10: 1482128464 | BO10: 1596129376 | BP10: 1710130288 | BQ10: 1824139536 | BR10: 1938156720 | BS10: 2052157632 | BT10: 2166158544 | BU10: 2280167792
A11: NS.LCA_LCAID_ENTRY | B11: 338639 | C11: 338639 | D11: 341199 | E11: 341199 | F11: 341199 | G11: 341199 | H11: 341199 | I11: 343759 | J11: 348879 | K11: 374879 | L11: 379999 | M11: 382559 | N11: 411119 | O11: 416239 | P11: 442239 | Q11: 447359 | R11: 449919 | S11: 606239 | T11: 770959 | U11: 944015 | V11: 1108735 | W11: 1273455 | X11: 1438175 | Y11: 1600335 | Z11: 1765055 | AA11: 1929775 | AB11: 3550975 | AC11: 5172175 | AD11: 6790815 | AE11: 8412015 | AF11: 10033215 | AG11: 11662751 | AH11: 13281391 | AI11: 14902591 | AJ11: 16523791 | AK11: 32768223 | AL11: 48980879 | AM11: 65227871 | AN11: 81463967 | AO11: 97684959 | AP11: 113923615 | AQ11: 130144607 | AR11: 146380703 | AS11: 162625135 | AT11: 243780527 | AU11: 324944255 | AV11: 406105423 | AW11: 487260815 | AX11: 568421983 | AY11: 649585711 | AZ11: 730761983 | BA11: 811925711 | BB11: 893086879 | BC11: 974242271 | BD11: 1055403439 | BE11: 1136567167 | BF11: 1217719999 | BG11: 1298883727 | BH11: 1380068335 | BI11: 1461223727 | BJ11: 1542384895 | BK11: 1623548623 | BL11: 1785865183 | BM11: 1948181743 | BN11: 2110530079 | BO11: 2272846639 | BP11: 2435163199 | BQ11: 2597488095 | BR11: 2759828095 | BS11: 2922144655 | BT11: 3084461215 | BU11: 3246786111
A12: NS.LCA_NDC_ENTRY | B12: 1255481 | C12: 1255481 | D12: 1258041 | E12: 1258041 | F12: 1258041 | G12: 1258041 | H12: 1258041 | I12: 1260601 | J12: 1265721 | K12: 1286601 | L12: 1291721 | M12: 1294281 | N12: 1317721 | O12: 1322841 | P12: 1343721 | Q12: 1348841 | R12: 1351401 | S12: 1465641 | T12: 1579881 | U12: 1702457 | V12: 1816697 | W12: 1957337 | X12: 2101577 | Y12: 2243257 | Z12: 2387497 | AA12: 2531737 | AB12: 3953257 | AC12: 5374777 | AD12: 6793737 | AE12: 8215257 | AF12: 9636777 | AG12: 11066633 | AH12: 12485593 | AI12: 13907113 | AJ12: 15328633 | AK12: 29571145 | AL12: 43787001 | AM12: 58032073 | AN12: 72266249 | AO12: 86490441 | AP12: 100727177 | AQ12: 114951369 | AR12: 129185545 | AS12: 143428057 | AT12: 214584089 | AU12: 285748457 | AV12: 356910265 | AW12: 428066297 | AX12: 499228105 | AY12: 570392473 | AZ12: 641564265 | BA12: 712728633 | BB12: 783890441 | BC12: 855046473 | BD12: 926208281 | BE12: 997372649 | BF12: 1068526121 | BG12: 1139690489 | BH12: 1210870617 | BI12: 1282026649 | BJ12: 1353188457 | BK12: 1424352825 | BL12: 1566670665 | BM12: 1708988505 | BN12: 1851333001 | BO12: 1993650841 | BP12: 2135968681 | BQ12: 2278294857 | BR12: 2420631017 | BS12: 2562948857 | BT12: 2705266697 | BU12: 2847592873
A13: NS.LCA_NPANXX_0 | B13: 1892216 | C13: 1892216 | D13: 1897336 | E13: 1897336 | F13: 1897336 | G13: 1897336 | H13: 1897336 | I13: 1902456 | J13: 1912696 | K13: 1951496 | L13: 1961736 | M13: 1966856 | N13: 2010776 | O13: 2021016 | P13: 2059816 | Q13: 2070056 | R13: 2075176 | S13: 2291816 | T13: 2508456 | U13: 2733432 | V13: 2950072 | W13: 3166712 | X13: 3383352 | Y13: 3604472 | Z13: 3851112 | AA13: 4097752 | AB13: 6525352 | AC13: 8952952 | AD13: 11375432 | AE13: 13803032 | AF13: 16230632 | AG13: 18666568 | AH13: 21089048 | AI13: 23516648 | AJ13: 25944248 | AK13: 50255240 | AL13: 74524216 | AM13: 98840328 | AN13: 123142984 | AO13: 147420296 | AP13: 171728072 | AQ13: 196005384 | AR13: 220308040 | AS13: 244619032 | AT13: 366091864 | AU13: 487573032 | AV13: 609049080 | AW13: 730521912 | AX13: 851997960 | AY13: 973479128 | AZ13: 1094980520 | BA13: 1216461688 | BB13: 1337937736 | BC13: 1459410568 | BD13: 1580886616 | BE13: 1702367784 | BF13: 1823835496 | BG13: 1945316664 | BH13: 2066826392 | BI13: 2188299224 | BJ13: 2309775272 | BK13: 2431256440 | BL13: 2674205320 | BM13: 2917154200 | BN13: 3160145096 | BO13: 3403093976 | BP13: 3646042856 | BQ13: 3889000072 | BR13: 4131982632 | BS13: 4374931512 | BT13: 4617880392 | BU13: 4860837608
A14: NS.LCA_NPANXX_1 | B14: 1892216 | C14: 1892216 | D14: 1897336 | E14: 1897336 | F14: 1897336 | G14: 1897336 | H14: 1897336 | I14: 1902456 | J14: 1912696 | K14: 1951496 | L14: 1961736 | M14: 1966856 | N14: 2010776 | O14: 2021016 | P14: 2059816 | Q14: 2070056 | R14: 2075176 | S14: 2291816 | T14: 2508456 | U14: 2733432 | V14: 2950072 | W14: 3166712 | X14: 3383352 | Y14: 3604472 | Z14: 3851112 | AA14: 4097752 | AB14: 6525352 | AC14: 8952952 | AD14: 11375432 | AE14: 13803032 | AF14: 16230632 | AG14: 18666568 | AH14: 21089048 | AI14: 23516648 | AJ14: 25944248 | AK14: 50255240 | AL14: 74524216 | AM14: 98840328 | AN14: 123142984 | AO14: 147420296 | AP14: 171728072 | AQ14: 196005384 | AR14: 220308040 | AS14: 244619032 | AT14: 366091864 | AU14: 487573032 | AV14: 609049080 | AW14: 730521912 | AX14: 851997960 | AY14: 973479128 | AZ14: 1094980520 | BA14: 1216461688 | BB14: 1337937736 | BC14: 1459410568 | BD14: 1580886616 | BE14: 1702367784 | BF14: 1823835496 | BG14: 1945316664 | BH14: 2066826392 | BI14: 2188299224 | BJ14: 2309775272 | BK14: 2431256440 | BL14: 2674205320 | BM14: 2917154200 | BN14: 3160145096 | BO14: 3403093976 | BP14: 3646042856 | BQ14: 3889000072 | BR14: 4131982632 | BS14: 4374931512 | BT14: 4617880392 | BU14: 4860837608
A15: NS.LCA_ZONE_ENTRY | B15: 1260777 | C15: 1260777 | D15: 1263337 | E15: 1263337 | F15: 1263337 | G15: 1263337 | H15: 1263337 | I15: 1265897 | J15: 1271017 | K15: 1297017 | L15: 1302137 | M15: 1304697 | N15: 1333257 | O15: 1338377 | P15: 1364377 | Q15: 1369497 | R15: 1372057 | S15: 1506777 | T15: 1641497 | U15: 1784553 | V15: 1919273 | W15: 2080393 | X15: 2245113 | Y15: 2407273 | Z15: 2571993 | AA15: 2736713 | AB15: 4357913 | AC15: 5979113 | AD15: 7597753 | AE15: 9218953 | AF15: 10840153 | AG15: 12469689 | AH15: 14088329 | AI15: 15709529 | AJ15: 17330729 | AK15: 33575161 | AL15: 49787817 | AM15: 66034809 | AN15: 82270905 | AO15: 98491897 | AP15: 114730553 | AQ15: 130951545 | AR15: 147187641 | AS15: 163432073 | AT15: 244587465 | AU15: 325751193 | AV15: 406912361 | AW15: 488067753 | AX15: 569228921 | AY15: 650392649 | AZ15: 731568921 | BA15: 812732649 | BB15: 893893817 | BC15: 975049209 | BD15: 1056210377 | BE15: 1137374105 | BF15: 1218526937 | BG15: 1299690665 | BH15: 1380875273 | BI15: 1462030665 | BJ15: 1543191833 | BK15: 1624355561 | BL15: 1786672121 | BM15: 1948988681 | BN15: 2111337017 | BO15: 2273653577 | BP15: 2435970137 | BQ15: 2598295033 | BR15: 2760635033 | BS15: 2922951593 | BT15: 3085268153 | BU15: 3247593049
A16: NS.LCA_ZONE_RC_ENTRY | B16: 1576707 | C16: 1576707 | D16: 1579267 | E16: 1579267 | F16: 1579267 | G16: 1579267 | H16: 1579267 | I16: 1581827 | J16: 1586947 | K16: 1621139 | L16: 1626259 | M16: 1628819 | N16: 1665571 | O16: 1670691 | P16: 1704883 | Q16: 1710003 | R16: 1712563 | S16: 1880051 | T16: 2047539 | U16: 2223363 | V16: 2390851 | W16: 2558339 | X16: 2743827 | Y16: 2938755 | Z16: 3136243 | AA16: 3333731 | AB16: 5274419 | AC16: 7215107 | AD16: 9153235 | AE16: 11093923 | AF16: 13034611 | AG16: 14983635 | AH16: 16921763 | AI16: 18862451 | AJ16: 20803139 | AK16: 40250643 | AL16: 59658179 | AM16: 79108243 | AN16: 98547411 | AO16: 117963283 | AP16: 137405011 | AQ16: 156820883 | AR16: 176260051 | AS16: 195707555 | AT16: 292861923 | AU16: 390024627 | AV16: 487184771 | AW16: 584339139 | AX16: 681499283 | AY16: 778661987 | AZ16: 875845427 | BA16: 973008131 | BB16: 1070168275 | BC16: 1167322643 | BD16: 1264482787 | BE16: 1361645491 | BF16: 1458797299 | BG16: 1555960003 | BH16: 1653151779 | BI16: 1750306147 | BJ16: 1847466291 | BK16: 1944628995 | BL16: 2138943507 | BM16: 2333258019 | BN16: 2527612499 | BO16: 2721927011 | BP16: 2916241523 | BQ16: 3110564371 | BR16: 3304910515 | BS16: 3499225027 | BT16: 3693539539 | BU16: 3887862387
A17: NS.NET_CARRIERS | B17: 33127 | C17: 33127 | D17: 34407 | E17: 34407 | F17: 34407 | G17: 34407 | H17: 34407 | I17: 37127 | J17: 42807 | K17: 61191 | L17: 66871 | M17: 71031 | N17: 90935 | O17: 96375 | P17: 114999 | Q17: 120439 | R17: 124839 | S17: 232215 | T17: 339591 | U17: 455303 | V17: 562679 | W17: 670055 | X17: 777431 | Y17: 883527 | Z17: 990903 | AA17: 1098279 | AB17: 2156535 | AC17: 3214791 | AD17: 4271767 | AE17: 5330023 | AF17: 6388279 | AG17: 7454871 | AH17: 8511847 | AI17: 9570103 | AJ17: 10628359 | AK17: 21237975 | AL17: 31825031 | AM17: 42435927 | AN17: 53037207 | AO17: 63632599 | AP17: 74235159 | AQ17: 84830551 | AR17: 95431831 | AS17: 106041447 | AT17: 159038631 | AU17: 212044151 | AV17: 265048391 | AW17: 318045575 | AX17: 371049815 | AY17: 424055335 | AZ17: 477065463 | BA17: 530070983 | BB17: 583075223 | BC17: 636072407 | BD17: 689076647 | BE17: 742082167 | BF17: 795078071 | BG17: 848083591 | BH17: 901102055 | BI17: 954099239 | BJ17: 1007103479 | BK17: 1060108999 | BL17: 1166110423 | BM17: 1272111847 | BN17: 1378135831 | BO17: 1484137255 | BP17: 1590138679 | BQ17: 1696148439 | BR17: 1802164087 | BS17: 1908165511 | BT17: 2014166935 | BU17: 2120176695
A18: NS.NET_CARRIERS_NES | B18: 49734 | C18: 49734 | D18: 51014 | E18: 51014 | F18: 51014 | G18: 51014 | H18: 51014 | I18: 52294 | J18: 57974 | K18: 81478 | L18: 87158 | M18: 91318 | N18: 116342 | O18: 121782 | P18: 145526 | Q18: 150966 | R18: 155366 | S18: 283222 | T18: 411078 | U18: 547270 | V18: 675126 | W18: 802982 | X18: 930838 | Y18: 1057414 | Z18: 1185270 | AA18: 1313126 | AB18: 2571062 | AC18: 3828998 | AD18: 5085654 | AE18: 6343590 | AF18: 7601526 | AG18: 8867798 | AH18: 10124454 | AI18: 11382390 | AJ18: 12640326 | AK18: 25251862 | AL18: 37835718 | AM18: 50448534 | AN18: 63051734 | AO18: 75643926 | AP18: 88248406 | AQ18: 100840598 | AR18: 113443798 | AS18: 126055334 | AT18: 189051878 | AU18: 252056758 | AV18: 315060358 | AW18: 378056902 | AX18: 441060502 | AY18: 504065382 | AZ18: 567079990 | BA18: 630084870 | BB18: 693088470 | BC18: 756085014 | BD18: 819088614 | BE18: 882093494 | BF18: 945088758 | BG18: 1008093638 | BH18: 1071116582 | BI18: 1134113126 | BJ18: 1197116726 | BK18: 1260121606 | BL18: 1386121750 | BM18: 1512121894 | BN18: 1638149718 | BO18: 1764149862 | BP18: 1890150006 | BQ18: 2016158486 | BR18: 2142177974 | BS18: 2268178118 | BT18: 2394178262 | BU18: 2520186742
A19: NS.NET_DN_ADDRESSES | B19: 12622739 | C19: 12622739 | D19: 12626579 | E19: 12626579 | F19: 12626579 | G19: 12626579 | H19: 12626579 | I19: 12630419 | J19: 12638099 | K19: 12658211 | L19: 12665891 | M19: 12669731 | N19: 12693683 | O19: 12701363 | P19: 12721475 | Q19: 12729155 | R19: 12732995 | S19: 12859523 | T19: 12986051 | U19: 13120915 | V19: 13247443 | W19: 13373971 | X19: 13500499 | Y19: 13623187 | Z19: 13749715 | AA19: 13876243 | AB19: 15121411 | AC19: 16366579 | AD19: 17607907 | AE19: 18853075 | AF19: 20323843 | AG19: 21877347 | AH19: 23418675 | AI19: 24963843 | AJ19: 26509011 | AK19: 41982115 | AL19: 57430611 | AM19: 72907555 | AN19: 88372323 | AO19: 103829155 | AP19: 119297763 | AQ19: 134754595 | AR19: 150219363 | AS19: 165692467 | AT19: 243008115 | AU19: 320332099 | AV19: 397652243 | AW19: 474967891 | AX19: 552288035 | AY19: 629612019 | AZ19: 706940099 | BA19: 784264083 | BB19: 861584227 | BC19: 938899875 | BD19: 1016220019 | BE19: 1093544003 | BF19: 1170855811 | BG19: 1248179795 | BH19: 1325516211 | BI19: 1402831859 | BJ19: 1480152003 | BK19: 1557475987 | BL19: 1712111779 | BM19: 1866747571 | BN19: 2021407971 | BO19: 2176043763 | BP19: 2330679555 | BQ19: 2485323683 | BR19: 2639975747 | BS19: 2794611539 | BT19: 2949247331 | BU19: 3103891459
A20: NS.NET_DN_RANGES | B20: 12616128 | C20: 12616128 | D20: 12617408 | E20: 12617408 | F20: 12617408 | G20: 12617408 | H20: 12617408 | I20: 12618688 | J20: 12621248 | K20: 12637776 | L20: 12640336 | M20: 12641616 | N20: 12659424 | O20: 12661984 | P20: 12678512 | Q20: 12681072 | R20: 12682352 | S20: 12763824 | T20: 12845296 | U20: 12935104 | V20: 13016576 | W20: 13098048 | X20: 13179520 | Y20: 13259712 | Z20: 13341184 | AA20: 13422656 | AB20: 14220848 | AC20: 15019040 | AD20: 15815952 | AE20: 16614144 | AF20: 17637936 | AG20: 18744464 | AH20: 19841376 | AI20: 20939568 | AJ20: 22037760 | AK20: 33047760 | AL20: 44034176 | AM20: 55045456 | AN20: 66047120 | AO20: 77041872 | AP20: 88044816 | AQ20: 99039568 | AR20: 110041232 | AS20: 121051232 | AT20: 176048288 | AU20: 231053680 | AV20: 286057792 | AW20: 341054848 | AX20: 396058960 | AY20: 451064352 | AZ20: 506075376 | BA20: 561080768 | BB20: 616084880 | BC20: 671081936 | BD20: 726086048 | BE20: 781091440 | BF20: 836087216 | BG20: 891092608 | BH20: 946111968 | BI20: 1001109024 | BJ20: 1056113136 | BK20: 1111118528 | BL20: 1221119696 | BM20: 1331120864 | BN20: 1441145616 | BO20: 1551146784 | BP20: 1661147952 | BQ20: 1771157456 | BR20: 1881173872 | BS20: 1991175040 | BT20: 2101176208 | BU20: 2211185712
A21: NS.NET_DOMAINS | B21: 17766 | C21: 17766 | D21: 19094 | E21: 19142 | F21: 19190 | G21: 19238 | H21: 19478 | I21: 27718 | J21: 38198 | K21: 56262 | L21: 66742 | M21: 75702 | N21: 95286 | O21: 105526 | P21: 123830 | Q21: 134070 | R21: 143270 | S21: 278166 | T21: 413062 | U21: 556294 | V21: 691190 | W21: 826086 | X21: 960982 | Y21: 1094598 | Z21: 1229494 | AA21: 1364390 | AB21: 2702966 | AC21: 4041542 | AD21: 5378838 | AE21: 6717414 | AF21: 8055990 | AG21: 9402902 | AH21: 10740198 | AI21: 12078774 | AJ21: 13417350 | AK21: 26825046 | AL21: 40215302 | AM21: 53624278 | AN21: 67023638 | AO21: 80422230 | AP21: 93822870 | AQ21: 107221462 | AR21: 120620822 | AS21: 134028518 | AT21: 201026342 | AU21: 268032502 | AV21: 335037382 | AW21: 402035206 | AX21: 469040086 | AY21: 536046246 | AZ21: 603051894 | BA21: 670058054 | BB21: 737062934 | BC21: 804060758 | BD21: 871065638 | BE21: 938071798 | BF21: 1005068342 | BG21: 1072074502 | BH21: 1139088486 | BI21: 1206086310 | BJ21: 1273091190 | BK21: 1340097350 | BL21: 1474100054 | BM21: 1608102758 | BN21: 1742122902 | BO21: 1876125606 | BP21: 2010128310 | BQ21: 2144139350 | BR21: 2278151158 | BS21: 2412153862 | BT21: 2546156566 | BU21: 2680167606
A22: NS.NET_ENTERPRISES | B22: 504079 | C22: 504079 | D22: 514423 | E22: 514527 | F22: 514631 | G22: 514735 | H22: 515255 | I22: 534855 | J22: 565735 | K22: 636439 | L22: 667319 | M22: 687959 | N22: 768903 | O22: 799783 | P22: 870487 | Q22: 901367 | R22: 922007 | S22: 1396343 | T22: 1894439 | U22: 2400871 | V22: 2898967 | W22: 3397063 | X22: 3895159 | Y22: 4383015 | Z22: 4881111 | AA22: 5379207 | AB22: 10299863 | AC22: 15220519 | AD22: 20130935 | AE22: 25051591 | AF22: 29972247 | AG22: 34901239 | AH22: 39811655 | AI22: 44732311 | AJ22: 49652967 | AK22: 98895543 | AL22: 148079719 | AM22: 197332535 | AN22: 246566775 | AO22: 295759287 | AP22: 345003767 | AQ22: 394196279 | AR22: 443430519 | AS22: 492673095 | AT22: 738781319 | AU22: 984897879 | AV22: 1231004199 | AW22: 1477112423 | AX22: 1723218743 | AY22: 1969335303 | AZ22: 2215483351 | BA22: 2461599911 | BB22: 2707706231 | BC22: 2953814455 | BD22: 3199920775 | BE22: 3446037335 | BF22: 3692135319 | BG22: 3938251879 | BH22: 4184408263 | BI22: 4430516487 | BJ22: 4676622807 | BK22: 4922739367 | BL22: 5414953911 | BM22: 5907168455 | BN22: 6399441399 | BO22: 6891655943 | BP22: 7383870487 | BQ22: 7876093367 | BR22: 8368357975 | BS22: 8860572519 | BT22: 9352787063 | BU22: 9845009943
A23: NS.NET_ENTERPRISE_SITES | B23: 674348 | C23: 674348 | D23: 679500 | E23: 679532 | F23: 679564 | G23: 679596 | H23: 679756 | I23: 687756 | J23: 701196 | K23: 755484 | L23: 768924 | M23: 777244 | N23: 836652 | O23: 850092 | P23: 904380 | Q23: 917820 | R23: 926140 | S23: 1223932 | T23: 1534924 | U23: 1871052 | V23: 2198844 | W23: 2526636 | X23: 2854428 | Y23: 3177100 | Z23: 3504892 | AA23: 3832684 | AB23: 7059516 | AC23: 10286348 | AD23: 13508060 | AE23: 16734892 | AF23: 19961724 | AG23: 23196892 | AH23: 26418604 | AI23: 29645436 | AJ23: 32872268 | AK23: 65187868 | AL23: 97449164 | AM23: 129769884 | AN23: 162077148 | AO23: 194346780 | AP23: 226659164 | AQ23: 258928796 | AR23: 291236060 | AS23: 323551660 | AT23: 485022956 | AU23: 646502588 | AV23: 807977100 | AW23: 969448396 | AX23: 1130922908 | AY23: 1292402540 | AZ23: 1453914684 | BA23: 1615394316 | BB23: 1776868828 | BC23: 1938340124 | BD23: 2099814636 | BE23: 2261294268 | BF23: 2422760444 | BG23: 2584240076 | BH23: 2745760556 | BI23: 2907231852 | BJ23: 3068706364 | BK23: 3230185996 | BL23: 3553131804 | BM23: 3876077612 | BN23: 4199077724 | BO23: 4522023532 | BP23: 4844969340 | BQ23: 5167923484 | BR23: 5490915260 | BS23: 5813861068 | BT23: 6136806876 | BU23: 6459761020
A24: NS.NET_EXT_ADDRESSES | B24: 453141 | C24: 453141 | D24: 456981 | E24: 456981 | F24: 456981 | G24: 456981 | H24: 456981 | I24: 460821 | J24: 468501 | K24: 484517 | L24: 492197 | M24: 496037 | N24: 515893 | O24: 523573 | P24: 539589 | Q24: 547269 | R24: 551109 | S24: 667493 | T24: 807637 | U24: 956117 | V24: 1096261 | W24: 1236405 | X24: 1376549 | Y24: 1512853 | Z24: 1652997 | AA24: 1793141 | AB24: 3178565 | AC24: 4563989 | AD24: 5945573 | AE24: 7330997 | AF24: 8716421 | AG24: 10110181 | AH24: 11491765 | AI24: 12877189 | AJ24: 14262613 | AK24: 28134181 | AL24: 41985237 | AM24: 55860645 | AN24: 69723877 | AO24: 83583269 | AP24: 97450341 | AQ24: 111309733 | AR24: 125172965 | AS24: 139044533 | AT24: 208360693 | AU24: 277685189 | AV24: 347005845 | AW24: 416322005 | AX24: 485642661 | AY24: 554967157 | AZ24: 624291653 | BA24: 693616149 | BB24: 762936805 | BC24: 832252965 | BD24: 901573621 | BE24: 970898117 | BF24: 1040210437 | BG24: 1109534933 | BH24: 1178867765 | BI24: 1248183925 | BJ24: 1317504581 | BK24: 1386829077 | BL24: 1525465893 | BM24: 1664102709 | BN24: 1802760037 | BO24: 1941396853 | BP24: 2080033669 | BQ24: 2218678821 | BR24: 2357327813 | BS24: 2495964629 | BT24: 2634601445 | BU24: 2773246597
A25: NS.NET_HOSTING_NES | B25: 95347 | C25: 95347 | D25: 103027 | E25: 103027 | F25: 103027 | G25: 103027 | H25: 103027 | I25: 112147 | J25: 130627 | K25: 202515 | L25: 220995 | M25: 231555 | N25: 311363 | O25: 329603 | P25: 401731 | Q25: 419971 | R25: 430771 | S25: 828963 | T25: 1227155 | U25: 1633683 | V25: 2031875 | W25: 2430067 | X25: 2828259 | Y25: 3218771 | Z25: 3616963 | AA25: 4015155 | AB25: 7928067 | AC25: 11840979 | AD25: 15746211 | AE25: 19659123 | AF25: 23572035 | AG25: 27493283 | AH25: 31398515 | AI25: 35311427 | AJ25: 39224339 | AK25: 78408419 | AL25: 117522835 | AM25: 156714595 | AN25: 195890339 | AO25: 235013091 | AP25: 274196515 | AQ25: 313319267 | AR25: 352495011 | AS25: 391679091 | AT25: 587467187 | AU25: 783263619 | AV25: 979052371 | AW25: 1174840467 | AX25: 1370629219 | AY25: 1566425651 | AZ25: 1762267395 | BA25: 1958063827 | BB25: 2153852579 | BC25: 2349640675 | BD25: 2545429427 | BE25: 2741225859 | BF25: 2937006275 | BG25: 3132802707 | BH25: 3328652787 | BI25: 3524440883 | BJ25: 3720229635 | BK25: 3916026067 | BL25: 4307602915 | BM25: 4699179763 | BN25: 5090826275 | BO25: 5482403123 | BP25: 5873979971 | BQ25: 6265565155 | BR25: 6657203331 | BS25: 7048780179 | BT25: 7440357027 | BU25: 7831942211
A26: NS.NET_HOSTING_NES_ADDR | B26: 63810 | C26: 63810 | D26: 66410 | E26: 66450 | F26: 66490 | G26: 66530 | H26: 66730 | I26: 72890 | J26: 85130 | K26: 124154 | L26: 136394 | M26: 145834 | N26: 187658 | O26: 199658 | P26: 238922 | Q26: 250922 | R26: 260602 | S26: 489898 | T26: 719194 | U26: 956826 | V26: 1186122 | W26: 1415418 | X26: 1644714 | Y26: 1871450 | Z26: 2100746 | AA26: 2330042 | AB26: 4590858 | AC26: 6851674 | AD26: 9109930 | AE26: 11370746 | AF26: 13631562 | AG26: 15900714 | AH26: 18158970 | AI26: 20419786 | AJ26: 22680602 | AK26: 45327338 | AL26: 67936154 | AM26: 90585450 | AN26: 113223850 | AO26: 135841002 | AP26: 158481962 | AQ26: 181099114 | AR26: 203737514 | AS26: 226384250 | AT26: 339538874 | AU26: 452701834 | AV26: 565862234 | AW26: 679016858 | AX26: 792177258 | AY26: 905340218 | AZ26: 1018521866 | BA26: 1131684826 | BB26: 1244845226 | BC26: 1357999850 | BD26: 1471160250 | BE26: 1584323210 | BF26: 1697475274 | BG26: 1810638234 | BH26: 1923828218 | BI26: 2036982842 | BJ26: 2150143242 | BK26: 2263306202 | BL26: 2489621226 | BM26: 2715936250 | BN26: 2942289194 | BO26: 3168604218 | BP26: 3394919242 | BQ26: 3621242602 | BR26: 3847587210 | BS26: 4073902234 | BT26: 4300217258 | BU26: 4526540618
A27: NS.NET_HOSTING_NES_ADMIN_ID | B27: 1256369 | C27: 1256369 | D27: 1258969 | E27: 1259009 | F27: 1259049 | G27: 1259089 | H27: 1259289 | I27: 1265449 | J27: 1274569 | K27: 1300473 | L27: 1309593 | M27: 1316153 | N27: 1344617 | O27: 1353737 | P27: 1379641 | Q27: 1388761 | R27: 1395321 | S27: 1553657 | T27: 1711993 | U27: 1878665 | V27: 2037001 | W27: 2221737 | X27: 2410073 | Y27: 2595849 | Z27: 2784185 | AA27: 2972521 | AB27: 4833977 | AC27: 6695433 | AD27: 8554329 | AE27: 10415785 | AF27: 12277241 | AG27: 14147033 | AH27: 16005929 | AI27: 17867385 | AJ27: 19728841 | AK27: 38371737 | AL27: 56986953 | AM27: 75632409 | AN27: 94266969 | AO27: 112890521 | AP27: 131527641 | AQ27: 150151193 | AR27: 168785753 | AS27: 187428649 | AT27: 280584553 | AU27: 373748793 | AV27: 466910473 | AW27: 560066377 | AX27: 653228057 | AY27: 746392297 | AZ27: 839564985 | BA27: 932729225 | BB27: 1025890905 | BC27: 1119046809 | BD27: 1212208489 | BE27: 1305372729 | BF27: 1398526073 | BG27: 1491690313 | BH27: 1584871337 | BI27: 1678027241 | BJ27: 1771188921 | BK27: 1864353161 | BL27: 2050670745 | BM27: 2236988329 | BN27: 2423333593 | BO27: 2609651177 | BP27: 2795968761 | BQ27: 2982294681 | BR27: 3168631609 | BS27: 3354949193 | BT27: 3541266777 | BU27: 3727592697
A28: NS.NET_HOSTING_NES_NODE_ID | B28: 67836 | C28: 67836 | D28: 70484 | E28: 70572 | F28: 70660 | G28: 70748 | H28: 71188 | I28: 83108 | J28: 100148 | K28: 160356 | L28: 177396 | M28: 191636 | N28: 254644 | O28: 271444 | P28: 331892 | Q28: 348692 | R28: 363172 | S28: 706004 | T28: 1048836 | U28: 1400004 | V28: 1742836 | W28: 2085668 | X28: 2428500 | Y28: 2768772 | Z28: 3111604 | AA28: 3454436 | AB28: 6834228 | AC28: 10214020 | AD28: 13591252 | AE28: 16971044 | AF28: 20350836 | AG28: 23738964 | AH28: 27116196 | AI28: 30495988 | AJ28: 33875780 | AK28: 67728660 | AL28: 101527236 | AM28: 135382676 | AN28: 169227220 | AO28: 203034132 | AP28: 236881236 | AQ28: 270688148 | AR28: 304532692 | AS28: 338385572 | AT28: 507538148 | AU28: 676699060 | AV28: 845857412 | AW28: 1015009988 | AX28: 1184168340 | AY28: 1353329252 | AZ28: 1522525236 | BA28: 1691686148 | BB28: 1860844500 | BC28: 2029997076 | BD28: 2199155428 | BE28: 2368316340 | BF28: 2537466356 | BG28: 2706627268 | BH28: 2875831588 | BI28: 3044984164 | BJ28: 3214142516 | BK28: 3383303428 | BL28: 3721614356 | BM28: 4059925284 | BN28: 4398290516 | BO28: 4736601444 | BP28: 5074912372 | BQ28: 5413231636 | BR28: 5751588532 | BS28: 6089899460 | BT28: 6428210388 | BU28: 6766529652
A29: NS.NET_MS | B29: 34703 | C29: 34703 | D29: 34703 | E29: 34703 | F29: 34703 | G29: 34703 | H29: 34703 | I29: 37103 | J29: 39983 | K29: 66543 | L29: 69423 | M29: 72543 | N29: 98863 | O29: 101983 | P29: 128303 | Q29: 131423 | R29: 134303 | S29: 258063 | T29: 381823 | U29: 513919 | V29: 637679 | W29: 761439 | X29: 885199 | Y29: 1008959 | Z29: 1132719 | AA29: 1256479 | AB29: 2470639 | AC29: 3684799 | AD29: 4898959 | AE29: 6113119 | AF29: 7327279 | AG29: 8549775 | AH29: 9763935 | AI29: 10978095 | AJ29: 12192255 | AK29: 24373967 | AL29: 36523903 | AM29: 48705615 | AN29: 60878991 | AO29: 73037263 | AP29: 85210639 | AQ29: 97368911 | AR29: 109542287 | AS29: 121723999 | AT29: 182560671 | AU29: 243405679 | AV29: 304250687 | AW29: 365087359 | AX29: 425932367 | AY29: 486777375 | AZ29: 547637487 | BA29: 608482495 | BB29: 669327503 | BC29: 730164175 | BD29: 791009183 | BE29: 851854191 | BF29: 912690863 | BG29: 973535871 | BH29: 1034404319 | BI29: 1095240991 | BJ29: 1156085999 | BK29: 1216931007 | BL29: 1338612687 | BM29: 1460294367 | BN29: 1582007823 | BO29: 1703689503 | BP29: 1825371183 | BQ29: 1947061199 | BR29: 2068766319 | BS29: 2190447999 | BT29: 2312129679 | BU29: 2433819695
A30: NS.NET_MS_IP | B30: 46944 | C30: 46944 | D30: 49552 | E30: 49600 | F30: 49648 | G30: 49696 | H30: 49936 | I30: 58256 | J30: 71296 | K30: 107024 | L30: 120064 | M30: 130304 | N30: 168832 | O30: 181632 | P30: 217600 | Q30: 230400 | R30: 240880 | S30: 461792 | T30: 682704 | U30: 911952 | V30: 1132864 | W30: 1353776 | X30: 1574688 | Y30: 1793040 | Z30: 2013952 | AA30: 2234864 | AB30: 4415936 | AC30: 6597008 | AD30: 8775520 | AE30: 10956592 | AF30: 13137664 | AG30: 15327072 | AH30: 17505584 | AI30: 19686656 | AJ30: 21867728 | AK30: 43712928 | AL30: 65524304 | AM30: 87372064 | AN30: 109208928 | AO30: 131028640 | AP30: 152868064 | AQ30: 174687776 | AR30: 196524640 | AS30: 218369840 | AT30: 327524976 | AU30: 436688448 | AV30: 545849360 | AW30: 655004496 | AX30: 764165408 | AY30: 873328880 | AZ30: 982506944 | BA30: 1091670416 | BB30: 1200831328 | BC30: 1309986464 | BD30: 1419147376 | BE30: 1528310848 | BF30: 1637463424 | BG30: 1746626896 | BH30: 1855813296 | BI30: 1964968432 | BJ30: 2074129344 | BK30: 2183292816 | BL30: 2401608864 | BM30: 2619924912 | BN30: 2838274784 | BO30: 3056590832 | BP30: 3274906880 | BQ30: 3493231264 | BR30: 3711572800 | BS30: 3929888848 | BT30: 4148204896 | BU30: 4366529280
A31: NS.NET_MS_SELECTION | B31: 59269 | C31: 59269 | D31: 63109 | E31: 63109 | F31: 63109 | G31: 63109 | H31: 63109 | I31: 68389 | J31: 79189 | K31: 121637 | L31: 132437 | M31: 139157 | N31: 185685 | O31: 196245 | P31: 238933 | Q31: 249493 | R31: 256453 | S31: 490805 | T31: 725157 | U31: 967845 | V31: 1202197 | W31: 1436549 | X31: 1670901 | Y31: 1901413 | Z31: 2135765 | AA31: 2370117 | AB31: 4674069 | AC31: 6978021 | AD31: 9278133 | AE31: 11582085 | AF31: 13886037 | AG31: 16198325 | AH31: 18498437 | AI31: 20802389 | AJ31: 23106341 | AK31: 46186741 | AL31: 69223077 | AM31: 92307317 | AN31: 115379381 | AO31: 138424053 | AP31: 161499957 | AQ31: 184544629 | AR31: 207616693 | AS31: 230697093 | AT31: 346010309 | AU31: 461331861 | AV31: 576649573 | AW31: 691962789 | AX31: 807280501 | AY31: 922602053 | AZ31: 1037947157 | BA31: 1153268709 | BB31: 1268586421 | BC31: 1383899637 | BD31: 1499217349 | BE31: 1614538901 | BF31: 1729848277 | BG31: 1845169829 | BH31: 1960523269 | BI31: 2075836485 | BJ31: 2191154197 | BK31: 2306475749 | BL31: 2537106677 | BM31: 2767737605 | BN31: 2998412597 | BO31: 3229043525 | BP31: 3459674453 | BQ31: 3690313717 | BR31: 3920980373 | BS31: 4151611301 | BT31: 4382242229 | BU31: 4612881493
A32: NS.NET_MS_SERVICES | B32: 21347 | C32: 21347 | D32: 21347 | E32: 21347 | F32: 21347 | G32: 21347 | H32: 21347 | I32: 23987 | J32: 27107 | K32: 45235 | L32: 48355 | M32: 51235 | N32: 69603 | O32: 72483 | P32: 90851 | Q32: 93731 | R32: 96851 | S32: 187843 | T32: 278835 | U32: 378163 | V32: 469155 | W32: 560147 | X32: 651139 | Y32: 742131 | Z32: 833123 | AA32: 924115 | AB32: 1818787 | AC32: 2713459 | AD32: 3608131 | AE32: 4502803 | AF32: 5397475 | AG32: 6300483 | AH32: 7195155 | AI32: 8089827 | AJ32: 8984499 | AK32: 17963139 | AL32: 26918195 | AM32: 35896835 | AN32: 44867139 | AO32: 53830531 | AP32: 62800835 | AQ32: 71764227 | AR32: 80734531 | AS32: 89713171 | AT32: 134550867 | AU32: 179396899 | AV32: 224242931 | AW32: 269080627 | AX32: 313926659 | AY32: 358772691 | AZ32: 403625635 | BA32: 448471667 | BB32: 493317699 | BC32: 538155395 | BD32: 583001427 | BE32: 627847459 | BF32: 672685155 | BG32: 717531187 | BH32: 762392467 | BI32: 807230163 | BJ32: 852076195 | BK32: 896922227 | BL32: 986605955 | BM32: 1076289683 | BN32: 1165996995 | BO32: 1255680723 | BP32: 1345364451 | BQ32: 1435056515 | BR32: 1524755491 | BS32: 1614439219 | BT32: 1704122947 | BU32: 1793815011
A33: NS.NET_MS_SERVICES_MAP | B33: 48847 | C33: 48847 | D33: 51407 | E33: 51407 | F33: 51407 | G33: 51407 | H33: 51407 | I33: 55167 | J33: 63167 | K33: 94335 | L33: 102335 | M33: 108015 | N33: 141503 | O33: 149743 | P33: 180671 | Q33: 188911 | R33: 194351 | S33: 367263 | T33: 540175 | U33: 721423 | V33: 894335 | W33: 1067247 | X33: 1240159 | Y33: 1410511 | Z33: 1583423 | AA33: 1756335 | AB33: 3457407 | AC33: 5158479 | AD33: 6856991 | AE33: 8558063 | AF33: 10259135 | AG33: 11968543 | AH33: 13667055 | AI33: 15368127 | AJ33: 17069199 | AK33: 34114399 | AL33: 51125775 | AM33: 68173535 | AN33: 85210399 | AO33: 102230111 | AP33: 119269535 | AQ33: 136289247 | AR33: 153326111 | AS33: 170371311 | AT33: 255526447 | AU33: 340689919 | AV33: 425850831 | AW33: 511005967 | AX33: 596166879 | AY33: 681330351 | AZ33: 766508415 | BA33: 851671887 | BB33: 936832799 | BC33: 1021987935 | BD33: 1107148847 | BE33: 1192312319 | BF33: 1277464895 | BG33: 1362628367 | BH33: 1447814767 | BI33: 1532969903 | BJ33: 1618130815 | BK33: 1703294287 | BL33: 1873610335 | BM33: 2043926383 | BN33: 2214276255 | BO33: 2384592303 | BP33: 2554908351 | BQ33: 2725232735 | BR33: 2895574271 | BS33: 3065890319 | BT33: 3236206367 | BU33: 3406530751
A34: NS.NET_NES | B34: 50619 | C34: 50619 | D34: 51899 | E34: 51899 | F34: 51899 | G34: 51899 | H34: 51899 | I34: 54379 | J34: 59819 | K34: 91755 | L34: 97195 | M34: 101595 | N34: 134571 | O34: 140251 | P34: 171947 | Q34: 177627 | R34: 181787 | S34: 342411 | T34: 503035 | U34: 671995 | V34: 832619 | W34: 993243 | X34: 1153867 | Y34: 1313211 | Z34: 1473835 | AA34: 1634459 | AB34: 3211883 | AC34: 4789307 | AD34: 6365451 | AE34: 7942875 | AF34: 9520299 | AG34: 11106059 | AH34: 12682203 | AI34: 14259627 | AJ34: 15837051 | AK34: 31651659 | AL34: 47430395 | AM34: 63246283 | AN34: 79052555 | AO34: 94839627 | AP34: 110647179 | AQ34: 126434251 | AR34: 142240523 | AS34: 158055131 | AT34: 237050651 | AU34: 316054507 | AV34: 395057083 | AW34: 474052603 | AX34: 553055179 | AY34: 632059035 | AZ34: 711080811 | BA34: 790084667 | BB34: 869087243 | BC34: 948082763 | BD34: 1027085339 | BE34: 1106089195 | BF34: 1185083435 | BG34: 1264087291 | BH34: 1343117403 | BI34: 1422112923 | BJ34: 1501115499 | BK34: 1580119355 | BL34: 1738117451 | BM34: 1896115547 | BN34: 2054149515 | BO34: 2212147611 | BP34: 2370145707 | BQ34: 2528152139 | BR34: 2686177771 | BS34: 2844175867 | BT34: 3002173963 | BU34: 3160180395
A35: NS.NET_NES_IP | B35: 65184 | C35: 65184 | D35: 67792 | E35: 67840 | F35: 67888 | G35: 67936 | H35: 68176 | I35: 75056 | J35: 87136 | K35: 123104 | L35: 135904 | M35: 146384 | N35: 184672 | O35: 197712 | P35: 233440 | Q35: 246480 | R35: 256720 | S35: 477632 | T35: 698544 | U35: 927792 | V35: 1148704 | W35: 1369616 | X35: 1590528 | Y35: 1808880 | Z35: 2029792 | AA35: 2250704 | AB35: 4431776 | AC35: 6612848 | AD35: 8791360 | AE35: 10972432 | AF35: 13153504 | AG35: 15342912 | AH35: 17521424 | AI35: 19702496 | AJ35: 21883568 | AK35: 43728768 | AL35: 65540144 | AM35: 87387904 | AN35: 109224768 | AO35: 131044480 | AP35: 152883904 | AQ35: 174703616 | AR35: 196540480 | AS35: 218385680 | AT35: 327540816 | AU35: 436704288 | AV35: 545865200 | AW35: 655020336 | AX35: 764181248 | AY35: 873344720 | AZ35: 982522784 | BA35: 1091686256 | BB35: 1200847168 | BC35: 1310002304 | BD35: 1419163216 | BE35: 1528326688 | BF35: 1637479264 | BG35: 1746642736 | BH35: 1855829136 | BI35: 1964984272 | BJ35: 2074145184 | BK35: 2183308656 | BL35: 2401624704 | BM35: 2619940752 | BN35: 2838290624 | BO35: 3056606672 | BP35: 3274922720 | BQ35: 3493247104 | BR35: 3711588640 | BS35: 3929904688 | BT35: 4148220736 | BU35: 4366545120
A36: NS.NET_NES_ROUTING | B36: 141535 | C36: 141535 | D36: 146655 | E36: 146655 | F36: 146655 | G36: 146655 | H36: 146655 | I36: 151775 | J36: 162015 | K36: 217199 | L36: 229839 | M36: 238079 | N36: 301263 | O36: 314623 | P36: 372687 | Q36: 386047 | R36: 394047 | S36: 706223 | T36: 1018399 | U36: 1338911 | V36: 1651087 | W36: 1963263 | X36: 2275439 | Y36: 2582495 | Z36: 2894671 | AA36: 3206847 | AB36: 6273423 | AC36: 9339999 | AD36: 12401455 | AE36: 15468031 | AF36: 18534607 | AG36: 21609519 | AH36: 24670975 | AI36: 27737551 | AJ36: 30804127 | AK36: 61521263 | AL36: 92179999 | AM36: 122902255 | AN36: 153611055 | AO36: 184278127 | AP36: 214992047 | AQ36: 245659119 | AR36: 276367919 | AS36: 307085055 | AT36: 460555839 | AU36: 614034959 | AV36: 767508959 | AW36: 920979743 | AX36: 1074453743 | AY36: 1227932863 | AZ36: 1381448591 | BA36: 1534927711 | BB36: 1688401711 | BC36: 1841872495 | BD36: 1995346495 | BE36: 2148825615 | BF36: 2302291279 | BG36: 2455770399 | BH36: 2609294463 | BI36: 2762765247 | BJ36: 2916239247 | BK36: 3069718367 | BL36: 3376663151 | BM36: 3683607935 | BN36: 3990611119 | BO36: 4297555903 | BP36: 4604500687 | BQ36: 4911453807 | BR36: 5218448655 | BS36: 5525393439 | BT36: 5832338223 | BU36: 6139291343
A37: NS.NET_URL_ADDRESSES | B37: 12624074 | C37: 12624074 | D37: 12629234 | E37: 12629274 | F37: 12629314 | G37: 12629354 | H37: 12629554 | I37: 12638274 | J37: 12652514 | K37: 12676882 | L37: 12691122 | M37: 12700242 | N37: 12729730 | O37: 12743970 | P37: 12768338 | Q37: 12782578 | R37: 12791698 | S37: 12974610 | T37: 13157522 | U37: 13348770 | V37: 13531682 | W37: 13714594 | X37: 13897506 | Y37: 14075298 | Z37: 14258210 | AA37: 14441122 | AB37: 16249874 | AC37: 18058626 | AD37: 19862258 | AE37: 21671010 | AF37: 23705362 | AG37: 25822450 | AH37: 27926082 | AI37: 30034834 | AJ37: 32143586 | AK37: 53247666 | AL37: 74328162 | AM37: 95437362 | AN37: 116533106 | AO37: 137621938 | AP37: 158722802 | AQ37: 179811634 | AR37: 200907378 | AS37: 222011458 | AT37: 327486594 | AU37: 432970066 | AV37: 538448418 | AW37: 643923554 | AX37: 749401906 | AY37: 854885378 | AZ37: 960370642 | BA37: 1065854114 | BB37: 1171332466 | BC37: 1276807602 | BD37: 1382285954 | BE37: 1487769426 | BF37: 1593239442 | BG37: 1698722914 | BH37: 1804216514 | BI37: 1909691650 | BJ37: 2015170002 | BK37: 2120653474 | BL37: 2331606962 | BM37: 2542560450 | BN37: 2753537522 | BO37: 2964491010 | BP37: 3175444498 | BQ37: 3386406322 | BR37: 3597375058 | BS37: 3808328546 | BT37: 4019282034 | BU37: 4230243858
A38: NS.NET_USER_GROUPS | B38: 510761 | C38: 510761 | D38: 523641 | E38: 523721 | F38: 523801 | G38: 523881 | H38: 524281 | I38: 544281 | J38: 577881 | K38: 650793 | L38: 684393 | M38: 705193 | N38: 790905 | O38: 824505 | P38: 897417 | Q38: 931017 | R38: 951817 | S38: 1451305 | T38: 1974553 | U38: 2506137 | V38: 3029385 | W38: 3552633 | X38: 4075881 | Y38: 4586329 | Z38: 5109577 | AA38: 5632825 | AB38: 10800393 | AC38: 15967961 | AD38: 21122729 | AE38: 26290297 | AF38: 31457865 | AG38: 36633769 | AH38: 41788537 | AI38: 46956105 | AJ38: 52123673 | AK38: 103829737 | AL38: 155475353 | AM38: 207194217 | AN38: 258891945 | AO38: 310545897 | AP38: 362256425 | AQ38: 413910377 | AR38: 465608105 | AS38: 517314169 | AT38: 775740857 | AU38: 1034175881 | AV38: 1292598105 | AW38: 1551024793 | AX38: 1809447017 | AY38: 2067882041 | AZ38: 2326348041 | BA38: 2584783065 | BB38: 2843205289 | BC38: 3101631977 | BD38: 3360054201 | BE38: 3618489225 | BF38: 3876903113 | BG38: 4135338137 | BH38: 4393812473 | BI38: 4652239161 | BJ38: 4910661385 | BK38: 5169096409 | BL38: 5685945321 | BM38: 6202794233 | BN38: 6719703593 | BO38: 7236552505 | BP38: 7753401417 | BQ38: 8270258665 | BR38: 8787159689 | BS38: 9304008601 | BT38: 9820857513 | BU38: 10337714761
A39: NS.NET_WSF_NES | B39: 28781 | C39: 28781 | D39: 28813 | E39: 28845 | F39: 28877 | G39: 28909 | H39: 29069 | I39: 34349 | J39: 40429 | K39: 66093 | L39: 72173 | M39: 78493 | N39: 103917 | O39: 110237 | P39: 135661 | Q39: 141981 | R39: 148061 | S39: 287437 | T39: 426813 | U39: 574525 | V39: 713901 | W39: 853277 | X39: 992653 | Y39: 1132029 | Z39: 1271405 | AA39: 1410781 | AB39: 2785197 | AC39: 4159613 | AD39: 5534029 | AE39: 6908445 | AF39: 8282861 | AG39: 9665613 | AH39: 11040029 | AI39: 12414445 | AJ39: 13788861 | AK39: 27569037 | AL39: 41321533 | AM39: 55101709 | AN39: 68873549 | AO39: 82634381 | AP39: 96406221 | AQ39: 110167053 | AR39: 123938893 | AS39: 137719069 | AT39: 206556253 | AU39: 275401773 | AV39: 344247293 | AW39: 413084477 | AX39: 481929997 | AY39: 550775517 | AZ39: 619632045 | BA39: 688477565 | BB39: 757323085 | BC39: 826160269 | BD39: 895005789 | BE39: 963851309 | BF39: 1032688493 | BG39: 1101534013 | BH39: 1170398877 | BI39: 1239236061 | BJ39: 1308081581 | BK39: 1376927101 | BL39: 1514609805 | BM39: 1652292509 | BN39: 1790002893 | BO39: 1927685597 | BP39: 2065368301 | BQ39: 2203059341 | BR39: 2340761389 | BS39: 2478444093 | BT39: 2616126797 | BU39: 2753817837
A40: NS.NET_WSF_NES_ADDR | B40: 61390 | C40: 61390 | D40: 63990 | E40: 64030 | F40: 64070 | G40: 64110 | H40: 64310 | I40: 70470 | J40: 82710 | K40: 119686 | L40: 131926 | M40: 141366 | N40: 181142 | O40: 193142 | P40: 230358 | Q40: 242358 | R40: 252038 | S40: 473142 | T40: 694246 | U40: 923686 | V40: 1144790 | W40: 1365894 | X40: 1586998 | Y40: 1805542 | Z40: 2026646 | AA40: 2247750 | AB40: 4428694 | AC40: 6609638 | AD40: 8788022 | AE40: 10968966 | AF40: 13149910 | AG40: 15339190 | AH40: 17517574 | AI40: 19698518 | AJ40: 21879462 | AK40: 43725430 | AL40: 65535526 | AM40: 87384054 | AN40: 109221686 | AO40: 131040118 | AP40: 152880310 | AQ40: 174698742 | AR40: 196536374 | AS40: 218382342 | AT40: 327537222 | AU40: 436700438 | AV40: 545861094 | AW40: 655015974 | AX40: 764176630 | AY40: 873339846 | AZ40: 982519702 | BA40: 1091682918 | BB40: 1200843574 | BC40: 1309998454 | BD40: 1419159110 | BE40: 1528322326 | BF40: 1637474646 | BG40: 1746637862 | BH40: 1855826054 | BI40: 1964980934 | BJ40: 2074141590 | BK40: 2183304806 | BL40: 2401620342 | BM40: 2619935878 | BN40: 2838287286 | BO40: 3056602822 | BP40: 3274918358 | BQ40: 3493242230 | BR40: 3711585302 | BS40: 3929900838 | BT40: 4148216374 | BU40: 4366540246
A41: NS.NET_WSF_NES_NODE_ID | B41: 59251 | C41: 59251 | D41: 60603 | E41: 60675 | F41: 60747 | G41: 60819 | H41: 61179 | I41: 71339 | J41: 83979 | K41: 141547 | L41: 154187 | M41: 165787 | N41: 224395 | O41: 237275 | P41: 294603 | Q41: 307483 | R41: 318843 | S41: 625195 | T41: 931547 | U41: 1246235 | V41: 1552587 | W41: 1858939 | X41: 2165291 | Y41: 2470363 | Z41: 2776715 | AA41: 3083067 | AB41: 6099339 | AC41: 9115611 | AD41: 12130603 | AE41: 15146875 | AF41: 18163147 | AG41: 21187755 | AH41: 24202747 | AI41: 27219019 | AJ41: 30235291 | AK41: 60456811 | AL41: 90624027 | AM41: 120846827 | AN41: 151060011 | AO41: 181235563 | AP41: 211450027 | AQ41: 241625579 | AR41: 271838763 | AS41: 302060283 | AT41: 453053499 | AU41: 604055051 | AV41: 755055323 | AW41: 906048539 | AX41: 1057048811 | AY41: 1208050363 | AZ41: 1359088267 | BA41: 1510089819 | BB41: 1661090091 | BC41: 1812083307 | BD41: 1963083579 | BE41: 2114085131 | BF41: 2265077067 | BG41: 2416078619 | BH41: 2567124859 | BI41: 2718118075 | BJ41: 2869118347 | BK41: 3020119899 | BL41: 3322113387 | BM41: 3624106875 | BN41: 3926154667 | BO41: 4228148155 | BP41: 4530141643 | BQ41: 4832143467 | BR41: 5134182923 | BS41: 5436176411 | BT41: 5738169899 | BU41: 6040171723
A42: NS.NNACL_0 | B42: 1869033 | C42: 1869033 | D42: 1871593 | E42: 1871593 | F42: 1871593 | G42: 1871593 | H42: 1871593 | I42: 1874153 | J42: 1879273 | K42: 1899129 | L42: 1904249 | M42: 1906809 | N42: 1929225 | O42: 1934345 | P42: 1954201 | Q42: 1959321 | R42: 1961881 | S42: 2072025 | T42: 2182169 | U42: 2300649 | V42: 2410793 | W42: 2520937 | X42: 2631081 | Y42: 2748265 | Z42: 2888409 | AA42: 3028553 | AB42: 4410137 | AC42: 5791721 | AD42: 7170745 | AE42: 8552329 | AF42: 9933913 | AG42: 11323833 | AH42: 12702857 | AI42: 14084441 | AJ42: 15466025 | AK42: 29308153 | AL42: 43124649 | AM42: 56969337 | AN42: 70803129 | AO42: 84627961 | AP42: 98464313 | AQ42: 112289145 | AR42: 126122937 | AS42: 139965065 | AT42: 209121225 | AU42: 278285721 | AV42: 347447657 | AW42: 416603817 | AX42: 485765753 | AY42: 554930249 | AZ42: 624101145 | BA42: 693265641 | BB42: 762427577 | BC42: 831583737 | BD42: 900745673 | BE42: 969910169 | BF42: 1039063769 | BG42: 1108228265 | BH42: 1177407497 | BI42: 1246563657 | BJ42: 1315725593 | BK42: 1384890089 | BL42: 1523208185 | BM42: 1661526281 | BN42: 1799870009 | BO42: 1938188105 | BP42: 2076506201 | BQ42: 2214832633 | BR42: 2353168025 | BS42: 2491486121 | BT42: 2629804217 | BU42: 2768130649
A43: NS.NNACL_1 | B43: 1869033 | C43: 1869033 | D43: 1871593 | E43: 1871593 | F43: 1871593 | G43: 1871593 | H43: 1871593 | I43: 1874153 | J43: 1879273 | K43: 1899129 | L43: 1904249 | M43: 1906809 | N43: 1929225 | O43: 1934345 | P43: 1954201 | Q43: 1959321 | R43: 1961881 | S43: 2072025 | T43: 2182169 | U43: 2300649 | V43: 2410793 | W43: 2520937 | X43: 2631081 | Y43: 2748265 | Z43: 2888409 | AA43: 3028553 | AB43: 4410137 | AC43: 5791721 | AD43: 7170745 | AE43: 8552329 | AF43: 9933913 | AG43: 11323833 | AH43: 12702857 | AI43: 14084441 | AJ43: 15466025 | AK43: 29308153 | AL43: 43124649 | AM43: 56969337 | AN43: 70803129 | AO43: 84627961 | AP43: 98464313 | AQ43: 112289145 | AR43: 126122937 | AS43: 139965065 | AT43: 209121225 | AU43: 278285721 | AV43: 347447657 | AW43: 416603817 | AX43: 485765753 | AY43: 554930249 | AZ43: 624101145 | BA43: 693265641 | BB43: 762427577 | BC43: 831583737 | BD43: 900745673 | BE43: 969910169 | BF43: 1039063769 | BG43: 1108228265 | BH43: 1177407497 | BI43: 1246563657 | BJ43: 1315725593 | BK43: 1384890089 | BL43: 1523208185 | BM43: 1661526281 | BN43: 1799870009 | BO43: 1938188105 | BP43: 2076506201 | BQ43: 2214832633 | BR43: 2353168025 | BS43: 2491486121 | BT43: 2629804217 | BU43: 2768130649
A44: NS.POLICIES_CALL_TYPE | B44: 34745 | C44: 34745 | D44: 37305 | E44: 37305 | F44: 37305 | G44: 37305 | H44: 37305 | I44: 42505 | J44: 50745 | K44: 79625 | L44: 87865 | M44: 93305 | N44: 124985 | O44: 132985 | P44: 162105 | Q44: 170105 | R44: 175785 | S44: 340505 | T44: 505225 | U44: 678281 | V44: 843001 | W44: 1007721 | X44: 1172441 | Y44: 1334601 | Z44: 1499321 | AA44: 1664041 | AB44: 3285241 | AC44: 4906441 | AD44: 6525081 | AE44: 8146281 | AF44: 9767481 | AG44: 11397017 | AH44: 13015657 | AI44: 14636857 | AJ44: 16258057 | AK44: 32502489 | AL44: 48715145 | AM44: 64962137 | AN44: 81198233 | AO44: 97419225 | AP44: 113657881 | AQ44: 129878873 | AR44: 146114969 | AS44: 162359401 | AT44: 243514793 | AU44: 324678521 | AV44: 405839689 | AW44: 486995081 | AX44: 568156249 | AY44: 649319977 | AZ44: 730496249 | BA44: 811659977 | BB44: 892821145 | BC44: 973976537 | BD44: 1055137705 | BE44: 1136301433 | BF44: 1217454265 | BG44: 1298617993 | BH44: 1379802601 | BI44: 1460957993 | BJ44: 1542119161 | BK44: 1623282889 | BL44: 1785599449 | BM44: 1947916009 | BN44: 2110264345 | BO44: 2272580905 | BP44: 2434897465 | BQ44: 2597222361 | BR44: 2759562361 | BS44: 2921878921 | BT44: 3084195481 | BU44: 3246520377
A45: NS.POLICIES_DSR_ROUTING_LIST | B45: 72767 | C45: 72767 | D45: 77887 | E45: 77887 | F45: 77887 | G45: 77887 | H45: 77887 | I45: 84447 | J45: 97807 | K45: 151775 | L45: 165135 | M45: 173135 | N45: 232463 | O45: 245583 | P45: 299791 | Q45: 312911 | R45: 321151 | S45: 616943 | T45: 912735 | U45: 1216863 | V45: 1512655 | W45: 1808447 | X45: 2104239 | Y45: 2394911 | Z45: 2690703 | AA45: 2986495 | AB45: 5893327 | AC45: 8800159 | AD45: 11701871 | AE45: 14608703 | AF45: 17515535 | AG45: 20430703 | AH45: 23332415 | AI45: 26239247 | AJ45: 29146079 | AK45: 58261679 | AL45: 87322975 | AM45: 116443695 | AN45: 145550959 | AO45: 174620591 | AP45: 203732975 | AQ45: 232802607 | AR45: 261909871 | AS45: 291025471 | AT45: 436496767 | AU45: 581976399 | AV45: 727450911 | AW45: 872922207 | AX45: 1018396719 | AY45: 1163876351 | AZ45: 1309388495 | BA45: 1454868127 | BB45: 1600342639 | BC45: 1745813935 | BD45: 1891288447 | BE45: 2036768079 | BF45: 2182234255 | BG45: 2327713887 | BH45: 2473234367 | BI45: 2618705663 | BJ45: 2764180175 | BK45: 2909659807 | BL45: 3200605615 | BM45: 3491551423 | BN45: 3782551535 | BO45: 4073497343 | BP45: 4364443151 | BQ45: 4655397295 | BR45: 4946389071 | BS45: 5237334879 | BT45: 5528280687 | BU45: 5819234831
A46: NS.POLICIES_EA_CIC_SVC | B46: 41571 | C46: 41571 | D46: 44131 | E46: 44131 | F46: 44131 | G46: 44131 | H46: 44131 | I46: 48131 | J46: 56371 | K46: 82179 | L46: 90419 | M46: 95859 | N46: 124467 | O46: 132467 | P46: 158515 | Q46: 166515 | R46: 172195 | S46: 324627 | T46: 477059 | U46: 637827 | V46: 790259 | W46: 942691 | X46: 1095123 | Y46: 1244995 | Z46: 1397427 | AA46: 1549859 | AB46: 3051251 | AC46: 4552643 | AD46: 6051475 | AE46: 7552867 | AF46: 9054259 | AG46: 10563987 | AH46: 12062819 | AI46: 13564211 | AJ46: 15065603 | AK46: 30108883 | AL46: 45123459 | AM46: 60169299 | AN46: 75204243 | AO46: 90227155 | AP46: 105264659 | AQ46: 120287571 | AR46: 135322515 | AS46: 150365795 | AT46: 225521571 | AU46: 300685683 | AV46: 375847235 | AW46: 451003011 | AX46: 526164563 | AY46: 601328675 | AZ46: 676502259 | BA46: 751666371 | BB46: 826827923 | BC46: 901983699 | BD46: 977145251 | BE46: 1052309363 | BF46: 1127462579 | BG46: 1202626691 | BH46: 1277808611 | BI46: 1352964387 | BJ46: 1428125939 | BK46: 1503290051 | BL46: 1653607379 | BM46: 1803924707 | BN46: 1954270739 | BO46: 2104588067 | BP46: 2254905395 | BQ46: 2405231059 | BR46: 2555568755 | BS46: 2705886083 | BT46: 2856203411 | BU46: 3006529075
A47: NS.POLICIES_ENTERPRISES_DIGMAN | B47: 187158 | C47: 187158 | D47: 189718 | E47: 189718 | F47: 189718 | G47: 189718 | H47: 189718 | I47: 192278 | J47: 197398 | K47: 255142 | L47: 260262 | M47: 262822 | N47: 325766 | O47: 334006 | P47: 394630 | Q47: 402870 | R47: 408310 | S47: 700006 | T47: 991702 | U47: 1291734 | V47: 1583430 | W47: 1875126 | X47: 2166822 | Y47: 2455958 | Z47: 2747654 | AA47: 3039350 | AB47: 5898566 | AC47: 8757782 | AD47: 11614438 | AE47: 14473654 | AF47: 17332870 | AG47: 20200422 | AH47: 23057078 | AI47: 25916294 | AJ47: 28775510 | AK47: 57431846 | AL47: 86024662 | AM47: 114683558 | AN47: 143331558 | AO47: 171932710 | AP47: 200583270 | AQ47: 229184422 | AR47: 257832422 | AS47: 286488758 | AT47: 429640182 | AU47: 572799942 | AV47: 715957142 | AW47: 859108566 | AX47: 1002265766 | AY47: 1145425526 | AZ47: 1288629574 | BA47: 1431789334 | BB47: 1574946534 | BC47: 1718097958 | BD47: 1861255158 | BE47: 2004414918 | BF47: 2147563782 | BG47: 2290723542 | BH47: 2433935926 | BI47: 2577087350 | BJ47: 2720244550 | BK47: 2863404310 | BL47: 3149712934 | BM47: 3436021558 | BN47: 3722393702 | BO47: 4008702326 | BP47: 4295010950 | BQ47: 4581327910 | BR47: 4867691718 | BS47: 5154000342 | BT47: 5440308966 | BU47: 5726625926
A48: NS.POLICIES_ENTERPRISES_SUBS | B48: 484108 | C48: 484108 | D48: 486668 | E48: 486668 | F48: 486668 | G48: 486668 | H48: 486668 | I48: 489228 | J48: 494348 | K48: 541852 | L48: 546972 | M48: 549532 | N48: 599596 | O48: 604716 | P48: 652220 | Q48: 657340 | R48: 659900 | S48: 886876 | T48: 1137612 | U48: 1396684 | V48: 1647420 | W48: 1898156 | X48: 2148892 | Y48: 2397068 | Z48: 2647804 | AA48: 2898540 | AB48: 5358396 | AC48: 7818252 | AD48: 10275548 | AE48: 12735404 | AF48: 15195260 | AG48: 17663452 | AH48: 20120748 | AI48: 22580604 | AJ48: 25040460 | AK48: 49692956 | AL48: 74292172 | AM48: 98947228 | AN48: 123591388 | AO48: 148198940 | AP48: 172845660 | AQ48: 197453212 | AR48: 222097372 | AS48: 246749868 | AT48: 369902572 | AU48: 493063612 | AV48: 616222092 | AW48: 739374796 | AX48: 862533276 | AY48: 985694316 | AZ48: 1108889404 | BA48: 1232050444 | BB48: 1355208924 | BC48: 1478361628 | BD48: 1601520108 | BE48: 1724681148 | BF48: 1847831292 | BG48: 1970992332 | BH48: 2094195756 | BI48: 2217348460 | BJ48: 2340506940 | BK48: 2463667980 | BL48: 2709979164 | BM48: 2956290348 | BN48: 3202654812 | BO48: 3448965996 | BP48: 3695277180 | BQ48: 3941596700 | BR48: 4187952828 | BS48: 4434264012 | BT48: 4680575196 | BU48: 4926894716
A49: NS.POLICIES_ENT_AUTH_HOSTS | B49: 63235 | C49: 63235 | D49: 65795 | E49: 65795 | F49: 65795 | G49: 65795 | H49: 65795 | I49: 69555 | J49: 77555 | K49: 122035 | L49: 130035 | M49: 135715 | N49: 182515 | O49: 190755 | P49: 234995 | Q49: 243235 | R49: 248675 | S49: 474835 | T49: 700995 | U49: 935491 | V49: 1161651 | W49: 1387811 | X49: 1613971 | Y49: 1837571 | Z49: 2063731 | AA49: 2289891 | AB49: 4510131 | AC49: 6730371 | AD49: 8948051 | AE49: 11168291 | AF49: 13388531 | AG49: 15617107 | AH49: 17834787 | AI49: 20055027 | AJ49: 22275267 | AK49: 44525459 | AL49: 66728515 | AM49: 88981267 | AN49: 111223123 | AO49: 133434515 | AP49: 155678931 | AQ49: 177890323 | AR49: 200132179 | AS49: 222382371 | AT49: 333535843 | AU49: 444697651 | AV49: 555856899 | AW49: 667010371 | AX49: 778169619 | AY49: 889331427 | AZ49: 1000521139 | BA49: 1111682947 | BB49: 1222842195 | BC49: 1333995667 | BD49: 1445154915 | BE49: 1556316723 | BF49: 1667467635 | BG49: 1778629443 | BH49: 1889827491 | BI49: 2000980963 | BJ49: 2112140211 | BK49: 2223302019 | BL49: 2445614739 | BM49: 2667927459 | BN49: 2890287315 | BO49: 3112600035 | BP49: 3334912755 | BQ49: 3557233811 | BR49: 3779585331 | BS49: 4001898051 | BT49: 4224210771 | BU49: 4446531827
A50: NS.POLICIES_ENT_MSS_DFLT | B50: 120569 | C50: 120569 | D50: 124409 | E50: 124409 | F50: 124409 | G50: 124409 | H50: 124409 | I50: 128249 | J50: 135929 | K50: 188201 | L50: 198761 | M50: 205721 | N50: 263273 | O50: 274073 | P50: 327785 | Q50: 338585 | R50: 345305 | S50: 624713 | T50: 904121 | U50: 1191865 | V50: 1471273 | W50: 1750681 | X50: 2030089 | Y50: 2305657 | Z50: 2585065 | AA50: 2864473 | AB50: 5607721 | AC50: 8350969 | AD50: 11090377 | AE50: 13833625 | AF50: 16576873 | AG50: 19328457 | AH50: 22067865 | AI50: 24811113 | AJ50: 27554361 | AK50: 55038985 | AL50: 82468281 | AM50: 109956745 | AN50: 137433033 | AO50: 164870665 | AP50: 192350793 | AQ50: 219788425 | AR50: 247264713 | AS50: 274749337 | AT50: 412061145 | AU50: 549381289 | AV50: 686697593 | AW50: 824009401 | AX50: 961325705 | AY50: 1098645849 | AZ50: 1236000809 | BA50: 1373320953 | BB50: 1510637257 | BC50: 1647949065 | BD50: 1785265369 | BE50: 1922585513 | BF50: 2059893481 | BG50: 2197213625 | BH50: 2334576921 | BI50: 2471888729 | BJ50: 2609205033 | BK50: 2746525177 | BL50: 3021153289 | BM50: 3295781401 | BN50: 3570464841 | BO50: 3845092953 | BP50: 4119721065 | BQ50: 4394357513 | BR50: 4669032617 | BS50: 4943660729 | BT50: 5218288841 | BU50: 5492925289
A51: NS.POLICIES_ENT_MSS_ENTRIES | B51: 128732 | C51: 128732 | D51: 133852 | E51: 133852 | F51: 133852 | G51: 133852 | H51: 133852 | I51: 138972 | J51: 149212 | K51: 207884 | L51: 221004 | M51: 229244 | N51: 294476 | O51: 307836 | P51: 367948 | Q51: 381308 | R51: 389308 | S51: 709676 | T51: 1030044 | U51: 1358748 | V51: 1679116 | W51: 1999484 | X51: 2319852 | Y51: 2635100 | Z51: 2955468 | AA51: 3275836 | AB51: 6422284 | AC51: 9568732 | AD51: 12710060 | AE51: 15856508 | AF51: 19002956 | AG51: 22157740 | AH51: 25299068 | AI51: 28445516 | AJ51: 31591964 | AK51: 63109868 | AL51: 94567324 | AM51: 126090348 | AN51: 157599916 | AO51: 189065708 | AP51: 220580396 | AQ51: 252046188 | AR51: 283555756 | AS51: 315073660 | AT51: 472544188 | AU51: 630023052 | AV51: 787496796 | AW51: 944967324 | AX51: 1102441068 | AY51: 1259919932 | AZ51: 1417437452 | BA51: 1574916316 | BB51: 1732390060 | BC51: 1889860588 | BD51: 2047334332 | BE51: 2204813196 | BF51: 2362278604 | BG51: 2519757468 | BH51: 2677283324 | BI51: 2834753852 | BJ51: 2992227596 | BK51: 3149706460 | BL51: 3464650732 | BM51: 3779595004 | BN51: 4094599724 | BO51: 4409543996 | BP51: 4724488268 | BQ51: 5039440876 | BR51: 5354437260 | BS51: 5669381532 | BT51: 5984325804 | BU51: 6299278412
A52: NS.POLICIES_ENT_NGW_DFLT | B52: 117996 | C52: 117996 | D52: 123116 | E52: 123116 | F52: 123116 | G52: 123116 | H52: 123116 | I52: 128236 | J52: 138476 | K52: 185884 | L52: 199004 | M52: 207244 | N52: 261212 | O52: 274572 | P52: 323420 | Q52: 336780 | R52: 344780 | S52: 620092 | T52: 895404 | U52: 1179052 | V52: 1454364 | W52: 1729676 | X52: 2004988 | Y52: 2275180 | Z52: 2550492 | AA52: 2825804 | AB52: 5532956 | AC52: 8240108 | AD52: 10942140 | AE52: 13649292 | AF52: 16356444 | AG52: 19071932 | AH52: 21773964 | AI52: 24481116 | AJ52: 27188268 | AK52: 54301948 | AL52: 81366444 | AM52: 108485244 | AN52: 135590588 | AO52: 162663420 | AP52: 189773884 | AQ52: 216846716 | AR52: 243952060 | AS52: 271065740 | AT52: 406537676 | AU52: 542017948 | AV52: 677493100 | AW52: 812965036 | AX52: 948440188 | AY52: 1083920460 | AZ52: 1219428124 | BA52: 1354908396 | BB52: 1490383548 | BC52: 1625855484 | BD52: 1761330636 | BE52: 1896810908 | BF52: 2032277724 | BG52: 2167757996 | BH52: 2303273996 | BI52: 2438745932 | BJ52: 2574221084 | BK52: 2709701356 | BL52: 2980648444 | BM52: 3251595532 | BN52: 3522591804 | BO52: 3793538892 | BP52: 4064485980 | BQ52: 4335441404 | BR52: 4606429340 | BS52: 4877376428 | BT52: 5148323516 | BU52: 5419278940
A53: NS.POLICIES_ENT_NGW_ENTRIES | B53: 126159 | C53: 126159 | D53: 132559 | E53: 132559 | F53: 132559 | G53: 132559 | H53: 132559 | I53: 138959 | J53: 151759 | K53: 205567 | L53: 221247 | M53: 230767 | N53: 292415 | O53: 308335 | P53: 363583 | Q53: 379503 | R53: 388783 | S53: 705055 | T53: 1021327 | U53: 1345935 | V53: 1662207 | W53: 1978479 | X53: 2294751 | Y53: 2604623 | Z53: 2920895 | AA53: 3237167 | AB53: 6347519 | AC53: 9457871 | AD53: 12561823 | AE53: 15672175 | AF53: 18782527 | AG53: 21901215 | AH53: 25005167 | AI53: 28115519 | AJ53: 31225871 | AK53: 62372831 | AL53: 93465487 | AM53: 124618847 | AN53: 155757471 | AO53: 186858463 | AP53: 218003487 | AQ53: 249104479 | AR53: 280243103 | AS53: 311390063 | AT53: 467020719 | AU53: 622659711 | AV53: 778292303 | AW53: 933922959 | AX53: 1089555551 | AY53: 1245194543 | AZ53: 1400864767 | BA53: 1556503759 | BB53: 1712136351 | BC53: 1867767007 | BD53: 2023399599 | BE53: 2179038591 | BF53: 2334662847 | BG53: 2490301839 | BH53: 2645980399 | BI53: 2801611055 | BJ53: 2957243647 | BK53: 3112882639 | BL53: 3424145887 | BM53: 3735409135 | BN53: 4046726687 | BO53: 4357989935 | BP53: 4669253183 | BQ53: 4980524767 | BR53: 5291833983 | BS53: 5603097231 | BT53: 5914360479 | BU53: 6225632063
A54: NS.POLICIES_INSTANCES | B54: 38123 | C54: 38123 | D54: 39475 | E54: 39547 | F54: 39619 | G54: 39691 | H54: 40051 | I54: 49251 | J54: 62131 | K54: 92835 | L54: 105715 | M54: 117075 | N54: 149299 | O54: 161939 | P54: 192883 | Q54: 205523 | R54: 217123 | S54: 416979 | T54: 616835 | U54: 825027 | V54: 1024883 | W54: 1224739 | X54: 1424595 | Y54: 1623171 | Z54: 1823027 | AA54: 2022883 | AB54: 4000819 | AC54: 5978755 | AD54: 7955411 | AE54: 9933347 | AF54: 11911283 | AG54: 13897555 | AH54: 15874211 | AI54: 17852147 | AJ54: 19830083 | AK54: 39641619 | AL54: 59425475 | AM54: 79238291 | AN54: 99041491 | AO54: 118833683 | AP54: 138638163 | AQ54: 158430355 | AR54: 178233555 | AS54: 198045091 | AT54: 297041635 | AU54: 396046515 | AV54: 495050115 | AW54: 594046659 | AX54: 693050259 | AY54: 792055139 | AZ54: 891069747 | BA54: 990074627 | BB54: 1089078227 | BC54: 1188074771 | BD54: 1287078371 | BE54: 1386083251 | BF54: 1485078515 | BG54: 1584083395 | BH54: 1683106339 | BI54: 1782102883 | BJ54: 1881106483 | BK54: 1980111363 | BL54: 2178111507 | BM54: 2376111651 | BN54: 2574139475 | BO54: 2772139619 | BP54: 2970139763 | BQ54: 3168148243 | BR54: 3366167731 | BS54: 3564167875 | BT54: 3762168019 | BU54: 3960176499
A55: NS.POLICIES_MSS_ROUTELIST | B55: 210476 | C55: 210476 | D55: 215596 | E55: 215596 | F55: 215596 | G55: 215596 | H55: 215596 | I55: 220716 | J55: 230956 | K55: 277948 | L55: 288188 | M55: 293308 | N55: 345420 | O55: 357580 | P55: 407452 | Q55: 420812 | R55: 428812 | S55: 708220 | T55: 987628 | U55: 1275372 | V55: 1554780 | W55: 1834188 | X55: 2113596 | Y55: 2387884 | Z55: 2667292 | AA55: 2946700 | AB55: 5693788 | AC55: 8440876 | AD55: 11182844 | AE55: 13929932 | AF55: 16677020 | AG55: 19432444 | AH55: 22174412 | AI55: 24921500 | AJ55: 27668588 | AK55: 55182652 | AL55: 82646508 | AM55: 110165692 | AN55: 137671420 | AO55: 165143612 | AP55: 192654460 | AQ55: 220126652 | AR55: 247632380 | AS55: 275146444 | AT55: 412618252 | AU55: 550098396 | AV55: 687573420 | AW55: 825045228 | AX55: 962520252 | AY55: 1100000396 | AZ55: 1237508956 | BA55: 1374989100 | BB55: 1512464124 | BC55: 1649935932 | BD55: 1787410956 | BE55: 1924891100 | BF55: 2062357788 | BG55: 2199837932 | BH55: 2337354828 | BI55: 2474826636 | BJ55: 2612301660 | BK55: 2749781804 | BL55: 3024728636 | BM55: 3299675468 | BN55: 3574672508 | BO55: 3849619340 | BP55: 4124566172 | BQ55: 4399521340 | BR55: 4674510044 | BS55: 4949456876 | BT55: 5224403708 | BU55: 5499358876
A56: NS.POLICIES_NP_BULK_LOAD_INFO | B56: 92365 | C56: 92365 | D56: 93645 | E56: 93645 | F56: 93645 | G56: 93645 | H56: 93645 | I56: 97565 | J56: 103245 | K56: 190237 | L56: 195917 | M56: 200077 | N56: 288589 | O56: 294029 | P56: 381261 | Q56: 386701 | R56: 391101 | S56: 772909 | T56: 1154717 | U56: 1544861 | V56: 1926669 | W56: 2308477 | X56: 2690285 | Y56: 3070813 | Z56: 3452621 | AA56: 3834429 | AB56: 7568397 | AC56: 11302365 | AD56: 15035053 | AE56: 18769021 | AF56: 22502989 | AG56: 26245293 | AH56: 29977981 | AI56: 33711949 | AJ56: 37445917 | AK56: 74881261 | AL56: 112225437 | AM56: 149662061 | AN56: 187089069 | AO56: 224441581 | AP56: 261869869 | AQ56: 299222381 | AR56: 336649389 | AS56: 374084733 | AT56: 561073341 | AU56: 748070285 | AV56: 935065949 | AW56: 1122054557 | AX56: 1309050221 | AY56: 1496047165 | AZ56: 1683117325 | BA56: 1870114269 | BB56: 2057109933 | BC56: 2244098541 | BD56: 2431094205 | BE56: 2618091149 | BF56: 2805078477 | BG56: 2992075421 | BH56: 3179153917 | BI56: 3366142525 | BJ56: 3553138189 | BK56: 3740135133 | BL56: 4114119405 | BM56: 4488103677 | BN56: 4862179117 | BO56: 5236163389 | BP56: 5610147661 | BQ56: 5984140269 | BR56: 6358207373 | BS56: 6732191645 | BT56: 7106175917 | BU56: 7480168525
A57: NS.POLICIES_NP_IN_LIST | B57: 77658 | C57: 77658 | D57: 78938 | E57: 78938 | F57: 78938 | G57: 78938 | H57: 78938 | I57: 80218 | J57: 82778 | K57: 109354 | L57: 115034 | M57: 119194 | N57: 147290 | O57: 152730 | P57: 179546 | Q57: 184986 | R57: 189386 | S57: 329530 | T57: 469674 | U57: 618154 | V57: 758298 | W57: 898442 | X57: 1038586 | Y57: 1177450 | Z57: 1317594 | AA57: 1457738 | AB57: 2835482 | AC57: 4213226 | AD57: 5589690 | AE57: 6967434 | AF57: 8345178 | AG57: 9731258 | AH57: 11107722 | AI57: 12485466 | AJ57: 13863210 | AK57: 27675898 | AL57: 41457834 | AM57: 55271802 | AN57: 69076154 | AO57: 82866426 | AP57: 96672058 | AQ57: 110462330 | AR57: 124266682 | AS57: 138079370 | AT57: 207075530 | AU57: 276080026 | AV57: 345083242 | AW57: 414079402 | AX57: 483082618 | AY57: 552087114 | AZ57: 621104410 | BA57: 690108906 | BB57: 759112122 | BC57: 828108282 | BD57: 897111498 | BE57: 966115994 | BF57: 1035110874 | BG57: 1104115370 | BH57: 1173141002 | BI57: 1242137162 | BJ57: 1311140378 | BK57: 1380144874 | BL57: 1518144250 | BM57: 1656143626 | BN57: 1794173754 | BO57: 1932173130 | BP57: 2070172506 | BQ57: 2208180218 | BR57: 2346202010 | BS57: 2484201386 | BT57: 2622200762 | BU57: 2760208474
A58: NS.POLICIES_NP_OUT_LIST | B58: 109487 | C58: 109487 | D58: 114607 | E58: 114607 | F58: 114607 | G58: 114607 | H58: 114607 | I58: 119727 | J58: 129967 | K58: 183935 | L58: 197295 | M58: 205295 | N58: 264623 | O58: 277743 | P58: 331951 | Q58: 345071 | R58: 353311 | S58: 649103 | T58: 944895 | U58: 1249023 | V58: 1544815 | W58: 1840607 | X58: 2136399 | Y58: 2427071 | Z58: 2722863 | AA58: 3018655 | AB58: 5925487 | AC58: 8832319 | AD58: 11734031 | AE58: 14640863 | AF58: 17547695 | AG58: 20462863 | AH58: 23364575 | AI58: 26271407 | AJ58: 29178239 | AK58: 58293839 | AL58: 87355135 | AM58: 116475855 | AN58: 145583119 | AO58: 174652751 | AP58: 203765135 | AQ58: 232834767 | AR58: 261942031 | AS58: 291057631 | AT58: 436528927 | AU58: 582008559 | AV58: 727483071 | AW58: 872954367 | AX58: 1018428879 | AY58: 1163908511 | AZ58: 1309420655 | BA58: 1454900287 | BB58: 1600374799 | BC58: 1745846095 | BD58: 1891320607 | BE58: 2036800239 | BF58: 2182266415 | BG58: 2327746047 | BH58: 2473266527 | BI58: 2618737823 | BJ58: 2764212335 | BK58: 2909691967 | BL58: 3200637775 | BM58: 3491583583 | BN58: 3782583695 | BO58: 4073529503 | BP58: 4364475311 | BQ58: 4655429455 | BR58: 4946421231 | BS58: 5237367039 | BT58: 5528312847 | BU58: 5819266991
A59: NS.POLICIES_PRE_DIAL_PLAN | B59: 91636 | C59: 91636 | D59: 95476 | E59: 95476 | F59: 95476 | G59: 95476 | H59: 95476 | I59: 99316 | J59: 110116 | K59: 169972 | L59: 180772 | M59: 187492 | N59: 251428 | O59: 261988 | P59: 322084 | Q59: 332644 | R59: 339604 | S59: 643588 | T59: 947572 | U59: 1259892 | V59: 1563876 | W59: 1867860 | X59: 2171844 | Y59: 2471988 | Z59: 2775972 | AA59: 3079956 | AB59: 6062820 | AC59: 9045684 | AD59: 12024708 | AE59: 15007572 | AF59: 17990436 | AG59: 20981636 | AH59: 23960660 | AI59: 26943524 | AJ59: 29926388 | AK59: 59813316 | AL59: 89638772 | AM59: 119529540 | AN59: 149408132 | AO59: 179241924 | AP59: 209124356 | AQ59: 238958148 | AR59: 268836740 | AS59: 298723668 | AT59: 448034708 | AU59: 597354084 | AV59: 746669620 | AW59: 895980660 | AX59: 1045296196 | AY59: 1194615572 | AZ59: 1343975908 | BA59: 1493295284 | BB59: 1642610820 | BC59: 1791921860 | BD59: 1941237396 | BE59: 2090556772 | BF59: 2239863972 | BG59: 2389183348 | BH59: 2538552020 | BI59: 2687863060 | BJ59: 2837178596 | BK59: 2986497972 | BL59: 3285124548 | BM59: 3583751124 | BN59: 3882439172 | BO59: 4181065748 | BP59: 4479692324 | BQ59: 4778327236 | BR59: 5077006948 | BS59: 5375633524 | BT59: 5674260100 | BU59: 5972895012
A60: NS.POLICIES_PRIVATE_DIAL_PLAN | B60: 208252 | C60: 208252 | D60: 214652 | E60: 214652 | F60: 214652 | G60: 214652 | H60: 214652 | I60: 221052 | J60: 233852 | K60: 307724 | L60: 320524 | M60: 326924 | N60: 409836 | O60: 425756 | P60: 502508 | Q60: 518428 | R60: 527708 | S60: 929996 | T60: 1332284 | U60: 1742908 | V60: 2145196 | W60: 2547484 | X60: 2949772 | Y60: 3345660 | Z60: 3747948 | AA60: 4150236 | AB60: 8099244 | AC60: 12048252 | AD60: 15990860 | AE60: 19939868 | AF60: 23888876 | AG60: 27846220 | AH60: 31788828 | AI60: 35737836 | AJ60: 39686844 | AK60: 79241868 | AL60: 118721084 | AM60: 158282508 | AN60: 197829196 | AO60: 237316748 | AP60: 276869836 | AQ60: 316357388 | AR60: 355904076 | AS60: 395459100 | AT60: 593087068 | AU60: 790723372 | AV60: 988353276 | AW60: 1185981244 | AX60: 1383611148 | AY60: 1581247452 | AZ60: 1778936492 | BA60: 1976572796 | BB60: 2174202700 | BC60: 2371830668 | BD60: 2569460572 | BE60: 2767096876 | BF60: 2964718444 | BG60: 3162354748 | BH60: 3360052124 | BI60: 3557680092 | BJ60: 3755309996 | BK60: 3952946300 | BL60: 4348204172 | BM60: 4743462044 | BN60: 5138795724 | BO60: 5534053596 | BP60: 5929311468 | BQ60: 6324577676 | BR60: 6719903020 | BS60: 7115160892 | BT60: 7510418764 | BU60: 7905684972
A61: NS.POLICIES_PROFILES | B61: 25587 | C61: 25587 | D61: 25587 | E61: 25587 | F61: 25587 | G61: 25587 | H61: 25587 | I61: 27027 | J61: 30147 | K61: 43155 | L61: 46275 | M61: 49155 | N61: 62403 | O61: 65283 | P61: 78531 | Q61: 81411 | R61: 84531 | S61: 155043 | T61: 225555 | U61: 304403 | V61: 374915 | W61: 445427 | X61: 515939 | Y61: 586451 | Z61: 656963 | AA61: 727475 | AB61: 1422467 | AC61: 2117459 | AD61: 2812451 | AE61: 3507443 | AF61: 4202435 | AG61: 4905763 | AH61: 5600755 | AI61: 6295747 | AJ61: 6990739 | AK61: 13967459 | AL61: 20925715 | AM61: 27902435 | AN61: 34870819 | AO61: 41837411 | AP61: 48805795 | AQ61: 55772387 | AR61: 62740771 | AS61: 69717491 | AT61: 104555827 | AU61: 139402499 | AV61: 174249171 | AW61: 209087507 | AX61: 243934179 | AY61: 278780851 | AZ61: 313629315 | BA61: 348475987 | BB61: 383322659 | BC61: 418160995 | BD61: 453007667 | BE61: 487854339 | BF61: 522692675 | BG61: 557539347 | BH61: 592396147 | BI61: 627234483 | BJ61: 662081155 | BK61: 696927827 | BL61: 766612835 | BM61: 836297843 | BN61: 906001315 | BO61: 975686323 | BP61: 1045371331 | BQ61: 1115064675 | BR61: 1184759811 | BS61: 1254444819 | BT61: 1324129827 | BU61: 1393823171
A62: NS.POLICIES_PRV_RTG_LIST | B62: 180384 | C62: 180384 | D62: 182944 | E62: 182944 | F62: 182944 | G62: 182944 | H62: 182944 | I62: 185504 | J62: 190624 | K62: 240176 | L62: 245296 | M62: 247856 | N62: 302608 | O62: 310848 | P62: 363280 | Q62: 371520 | R62: 376960 | S62: 635888 | T62: 894816 | U62: 1162080 | V62: 1421008 | W62: 1679936 | X62: 1938864 | Y62: 2195232 | Z62: 2454160 | AA62: 2713088 | AB62: 5252816 | AC62: 7792544 | AD62: 10329712 | AE62: 12869440 | AF62: 15409168 | AG62: 17957232 | AH62: 20494400 | AI62: 23034128 | AJ62: 25573856 | AK62: 51027120 | AL62: 76425056 | AM62: 101880880 | AN62: 127325808 | AO62: 152732080 | AP62: 178179568 | AQ62: 203585840 | AR62: 229030768 | AS62: 254484032 | AT62: 381636480 | AU62: 508797264 | AV62: 635955488 | AW62: 763107936 | AX62: 890266160 | AY62: 1017426944 | AZ62: 1144623824 | BA62: 1271784608 | BB62: 1398942832 | BC62: 1526095280 | BD62: 1653253504 | BE62: 1780414288 | BF62: 1907564176 | BG62: 2034724960 | BH62: 2161930176 | BI62: 2289082624 | BJ62: 2416240848 | BK62: 2543401632 | BL62: 2797712304 | BM62: 3052022976 | BN62: 3306388976 | BO62: 3560699648 | BP62: 3815010320 | BQ62: 4069329328 | BR62: 4323686992 | BS62: 4577997664 | BT62: 4832308336 | BU62: 5086627344
A63: NS.POLICIES_PUB_SIMPLE_GATEWAYS | B63: 49374 | C63: 49374 | D63: 52022 | E63: 52110 | F63: 52198 | G63: 52286 | H63: 52726 | I63: 64646 | J63: 81686 | K63: 123462 | L63: 140502 | M63: 154742 | N63: 199318 | O63: 216118 | P63: 258134 | Q63: 274934 | R63: 289414 | S63: 558518 | T63: 827622 | U63: 1105062 | V63: 1374166 | W63: 1643270 | X63: 1912374 | Y63: 2178918 | Z63: 2448022 | AA63: 2717126 | AB63: 5378070 | AC63: 8039014 | AD63: 10697398 | AE63: 13358342 | AF63: 16019286 | AG63: 18688566 | AH63: 21346950 | AI63: 24007894 | AJ63: 26668838 | AK63: 53314806 | AL63: 79924902 | AM63: 106573430 | AN63: 133211062 | AO63: 159829494 | AP63: 186469686 | AQ63: 213088118 | AR63: 239725750 | AS63: 266371718 | AT63: 399526598 | AU63: 532689814 | AV63: 665850470 | AW63: 799005350 | AX63: 932166006 | AY63: 1065329222 | AZ63: 1198509078 | BA63: 1331672294 | BB63: 1464832950 | BC63: 1597987830 | BD63: 1731148486 | BE63: 1864311702 | BF63: 1997464022 | BG63: 2130627238 | BH63: 2263815430 | BI63: 2396970310 | BJ63: 2530130966 | BK63: 2663294182 | BL63: 2929609718 | BM63: 3195925254 | BN63: 3462276662 | BO63: 3728592198 | BP63: 3994907734 | BQ63: 4261231606 | BR63: 4527574678 | BS63: 4793890214 | BT63: 5060205750 | BU63: 5326529622
A64: NS.POLICIES_RATECENTER_LATA_LIST | B64: 82069 | C64: 82069 | D64: 89749 | E64: 89749 | F64: 89749 | G64: 89749 | H64: 89749 | I64: 98869 | J64: 117349 | K64: 177973 | L64: 196453 | M64: 207013 | N64: 275557 | O64: 293797 | P64: 354661 | Q64: 372901 | R64: 383701 | S64: 736837 | T64: 1089973 | U64: 1451445 | V64: 1804581 | W64: 2157717 | X64: 2510853 | Y64: 2856309 | Z64: 3209445 | AA64: 3562581 | AB64: 7036197 | AC64: 10509813 | AD64: 13975749 | AE64: 17449365 | AF64: 20922981 | AG64: 24404933 | AH64: 27870869 | AI64: 31344485 | AJ64: 34818101 | AK64: 69597957 | AL64: 104319413 | AM64: 139106949 | AN64: 173878469 | AO64: 208608261 | AP64: 243387461 | AQ64: 278117253 | AR64: 312888773 | AS64: 347668629 | AT64: 521458133 | AU64: 695255973 | AV64: 869046133 | AW64: 1042835637 | AX64: 1216625797 | AY64: 1390423637 | AZ64: 1564255525 | BA64: 1738053365 | BB64: 1911843525 | BC64: 2085633029 | BD64: 2259423189 | BE64: 2433221029 | BF64: 2607002853 | BG64: 2780800693 | BH64: 2954640917 | BI64: 3128430421 | BJ64: 3302220581 | BK64: 3476018421 | BL64: 3823598085 | BM64: 4171177749 | BN64: 4518815813 | BO64: 4866395477 | BP64: 5213975141 | BQ64: 5561563141 | BR64: 5909192869 | BS64: 6256772533 | BT64: 6604352197 | BU64: 6951940197
A65: NS.POLICIES_RATECENTER_ZONE_LIST | B65: 93304 | C65: 93304 | D65: 102264 | E65: 102264 | F65: 102264 | G65: 102264 | H65: 102264 | I65: 112664 | J65: 133704 | K65: 203800 | L65: 224840 | M65: 236680 | N65: 315976 | O65: 336776 | P65: 407112 | Q65: 427912 | R65: 439992 | S65: 846376 | T65: 1252760 | U65: 1667480 | V65: 2073864 | W65: 2480248 | X65: 2886632 | Y65: 3284056 | Z65: 3690440 | AA65: 4096824 | AB65: 8093448 | AC65: 12090072 | AD65: 16077736 | AE65: 20074360 | AF65: 24070984 | AG65: 28075944 | AH65: 32063608 | AI65: 36060232 | AJ65: 40056856 | AK65: 80071144 | AL65: 120018840 | AM65: 160042088 | AN65: 200048040 | AO65: 240004072 | AP65: 280018984 | AQ65: 319975016 | AR65: 359980968 | AS65: 399995256 | AT65: 599943096 | AU65: 799899272 | AV65: 999846488 | AW65: 1199794328 | AX65: 1399741544 | AY65: 1599697720 | AZ65: 1799694856 | BA65: 1999651032 | BB65: 2199598248 | BC65: 2399546088 | BD65: 2599493304 | BE65: 2799449480 | BF65: 2999388360 | BG65: 3199344536 | BH65: 3399350008 | BI65: 3599297848 | BJ65: 3799245064 | BK65: 3999201240 | BL65: 4399096296 | BM65: 4798991352 | BN65: 5198953000 | BO65: 5598848056 | BP65: 5998743112 | BQ65: 6398646504 | BR65: 6798599816 | BS65: 7198494872 | BT65: 7598389928 | BU65: 7998293320
A66: NS.POLICIES_SCR_GC_LIST | B66: 39555 | C66: 39555 | D66: 42115 | E66: 42115 | F66: 42115 | G66: 42115 | H66: 42115 | I66: 47315 | J66: 55555 | K66: 88531 | L66: 96771 | M66: 102211 | N66: 137987 | O66: 145987 | P66: 179203 | Q66: 187203 | R66: 192883 | S66: 373987 | T66: 555091 | U66: 744531 | V66: 925635 | W66: 1106739 | X66: 1287843 | Y66: 1466387 | Z66: 1647491 | AA66: 1828595 | AB66: 3609539 | AC66: 5390483 | AD66: 7168867 | AE66: 8949811 | AF66: 10730755 | AG66: 12520035 | AH66: 14298419 | AI66: 16079363 | AJ66: 17860307 | AK66: 35706275 | AL66: 53516371 | AM66: 71364899 | AN66: 89202531 | AO66: 107020963 | AP66: 124861155 | AQ66: 142679587 | AR66: 160517219 | AS66: 178363187 | AT66: 267518067 | AU66: 356681283 | AV66: 445841939 | AW66: 534996819 | AX66: 624157475 | AY66: 713320691 | AZ66: 802500547 | BA66: 891663763 | BB66: 980824419 | BC66: 1069979299 | BD66: 1159139955 | BE66: 1248303171 | BF66: 1337455491 | BG66: 1426618707 | BH66: 1515806899 | BI66: 1604961779 | BJ66: 1694122435 | BK66: 1783285651 | BL66: 1961601187 | BM66: 2139916723 | BN66: 2318268131 | BO66: 2496583667 | BP66: 2674899203 | BQ66: 2853223075 | BR66: 3031566147 | BS66: 3209881683 | BT66: 3388197219 | BU66: 3566521091
A67: NS.POLICIES_SCR_LIST | B67: 82264 | C67: 82264 | D67: 89944 | E67: 89944 | F67: 89944 | G67: 89944 | H67: 89944 | I67: 99064 | J67: 117544 | K67: 178168 | L67: 196648 | M67: 207208 | N67: 275752 | O67: 293992 | P67: 354856 | Q67: 373096 | R67: 383896 | S67: 737032 | T67: 1090168 | U67: 1451640 | V67: 1804776 | W67: 2157912 | X67: 2511048 | Y67: 2856504 | Z67: 3209640 | AA67: 3562776 | AB67: 7036392 | AC67: 10510008 | AD67: 13975944 | AE67: 17449560 | AF67: 20923176 | AG67: 24405128 | AH67: 27871064 | AI67: 31344680 | AJ67: 34818296 | AK67: 69598152 | AL67: 104319608 | AM67: 139107144 | AN67: 173878664 | AO67: 208608456 | AP67: 243387656 | AQ67: 278117448 | AR67: 312888968 | AS67: 347668824 | AT67: 521458328 | AU67: 695256168 | AV67: 869046328 | AW67: 1042835832 | AX67: 1216625992 | AY67: 1390423832 | AZ67: 1564255720 | BA67: 1738053560 | BB67: 1911843720 | BC67: 2085633224 | BD67: 2259423384 | BE67: 2433221224 | BF67: 2607003048 | BG67: 2780800888 | BH67: 2954641112 | BI67: 3128430616 | BJ67: 3302220776 | BK67: 3476018616 | BL67: 3823598280 | BM67: 4171177944 | BN67: 4518816008 | BO67: 4866395672 | BP67: 5213975336 | BQ67: 5561563336 | BR67: 5909193064 | BS67: 6256772728 | BT67: 6604352392 | BU67: 6951940392
A68: NS.POLICIES_SCR_TG_LIST | B68: 56033 | C68: 56033 | D68: 57473 | E68: 57633 | F68: 57793 | G68: 57953 | H68: 58753 | I68: 77073 | J68: 98753 | K68: 164881 | L68: 186561 | M68: 206721 | N68: 274369 | O68: 295809 | P68: 362177 | Q68: 383617 | R68: 404017 | S68: 798369 | T68: 1192721 | U68: 1595409 | V68: 1989761 | W68: 2384113 | X68: 2778465 | Y68: 3171537 | Z68: 3565889 | AA68: 3960241 | AB68: 7856513 | AC68: 11752785 | AD68: 15647777 | AE68: 19544049 | AF68: 23440321 | AG68: 27344929 | AH68: 31239921 | AI68: 35136193 | AJ68: 39032465 | AK68: 78053985 | AL68: 117021201 | AM68: 156044001 | AN68: 195057185 | AO68: 234032737 | AP68: 273047201 | AQ68: 312022753 | AR68: 351035937 | AS68: 390057457 | AT68: 585050673 | AU68: 780052225 | AV68: 975052497 | AW68: 1170045713 | AX68: 1365045985 | AY68: 1560047537 | AZ68: 1755085441 | BA68: 1950086993 | BB68: 2145087265 | BC68: 2340080481 | BD68: 2535080753 | BE68: 2730082305 | BF68: 2925074241 | BG68: 3120075793 | BH68: 3315122033 | BI68: 3510115249 | BJ68: 3705115521 | BK68: 3900117073 | BL68: 4290110561 | BM68: 4680104049 | BN68: 5070151841 | BO68: 5460145329 | BP68: 5850138817 | BQ68: 6240140641 | BR68: 6630180097 | BS68: 7020173585 | BT68: 7410167073 | BU68: 7800168897
A69: NS.POLICIES_SIMPLE_GATEWAYS | B69: 64248 | C69: 64248 | D69: 66896 | E69: 66984 | F69: 67072 | G69: 67160 | H69: 67600 | I69: 79520 | J69: 96560 | K69: 152672 | L69: 169712 | M69: 183952 | N69: 242864 | O69: 259664 | P69: 316016 | Q69: 332816 | R69: 347296 | S69: 673744 | T69: 1000192 | U69: 1334976 | V69: 1661424 | W69: 1987872 | X69: 2314320 | Y69: 2638208 | Z69: 2964656 | AA69: 3291104 | AB69: 6511152 | AC69: 9731200 | AD69: 12948688 | AE69: 16168736 | AF69: 19388784 | AG69: 22617168 | AH69: 25834656 | AI69: 29054704 | AJ69: 32274752 | AK69: 64526096 | AL69: 96727232 | AM69: 128981136 | AN69: 161224144 | AO69: 193433616 | AP69: 225679184 | AQ69: 257888656 | AR69: 290131664 | AS69: 322383008 | AT69: 483536096 | AU69: 644697520 | AV69: 805856384 | AW69: 967009472 | AX69: 1128168336 | AY69: 1289329760 | AZ69: 1450522160 | BA69: 1611683584 | BB69: 1772842448 | BC69: 1933995536 | BD69: 2095154400 | BE69: 2256315824 | BF69: 2417466352 | BG69: 2578627776 | BH69: 2739828512 | BI69: 2900981600 | BJ69: 3062140464 | BK69: 3223301888 | BL69: 3545613840 | BM69: 3867925792 | BN69: 4190287952 | BO69: 4512599904 | BP69: 4834911856 | BQ69: 5157232144 | BR69: 5479585968 | BS69: 5801897920 | BT69: 6124209872 | BU69: 6446530160
A70: NS.POLICIES_SP_DIGMAN | B70: 58250 | C70: 58250 | D70: 59530 | E70: 59530 | F70: 59530 | G70: 59530 | H70: 59530 | I70: 63210 | J70: 68650 | K70: 119018 | L70: 124458 | M70: 128858 | N70: 180266 | O70: 185946 | P70: 236074 | Q70: 241754 | R70: 245914 | S70: 480266 | T70: 714618 | U70: 957306 | V70: 1191658 | W70: 1426010 | X70: 1660362 | Y70: 1893434 | Z70: 2127786 | AA70: 2362138 | AB70: 4658410 | AC70: 6954682 | AD70: 9249674 | AE70: 11545946 | AF70: 13842218 | AG70: 16146826 | AH70: 18441818 | AI70: 20738090 | AJ70: 23034362 | AK70: 46055882 | AL70: 69023098 | AM70: 92045898 | AN70: 115059082 | AO70: 138034634 | AP70: 161049098 | AQ70: 184024650 | AR70: 207037834 | AS70: 230059354 | AT70: 345052570 | AU70: 460054122 | AV70: 575054394 | AW70: 690047610 | AX70: 805047882 | AY70: 920049434 | AZ70: 1035087338 | BA70: 1150088890 | BB70: 1265089162 | BC70: 1380082378 | BD70: 1495082650 | BE70: 1610084202 | BF70: 1725076138 | BG70: 1840077690 | BH70: 1955123930 | BI70: 2070117146 | BJ70: 2185117418 | BK70: 2300118970 | BL70: 2530112458 | BM70: 2760105946 | BN70: 2990153738 | BO70: 3220147226 | BP70: 3450140714 | BQ70: 3680142538 | BR70: 3910181994 | BS70: 4140175482 | BT70: 4370168970 | BU70: 4600170794
A71: NS.POLICIES_SUBSCRIPTIONS | B71: 272617 | C71: 272617 | D71: 275177 | E71: 275177 | F71: 275177 | G71: 275177 | H71: 275177 | I71: 277737 | J71: 282857 | K71: 303737 | L71: 308857 | M71: 311417 | N71: 334857 | O71: 339977 | P71: 360857 | Q71: 365977 | R71: 368537 | S71: 512057 | T71: 656297 | U71: 808873 | V71: 953113 | W71: 1097353 | X71: 1241593 | Y71: 1383273 | Z71: 1527513 | AA71: 1671753 | AB71: 3093273 | AC71: 4514793 | AD71: 5933753 | AE71: 7355273 | AF71: 8776793 | AG71: 10206649 | AH71: 11625609 | AI71: 13047129 | AJ71: 14468649 | AK71: 28711161 | AL71: 42927017 | AM71: 57172089 | AN71: 71406265 | AO71: 85630457 | AP71: 99867193 | AQ71: 114091385 | AR71: 128325561 | AS71: 142568073 | AT71: 213724105 | AU71: 284888473 | AV71: 356050281 | AW71: 427206313 | AX71: 498368121 | AY71: 569532489 | AZ71: 640704281 | BA71: 711868649 | BB71: 783030457 | BC71: 854186489 | BD71: 925348297 | BE71: 996512665 | BF71: 1067666137 | BG71: 1138830505 | BH71: 1210010633 | BI71: 1281166665 | BJ71: 1352328473 | BK71: 1423492841 | BL71: 1565810681 | BM71: 1708128521 | BN71: 1850473017 | BO71: 1992790857 | BP71: 2135108697 | BQ71: 2277434873 | BR71: 2419771033 | BS71: 2562088873 | BT71: 2704406713 | BU71: 2846732889
A72: NS.POLICIES_TRANSL_CALLTYPE | B72: 32474 | C72: 32474 | D72: 33754 | E72: 33754 | F72: 33754 | G72: 33754 | H72: 33754 | I72: 37434 | J72: 42874 | K72: 67642 | L72: 73082 | M72: 77482 | N72: 103290 | O72: 108970 | P72: 133498 | Q72: 139178 | R72: 143338 | S72: 275290 | T72: 407242 | U72: 547530 | V72: 679482 | W72: 811434 | X72: 943386 | Y72: 1074058 | Z72: 1206010 | AA72: 1337962 | AB72: 2635834 | AC72: 3933706 | AD72: 5230298 | AE72: 6528170 | AF72: 7826042 | AG72: 9132250 | AH72: 10428842 | AI72: 11726714 | AJ72: 13024586 | AK72: 26036506 | AL72: 39019722 | AM72: 52032922 | AN72: 65036506 | AO72: 78028058 | AP72: 91032922 | AQ72: 104024474 | AR72: 117028058 | AS72: 130039978 | AT72: 195036394 | AU72: 260041146 | AV72: 325044618 | AW72: 390041034 | AX72: 455044506 | AY72: 520049258 | AZ72: 585064762 | BA72: 650069514 | BB72: 715072986 | BC72: 780069402 | BD72: 845072874 | BE72: 910077626 | BF72: 975072762 | BG72: 1040077514 | BH72: 1105101354 | BI72: 1170097770 | BJ72: 1235101242 | BK72: 1300105994 | BL72: 1430105882 | BM72: 1560105770 | BN72: 1690134362 | BO72: 1820134250 | BP72: 1950134138 | BQ72: 2080142362 | BR72: 2210162618 | BS72: 2340162506 | BT72: 2470162394 | BU72: 2600170618
A73: NS.POLICIES_TRANSL_CATEGORIES | B73: 25629 | C73: 25629 | D73: 25629 | E73: 25629 | F73: 25629 | G73: 25629 | H73: 25629 | I73: 28269 | J73: 31389 | K73: 53613 | L73: 56733 | M73: 59613 | N73: 82077 | O73: 84957 | P73: 107421 | Q73: 110301 | R73: 113421 | S73: 220797 | T73: 328173 | U73: 443885 | V73: 551261 | W73: 658637 | X73: 766013 | Y73: 873389 | Z73: 980765 | AA73: 1088141 | AB73: 2142557 | AC73: 3196973 | AD73: 4251389 | AE73: 5305805 | AF73: 6360221 | AG73: 7422973 | AH73: 8477389 | AI73: 9531805 | AJ73: 10586221 | AK73: 21166397 | AL73: 31718893 | AM73: 42299069 | AN73: 52870909 | AO73: 63431741 | AP73: 74003581 | AQ73: 84564413 | AR73: 95136253 | AS73: 105716429 | AT73: 158553613 | AU73: 211399133 | AV73: 264244653 | AW73: 317081837 | AX73: 369927357 | AY73: 422772877 | AZ73: 475629405 | BA73: 528474925 | BB73: 581320445 | BC73: 634157629 | BD73: 687003149 | BE73: 739848669 | BF73: 792685853 | BG73: 845531373 | BH73: 898396237 | BI73: 951233421 | BJ73: 1004078941 | BK73: 1056924461 | BL73: 1162607165 | BM73: 1268289869 | BN73: 1374000253 | BO73: 1479682957 | BP73: 1585365661 | BQ73: 1691056701 | BR73: 1796758749 | BS73: 1902441453 | BT73: 2008124157 | BU73: 2113815197
A74: NS.POLICIES_TREATMENT | B74: 35817 | C74: 35817 | D74: 38377 | E74: 38377 | F74: 38377 | G74: 38377 | H74: 38377 | I74: 43337 | J74: 51337 | K74: 78409 | L74: 86409 | M74: 92089 | N74: 121481 | O74: 129721 | P74: 156553 | Q74: 164793 | R74: 170233 | S74: 326761 | T74: 483289 | U74: 648153 | V74: 804681 | W74: 961209 | X74: 1117737 | Y74: 1271705 | Z74: 1428233 | AA74: 1584761 | AB74: 3126089 | AC74: 4667417 | AD74: 6206185 | AE74: 7747513 | AF74: 9288841 | AG74: 10838505 | AH74: 12377273 | AI74: 13918601 | AJ74: 15459929 | AK74: 30903593 | AL74: 46317529 | AM74: 61763753 | AN74: 77199081 | AO74: 92621353 | AP74: 108059241 | AQ74: 123481513 | AR74: 138916841 | AS74: 154360505 | AT74: 231516153 | AU74: 308680137 | AV74: 385841561 | AW74: 462997209 | AX74: 540158633 | AY74: 617322617 | AZ74: 694497097 | BA74: 771661081 | BB74: 848822505 | BC74: 925978153 | BD74: 1003139577 | BE74: 1080303561 | BF74: 1157456649 | BG74: 1234620633 | BH74: 1311803449 | BI74: 1388959097 | BJ74: 1466120521 | BK74: 1543284505 | BL74: 1697601577 | BM74: 1851918649 | BN74: 2006265449 | BO74: 2160582521 | BP74: 2314899593 | BQ74: 2469225001 | BR74: 2623563465 | BS74: 2777880537 | BT74: 2932197609 | BU74: 3086523017
A75: NS.RATECENTER_0 | B75: 328209 | C75: 328209 | D75: 328209 | E75: 328209 | F75: 328209 | G75: 328209 | H75: 328209 | I75: 328209 | J75: 328209 | K75: 345505 | L75: 345505 | M75: 345505 | N75: 362801 | O75: 362801 | P75: 380097 | Q75: 380097 | R75: 380097 | S75: 470881 | T75: 570065 | U75: 677585 | V75: 776769 | W75: 875953 | X75: 975137 | Y75: 1074321 | Z75: 1173505 | AA75: 1272689 | AB75: 2247233 | AC75: 3221777 | AD75: 4196321 | AE75: 5170865 | AF75: 6145409 | AG75: 7128289 | AH75: 8102833 | AI75: 9077377 | AJ75: 10051921 | AK75: 19831329 | AL75: 29585105 | AM75: 39364513 | AN75: 49135585 | AO75: 58897697 | AP75: 68668769 | AQ75: 78430881 | AR75: 88201953 | AS75: 97981361 | AT75: 146818801 | AU75: 195664577 | AV75: 244510353 | AW75: 293347793 | AX75: 342193569 | AY75: 391039345 | AZ75: 439894081 | BA75: 488739857 | BB75: 537585633 | BC75: 586423073 | BD75: 635268849 | BE75: 684114625 | BF75: 732952065 | BG75: 781797841 | BH75: 830660913 | BI75: 879498353 | BJ75: 928344129 | BK75: 977189905 | BL75: 1074873121 | BM75: 1172556337 | BN75: 1270265185 | BO75: 1367948401 | BP75: 1465631617 | BQ75: 1563323169 | BR75: 1661023681 | BS75: 1758706897 | BT75: 1856390113 | BU75: 1954081665
A76: NS.RATECENTER_1 | B76: 328209 | C76: 328209 | D76: 328209 | E76: 328209 | F76: 328209 | G76: 328209 | H76: 328209 | I76: 328209 | J76: 328209 | K76: 345505 | L76: 345505 | M76: 345505 | N76: 362801 | O76: 362801 | P76: 380097 | Q76: 380097 | R76: 380097 | S76: 470881 | T76: 570065 | U76: 677585 | V76: 776769 | W76: 875953 | X76: 975137 | Y76: 1074321 | Z76: 1173505 | AA76: 1272689 | AB76: 2247233 | AC76: 3221777 | AD76: 4196321 | AE76: 5170865 | AF76: 6145409 | AG76: 7128289 | AH76: 8102833 | AI76: 9077377 | AJ76: 10051921 | AK76: 19831329 | AL76: 29585105 | AM76: 39364513 | AN76: 49135585 | AO76: 58897697 | AP76: 68668769 | AQ76: 78430881 | AR76: 88201953 | AS76: 97981361 | AT76: 146818801 | AU76: 195664577 | AV76: 244510353 | AW76: 293347793 | AX76: 342193569 | AY76: 391039345 | AZ76: 439894081 | BA76: 488739857 | BB76: 537585633 | BC76: 586423073 | BD76: 635268849 | BE76: 684114625 | BF76: 732952065 | BG76: 781797841 | BH76: 830660913 | BI76: 879498353 | BJ76: 928344129 | BK76: 977189905 | BL76: 1074873121 | BM76: 1172556337 | BN76: 1270265185 | BO76: 1367948401 | BP76: 1465631617 | BQ76: 1563323169 | BR76: 1661023681 | BS76: 1758706897 | BT76: 1856390113 | BU76: 1954081665
A77: NS.SYS_PARAMS | B77: 23621 | C77: 23621 | D77: 23661 | E77: 23701 | F77: 23741 | G77: 23781 | H77: 23981 | I77: 30221 | J77: 37341 | K77: 61517 | L77: 68637 | M77: 75517 | N77: 99933 | O77: 106813 | P77: 131229 | Q77: 138109 | R77: 145229 | S77: 284413 | T77: 423597 | U77: 571117 | V77: 710301 | W77: 849485 | X77: 988669 | Y77: 1127853 | Z77: 1267037 | AA77: 1406221 | AB77: 2780765 | AC77: 4155309 | AD77: 5529853 | AE77: 6904397 | AF77: 8278941 | AG77: 9661821 | AH77: 11036365 | AI77: 12410909 | AJ77: 13785453 | AK77: 27564861 | AL77: 41318637 | AM77: 55098045 | AN77: 68869117 | AO77: 82631229 | AP77: 96402301 | AQ77: 110164413 | AR77: 123935485 | AS77: 137714893 | AT77: 206552333 | AU77: 275398109 | AV77: 344243885 | AW77: 413081325 | AX77: 481927101 | AY77: 550772877 | AZ77: 619627613 | BA77: 688473389 | BB77: 757319165 | BC77: 826156605 | BD77: 895002381 | BE77: 963848157 | BF77: 1032685597 | BG77: 1101531373 | BH77: 1170394445 | BI77: 1239231885 | BJ77: 1308077661 | BK77: 1376923437 | BL77: 1514606653 | BM77: 1652289869 | BN77: 1789998717 | BO77: 1927681933 | BP77: 2065365149 | BQ77: 2203056701 | BR77: 2340757213 | BS77: 2478440429 | BT77: 2616123645 | BU77: 2753815197
A78: NS.SYS_PARAM_SETS | B78: 23813 | C78: 23813 | D78: 23869 | E78: 23925 | F78: 23981 | G78: 24037 | H78: 24317 | I78: 31997 | J78: 40717 | K78: 66493 | L78: 75213 | M78: 83693 | N78: 109709 | O78: 118189 | P78: 144205 | Q78: 152685 | R78: 161405 | S78: 316589 | T78: 471773 | U78: 635293 | V78: 790477 | W78: 945661 | X78: 1100845 | Y78: 1256029 | Z78: 1411213 | AA78: 1566397 | AB78: 3100941 | AC78: 4635485 | AD78: 6170029 | AE78: 7704573 | AF78: 9239117 | AG78: 10781997 | AH78: 12316541 | AI78: 13851085 | AJ78: 15385629 | AK78: 30765037 | AL78: 46118813 | AM78: 61498221 | AN78: 76869293 | AO78: 92231405 | AP78: 107602477 | AQ78: 122964589 | AR78: 138335661 | AS78: 153715069 | AT78: 230552509 | AU78: 307398285 | AV78: 384244061 | AW78: 461081501 | AX78: 537927277 | AY78: 614773053 | AZ78: 691627789 | BA78: 768473565 | BB78: 845319341 | BC78: 922156781 | BD78: 999002557 | BE78: 1075848333 | BF78: 1152685773 | BG78: 1229531549 | BH78: 1306394621 | BI78: 1383232061 | BJ78: 1460077837 | BK78: 1536923613 | BL78: 1690606829 | BM78: 1844290045 | BN78: 1997998893 | BO78: 2151682109 | BP78: 2305365325 | BQ78: 2459056877 | BR78: 2612757389 | BS78: 2766440605 | BT78: 2920123821 | BU78: 3073815373
A79: NS.SYS_POLICIES | B79: 21905 | C79: 21905 | D79: 21905 | E79: 21905 | F79: 21905 | G79: 21905 | H79: 21905 | I79: 24545 | J79: 27665 | K79: 45793 | L79: 48913 | M79: 51793 | N79: 70161 | O79: 73041 | P79: 91409 | Q79: 94289 | R79: 97409 | S79: 188401 | T79: 279393 | U79: 378721 | V79: 469713 | W79: 560705 | X79: 651697 | Y79: 742689 | Z79: 833681 | AA79: 924673 | AB79: 1819345 | AC79: 2714017 | AD79: 3608689 | AE79: 4503361 | AF79: 5398033 | AG79: 6301041 | AH79: 7195713 | AI79: 8090385 | AJ79: 8985057 | AK79: 17963697 | AL79: 26918753 | AM79: 35897393 | AN79: 44867697 | AO79: 53831089 | AP79: 62801393 | AQ79: 71764785 | AR79: 80735089 | AS79: 89713729 | AT79: 134551425 | AU79: 179397457 | AV79: 224243489 | AW79: 269081185 | AX79: 313927217 | AY79: 358773249 | AZ79: 403626193 | BA79: 448472225 | BB79: 493318257 | BC79: 538155953 | BD79: 583001985 | BE79: 627848017 | BF79: 672685713 | BG79: 717531745 | BH79: 762393025 | BI79: 807230721 | BJ79: 852076753 | BK79: 896922785 | BL79: 986606513 | BM79: 1076290241 | BN79: 1165997553 | BO79: 1255681281 | BP79: 1345365009 | BQ79: 1435057073 | BR79: 1524756049 | BS79: 1614439777 | BT79: 1704123505 | BU79: 1793815569
A80: NS.SYS_PRIVATE_POLICIES | B80: 21905 | C80: 21905 | D80: 21905 | E80: 21905 | F80: 21905 | G80: 21905 | H80: 21905 | I80: 24545 | J80: 27665 | K80: 45793 | L80: 48913 | M80: 51793 | N80: 70161 | O80: 73041 | P80: 91409 | Q80: 94289 | R80: 97409 | S80: 188401 | T80: 279393 | U80: 378721 | V80: 469713 | W80: 560705 | X80: 651697 | Y80: 742689 | Z80: 833681 | AA80: 924673 | AB80: 1819345 | AC80: 2714017 | AD80: 3608689 | AE80: 4503361 | AF80: 5398033 | AG80: 6301041 | AH80: 7195713 | AI80: 8090385 | AJ80: 8985057 | AK80: 17963697 | AL80: 26918753 | AM80: 35897393 | AN80: 44867697 | AO80: 53831089 | AP80: 62801393 | AQ80: 71764785 | AR80: 80735089 | AS80: 89713729 | AT80: 134551425 | AU80: 179397457 | AV80: 224243489 | AW80: 269081185 | AX80: 313927217 | AY80: 358773249 | AZ80: 403626193 | BA80: 448472225 | BB80: 493318257 | BC80: 538155953 | BD80: 583001985 | BE80: 627848017 | BF80: 672685713 | BG80: 717531745 | BH80: 762393025 | BI80: 807230721 | BJ80: 852076753 | BK80: 896922785 | BL80: 986606513 | BM80: 1076290241 | BN80: 1165997553 | BO80: 1255681281 | BP80: 1345365009 | BQ80: 1435057073 | BR80: 1524756049 | BS80: 1614439777 | BT80: 1704123505 | BU80: 1793815569
A81: NS.SYS_PW_RULES | B81: 22304 | C81: 22304 | D81: 22336 | E81: 22368 | F81: 22400 | G81: 22432 | H81: 22592 | I81: 28112 | J81: 34432 | K81: 53712 | L81: 60032 | M81: 66112 | N81: 85632 | O81: 91712 | P81: 111232 | Q81: 117312 | R81: 123632 | S81: 238432 | T81: 353232 | U81: 476368 | V81: 591168 | W81: 705968 | X81: 820768 | Y81: 935568 | Z81: 1050368 | AA81: 1165168 | AB81: 2299968 | AC81: 3434768 | AD81: 4569568 | AE81: 5704368 | AF81: 6839168 | AG81: 7982304 | AH81: 9117104 | AI81: 10251904 | AJ81: 11386704 | AK81: 22764576 | AL81: 34120912 | AM81: 45498784 | AN81: 56868320 | AO81: 68232992 | AP81: 79602528 | AQ81: 90967200 | AR81: 102336736 | AS81: 113714608 | AT81: 170552560 | AU81: 227398848 | AV81: 284245136 | AW81: 341083088 | AX81: 397929376 | AY81: 454775664 | AZ81: 511626816 | BA81: 568473104 | BB81: 625319392 | BC81: 682157344 | BD81: 739003632 | BE81: 795849920 | BF81: 852687872 | BG81: 909534160 | BH81: 966393648 | BI81: 1023231600 | BJ81: 1080077888 | BK81: 1136924176 | BL81: 1250608416 | BM81: 1364292656 | BN81: 1477998432 | BO81: 1591682672 | BP81: 1705366912 | BQ81: 1819059488 | BR81: 1932756928 | BS81: 2046441168 | BT81: 2160125408 | BU81: 2273817984
A82: NS.SYS_SERVICE_PROVIDERS | B82: 21347 | C82: 21347 | D82: 21347 | E82: 21347 | F82: 21347 | G82: 21347 | H82: 21347 | I82: 23987 | J82: 27107 | K82: 45235 | L82: 48355 | M82: 51235 | N82: 69603 | O82: 72483 | P82: 90851 | Q82: 93731 | R82: 96851 | S82: 187843 | T82: 278835 | U82: 378163 | V82: 469155 | W82: 560147 | X82: 651139 | Y82: 742131 | Z82: 833123 | AA82: 924115 | AB82: 1818787 | AC82: 2713459 | AD82: 3608131 | AE82: 4502803 | AF82: 5397475 | AG82: 6300483 | AH82: 7195155 | AI82: 8089827 | AJ82: 8984499 | AK82: 17963139 | AL82: 26918195 | AM82: 35896835 | AN82: 44867139 | AO82: 53830531 | AP82: 62800835 | AQ82: 71764227 | AR82: 80734531 | AS82: 89713171 | AT82: 134550867 | AU82: 179396899 | AV82: 224242931 | AW82: 269080627 | AX82: 313926659 | AY82: 358772691 | AZ82: 403625635 | BA82: 448471667 | BB82: 493317699 | BC82: 538155395 | BD82: 583001427 | BE82: 627847459 | BF82: 672685155 | BG82: 717531187 | BH82: 762392467 | BI82: 807230163 | BJ82: 852076195 | BK82: 896922227 | BL82: 986605955 | BM82: 1076289683 | BN82: 1165996995 | BO82: 1255680723 | BP82: 1345364451 | BQ82: 1435056515 | BR82: 1524755491 | BS82: 1614439219 | BT82: 1704122947 | BU82: 1793815011
A83: NS.SYS_SP_POLICIES | B83: 31487 | C83: 31487 | D83: 34047 | E83: 34047 | F83: 34047 | G83: 34047 | H83: 34047 | I83: 39247 | J83: 47487 | K83: 73295 | L83: 81535 | M83: 86975 | N83: 115583 | O83: 123583 | P83: 149631 | Q83: 157631 | R83: 163311 | S83: 315743 | T83: 468175 | U83: 628943 | V83: 781375 | W83: 933807 | X83: 1086239 | Y83: 1236111 | Z83: 1388543 | AA83: 1540975 | AB83: 3042367 | AC83: 4543759 | AD83: 6042591 | AE83: 7543983 | AF83: 9045375 | AG83: 10555103 | AH83: 12053935 | AI83: 13555327 | AJ83: 15056719 | AK83: 30099999 | AL83: 45114575 | AM83: 60160415 | AN83: 75195359 | AO83: 90218271 | AP83: 105255775 | AQ83: 120278687 | AR83: 135313631 | AS83: 150356911 | AT83: 225512687 | AU83: 300676799 | AV83: 375838351 | AW83: 450994127 | AX83: 526155679 | AY83: 601319791 | AZ83: 676493375 | BA83: 751657487 | BB83: 826819039 | BC83: 901974815 | BD83: 977136367 | BE83: 1052300479 | BF83: 1127453695 | BG83: 1202617807 | BH83: 1277799727 | BI83: 1352955503 | BJ83: 1428117055 | BK83: 1503281167 | BL83: 1653598495 | BM83: 1803915823 | BN83: 1954261855 | BO83: 2104579183 | BP83: 2254896511 | BQ83: 2405222175 | BR83: 2555559871 | BS83: 2705877199 | BT83: 2856194527 | BU83: 3006520191
A84: NS.SYS_TREATMENT | B84: 30516 | C84: 30516 | D84: 30516 | E84: 30516 | F84: 30516 | G84: 30516 | H84: 30516 | I84: 32916 | J84: 35796 | K84: 59284 | L84: 62164 | M84: 65284 | N84: 88532 | O84: 91652 | P84: 114900 | Q84: 118020 | R84: 120900 | S84: 232372 | T84: 343844 | U84: 463652 | V84: 575124 | W84: 686596 | X84: 798068 | Y84: 909540 | Z84: 1021012 | AA84: 1132484 | AB84: 2226836 | AC84: 3321188 | AD84: 4415540 | AE84: 5509892 | AF84: 6604244 | AG84: 7706932 | AH84: 8801284 | AI84: 9895636 | AJ84: 10989988 | AK84: 21970548 | AL84: 32922404 | AM84: 43902964 | AN84: 54875188 | AO84: 65835380 | AP84: 76807604 | AQ84: 87767796 | AR84: 98740020 | AS84: 109720580 | AT84: 164557636 | AU84: 219403028 | AV84: 274248420 | AW84: 329085476 | AX84: 383930868 | AY84: 438776260 | AZ84: 493633684 | BA84: 548479076 | BB84: 603324468 | BC84: 658161524 | BD84: 713006916 | BE84: 767852308 | BF84: 822689364 | BG84: 877534756 | BH84: 932400516 | BI84: 987237572 | BJ84: 1042082964 | BK84: 1096928356 | BL84: 1206610804 | BM84: 1316293252 | BN84: 1426004404 | BO84: 1535686852 | BP84: 1645369300 | BQ84: 1755060084 | BR84: 1864762900 | BS84: 1974445348 | BT84: 2084127796 | BU84: 2193818580
A85: NS.TRANSLATION_BASIC | B85: 387292 | C85: 387292 | D85: 388572 | E85: 388572 | F85: 388572 | G85: 388572 | H85: 388572 | I85: 389852 | J85: 392412 | K85: 727452 | L85: 732892 | M85: 737292 | N85: 1073372 | O85: 1079052 | P85: 1413852 | Q85: 1419532 | R85: 1423692 | S85: 2796732 | T85: 4169772 | U85: 5551148 | V85: 6924188 | W85: 8297228 | X85: 9670268 | Y85: 11042028 | Z85: 12415068 | AA85: 13788108 | AB85: 27186588 | AC85: 40585068 | AD85: 53982268 | AE85: 67380748 | AF85: 80779228 | AG85: 94186044 | AH85: 107583244 | AI85: 120981724 | AJ85: 134380204 | AK85: 268708476 | AL85: 402697772 | AM85: 537027324 | AN85: 671347260 | AO85: 805344892 | AP85: 939666108 | AQ85: 1073663740 | AR85: 1207983676 | AS85: 1342311948 | AT85: 2013269580 | AU85: 2684235548 | AV85: 3355200236 | AW85: 4026157868 | AX85: 4697122556 | AY85: 5368088524 | AZ85: 6039375516 | BA85: 6710341484 | BB85: 7381306172 | BC85: 8052263804 | BD85: 8723228492 | BE85: 9394194460 | BF85: 10065150812 | BG85: 10736116780 | BH85: 11407412108 | BI85: 12078369740 | BJ85: 12749334428 | BK85: 13420300396 | BL85: 14762222716 | BM85: 16104145036 | BN85: 17446406332 | BO85: 18788328652 | BP85: 20130250972 | BQ85: 21472181628 | BR85: 22814434588 | BS85: 24156356908 | BT85: 25498279228 | BU85: 26840209884
A86: NS.ZONE | B86: 635318 | C86: 635318 | D86: 636598 | E86: 636598 | F86: 636598 | G86: 636598 | H86: 636598 | I86: 637878 | J86: 640438 | K86: 656966 | L86: 659526 | M86: 660806 | N86: 678614 | O86: 681174 | P86: 697702 | Q86: 700262 | R86: 701542 | S86: 783014 | T86: 877686 | U86: 997494 | V86: 1108966 | W86: 1220438 | X86: 1331910 | Y86: 1442102 | Z86: 1553574 | AA86: 1665046 | AB86: 2763238 | AC86: 3861430 | AD86: 4958342 | AE86: 6056534 | AF86: 7154726 | AG86: 8261254 | AH86: 9358166 | AI86: 10456358 | AJ86: 11554550 | AK86: 22564550 | AL86: 33550966 | AM86: 44562246 | AN86: 55563910 | AO86: 66558662 | AP86: 77561606 | AQ86: 88556358 | AR86: 99558022 | AS86: 110568022 | AT86: 165565078 | AU86: 220570470 | AV86: 275574582 | AW86: 330571638 | AX86: 385575750 | AY86: 440581142 | AZ86: 495592166 | BA86: 550597558 | BB86: 605601670 | BC86: 660598726 | BD86: 715602838 | BE86: 770608230 | BF86: 825604006 | BG86: 880609398 | BH86: 935628758 | BI86: 990625814 | BJ86: 1045629926 | BK86: 1100635318 | BL86: 1210636486 | BM86: 1320637654 | BN86: 1430662406 | BO86: 1540663574 | BP86: 1650664742 | BQ86: 1760674246 | BR86: 1870690662 | BS86: 1980691830 | BT86: 2090692998 | BU86: 2200702502
A87: NS.ZONE_RATE_CENTER | B87: 1276042 | C87: 1276042 | D87: 1277322 | E87: 1277322 | F87: 1277322 | G87: 1277322 | H87: 1277322 | I87: 1278602 | J87: 1281162 | K87: 1323290 | L87: 1325850 | M87: 1327130 | N87: 1370538 | O87: 1373098 | P87: 1415226 | Q87: 1417786 | R87: 1419066 | S87: 1602938 | T87: 1786810 | U87: 1979018 | V87: 2162890 | W87: 2373162 | X87: 2587034 | Y87: 2799626 | Z87: 3013498 | AA87: 3227370 | AB87: 5323962 | AC87: 7420554 | AD87: 9515866 | AE87: 11612458 | AF87: 13709050 | AG87: 15813978 | AH87: 17909290 | AI87: 20005882 | AJ87: 22102474 | AK87: 43122074 | AL87: 64092490 | AM87: 85113370 | AN87: 106124634 | AO87: 127103386 | AP87: 148115930 | AQ87: 169094682 | AR87: 190105946 | AS87: 211125546 | AT87: 316119402 | AU87: 421121594 | AV87: 526122506 | AW87: 631116362 | AX87: 736117274 | AY87: 841119466 | AZ87: 946152890 | BA87: 1051155082 | BB87: 1156155994 | BC87: 1261149850 | BD87: 1366150762 | BE87: 1471152954 | BF87: 1576145530 | BG87: 1681147722 | BH87: 1786189482 | BI87: 1891183338 | BJ87: 1996184250 | BK87: 2101186442 | BL87: 2311181210 | BM87: 2521175978 | BN87: 2731219930 | BO87: 2941214698 | BP87: 3151209466 | BQ87: 3361212570 | BR87: 3571248186 | BS87: 3781242954 | BT87: 3991237722 | BU87: 4201240826

Sheet CC DB Storage (hidden)
A1: CC DATABASE STORE REQUIREMENTS | B1: 2011-04-01
A3: Agents | B3: =NumAgents -> 0
A4: CC CPS (at busy hour) | B4: =eccrCps -> 0 | G4: CPS=(agents*erlangs_per_user )/holdtime
A5: Busy Hours (within a day) | B5: =busyHoursPerDay -> 8
A6: LoggedIn Agents | B6: =Agents*CCPercentLoggedIn -> 0
A7: DISP codes per call | B7: 2
A8: Number of Call Centers | B8: =NumCallCenters -> 122.324159
A9: DNIS per CC | B9: 10
A10: Unique Unavailable Codes Per Interval | B10: 0.1
A11: QuarterlyIntervalRetention | B11: ='Call Model'!S78 -> 90 | D11: 30-397
A12: HalfHourlyIntervalRetention | B12: ='Call Model'!S79 -> 90 | D12: 30-397
A13: HourlyIntervalRetention | B13: ='Call Model'!S80 -> 397 | D13: 30 to 731
A14: DetailRetention | B14: ='Call Model'!S81 -> 90 | D14: 30-90
A15: SignInOutRetention | B15: ='Call Model'!S82 -> 90 | D15: 30 to 397
B16: Table Name | C16: Retention Range (specified in days) | D16: Default Retention Period (specified in days) | E16: Data Row Size (Bytes) | F16: Total Row Size with Oracle overhead | G16: Number of rows per day at CPS for Busy_Hours in day | H16: Number of rows for default retention period | I16: Number of GigBytes for default retention
B17: ACTIVITY_AGENT_CALL_DETAILS | C17: 30-90 | D17: =DetailRetention -> 90 | E17: 304 | G17: =(CC_CPS*(3600*Busy_Hours)) -> 0 | H17: =D17*G17 -> 0 | I17: =H17*E17/(1024*1024*1024) -> 0
B18: ACTIVITY_AGENT_DISP_CODE | C18: 30-90 | D18: =DetailRetention -> 90 | E18: 124 | G18: =(CC_CPS * 2 * (Busy_Hours*3600)) -> 0 | H18: =G18*D18 -> 0 | I18: 0
B19: ACTIVITY_AGENT_CALL_DURATION | C19: 30-731 | D19: =HourlyInterval -> 397 | E19: 38 | G19: =(CC_CPS*(3600*Busy_Hours)) -> 0 | H19: =G19*D19 -> 0 | I19: 0
B20: ACTIVITY_AGENT_STATE | C20: 30-90 | D20: =DetailRetention -> 90 | E20: 148 | G20: =(CC_CPS * 2 * (Busy_Hours*3600)) -> 0 | H20: 0 | I20: 0
B21: ACTIVITY_AGENT_SIGNIN_SIGNOUT | C21: 30-397 | D21: =SignInOut -> 90 | E21: 65 | G21: =Agents*2 -> 0 | H21: 0 | I21: 0
B22: ACTIVITY_CC_CALL_DETAILS | C22: 30-90 | D22: =DetailRetention -> 90 | E22: 393 | G22: =(CC_CPS*(3600*Busy_Hours)) -> 0 | H22: 0 | I22: 0
B23: ACTIVITY_CC_CALL_SVCLVL | C23: 30-731 | D23: =HourlyInterval -> 397 | E23: 40 | G23: =(CC_CPS*(3600*Busy_Hours)) -> 0 | H23: =G23*D23 -> 0 | I23: 0
B24: ACTIVITY_CC_JOIN | C24: 30-90 | D24: =DetailRetention -> 90 | E24: 96 | G24: =Agents * 2 -> 0 | H24: 0 | I24: 0
B25: INTSTATS15_AGENT | C25: 30-90 | D25: =QuarterHour -> 90 | E25: 232 | G25: =LoggedIn * 96 -> 0 | H25: 0 | I25: 0
B26: INTSTATS15_AGENT_DNIS | C26: 30-90 | D26: 90 | E26: 184 | G26: =LoggedIn*96 -> 0 | H26: 0 | I26: 0
B27: INTSTATS15_AGENT_UNAVAIL_CODE | C27: 30-90 | D27: 90 | E27: 80 | G27: =LoggedIn * 96*Unique_Unavailable_Codes_Per_Interval -> 0 | H27: 0 | I27: 0
B28: INTSTATS15_AGENT_DISP_CODE | C28: 30-90 | D28: 90 | E28: 90 | G28: =LoggedIn * 96 * DISP_codes_per_call -> 0 | H28: 0 | I28: 0
B29: INTSTATS15_CC | C29: 30-90 | D29: 90 | E29: 219 | G29: =(Number_of_Call_Centers * DNIS_per_CC * 96) -> 117431.1927 | H29: 10568807.34 | I29: 2.155610181
B30: INTSTATS15_CC_OVERFLOW | C30: 30-90 | D30: 90 | E30: 79 | G30: =DNIS_per_CC * 96 -> 960 | H30: 86400 | I30: 0.006356835365
B31: INTSTATS30_AGENT | C31: 30-731 | D31: =HalfHourly -> 90 | E31: 232 | G31: =LoggedIn * 48 -> 0 | H31: 0 | I31: 0
B32: INTSTATS30_AGENT_DNIS | C32: 30-731 | D32: 90 | E32: 184 | G32: =LoggedIn * 48 -> 0 | H32: 0 | I32: 0
B33: INTSTATS30_AGENT_UNAVAIL_CODE | C33: 30-731 | D33: 90 | E33: 80 | G33: =LoggedIn * 48*Unique_Unavailable_Codes_Per_Interval -> 0 | H33: 0 | I33: 0
B34: INTSTATS30_AGENT_DISP_CODE | C34: 30-731 | D34: 90 | E34: 90 | G34: =LoggedIn * 48 * DISP_codes_per_call -> 0 | H34: 0 | I34: 0
B35: INTSTATS30_CC | C35: 30-731 | D35: 90 | E35: 219 | G35: =(Number_of_Call_Centers * DNIS_per_CC * 48) -> 58715.59633 | H35: 5284403.67 | I35: 1.07780509
B36: INTSTATS30_CC_OVERFLOW | C36: 30-731 | D36: 90 | E36: 79 | G36: =(DNIS_per_CC * 48) -> 480 | H36: 43200 | I36: 0.003178417683
B37: INTSTATS60_AGENT | C37: 30-731 | D37: =HourlyInterval -> 397 | E37: 232 | G37: =LoggedIn*24 -> 0 | H37: 0 | I37: 0
B38: INTSTATS60_AGENT_DNIS | C38: 30-731 | D38: 397 | E38: 184 | G38: =LoggedIn*24 -> 0 | H38: 0 | I38: 0
B39: INTSTATS60_AGENT_UNAVAIL_CODE | C39: 30-731 | D39: 397 | E39: 80 | G39: =LoggedIn*24*Unique_Unavailable_Codes_Per_Interval -> 0 | H39: 0 | I39: 0
B40: INTSTATS60_AGENT_DISP_CODE | C40: 30-731 | D40: 397 | E40: 90 | G40: =LoggedIn*24*DISP_codes_per_call -> 0 | H40: 0 | I40: 0
B41: INTSTATS60_CC | C41: 30-731 | D41: 397 | E41: 219 | G41: =Number_of_Call_Centers*DNIS_per_CC*24 -> 29357.79817 | H41: 11655045.87 | I41: 2.377159005
B42: INTSTATS60_CC_OVERFLOW | C42: 30-731 | D42: 397 | E42: 79 | G42: =DNIS_per_CC * 24 -> 240 | H42: 95280 | I42: 0.007010176778
H43: GB of data | I43: =ROUNDUP(SUM(I17:I42),0) -> 6 | K43: overhead percent | M43: 1
H44: DATA partition overhead | I44: 15
H45: DATA partition | I45: =I43+I44 -> 21
H46: FRA partition | I46: =2*I45 -> 42
H47: TOTAL DISK STORAGE | I47: =I43+I44+I46 -> 63

Sheet ECL DB (hidden)
A3: Enterprise Model Assumptions | D3: Records | E3: In Millions | G3: DBS IP Requirements | H3: MBits/sec | I3: Mbytes/sec
A4: Busy Hour Erlang / user | B4: =AvgErlang -> 0.1 | D4: Records Per Busy hour | E4: =((((3600*B4)/B5)*B10)*B6)/1000000 -> 2 | G4: Incoming | H4: =B39 -> 3.571428571 | I4: =H4/8 -> 0.4464285714
A5: Call Hold Time in seconds | B5: ='Call Model'!Q15 -> 180 | D5: Records Per Day | E5: =E4/(B9/100) -> 16 | G5: Outgoing | H5: =B40 -> 0 | I5: =H5/8 -> 0
A6: Users | B6: =Users -> 1000000 | D6: Records Per Month | E6: =E5*30 -> 480
A7: Users per Group | B7: =oneUserPerGroup -> 1 | D7: Records Per Schema | E7: =E6*B14 -> 1440 | G7: DBS Fiber Requirements MBits/sec | I7: Mbytes/sec
A8: Groups per Enterprise | B8: =groupsPerEnt -> 15000000 | D8: Records Per DBS | E8: =E7*#REF! ->  | G8: Incoming | H8: =I8*8 -> 0 | I8: =B42 -> 0
A9: BH % of Daily Calls | B9: =1/busyHoursPerDay*100 -> 12.5 | G9: Outgoing | H9: =I9*8 -> 14.51800232 | I9: =B43 -> 1.81475029
A10: ECL Records per Call | B10: 1 | D10: Records over time
A11: ECL Updates per Call | B11: 2 | E11: Calls/BH | F11: Call/Day | G11: Calls/week | H11: Calls/Month | I11: Calls /2 Mo | J11: Calls/ 3 Mo
A12: Read requests per user per hour | B12: ='Call Model'!S188*enhancedCallLogs -> 0 | D12: User | E12: =(B4*3600)/B5 -> 2 | F12: =E12/(B9/100) -> 16 | G12: =F12*7 -> 112 | H12: =F12*30 -> 480 | I12: =H12*2 -> 960 | J12: =H12*3 -> 1440
A13: Admin read requests per hour | B13: ='Call Model'!S189*enhancedCallLogs -> 0 | D13: Group | E13: =(E12*B7) -> 2 | F13: =F12*B7 -> 16 | G13: =G12*B7 -> 112 | H13: =H12*B7 -> 480 | I13: =H13*2 -> 960 | J13: =H13*3 -> 1440
A14: Months of ECL Archive | B14: =eclRetention -> 3 | D14: Enterprise | E14: =E13*B8 -> 30000000 | F14: =F13*B8 -> 240000000 | G14: =G13*B8 -> 1680000000 | H14: =H13*B8 -> 7200000000 | I14: =I13*B8 -> 14400000000 | J14: =J13*B8 -> 21600000000
D16: Oracle Activity | E16: Total trans/sec | F16: User select/sec | G16: Inserts/sec | H16: Updates/sec | I16: Fetches/sec
E17: =F17+G17+H17+I17 -> 3333.333333 | F17: =(E4/3600)*(B10+B11)*1000000 -> 1666.666667 | G17: =(E4/3600*B10)*1000000 -> 555.5555556 | H17: =((E4/3600)*B11)*1000000 -> 1111.111111 | I17: =(B6*(B12)/3600) -> 0
D18: per DBS | E18: =E17 -> 3333.333333 | F18: =F17 -> 1666.666667 | G18: =G17 -> 555.5555556 | H18: =H17 -> 1111.111111 | I18: =I17 -> 0
D20: Disk Requirements | F20: Space in GB | G20: Write IOPs | H20: Read IOPs | I20: Read Thruput (Mbytes/sec) | J20: Write Thruput (Mbytes/sec)
F21: =(E7*B29)/1000 -> 494.1981647 | G21: =((E4/3600)/F32)*1000000 -> 49.3612079 | H21: =((B6*B12+B13)*F35)/3600 -> 0 | I21: =((B6*B12+B13)*E35)/1024/3600 -> 0 | J21: =((E4/3600)*E32*1000000)/1024 -> 1.77221708
D22: per DBS | F22: =F21 -> 494.1981647 | G22: =G21 -> 49.3612079 | H22: =H21 -> 0 | I22: =I21 -> 0 | J22: =J21 -> 1.77221708
A25: Measured Values
A27: Baseline Schema Size MB | B27: 327264
A28: Baseline Schema Record Count | B28: 953585411
A29: Baseline record size in bytes | B29: =(B27*1000000)/B28 -> 343.1931699
I30: IP Mbits/sec
A31: Inserts / sec | B31: Inserts / sec | C31: WIOPs/sec | D31: Kbytes/sec | E31: Kbytes/Insert | F31: Inserts per IOP | G31: Mbits/sec | I31: Incoming | J31: per insert
B32: 574 | C32: 51 | D32: 1875 | E32: =D32/B32 -> 3.266550523 | F32: =B32/C32 -> 11.25490196 | G32: 3.69 | I32: 3.69 | J32: =I32 / B32 -> 0.006428571429
A34: AS Web Portal | B34: Fetch/sec | C34: RIOPs/sec | D34: Kbytes/sec | E34: Kbytes/Fetch | F34: RIOPs/fetch | G34: Records/Month in M | I34: Outgoing | J34: per fetch
B35: 1.3 | C35: 1181 | D35: 261923 | E35: =D35/B35 -> 201479.2308 | F35: =C35/B35 -> 908.4615385 | G35: 368.6 | I35: 4.2 | J35: =I35 / B35 -> 3.230769231
A37: Derived Values
B38: Mbits/Sec | D38: =C35/B35 -> 908.4615385 | E38: iop per fetch
A39: Incoming IP Bandwidth / AS | B39: =G17 * J32 -> 3.571428571 | C39: note: all AS | D39: =99999/D38 -> 110.0751058 | E39: fetch for 99999 iops
A40: Outgoing IP Bandwidth / AS | B40: =I17 * J35 -> 0 | D40: =D39*3600 -> 396270.381 | E40: fetch per hour
B41: Mbytes/Sec | D41: =1000000/D40 -> 2.523529509 | E41: per user per hour for 1M users
A42: Incoming FC Bandwidth / AS | B42: =(((E6 / G35) * E35 / 1000) / B35) * I17 -> 0
A43: Outgoing FC Bandwidth / AS | B43: =(G17 * E32) / 1000 -> 1.81475029

Sheet DEPRECATED (hidden)
L1: CLIENT CALL CONTROL 2
L2: Penetration | S2: 0
L3: Click To Dial Penetration | S3: 0
L4: Average Ringback for SIP Devices (Click To Dial) | S4: 18
C6: Database Server (DBS) Redundancy Model | I6: Geographic
